Workbook

Sheet 00 Alimenta (hidden)
A2: PRG | B2: 4
A4: CE | B4: Conto | C4: Descrizione conto | D4: Esercizio 2018 | E4: Esercizio 2019
A5: AA0031 | B5: 0301010101 | C5: Finanziamento indistinto | D5: 544141166.2 | E5: 547046180.2
A6: AA0031 | B6: 0301010102 | C6: Finanziamento indistinto - Funzioni regionali | D6: 11338597.85 | E6: 10707741.57
A7: AA0032 | B7: 0301010103 | C7: Finanziamento indistinto finalizzato da Regione | D7: 0 | E7: 1262268.83
A8: AA0040 | B8: 0301010212 | C8: Quota per progetti di PSN L. 662/96 | D8: 13751012.34 | E8: 12924579.97
A9: AA0040 | B9: 0301010215 | C9: Quota per contributi da Regione per Emergenza Avicola L.205/2017, art.1, comma 509 | D9: 13789.5 | E9: 0
A10: AA0070 | B10: 0301020101 | C10: Contributi da Regione (extra fondo) vincolati | D10: 410404.72 | E10: 964199.29
A11: AA0100 | B11: 0301020104 | C11: Contributi da Regione (extra fondo) - Altro | D11: 0 | E11: 216918.16
A12: AA0150 | B12: 0301020302 | C12: Contributi da Comune (extra fondo) vincolati | D12: 0 | E12: 7500
A13: AA0150 | B13: 0301020306 | C13: Contributi da altri enti pubblici - vincolati | D13: 168535.25 | E13: 31200.59
A14: AA0170 | B14: 0301020313 | C14: Contributi da altri soggetti pubblici (extra fondo) - altro | D14: 0 | E14: 0
A15: AA0250 | B15: 0716010101 | C15: Rettifica contributi in c/esercizio per destinazione ad investimenti - da Regione per quota F.S. regionale | D15: -4347846.81 | E15: -3379701.26
A16: AA0280 | B16: 0302010102 | C16: Utilizzo fondi per quote inutilizzate contributi di esercizi precedenti da Regione per quota emersione extracomunitari L. 102/09 art. 1 ter, comma 17 e D.Lgs. 109/2012 art. 5, comma 16 | D16: 618167.12 | E16: 0
A17: AA0280 | B17: 0302010103 | C17: Utilizzo fondi per quote inutilizzate contributi di esercizi precedenti da Regione per quota medicina Penitenziaria D.Lgs 230/99 | D17: 47292 | E17: 9458.4
A18: AA0280 | B18: 0302010104 | C18: Utilizzo fondi per quote inutilizzate contributi di esercizi precedenti per quota Medicina Penitenziaria art. 2 comma 283 L. 244/07 | D18: 1278940.21 | E18: 228242.33
A19: AA0280 | B19: 0302010107 | C19: Utilizzo fondi per quote inutilizzate contributi di esercizi precedenti da Regione per quota Extracomunitari irregolari L. 40/98 | D19: 0 | E19: 252907.55
A20: AA0280 | B20: 0302010108 | C20: Utilizzo fondi per quote inutilizzate contributi di esercizi precedenti da Regione per quota Fondo esclusività L 488/99 | D20: 774519.17 | E20: 0
A21: AA0280 | B21: 0302010111 | C21: Utilizzo fondi per quote inutilizzate contributi di esercizi precedenti da Regione per quota Aids L 135/90 | D21: 291195.73 | E21: 67983.01
A22: AA0280 | B22: 0302010112 | C22: Utilizzo fondi per quote inutilizzate contributi di esercizi precedenti da Regione per quota Progetti di PSN L 662/96 | D22: 4839865.09 | E22: 16985783.32
A23: AA0280 | B23: 0302010117 | C23: Utilizzo fondi per quote inutilizzate contributi esercizi precedenti Regione per quota gioco d'azzardo patologico (GAP) Legge n. 190/2014 e ss.mm.ii. | D23: 220805 | E23: 0
A24: AA0290 | B24: 0302020101 | C24: Utilizzo fondi per quote inutilizzate contributi di esercizi precedenti da soggetti pubblici (extra fondo) vincolati | D24: 0 | E24: 242229.77
A25: AA0350 | B25: 0303010101 | C25: Prestazioni di ricovero | D25: 31411147.64 | E25: 30459329.7
A26: AA0350 | B26: 0303010102 | C26: Per assistenza ospedaliera (erogate da privato accreditato) | D26: 32521005.16 | E26: 34533204.64
A27: AA0360 | B27: 0303010103 | C27: Prestazioni di specialistica ambulatoriale | D27: 6072102.47 | E27: 6618754.77
A28: AA0360 | B28: 0303010105 | C28: Per altra assistenza specialistica ambulatoriale (erogate da privato accreditato) | D28: 2423368.2 | E28: 2401196.8
A29: AA0370 | B29: 0303010107 | C29: Prestazioni di psichiatria residenziale e semiresidenziale nelle Strutture Psicoriabilitative (erogate da privato accreditato) | D29: 4667985.86 | E29: 4699731.63
A30: AA0380 | B30: 0303010108 | C30: Prestazioni di File F | D30: 13551276.25 | E30: 15293240.5
A31: AA0390 | B31: 0303010109 | C31: Prestazioni servizi MMG, PLS, Continuità assistenziale | D31: 76930.02 | E31: 139164.66
A32: AA0400 | B32: 0303010110 | C32: Prestazioni servizi farmaceutica convenzionata | D32: 1554303.34 | E32: 1464959.73
A33: AA0410 | B33: 0303010112 | C33: per assistenza termale (erogate da privato accreditato) | D33: 1071238.47 | E33: 825373.77
A34: AA0420 | B34: 0303010113 | C34: Prestazioni trasporto ambulanze ed elisoccorso | D34: 176712.63 | E34: 215493.58
A35: AA0430 | B35: 0303010118 | C35: Per assistenza riabilitativa schema tipo previsto ex art. 26 L. 833/78 | D35: 3898231.58 | E35: 3710722.07
A36: AA0430 | B36: 0303010119 | C36: Per prestazioni ad anziani non autosufficienti nei Centri Residenziali | D36: 154181.96 | E36: 122485.96
A37: AA0430 | B37: 0303010120 | C37: Per prestazioni ad anziani non autosufficienti nelle Residenze Sanitarie Assistite | D37: 1931897.43 | E37: 1992574.51
A38: AA0440 | B38: 0303010203 | C38: Altre prestazioni sanitarie e sociosanitarie a rilevanza sanitaria erogate ad altri soggetti pubblici | D38: 90381.5 | E38: 56370.17
A39: AA0460 | B39: 0303010301 | C39: Prestazioni di ricovero | D39: 7320391.07 | E39: 11878307.28
A40: AA0470 | B40: 0303010302 | C40: Prestazioni ambulatoriali | D40: 1477229.91 | E40: 2030527.06
A41: AA0490 | B41: 0303010304 | C41: Prestazioni di File F | D41: 2471453.08 | E41: 1915086.72
A42: AA0500 | B42: 0303010305 | C42: Prestazioni servizi MMG, PLS, Continuità assistenziale Extraregione | D42: 56122.64 | E42: 19433.84
A43: AA0510 | B43: 0303010306 | C43: Prestazioni servizi farmaceutica convenzionata Extraregione | D43: 506661.23 | E43: 1142996.67
A44: AA0520 | B44: 0303010307 | C44: Prestazioni termali Extraregione | D44: 180073.68 | E44: 237345.51
A45: AA0530 | B45: 0303010308 | C45: Prestazioni trasporto ambulanze ed elisoccorso Extraregione | D45: 469730.81 | E45: 309535.11
A46: AA0550 | B46: 0303010311 | C46: Ricavi per cessione di emocomponenti e cellule staminali Extraregione | D46: 0 | E46: 45357.06
A47: AA0590 | B47: 0303010314 | C47: Altre prestazioni sanitarie e socio-sanitarie a rilevanza sanitaria non soggette a compensazione Extraregione | D47: 2626.39 | E47: 7192.04
A48: AA0600 | B48: 0303010315 | C48: Altre prestazioni sanitarie a rilevanza sanitaria - Mobilità attiva Internazionale | D48: 318967.76 | E48: 393536.14
A49: AA0620 | B49: 0303020101 | C49: Prestazioni di ricovero da privati Extraregione in compensazione (mobilità attiva) | D49: 10285883.1 | E49: 8426930.48
A50: AA0630 | B50: 0303020201 | C50: Prestazioni ambulatoriali da privati Extraregione in compensazione (mobilità attiva) | D50: 201606.44 | E50: 200940.4
A51: AA0660 | B51: 0303030101 | C51: Proventi per rilascio cartelle cliniche, radiografie e certificati | D51: 146436.08 | E51: 137733.32
A52: AA0660 | B52: 0303030102 | C52: Proventi per multe, ammende e contravvenzioni di vigili sanitari | D52: 2500 | E52: 3673.47
A53: AA0660 | B53: 0303030103 | C53: Proventi per sanzioni in materia di lavoro | D53: 27593.38 | E53: 85672.93
A54: AA0660 | B54: 0303030104 | C54: Proventi per prestazioni di medicina del lavoro | D54: 540.64 | E54: 412.05
A55: AA0660 | B55: 0303030105 | C55: Proventi per sanzioni sanità pubblica veterinaria | D55: 9396.75 | E55: 10084.41
A56: AA0660 | B56: 0303030106 | C56: Proventi per diritti veterinari ex art.3 D.lgs. 51/92 | D56: 327976.69 | E56: 338725.42
A57: AA0660 | B57: 0303030107 | C57: Proventi per sanzioni amministrative | D57: 140693.07 | E57: 105772.24
A58: AA0660 | B58: 0303030108 | C58: Proventi sperimentazioni farmaci e cliniche | D58: 143256.8 | E58: 89468.33
A59: AA0660 | B59: 0303030109 | C59: Proventi per servizi di medicina legale | D59: 551600.1 | E59: 483418.11
A60: AA0660 | B60: 0303030110 | C60: Ricavi per somministrazione di vaccini | D60: 118766.74 | E60: 287074.93
A61: AA0660 | B61: 0303030111 | C61: Proventi per prestazioni di medicina sportiva | D61: 32128.55 | E61: 34577.78
A62: AA0660 | B62: 0303030114 | C62: Altri ricavi per prestazioni sanitarie erogate a soggetti privati | D62: 312040.17 | E62: 245389.61
A63: AA0660 | B63: 0303030115 | C63: Ricavi per prestazioni specialistiche ambulatoriali (a privati paganti) | D63: 786234.17 | E63: 631602.4
A64: AA0660 | B64: 0303030116 | C64: Ricavi per ricovero ospedaliero | D64: 270609.04 | E64: 436048.28
A65: AA0660 | B65: 0303030117 | C65: Ricavi per prestazioni del dipartimento di prevenzione | D65: 401104.96 | E65: 307693.03
A66: AA0660 | B66: 0303030118 | C66: Ricavi per consulenze sanitarie mediche e veterinarie | D66: 11274.96 | E66: 14080.95
A67: AA0660 | B67: 0303030122 | C67: Ricavi cessione sangue ed emoderivati vs privati | D67: 338352.21 | E67: 408078.34
A68: AA0680 | B68: 0303040101 | C68: Ricavi per prestazioni sanitarie intramoenia - Area ospedaliera | D68: 80436.56 | E68: 97957.71
A69: AA0690 | B69: 0303040201 | C69: Ricavi per prestazioni sanitarie intramoenia - Area specialistica | D69: 3326104 | E69: 3340368
A70: AA0700 | B70: 0303040301 | C70: Ricavi per prestazioni sanitarie intramoenia - Area sanità pubblica | D70: 17534.57 | E70: 16412.46
A71: AA0710 | B71: 0303040401 | C71: Ricavi per prestazioni sanitarie intramoenia - Consulenze (ex art. 55 c. 1 lett. c), d) ed ex art. 57-58) | D71: 677848.85 | E71: 385532.67
A72: AA0730 | B72: 0303040601 | C72: Ricavi per prestazioni sanitarie intramoenia - Altro | D72: 130775.39 | E72: 70557.93
A73: AA0740 | B73: 0303040701 | C73: Ricavi per prestazioni sanitarie intramoenia - Altro (Aziende sanitarie pubbliche della Regione) | D73: 5779.7 | E73: 17895.3
A74: AA0760 | B74: 0304010101 | C74: Rimborsi assicurativi | D74: 151672.58 | E74: 157878.72
A75: AA0810 | B75: 0304030101 | C75: Rimborso degli oneri stipendiali del personale dipendente dell'azienda in posizione di comando presso Aziende sanitarie pubbliche della Regione | D75: 23253.72 | E75: 0
A76: AA0830 | B76: 0304030301 | C76: Altri concorsi, recuperi e rimborsi da parte di Aziende sanitarie pubbliche della Regione | D76: 180596.98 | E76: 131694.36
A77: AA0850 | B77: 0304040101 | C77: Rimborso degli oneri stipendiali del personale dipendente dell'azienda in posizione di comando presso altri soggetti pubblici | D77: 150326.43 | E77: 0
A78: AA0860 | B78: 0304040201 | C78: Rimborsi per acquisto beni sanitari v/altri Enti Pubblici | D78: 8374.78 | E78: 5464.29
A79: AA0870 | B79: 0304040303 | C79: Concorso da comuni per integr.rette RSA | D79: 81077.24 | E79: 42850.54
A80: AA0870 | B80: 0304040304 | C80: Altri concorsi, recuperi e rimborsi da parte di altri soggetti pubblici | D80: 13333.41 | E80: 696.73
A81: AA0920 | B81: 0304050103 | C81: Ulteriore Pay-back | D81: 2615698.91 | E81: 2477467.95
A82: AA0930 | B82: 0304050201 | C82: Altri concorsi, recuperi e rimborsi da privati | D82: 634408.52 | E82: 1081735.73
A83: AA0950 | B83: 0305010101 | C83: Compartecipazione alla spesa per prestazioni sanitarie - Ticket sulle prestazioni per visite specialistiche | D83: 3159047.66 | E83: 3331463.55
A84: AA0950 | B84: 0305010102 | C84: Compartecipazione alla spesa per prestazioni sanitarie - Ticket sulle prestazioni per diagnostica strumentale | D84: 1443223.8 | E84: 1525603.94
A85: AA0950 | B85: 0305010103 | C85: Compartecipazione alla spesa per prestazioni sanitarie - Ticket sulle prestazioni per analisi di laboratorio | D85: 1940873.85 | E85: 2073318.77
A86: AA0960 | B86: 0305020101 | C86: Compartecipazione alla spesa per prestazioni sanitarie - Ticket sul pronto soccorso | D86: 386661.64 | E86: 232978.25
A87: AA0990 | B87: 0306010101 | C87: Quota imputata all'esercizio dei finanziamenti per investimenti dallo Stato | D87: 54754.03 | E87: 86964.13
A88: AA1000 | B88: 0306020101 | C88: Quota imputata all'esercizio dei finanziamenti per investimenti da Regione | D88: 1674245.68 | E88: 1986864.15
A89: AA1010 | B89: 0306030101 | C89: Quota imputata all'esercizio dei finanziamenti per beni di prima dotazione | D89: 3577467.93 | E89: 3577467.93
A90: AA1020 | B90: 0306040101 | C90: Quota imputata all'esercizio dei contributi in c/esercizio FSR destinati ad investimenti | D90: 5185207.28 | E90: 5079640.42
A91: AA1070 | B91: 0308010102 | C91: Ricavi per consulenze, certificazioni e attestazioni non sanitarie | D91: 0 | E91: 0
A92: AA1070 | B92: 0308010103 | C92: Ricavi per maggior comfort alberghiero | D92: 1738.6 | E92: 6999.55
A93: AA1080 | B93: 0308020101 | C93: Affitti attivi | D93: 186882.15 | E93: 286977.87
A94: AA1090 | B94: 0308030102 | C94: Proventi per multe, ammende e contravvenzioni (non sanitarie) | D94: 34071.35 | E94: 45589.92
A95: AA1090 | B95: 0308030104 | C95: Proventi per gestione distributori automatici di bibite | D95: 3934.44 | E95: 54250
A96: AA1090 | B96: 0308030105 | C96: Proventi per corsi di formazione | D96: 57821.38 | E96: 71072.02
A97: AA1090 | B97: 0308030109 | C97: Altri proventi non sanitari | D97: 266999.04 | E97: 117761.96
A98: BA0040 | B98: 0701010101 | C98: Medicinali con AIC | D98: -70487643.32 | E98: -73078171.64
A99: BA0040 | B99: 0701010102 | C99: Soluzioni infusionali con AIC | D99: -17397.05 | E99: -6553.21
A100: BA0040 | B100: 0701010104 | C100: Altri gas medicali con AIC | D100: -174947.81 | E100: -142673.48
A101: BA0040 | B101: 0701010105 | C101: Emoderivati con AIC | D101: -2011801.43 | E101: -2931637.74
A102: BA0040 | B102: 0701010108 | C102: Farmaci innovativi | D102: -8485995.27 | E102: -9025472.7
A103: BA0050 | B103: 0701010106 | C103: Medicinali senza AIC | D103: -752264.34 | E103: -679663.84
A104: BA0051 | B104: 0701010103 | C104: Ossigeno con AIC | D104: -1358852.21 | E104: -476848.64
A105: BA0090 | B105: 0701010202 | C105: Sangue ed emocomponenti da pubblico (Aziende sanitarie pubbliche extra Regione) - Mobilità extraregionale | D105: -23080.75 | E105: 0
A106: BA0090 | B106: 0701010204 | C106: Costi per plasmaderivazione da pubblico (Aziende sanitarie pubbliche extra Regione) - Mobilità extraregionale | D106: 0 | E106: 0
A107: BA0220 | B107: 0701010301 | C107: Strumentazione per bioimmagini e radioterapia | D107: -81557.27 | E107: -196888.57
A108: BA0220 | B108: 0701010302 | C108: Materiale per sterilizzazione | D108: -46837.63 | E108: -117955.56
A109: BA0220 | B109: 0701010303 | C109: Dispositivi per chirurgia mini-invasiva ed elettrochirurgia | D109: -1483448.22 | E109: -1686767.11
A110: BA0220 | B110: 0701010304 | C110: Protesi ortopediche e mezzi per osteosintesi e sintesi tendineo-legamentosa | D110: -3078145.23 | E110: -3497983.41
A111: BA0220 | B111: 0701010305 | C111: Protesi oculistiche | D111: -232024.76 | E111: -271090.24
A112: BA0220 | B112: 0701010306 | C112: Protesi vascolari e cardiache | D112: -1843129.03 | E112: -2080981.68
A113: BA0220 | B113: 0701010307 | C113: Altri dispositivi protesici impiantabili e prodotti per osteosintesi | D113: -53882.09 | E113: -91623.74
A114: BA0220 | B114: 0701010308 | C114: Supporti e ausili tecnici per persone disabili | D114: -126750.9 | E114: -98927.97
A115: BA0220 | B115: 0701010309 | C115: Dispositivi per emotrasfusione ed ematologia | D115: -429955.11 | E115: -414964.84
A116: BA0220 | B116: 0701010310 | C116: Dispositivi per dialisi | D116: -1649439.47 | E116: -1565916.49
A117: BA0220 | B117: 0701010312 | C117: Dispositivi da somministrazione, prelievo e raccolta | D117: -3688519.83 | E117: -3966179.04
A118: BA0220 | B118: 0701010314 | C118: Strumentazione per esplorazioni funzionali ed interventi terapeutici | D118: -988781.88 | E118: -1368814.64
A119: BA0220 | B119: 0701010315 | C119: Strumentazione per radiologia diagnostica ed interventistica | D119: -1609.85 | E119: -5041.04
A120: BA0220 | B120: 0701010316 | C120: Strumentario chirurgico pluriuso o riusabile | D120: -631469.93 | E120: -707328.2
A121: BA0220 | B121: 0701010317 | C121: Dispositivi protesici impiantabili - vari | D121: -196988.74 | E121: -220817.18
A122: BA0220 | B122: 0701010318 | C122: Dispositivi per sistema artero-venoso | D122: -2170842.01 | E122: -2030857.17
A123: BA0220 | B123: 0701010319 | C123: Guide per apparato cardiocircolatorio | D123: -374481.76 | E123: -468633.68
A124: BA0220 | B124: 0701010320 | C124: Altri dispositivi per apparato cardiocircolatorio | D124: -1021118.45 | E124: -979553.14
A125: BA0220 | B125: 0701010321 | C125: Disinfettanti, antisettici e proteolitici (D.Lgs. 46/97) | D125: -117827.27 | E125: -109211.82
A126: BA0220 | B126: 0701010322 | C126: Dispositivi per apparato gastrointestinale | D126: -362947.48 | E126: -361383.78
A127: BA0220 | B127: 0701010323 | C127: Dispositivi da sutura | D127: -1286174 | E127: -1322853.7
A128: BA0220 | B128: 0701010324 | C128: Dispositivi per sistema nervoso e midollare | D128: -120204.52 | E128: -93843.32
A129: BA0220 | B129: 0701010325 | C129: Dispositivi per odontoiatria, oftalmologoa e otorinolaringoiatria | D129: -544399.05 | E129: -582785.6
A130: BA0220 | B130: 0701010326 | C130: Dispositivi per apparato respiratorio e anestesia | D130: -602906.88 | E130: -593718.24
A131: BA0220 | B131: 0701010327 | C131: Dispositivi di protezione e ausili per incontinenza (D.Lgs. 46/97) | D131: -2080336.8 | E131: -2062570.49
A132: BA0220 | B132: 0701010328 | C132: Dispositivi per apparato urogenitale | D132: -177026.73 | E132: -198647.88
A133: BA0220 | B133: 0701010329 | C133: Dispositivi vari | D133: -1728420.73 | E133: -1737649.9
A134: BA0220 | B134: 0701010330 | C134: Dispositivi per medicazioni generali e specialistiche | D134: -1894088.33 | E134: -2135183.43
A135: BA0230 | B135: 0701010313 | C135: Dispositivi impiantabili attivi | D135: -3071999.01 | E135: -3788645.64
A136: BA0240 | B136: 0701010311 | C136: Dispositivi medico-diagnostici in vitro (D.Lgs. 332/2000) | D136: -12786548.72 | E136: -12483543.45
A137: BA0250 | B137: 0701010401 | C137: Prodotti dietetici | D137: -37219.06 | E137: -50432.57
A138: BA0250 | B138: 0701010402 | C138: Alimenti per nutrizione artificiale senza AIC | D138: -431741.6 | E138: -409532.18
A139: BA0260 | B139: 0701010502 | C139: Vaccini obbligatori | D139: -575429.16 | E139: -355655.56
A140: BA0260 | B140: 0701010503 | C140: Altri vaccini | D140: -1647355.95 | E140: -2329226.17
A141: BA0280 | B141: 0701010701 | C141: Medicinali ad uso veterinario | D141: -11791.41 | E141: -9923.87
A142: BA0280 | B142: 0701010702 | C142: Materiali chirurgici, sanitari e diagnostici per uso veterinario | D142: -8845 | E142: -5246.61
A143: BA0290 | B143: 0701010801 | C143: Vetrerie e materiale plastico per laboratorio (senza CND) | D143: -54713.99 | E143: -31871.03
A144: BA0290 | B144: 0701010802 | C144: Altri materiali di consumo non specifici per strumentazione diagnostica (senza CND) | D144: -805000.83 | E144: -752223.09
A145: BA0290 | B145: 0701010803 | C145: Altri beni e prodotti sanitari (senza CND) | D145: -1333791.77 | E145: -1204020.59
A146: BA0320 | B146: 0701020101 | C146: Prodotti alimentari | D146: -83.52 | E146: -336.06
A147: BA0330 | B147: 0701020102 | C147: Materiali di guardaroba, di pulizia e di convivenza in genere | D147: -64306.42 | E147: -34271.29
A148: BA0340 | B148: 0701020103 | C148: Combustibili, carburanti e lubrificanti | D148: -172419.52 | E148: -145758.08
A149: BA0350 | B149: 0701020104 | C149: Supporti informatici | D149: -127864.8 | E149: -146562.58
A150: BA0350 | B150: 0701020105 | C150: Cancelleria e stampati | D150: -350110.1 | E150: -312120.43
A151: BA0360 | B151: 0701020106 | C151: Materiale per la manutenzione di immobili e loro pertinenze | D151: -188488.96 | E151: -205067.18
A152: BA0360 | B152: 0701020108 | C152: Materiale per la manutenzione di attrezzature tecnico scientifiche sanitarie | D152: -44936.27 | E152: -36371.67
A153: BA0360 | B153: 0701020110 | C153: Materiale per la manutenzione di altro | D153: -6459.14 | E153: -43089.9
A154: BA0370 | B154: 0701020111 | C154: Altri beni e prodotti non sanitari | D154: -45073.96 | E154: -67162.76
A155: BA0430 | B155: 0702010101 | C155: Costi per assistenza MMG | D155: -24517314.75 | E155: -23959444.88
A156: BA0440 | B156: 0702010102 | C156: Costi per assistenza PLS | D156: -6415070.53 | E156: -5870213.86
A157: BA0450 | B157: 0702010103 | C157: Costi per assistenza Continuità assistenziale | D157: -3931463.93 | E157: -4254569.59
A158: BA0460 | B158: 0702010104 | C158: Costi per assistenza Medici 118 | D158: -653212.61 | E158: -860523.59
A159: BA0460 | B159: 0702010105 | C159: Altro (medicina dei servizi, psicologi, etc¿) (esclusa IRAP) | D159: -136443.5 | E159: -131098.29
A160: BA0470 | B160: 0702010106 | C160: Costi per medicina di base da pubblico (Aziende sanitarie pubbliche della Regione) - Mobilità intraregionale | D160: -38671 | E160: -51404.4
A161: BA0480 | B161: 0702010107 | C161: Costi per medicina di base da pubblico (Aziende sanitarie pubbliche Extraregione) - Mobilità extraregionale | D161: -217107.5 | E161: -202760.17
A162: BA0500 | B162: 0702010201 | C162: Acquisti servizi sanitari per farmaceutica da convenzione | D162: -50005470.41 | E162: -46484625.52
A163: BA0500 | B163: 0702010202 | C163: Acquisti servizi sanitari sussidi Indennità per farmacie rurali ed altro | D163: -124207.82 | E163: -137136.5
A164: BA0510 | B164: 0702010203 | C164: Costi per farmaceutica da pubblico (Aziende sanitarie pubbliche della Regione)- Mobilità intraregionale | D164: -1277628.07 | E164: -1255010.99
A165: BA0520 | B165: 0702010204 | C165: Costi per farmaceutica da pubblico (Extraregione) | D165: -457054.73 | E165: -504044.37
A166: BA0540 | B166: 0702010301 | C166: Costi per assistenza specialistica ambulatoriale da pubblico (Aziende sanitarie pubbliche della Regione) | D166: -7623510.4 | E166: -7802570.19
A167: BA0540 | B167: 0702010302 | C167: Servizi sanitari da privato accreditato insito in Regione territorio extra ASL v/ cittadini residenti in territorio ASL - rientranti nei contratti negoziali (branche a visita) | D167: -81.98 | E167: 0
A168: BA0540 | B168: 0702010303 | C168: Servizi sanitari da case di cura private insite in Regione territorio extra ASL v/ cittadini residenti in territorio ASL - rientranti nei contratti negoziali (assistenza specialistica ambulatoriale) | D168: -1200763.1 | E168: -1225406.9
A169: BA0540 | B169: 0702010304 | C169: Servizi sanitari da altri soggetti privati insiti in Regione territorio extra ASL v/cittadini residenti nel territorio ASL rientranti nei contratti negoziali (assistenza specialistica ambulatoriale) | D169: -55004.09 | E169: 0
A170: BA0550 | B170: 0702010305 | C170: Costi per assistenza specialistica ambulatoriale da pubblico (altri soggetti pubblici della Regione) | D170: -360209.89 | E170: -580281.24
A171: BA0560 | B171: 0702010306 | C171: Costi per assistenza specialistica ambulatoriale da pubblico (Extraregione) | D171: -4000753.58 | E171: -3402818.86
A172: BA0560 | B172: 0702010325 | C172: Costi per cessioni di emocomponenti e cellule staminali extraregione | D172: 0 | E172: 0
A173: BA0570 | B173: 0702010307 | C173: Costi per assistenza specialistica ambulatoriale da privato - Medici SUMAI | D173: -4486744.21 | E173: -4184408.7
A174: BA0590 | B174: 0702010308 | C174: Servizi sanitari per assistenza specialistica da IRCCS privati e Policlinici privati | D174: -83336.34 | E174: -55662.5
A175: BA0610 | B175: 0309010805 | C175: Compartecipazione alla spesa per prestazioni sanitarie - Ticket sulle prestazioni assistenza specialistica ambulatoriale da Case di Cura private | D175: 976058.35 | E175: 948079.16
A176: BA0610 | B176: 0309010806 | C176: Quota fissa di cui all¿art. 17, comma 6, del D.L. 98/2011 per assistenza specialistica ambulatoriale da Case di Cura private | D176: 337730 | E176: 328410
A177: BA0610 | B177: 0702010310 | C177: Servizi sanitari da case di cura private insite nel territorio ASL v/ cittadini residenti nel territorio ASL - rientranti nei contratti negoziali (assistenza specialistica ambulatoriale) | D177: -4514981.5 | E177: -4409008.42
A178: BA0610 | B178: 0702010311 | C178: Servizi sanitari da case di cura private insite nel territorio ASL v/cittadini residenti nella Regione in territorio extra ASL rientranti nei contratti negoziali (assist. specialistica ambulatoriale) | D178: -2248145.51 | E178: -2211519.81
A179: BA0610 | B179: 0702010313 | C179: Servizi sanitari da case di cura private - per cittadini residenti acquistate fuori contratti negoziali in strutture entro Regione (assistenza specialistica ambulatoriale) | D179: -14348.16 | E179: -518.26
A180: BA0620 | B180: 0309010807 | C180: Compartecipazione alla spesa per prestazioni sanitarie - Ticket sulle prestazioni assistenza specialistica ambulatoriale da altri privati | D180: 188629.47 | E180: 174532.11
A181: BA0620 | B181: 0309010808 | C181: Quota fissa di cui all¿art. 17, comma 6, del D.L. 98/2011 per assistenza specialistica ambulatoriale da altri privati | D181: 58256.15 | E181: 53730
A182: BA0620 | B182: 0702010314 | C182: Servizi sanitari da privato accreditato insito nel territorio ASL v/ cittadini residenti in territorio ASL - rientranti nei contratti negoziali (branche a visita) | D182: -32601.73 | E182: -34965.15
A183: BA0620 | B183: 0702010315 | C183: Servizi sanitari da privato accreditato insito nel territorio ASL v/ cittadini residenti nella Regione in territorio extra ASL - rientranti nei contratti negoziali (branche a visita) | D183: -6587.94 | E183: -4345.51
A184: BA0620 | B184: 0702010316 | C184: Servizi sanitari da privato accreditato per cittadini residenti acquistate in strutture fuori Regione (branche a visita) | D184: -3.2 | E184: -38.67
A185: BA0620 | B185: 0702010318 | C185: Servizi sanitari da altri soggetti privati insiti nel Territorio ASL v/ cittadini residenti nel territorio ASL - rientranti nei contratti negoziali (assistenza specialistica ambulatoriale) | D185: -3035421.56 | E185: -2980812.43
A186: BA0620 | B186: 0702010319 | C186: Servizi sanitari da altri soggetti privati insiti nel territorio ASL v/cittadini residenti nella Regione in territorio extra ASL rientranti nei contratti negoziali (ass. specialistica ambulatoriale) | D186: -506050.07 | E186: -505982.44
A187: BA0620 | B187: 0702010321 | C187: Servizi sanitari da altri soggetti privati - per cittadini residenti acquistate fuori contratti negoziali in strutture entro Regione (assistenza specialistica ambulatoriale) | D187: -5003.97 | E187: 0
A188: BA0630 | B188: 0309010809 | C188: Compartecipazione alla spesa per prestazioni sanitarie - Ticket sulle prestazioni assistenza specialistica ambulatoriale da privato per cittadini non residenti - Extraregione | D188: 3738.21 | E188: 3038.89
A189: BA0630 | B189: 0309010810 | C189: Quota fissa di cui all¿art. 17, comma 6, del D.L. 98/2011 per assistenza specialistica ambulatoriale da privato per cittadini non residenti - Extraregione | D189: 1170 | E189: 1020
A190: BA0630 | B190: 0702010322 | C190: Servizi sanitari da privato accreditato v/ cittadini non residenti - extraregione (mobilità attiva in compensazione) (branche a visita) | D190: -108.07 | E190: -581.39
A191: BA0630 | B191: 0702010323 | C191: Servizi sanitari da case di cura private v/ cittadini non residenti - extraregione (mobilità attiva in compensazione) (assistenza specialistica ambulatoriale) | D191: -155652.49 | E191: -161626.46
A192: BA0630 | B192: 0702010324 | C192: Servizi sanitari da altri soggetti privati v/ cittadini non residenti - extraregione (mobilità attiva in compensazione) (assistenza specialistica ambulatoriale) | D192: -45845.88 | E192: -38723.52
A193: BA0650 | B193: 0702010402 | C193: Da privato accreditato insito in Regione territorio extra ASL v/ cittadini residenti in territorio ASL - rientranti nei contratti negoziali (riabilitazione ex art. 26) | D193: -4832965.95 | E193: -5168858.88
A194: BA0680 | B194: 0702010405 | C194: Da privato accreditato insito nel territorio ASL v/ cittadini residenti in territorio ASL - rientranti nei contratti negoziali (riabilitazione ex art. 26) | D194: -10714220.15 | E194: -10812043.1
A195: BA0680 | B195: 0702010406 | C195: Da privato accreditato insito nel territorio ASL v/ cittadini residenti nella Regione in territorio extra ASL - rientranti nei contratti negoziali (riabilitazione ex art. 26) | D195: -3898231.58 | E195: -3710722.07
A196: BA0690 | B196: 0702010408 | C196: Da privato accreditato per cittadini residenti acquistate in strutture fuori Regione (riabilitazione ex art. 26) | D196: -545484.88 | E196: -583099.84
A197: BA0740 | B197: 0702010504 | C197: Da privato per assistenza integrativa | D197: -1802068.84 | E197: -1733047.08
A198: BA0790 | B198: 0702010604 | C198: Da privato per assistenza protesica | D198: -4852166.28 | E198: -5271573.9
A199: BA0790 | B199: 0702010605 | C199: Da privato per materiale per incontinenza | D199: -1451062.73 | E199: -1574521.81
A200: BA0810 | B200: 0702010701 | C200: Da pubblico per assistenza ospedaliera (Aziende sanitarie pubbliche della Regione) | D200: -23797587 | E200: -25016249.31
A201: BA0810 | B201: 0702010702 | C201: Da privato accreditato per assistenza ospedaliera insito in Regione territorio extra ASL v/cittadini residenti in territorio ASL - rientranti nei contratti negoziali | D201: -2683945.39 | E201: -3035983.38
A202: BA0830 | B202: 0702010704 | C202: Da pubblico per assistenza ospedaliera (Extraregione) | D202: -24057993.46 | E202: -30364599.56
... 374 more rows

Sheet 00 Aggregatore
E2: ANNO | F2: 2019
A4: Aggr | B4: CE | C4: Descrizione CE | D4: C/R | E4: =IF($F$2="","Anno T-1","Esercizio "&$F$2-1) -> Esercizio 2018 | F4: =IF($F$2="","Anno T","Esercizio "&$F$2) -> Esercizio 2019
A5: =LEFT(B5,1)&D5 -> AR | B5: AA0031 | C5: A.1.A.1.1) Finanziamento indistinto | D5: R | E5: =IF('00 Aggregatore'!$D5="R",SUMIF('00 Alimenta'!$A:$A,$B5,'00 Alimenta'!D:D),SUMIF('00 Alimenta'!$A:$A,$B5,'00 Alimenta'!D:D)*-1) -> 555479764 | F5: =IF('00 Aggregatore'!$D5="R",SUMIF('00 Alimenta'!$A:$A,$B5,'00 Alimenta'!E:E),SUMIF('00 Alimenta'!$A:$A,$B5,'00 Alimenta'!E:E)*-1) -> 557753921.8
A6: =LEFT(B6,1)&D6 -> AR | B6: AA0032 | C6: A.1.A.1.2) Finanziamento indistinto finalizzato da Regione | D6: R | E6: =IF('00 Aggregatore'!$D6="R",SUMIF('00 Alimenta'!$A:$A,$B6,'00 Alimenta'!D:D),SUMIF('00 Alimenta'!$A:$A,$B6,'00 Alimenta'!D:D)*-1) -> 0 | F6: =IF('00 Aggregatore'!$D6="R",SUMIF('00 Alimenta'!$A:$A,$B6,'00 Alimenta'!E:E),SUMIF('00 Alimenta'!$A:$A,$B6,'00 Alimenta'!E:E)*-1) -> 1262268.83
A7: AR | B7: AA0034 | C7: A.1.A.1.3.A) Funzioni - Pronto Soccorso | D7: R | E7: =IF('00 Aggregatore'!$D7="R",SUMIF('00 Alimenta'!$A:$A,$B7,'00 Alimenta'!D:D),SUMIF('00 Alimenta'!$A:$A,$B7,'00 Alimenta'!D:D)*-1) -> 0 | F7: =IF('00 Aggregatore'!$D7="R",SUMIF('00 Alimenta'!$A:$A,$B7,'00 Alimenta'!E:E),SUMIF('00 Alimenta'!$A:$A,$B7,'00 Alimenta'!E:E)*-1) -> 0
A8: AR | B8: AA0035 | C8: A.1.A.1.3.B) Funzioni - Altro | D8: R | E8: =IF('00 Aggregatore'!$D8="R",SUMIF('00 Alimenta'!$A:$A,$B8,'00 Alimenta'!D:D),SUMIF('00 Alimenta'!$A:$A,$B8,'00 Alimenta'!D:D)*-1) -> 0 | F8: =IF('00 Aggregatore'!$D8="R",SUMIF('00 Alimenta'!$A:$A,$B8,'00 Alimenta'!E:E),SUMIF('00 Alimenta'!$A:$A,$B8,'00 Alimenta'!E:E)*-1) -> 0
A9: AR | B9: AA0036 | C9: A.1.A.1.4) Quota finalizzata per il Piano aziendale di cui all'art. 1, comma 528, L. 208/2015 | D9: R | E9: =IF('00 Aggregatore'!$D9="R",SUMIF('00 Alimenta'!$A:$A,$B9,'00 Alimenta'!D:D),SUMIF('00 Alimenta'!$A:$A,$B9,'00 Alimenta'!D:D)*-1) -> 0 | F9: =IF('00 Aggregatore'!$D9="R",SUMIF('00 Alimenta'!$A:$A,$B9,'00 Alimenta'!E:E),SUMIF('00 Alimenta'!$A:$A,$B9,'00 Alimenta'!E:E)*-1) -> 0
A10: AR | B10: AA0040 | C10: A.1.A.2) da Regione o Prov. Aut. per quota F.S. regionale vincolato | D10: R | E10: =IF('00 Aggregatore'!$D10="R",SUMIF('00 Alimenta'!$A:$A,$B10,'00 Alimenta'!D:D),SUMIF('00 Alimenta'!$A:$A,$B10,'00 Alimenta'!D:D)*-1) -> 13764801.84 | F10: =IF('00 Aggregatore'!$D10="R",SUMIF('00 Alimenta'!$A:$A,$B10,'00 Alimenta'!E:E),SUMIF('00 Alimenta'!$A:$A,$B10,'00 Alimenta'!E:E)*-1) -> 12924579.97
A11: AR | B11: AA0070 | C11: A.1.B.1.1) Contributi da Regione o Prov. Aut. (extra fondo) vincolati | D11: R | E11: =IF('00 Aggregatore'!$D11="R",SUMIF('00 Alimenta'!$A:$A,$B11,'00 Alimenta'!D:D),SUMIF('00 Alimenta'!$A:$A,$B11,'00 Alimenta'!D:D)*-1) -> 410404.72 | F11: =IF('00 Aggregatore'!$D11="R",SUMIF('00 Alimenta'!$A:$A,$B11,'00 Alimenta'!E:E),SUMIF('00 Alimenta'!$A:$A,$B11,'00 Alimenta'!E:E)*-1) -> 964199.29
A12: AR | B12: AA0080 | C12: A.1.B.1.2) Contributi da Regione o Prov. Aut. (extra fondo) - Risorse aggiuntive da bilancio regionale a titolo di copertura LEA | D12: R | E12: =IF('00 Aggregatore'!$D12="R",SUMIF('00 Alimenta'!$A:$A,$B12,'00 Alimenta'!D:D),SUMIF('00 Alimenta'!$A:$A,$B12,'00 Alimenta'!D:D)*-1) -> 0 | F12: =IF('00 Aggregatore'!$D12="R",SUMIF('00 Alimenta'!$A:$A,$B12,'00 Alimenta'!E:E),SUMIF('00 Alimenta'!$A:$A,$B12,'00 Alimenta'!E:E)*-1) -> 0
A13: AR | B13: AA0090 | C13: A.1.B.1.3) Contributi da Regione o Prov. Aut. (extra fondo) - Risorse aggiuntive da bilancio regionale a titolo di copertura extra LEA | D13: R | E13: =IF('00 Aggregatore'!$D13="R",SUMIF('00 Alimenta'!$A:$A,$B13,'00 Alimenta'!D:D),SUMIF('00 Alimenta'!$A:$A,$B13,'00 Alimenta'!D:D)*-1) -> 0 | F13: =IF('00 Aggregatore'!$D13="R",SUMIF('00 Alimenta'!$A:$A,$B13,'00 Alimenta'!E:E),SUMIF('00 Alimenta'!$A:$A,$B13,'00 Alimenta'!E:E)*-1) -> 0
A14: AR | B14: AA0100 | C14: A.1.B.1.4) Contributi da Regione o Prov. Aut. (extra fondo) - Altro | D14: R | E14: =IF('00 Aggregatore'!$D14="R",SUMIF('00 Alimenta'!$A:$A,$B14,'00 Alimenta'!D:D),SUMIF('00 Alimenta'!$A:$A,$B14,'00 Alimenta'!D:D)*-1) -> 0 | F14: =IF('00 Aggregatore'!$D14="R",SUMIF('00 Alimenta'!$A:$A,$B14,'00 Alimenta'!E:E),SUMIF('00 Alimenta'!$A:$A,$B14,'00 Alimenta'!E:E)*-1) -> 216918.16
A15: AR | B15: AA0120 | C15: A.1.B.2.1) Contributi da Aziende sanitarie pubbliche della Regione o Prov. Aut. (extra fondo) vincolati | D15: R | E15: =IF('00 Aggregatore'!$D15="R",SUMIF('00 Alimenta'!$A:$A,$B15,'00 Alimenta'!D:D),SUMIF('00 Alimenta'!$A:$A,$B15,'00 Alimenta'!D:D)*-1) -> 0 | F15: =IF('00 Aggregatore'!$D15="R",SUMIF('00 Alimenta'!$A:$A,$B15,'00 Alimenta'!E:E),SUMIF('00 Alimenta'!$A:$A,$B15,'00 Alimenta'!E:E)*-1) -> 0
A16: AR | B16: AA0130 | C16: A.1.B.2.2) Contributi da Aziende sanitarie pubbliche della Regione o Prov. Aut. (extra fondo) altro | D16: R | E16: =IF('00 Aggregatore'!$D16="R",SUMIF('00 Alimenta'!$A:$A,$B16,'00 Alimenta'!D:D),SUMIF('00 Alimenta'!$A:$A,$B16,'00 Alimenta'!D:D)*-1) -> 0 | F16: =IF('00 Aggregatore'!$D16="R",SUMIF('00 Alimenta'!$A:$A,$B16,'00 Alimenta'!E:E),SUMIF('00 Alimenta'!$A:$A,$B16,'00 Alimenta'!E:E)*-1) -> 0
A17: AR | B17: AA0141 | C17: A.1.B.3.1) Contributi da Ministero della Salute (extra fondo) | D17: R | E17: =IF('00 Aggregatore'!$D17="R",SUMIF('00 Alimenta'!$A:$A,$B17,'00 Alimenta'!D:D),SUMIF('00 Alimenta'!$A:$A,$B17,'00 Alimenta'!D:D)*-1) -> 0 | F17: =IF('00 Aggregatore'!$D17="R",SUMIF('00 Alimenta'!$A:$A,$B17,'00 Alimenta'!E:E),SUMIF('00 Alimenta'!$A:$A,$B17,'00 Alimenta'!E:E)*-1) -> 0
A18: AR | B18: AA0150 | C18: A.1.B.3.2) Contributi da altri soggetti pubblici (extra fondo) vincolati | D18: R | E18: =IF('00 Aggregatore'!$D18="R",SUMIF('00 Alimenta'!$A:$A,$B18,'00 Alimenta'!D:D),SUMIF('00 Alimenta'!$A:$A,$B18,'00 Alimenta'!D:D)*-1) -> 168535.25 | F18: =IF('00 Aggregatore'!$D18="R",SUMIF('00 Alimenta'!$A:$A,$B18,'00 Alimenta'!E:E),SUMIF('00 Alimenta'!$A:$A,$B18,'00 Alimenta'!E:E)*-1) -> 38700.59
A19: AR | B19: AA0160 | C19: A.1.B.3.3) Contributi da altri soggetti pubblici (extra fondo) L. 210/92 | D19: R | E19: =IF('00 Aggregatore'!$D19="R",SUMIF('00 Alimenta'!$A:$A,$B19,'00 Alimenta'!D:D),SUMIF('00 Alimenta'!$A:$A,$B19,'00 Alimenta'!D:D)*-1) -> 0 | F19: =IF('00 Aggregatore'!$D19="R",SUMIF('00 Alimenta'!$A:$A,$B19,'00 Alimenta'!E:E),SUMIF('00 Alimenta'!$A:$A,$B19,'00 Alimenta'!E:E)*-1) -> 0
A20: AR | B20: AA0170 | C20: A.1.B.3.4) Contributi da altri soggetti pubblici (extra fondo) altro | D20: R | E20: =IF('00 Aggregatore'!$D20="R",SUMIF('00 Alimenta'!$A:$A,$B20,'00 Alimenta'!D:D),SUMIF('00 Alimenta'!$A:$A,$B20,'00 Alimenta'!D:D)*-1) -> 0 | F20: =IF('00 Aggregatore'!$D20="R",SUMIF('00 Alimenta'!$A:$A,$B20,'00 Alimenta'!E:E),SUMIF('00 Alimenta'!$A:$A,$B20,'00 Alimenta'!E:E)*-1) -> 0
A21: AR | B21: AA0171 | C21: A.1.B.3.5) Contibuti da altri soggetti pubblici (extra fondo) - in attuazione dell’art.79, comma 1 sexies lettera c), del D.L. 112/2008, convertito con legge 133/2008 e della legge 23 dicembre 2009 n. 191. | D21: R | E21: =IF('00 Aggregatore'!$D21="R",SUMIF('00 Alimenta'!$A:$A,$B21,'00 Alimenta'!D:D),SUMIF('00 Alimenta'!$A:$A,$B21,'00 Alimenta'!D:D)*-1) -> 0 | F21: =IF('00 Aggregatore'!$D21="R",SUMIF('00 Alimenta'!$A:$A,$B21,'00 Alimenta'!E:E),SUMIF('00 Alimenta'!$A:$A,$B21,'00 Alimenta'!E:E)*-1) -> 0
A22: AR | B22: AA0190 | C22: A.1.C.1) Contributi da Ministero della Salute per ricerca corrente | D22: R | E22: =IF('00 Aggregatore'!$D22="R",SUMIF('00 Alimenta'!$A:$A,$B22,'00 Alimenta'!D:D),SUMIF('00 Alimenta'!$A:$A,$B22,'00 Alimenta'!D:D)*-1) -> 0 | F22: =IF('00 Aggregatore'!$D22="R",SUMIF('00 Alimenta'!$A:$A,$B22,'00 Alimenta'!E:E),SUMIF('00 Alimenta'!$A:$A,$B22,'00 Alimenta'!E:E)*-1) -> 0
A23: AR | B23: AA0200 | C23: A.1.C.2) Contributi da Ministero della Salute per ricerca finalizzata | D23: R | E23: =IF('00 Aggregatore'!$D23="R",SUMIF('00 Alimenta'!$A:$A,$B23,'00 Alimenta'!D:D),SUMIF('00 Alimenta'!$A:$A,$B23,'00 Alimenta'!D:D)*-1) -> 0 | F23: =IF('00 Aggregatore'!$D23="R",SUMIF('00 Alimenta'!$A:$A,$B23,'00 Alimenta'!E:E),SUMIF('00 Alimenta'!$A:$A,$B23,'00 Alimenta'!E:E)*-1) -> 0
A24: AR | B24: AA0210 | C24: A.1.C.3) Contributi da Regione ed altri soggetti pubblici per ricerca | D24: R | E24: =IF('00 Aggregatore'!$D24="R",SUMIF('00 Alimenta'!$A:$A,$B24,'00 Alimenta'!D:D),SUMIF('00 Alimenta'!$A:$A,$B24,'00 Alimenta'!D:D)*-1) -> 0 | F24: =IF('00 Aggregatore'!$D24="R",SUMIF('00 Alimenta'!$A:$A,$B24,'00 Alimenta'!E:E),SUMIF('00 Alimenta'!$A:$A,$B24,'00 Alimenta'!E:E)*-1) -> 0
A25: AR | B25: AA0220 | C25: A.1.C.4) Contributi da privati per ricerca | D25: R | E25: =IF('00 Aggregatore'!$D25="R",SUMIF('00 Alimenta'!$A:$A,$B25,'00 Alimenta'!D:D),SUMIF('00 Alimenta'!$A:$A,$B25,'00 Alimenta'!D:D)*-1) -> 0 | F25: =IF('00 Aggregatore'!$D25="R",SUMIF('00 Alimenta'!$A:$A,$B25,'00 Alimenta'!E:E),SUMIF('00 Alimenta'!$A:$A,$B25,'00 Alimenta'!E:E)*-1) -> 0
A26: AR | B26: AA0230 | C26: A.1.D) Contributi c/esercizio da privati | D26: R | E26: =IF('00 Aggregatore'!$D26="R",SUMIF('00 Alimenta'!$A:$A,$B26,'00 Alimenta'!D:D),SUMIF('00 Alimenta'!$A:$A,$B26,'00 Alimenta'!D:D)*-1) -> 0 | F26: =IF('00 Aggregatore'!$D26="R",SUMIF('00 Alimenta'!$A:$A,$B26,'00 Alimenta'!E:E),SUMIF('00 Alimenta'!$A:$A,$B26,'00 Alimenta'!E:E)*-1) -> 0
A27: AR | B27: AA0250 | C27: A.2.A) Rettifica contributi in c/esercizio per destinazione ad investimenti - da Regione o Prov. Aut. per quota F.S. regionale | D27: R | E27: =IF('00 Aggregatore'!$D27="R",SUMIF('00 Alimenta'!$A:$A,$B27,'00 Alimenta'!D:D),SUMIF('00 Alimenta'!$A:$A,$B27,'00 Alimenta'!D:D)*-1) -> -4347846.81 | F27: =IF('00 Aggregatore'!$D27="R",SUMIF('00 Alimenta'!$A:$A,$B27,'00 Alimenta'!E:E),SUMIF('00 Alimenta'!$A:$A,$B27,'00 Alimenta'!E:E)*-1) -> -3379701.26
A28: AR | B28: AA0260 | C28: A.2.B) Rettifica contributi in c/esercizio per destinazione ad investimenti - altri contributi | D28: R | E28: =IF('00 Aggregatore'!$D28="R",SUMIF('00 Alimenta'!$A:$A,$B28,'00 Alimenta'!D:D),SUMIF('00 Alimenta'!$A:$A,$B28,'00 Alimenta'!D:D)*-1) -> 0 | F28: =IF('00 Aggregatore'!$D28="R",SUMIF('00 Alimenta'!$A:$A,$B28,'00 Alimenta'!E:E),SUMIF('00 Alimenta'!$A:$A,$B28,'00 Alimenta'!E:E)*-1) -> 0
A29: AR | B29: AA0271 | C29: A.3.A) Utilizzo fondi per quote inutilizzate contributi di esercizi precedenti da Regione o Prov. Aut. per quota F.S. regionale indistinto finalizzato | D29: R | E29: =IF('00 Aggregatore'!$D29="R",SUMIF('00 Alimenta'!$A:$A,$B29,'00 Alimenta'!D:D),SUMIF('00 Alimenta'!$A:$A,$B29,'00 Alimenta'!D:D)*-1) -> 0 | F29: =IF('00 Aggregatore'!$D29="R",SUMIF('00 Alimenta'!$A:$A,$B29,'00 Alimenta'!E:E),SUMIF('00 Alimenta'!$A:$A,$B29,'00 Alimenta'!E:E)*-1) -> 0
A30: AR | B30: AA0280 | C30: A.3.B) Utilizzo fondi per quote inutilizzate contributi di esercizi precedenti da Regione o Prov. Aut. per quota F.S. regionale vincolato | D30: R | E30: =IF('00 Aggregatore'!$D30="R",SUMIF('00 Alimenta'!$A:$A,$B30,'00 Alimenta'!D:D),SUMIF('00 Alimenta'!$A:$A,$B30,'00 Alimenta'!D:D)*-1) -> 8070784.32 | F30: =IF('00 Aggregatore'!$D30="R",SUMIF('00 Alimenta'!$A:$A,$B30,'00 Alimenta'!E:E),SUMIF('00 Alimenta'!$A:$A,$B30,'00 Alimenta'!E:E)*-1) -> 17544374.61
A31: AR | B31: AA0290 | C31: A.3.C) Utilizzo fondi per quote inutilizzate contributi di esercizi precedenti da soggetti pubblici (extra fondo) vincolati | D31: R | E31: =IF('00 Aggregatore'!$D31="R",SUMIF('00 Alimenta'!$A:$A,$B31,'00 Alimenta'!D:D),SUMIF('00 Alimenta'!$A:$A,$B31,'00 Alimenta'!D:D)*-1) -> 0 | F31: =IF('00 Aggregatore'!$D31="R",SUMIF('00 Alimenta'!$A:$A,$B31,'00 Alimenta'!E:E),SUMIF('00 Alimenta'!$A:$A,$B31,'00 Alimenta'!E:E)*-1) -> 242229.77
A32: AR | B32: AA0300 | C32: A.3.D) Utilizzo fondi per quote inutilizzate contributi di esercizi precedenti per ricerca | D32: R | E32: =IF('00 Aggregatore'!$D32="R",SUMIF('00 Alimenta'!$A:$A,$B32,'00 Alimenta'!D:D),SUMIF('00 Alimenta'!$A:$A,$B32,'00 Alimenta'!D:D)*-1) -> 0 | F32: =IF('00 Aggregatore'!$D32="R",SUMIF('00 Alimenta'!$A:$A,$B32,'00 Alimenta'!E:E),SUMIF('00 Alimenta'!$A:$A,$B32,'00 Alimenta'!E:E)*-1) -> 0
A33: AR | B33: AA0310 | C33: A.3.E) Utilizzo fondi per quote inutilizzate contributi vincolati di esercizi precedenti da privati | D33: R | E33: =IF('00 Aggregatore'!$D33="R",SUMIF('00 Alimenta'!$A:$A,$B33,'00 Alimenta'!D:D),SUMIF('00 Alimenta'!$A:$A,$B33,'00 Alimenta'!D:D)*-1) -> 0 | F33: =IF('00 Aggregatore'!$D33="R",SUMIF('00 Alimenta'!$A:$A,$B33,'00 Alimenta'!E:E),SUMIF('00 Alimenta'!$A:$A,$B33,'00 Alimenta'!E:E)*-1) -> 0
A34: AR | B34: AA0350 | C34: A.4.A.1.1) Prestazioni di ricovero | D34: R | E34: =IF('00 Aggregatore'!$D34="R",SUMIF('00 Alimenta'!$A:$A,$B34,'00 Alimenta'!D:D),SUMIF('00 Alimenta'!$A:$A,$B34,'00 Alimenta'!D:D)*-1) -> 63932152.8 | F34: =IF('00 Aggregatore'!$D34="R",SUMIF('00 Alimenta'!$A:$A,$B34,'00 Alimenta'!E:E),SUMIF('00 Alimenta'!$A:$A,$B34,'00 Alimenta'!E:E)*-1) -> 64992534.34
A35: AR | B35: AA0360 | C35: A.4.A.1.2) Prestazioni di specialistica ambulatoriale | D35: R | E35: =IF('00 Aggregatore'!$D35="R",SUMIF('00 Alimenta'!$A:$A,$B35,'00 Alimenta'!D:D),SUMIF('00 Alimenta'!$A:$A,$B35,'00 Alimenta'!D:D)*-1) -> 8495470.67 | F35: =IF('00 Aggregatore'!$D35="R",SUMIF('00 Alimenta'!$A:$A,$B35,'00 Alimenta'!E:E),SUMIF('00 Alimenta'!$A:$A,$B35,'00 Alimenta'!E:E)*-1) -> 9019951.57
A36: AR | B36: AA0361 | C36: A.4.A.1.3) Prestazioni di pronto soccorso non seguite da ricovero | D36: R | E36: =IF('00 Aggregatore'!$D36="R",SUMIF('00 Alimenta'!$A:$A,$B36,'00 Alimenta'!D:D),SUMIF('00 Alimenta'!$A:$A,$B36,'00 Alimenta'!D:D)*-1) -> 0 | F36: =IF('00 Aggregatore'!$D36="R",SUMIF('00 Alimenta'!$A:$A,$B36,'00 Alimenta'!E:E),SUMIF('00 Alimenta'!$A:$A,$B36,'00 Alimenta'!E:E)*-1) -> 0
A37: AR | B37: AA0370 | C37: A.4.A.1.4) Prestazioni di psichiatria residenziale e semiresidenziale | D37: R | E37: =IF('00 Aggregatore'!$D37="R",SUMIF('00 Alimenta'!$A:$A,$B37,'00 Alimenta'!D:D),SUMIF('00 Alimenta'!$A:$A,$B37,'00 Alimenta'!D:D)*-1) -> 4667985.86 | F37: =IF('00 Aggregatore'!$D37="R",SUMIF('00 Alimenta'!$A:$A,$B37,'00 Alimenta'!E:E),SUMIF('00 Alimenta'!$A:$A,$B37,'00 Alimenta'!E:E)*-1) -> 4699731.63
A38: AR | B38: AA0380 | C38: A.4.A.1.5) Prestazioni di File F | D38: R | E38: =IF('00 Aggregatore'!$D38="R",SUMIF('00 Alimenta'!$A:$A,$B38,'00 Alimenta'!D:D),SUMIF('00 Alimenta'!$A:$A,$B38,'00 Alimenta'!D:D)*-1) -> 13551276.25 | F38: =IF('00 Aggregatore'!$D38="R",SUMIF('00 Alimenta'!$A:$A,$B38,'00 Alimenta'!E:E),SUMIF('00 Alimenta'!$A:$A,$B38,'00 Alimenta'!E:E)*-1) -> 15293240.5
A39: AR | B39: AA0390 | C39: A.4.A.1.6) Prestazioni servizi MMG, PLS, Contin. assistenziale | D39: R | E39: =IF('00 Aggregatore'!$D39="R",SUMIF('00 Alimenta'!$A:$A,$B39,'00 Alimenta'!D:D),SUMIF('00 Alimenta'!$A:$A,$B39,'00 Alimenta'!D:D)*-1) -> 76930.02 | F39: =IF('00 Aggregatore'!$D39="R",SUMIF('00 Alimenta'!$A:$A,$B39,'00 Alimenta'!E:E),SUMIF('00 Alimenta'!$A:$A,$B39,'00 Alimenta'!E:E)*-1) -> 139164.66
A40: AR | B40: AA0400 | C40: A.4.A.1.7) Prestazioni servizi farmaceutica convenzionata | D40: R | E40: =IF('00 Aggregatore'!$D40="R",SUMIF('00 Alimenta'!$A:$A,$B40,'00 Alimenta'!D:D),SUMIF('00 Alimenta'!$A:$A,$B40,'00 Alimenta'!D:D)*-1) -> 1554303.34 | F40: =IF('00 Aggregatore'!$D40="R",SUMIF('00 Alimenta'!$A:$A,$B40,'00 Alimenta'!E:E),SUMIF('00 Alimenta'!$A:$A,$B40,'00 Alimenta'!E:E)*-1) -> 1464959.73
A41: AR | B41: AA0410 | C41: A.4.A.1.8) Prestazioni termali | D41: R | E41: =IF('00 Aggregatore'!$D41="R",SUMIF('00 Alimenta'!$A:$A,$B41,'00 Alimenta'!D:D),SUMIF('00 Alimenta'!$A:$A,$B41,'00 Alimenta'!D:D)*-1) -> 1071238.47 | F41: =IF('00 Aggregatore'!$D41="R",SUMIF('00 Alimenta'!$A:$A,$B41,'00 Alimenta'!E:E),SUMIF('00 Alimenta'!$A:$A,$B41,'00 Alimenta'!E:E)*-1) -> 825373.77
A42: AR | B42: AA0420 | C42: A.4.A.1.9) Prestazioni trasporto ambulanze ed elisoccorso | D42: R | E42: =IF('00 Aggregatore'!$D42="R",SUMIF('00 Alimenta'!$A:$A,$B42,'00 Alimenta'!D:D),SUMIF('00 Alimenta'!$A:$A,$B42,'00 Alimenta'!D:D)*-1) -> 176712.63 | F42: =IF('00 Aggregatore'!$D42="R",SUMIF('00 Alimenta'!$A:$A,$B42,'00 Alimenta'!E:E),SUMIF('00 Alimenta'!$A:$A,$B42,'00 Alimenta'!E:E)*-1) -> 215493.58
A43: AR | B43: AA0421 | C43: A.4.A.1.10) Prestazioni assistenza integrativa | D43: R | E43: =IF('00 Aggregatore'!$D43="R",SUMIF('00 Alimenta'!$A:$A,$B43,'00 Alimenta'!D:D),SUMIF('00 Alimenta'!$A:$A,$B43,'00 Alimenta'!D:D)*-1) -> 0 | F43: =IF('00 Aggregatore'!$D43="R",SUMIF('00 Alimenta'!$A:$A,$B43,'00 Alimenta'!E:E),SUMIF('00 Alimenta'!$A:$A,$B43,'00 Alimenta'!E:E)*-1) -> 0
A44: AR | B44: AA0422 | C44: A.4.A.1.11) Prestazioni assistenza protesica | D44: R | E44: =IF('00 Aggregatore'!$D44="R",SUMIF('00 Alimenta'!$A:$A,$B44,'00 Alimenta'!D:D),SUMIF('00 Alimenta'!$A:$A,$B44,'00 Alimenta'!D:D)*-1) -> 0 | F44: =IF('00 Aggregatore'!$D44="R",SUMIF('00 Alimenta'!$A:$A,$B44,'00 Alimenta'!E:E),SUMIF('00 Alimenta'!$A:$A,$B44,'00 Alimenta'!E:E)*-1) -> 0
A45: AR | B45: AA0423 | C45: A.4.A.1.12) Prestazioni assistenza riabilitativa extraospedaliera | D45: R | E45: =IF('00 Aggregatore'!$D45="R",SUMIF('00 Alimenta'!$A:$A,$B45,'00 Alimenta'!D:D),SUMIF('00 Alimenta'!$A:$A,$B45,'00 Alimenta'!D:D)*-1) -> 0 | F45: =IF('00 Aggregatore'!$D45="R",SUMIF('00 Alimenta'!$A:$A,$B45,'00 Alimenta'!E:E),SUMIF('00 Alimenta'!$A:$A,$B45,'00 Alimenta'!E:E)*-1) -> 0
A46: AR | B46: AA0424 | C46: A.4.A.1.13) Ricavi per cessione di emocomponenti e cellule staminali | D46: R | E46: =IF('00 Aggregatore'!$D46="R",SUMIF('00 Alimenta'!$A:$A,$B46,'00 Alimenta'!D:D),SUMIF('00 Alimenta'!$A:$A,$B46,'00 Alimenta'!D:D)*-1) -> 0 | F46: =IF('00 Aggregatore'!$D46="R",SUMIF('00 Alimenta'!$A:$A,$B46,'00 Alimenta'!E:E),SUMIF('00 Alimenta'!$A:$A,$B46,'00 Alimenta'!E:E)*-1) -> 0
A47: AR | B47: AA0425 | C47: A.4.A.1.14) Prestazioni assistenza domiciliare integrata (ADI) | D47: R | E47: =IF('00 Aggregatore'!$D47="R",SUMIF('00 Alimenta'!$A:$A,$B47,'00 Alimenta'!D:D),SUMIF('00 Alimenta'!$A:$A,$B47,'00 Alimenta'!D:D)*-1) -> 0 | F47: =IF('00 Aggregatore'!$D47="R",SUMIF('00 Alimenta'!$A:$A,$B47,'00 Alimenta'!E:E),SUMIF('00 Alimenta'!$A:$A,$B47,'00 Alimenta'!E:E)*-1) -> 0
A48: AR | B48: AA0430 | C48: A.4.A.1.15) Altre prestazioni sanitarie e socio-sanitarie a rilevanza sanitaria | D48: R | E48: =IF('00 Aggregatore'!$D48="R",SUMIF('00 Alimenta'!$A:$A,$B48,'00 Alimenta'!D:D),SUMIF('00 Alimenta'!$A:$A,$B48,'00 Alimenta'!D:D)*-1) -> 5984310.97 | F48: =IF('00 Aggregatore'!$D48="R",SUMIF('00 Alimenta'!$A:$A,$B48,'00 Alimenta'!E:E),SUMIF('00 Alimenta'!$A:$A,$B48,'00 Alimenta'!E:E)*-1) -> 5825782.54
A49: AR | B49: AA0440 | C49: A.4.A.2) Ricavi per prestaz. sanitarie e sociosanitarie a rilevanza sanitaria erogate ad altri soggetti pubblici | D49: R | E49: =IF('00 Aggregatore'!$D49="R",SUMIF('00 Alimenta'!$A:$A,$B49,'00 Alimenta'!D:D),SUMIF('00 Alimenta'!$A:$A,$B49,'00 Alimenta'!D:D)*-1) -> 90381.5 | F49: =IF('00 Aggregatore'!$D49="R",SUMIF('00 Alimenta'!$A:$A,$B49,'00 Alimenta'!E:E),SUMIF('00 Alimenta'!$A:$A,$B49,'00 Alimenta'!E:E)*-1) -> 56370.17
A50: AR | B50: AA0460 | C50: A.4.A.3.1) Prestazioni di ricovero | D50: R | E50: =IF('00 Aggregatore'!$D50="R",SUMIF('00 Alimenta'!$A:$A,$B50,'00 Alimenta'!D:D),SUMIF('00 Alimenta'!$A:$A,$B50,'00 Alimenta'!D:D)*-1) -> 7320391.07 | F50: =IF('00 Aggregatore'!$D50="R",SUMIF('00 Alimenta'!$A:$A,$B50,'00 Alimenta'!E:E),SUMIF('00 Alimenta'!$A:$A,$B50,'00 Alimenta'!E:E)*-1) -> 11878307.28
A51: AR | B51: AA0470 | C51: A.4.A.3.2) Prestazioni ambulatoriali | D51: R | E51: =IF('00 Aggregatore'!$D51="R",SUMIF('00 Alimenta'!$A:$A,$B51,'00 Alimenta'!D:D),SUMIF('00 Alimenta'!$A:$A,$B51,'00 Alimenta'!D:D)*-1) -> 1477229.91 | F51: =IF('00 Aggregatore'!$D51="R",SUMIF('00 Alimenta'!$A:$A,$B51,'00 Alimenta'!E:E),SUMIF('00 Alimenta'!$A:$A,$B51,'00 Alimenta'!E:E)*-1) -> 2030527.06
A52: AR | B52: AA0471 | C52: A.4.A.3.3) Prestazioni pronto soccorso non seguite da ricovero | D52: R | E52: =IF('00 Aggregatore'!$D52="R",SUMIF('00 Alimenta'!$A:$A,$B52,'00 Alimenta'!D:D),SUMIF('00 Alimenta'!$A:$A,$B52,'00 Alimenta'!D:D)*-1) -> 0 | F52: =IF('00 Aggregatore'!$D52="R",SUMIF('00 Alimenta'!$A:$A,$B52,'00 Alimenta'!E:E),SUMIF('00 Alimenta'!$A:$A,$B52,'00 Alimenta'!E:E)*-1) -> 0
A53: AR | B53: AA0480 | C53: A.4.A.3.4) Prestazioni di psichiatria non soggetta a compensazione (resid. e semiresid.) | D53: R | E53: =IF('00 Aggregatore'!$D53="R",SUMIF('00 Alimenta'!$A:$A,$B53,'00 Alimenta'!D:D),SUMIF('00 Alimenta'!$A:$A,$B53,'00 Alimenta'!D:D)*-1) -> 0 | F53: =IF('00 Aggregatore'!$D53="R",SUMIF('00 Alimenta'!$A:$A,$B53,'00 Alimenta'!E:E),SUMIF('00 Alimenta'!$A:$A,$B53,'00 Alimenta'!E:E)*-1) -> 0
A54: AR | B54: AA0490 | C54: A.4.A.3.5) Prestazioni di File F | D54: R | E54: =IF('00 Aggregatore'!$D54="R",SUMIF('00 Alimenta'!$A:$A,$B54,'00 Alimenta'!D:D),SUMIF('00 Alimenta'!$A:$A,$B54,'00 Alimenta'!D:D)*-1) -> 2471453.08 | F54: =IF('00 Aggregatore'!$D54="R",SUMIF('00 Alimenta'!$A:$A,$B54,'00 Alimenta'!E:E),SUMIF('00 Alimenta'!$A:$A,$B54,'00 Alimenta'!E:E)*-1) -> 1915086.72
A55: AR | B55: AA0500 | C55: A.4.A.3.6) Prestazioni servizi MMG, PLS, Contin. assistenziale Extraregione | D55: R | E55: =IF('00 Aggregatore'!$D55="R",SUMIF('00 Alimenta'!$A:$A,$B55,'00 Alimenta'!D:D),SUMIF('00 Alimenta'!$A:$A,$B55,'00 Alimenta'!D:D)*-1) -> 56122.64 | F55: =IF('00 Aggregatore'!$D55="R",SUMIF('00 Alimenta'!$A:$A,$B55,'00 Alimenta'!E:E),SUMIF('00 Alimenta'!$A:$A,$B55,'00 Alimenta'!E:E)*-1) -> 19433.84
A56: AR | B56: AA0510 | C56: A.4.A.3.7) Prestazioni servizi farmaceutica convenzionata Extraregione | D56: R | E56: =IF('00 Aggregatore'!$D56="R",SUMIF('00 Alimenta'!$A:$A,$B56,'00 Alimenta'!D:D),SUMIF('00 Alimenta'!$A:$A,$B56,'00 Alimenta'!D:D)*-1) -> 506661.23 | F56: =IF('00 Aggregatore'!$D56="R",SUMIF('00 Alimenta'!$A:$A,$B56,'00 Alimenta'!E:E),SUMIF('00 Alimenta'!$A:$A,$B56,'00 Alimenta'!E:E)*-1) -> 1142996.67
A57: AR | B57: AA0520 | C57: A.4.A.3.8) Prestazioni termali Extraregione | D57: R | E57: =IF('00 Aggregatore'!$D57="R",SUMIF('00 Alimenta'!$A:$A,$B57,'00 Alimenta'!D:D),SUMIF('00 Alimenta'!$A:$A,$B57,'00 Alimenta'!D:D)*-1) -> 180073.68 | F57: =IF('00 Aggregatore'!$D57="R",SUMIF('00 Alimenta'!$A:$A,$B57,'00 Alimenta'!E:E),SUMIF('00 Alimenta'!$A:$A,$B57,'00 Alimenta'!E:E)*-1) -> 237345.51
A58: AR | B58: AA0530 | C58: A.4.A.3.9) Prestazioni trasporto ambulanze ed elisoccorso Extraregione | D58: R | E58: =IF('00 Aggregatore'!$D58="R",SUMIF('00 Alimenta'!$A:$A,$B58,'00 Alimenta'!D:D),SUMIF('00 Alimenta'!$A:$A,$B58,'00 Alimenta'!D:D)*-1) -> 469730.81 | F58: =IF('00 Aggregatore'!$D58="R",SUMIF('00 Alimenta'!$A:$A,$B58,'00 Alimenta'!E:E),SUMIF('00 Alimenta'!$A:$A,$B58,'00 Alimenta'!E:E)*-1) -> 309535.11
A59: AR | B59: AA0541 | C59: A.4.A.3.10) Prestazioni assistenza integrativa da pubblico (extraregione) | D59: R | E59: =IF('00 Aggregatore'!$D59="R",SUMIF('00 Alimenta'!$A:$A,$B59,'00 Alimenta'!D:D),SUMIF('00 Alimenta'!$A:$A,$B59,'00 Alimenta'!D:D)*-1) -> 0 | F59: =IF('00 Aggregatore'!$D59="R",SUMIF('00 Alimenta'!$A:$A,$B59,'00 Alimenta'!E:E),SUMIF('00 Alimenta'!$A:$A,$B59,'00 Alimenta'!E:E)*-1) -> 0
A60: AR | B60: AA0542 | C60: A.4.A.3.11) Prestazioni assistenza protesica da pubblico (extraregione) | D60: R | E60: =IF('00 Aggregatore'!$D60="R",SUMIF('00 Alimenta'!$A:$A,$B60,'00 Alimenta'!D:D),SUMIF('00 Alimenta'!$A:$A,$B60,'00 Alimenta'!D:D)*-1) -> 0 | F60: =IF('00 Aggregatore'!$D60="R",SUMIF('00 Alimenta'!$A:$A,$B60,'00 Alimenta'!E:E),SUMIF('00 Alimenta'!$A:$A,$B60,'00 Alimenta'!E:E)*-1) -> 0
A61: AR | B61: AA0550 | C61: A.4.A.3.12) Ricavi per cessione di emocomponenti e cellule staminali Extraregione | D61: R | E61: =IF('00 Aggregatore'!$D61="R",SUMIF('00 Alimenta'!$A:$A,$B61,'00 Alimenta'!D:D),SUMIF('00 Alimenta'!$A:$A,$B61,'00 Alimenta'!D:D)*-1) -> 0 | F61: =IF('00 Aggregatore'!$D61="R",SUMIF('00 Alimenta'!$A:$A,$B61,'00 Alimenta'!E:E),SUMIF('00 Alimenta'!$A:$A,$B61,'00 Alimenta'!E:E)*-1) -> 45357.06
A62: AR | B62: AA0560 | C62: A.4.A.3.13) Ricavi GSA per differenziale saldo mobilità interregionale | D62: R | E62: =IF('00 Aggregatore'!$D62="R",SUMIF('00 Alimenta'!$A:$A,$B62,'00 Alimenta'!D:D),SUMIF('00 Alimenta'!$A:$A,$B62,'00 Alimenta'!D:D)*-1) -> 0 | F62: =IF('00 Aggregatore'!$D62="R",SUMIF('00 Alimenta'!$A:$A,$B62,'00 Alimenta'!E:E),SUMIF('00 Alimenta'!$A:$A,$B62,'00 Alimenta'!E:E)*-1) -> 0
A63: AR | B63: AA0561 | C63: A.4.A.3.14) Altre prestazioni sanitarie e sociosanitarie a rilevanza sanitaria erogate a soggetti pubblici Extraregione | D63: R | E63: =IF('00 Aggregatore'!$D63="R",SUMIF('00 Alimenta'!$A:$A,$B63,'00 Alimenta'!D:D),SUMIF('00 Alimenta'!$A:$A,$B63,'00 Alimenta'!D:D)*-1) -> 0 | F63: =IF('00 Aggregatore'!$D63="R",SUMIF('00 Alimenta'!$A:$A,$B63,'00 Alimenta'!E:E),SUMIF('00 Alimenta'!$A:$A,$B63,'00 Alimenta'!E:E)*-1) -> 0
A64: AR | B64: AA0580 | C64: A.4.A.3.15.A) Prestazioni di assistenza riabilitativa non soggette a compensazione Extraregione | D64: R | E64: =IF('00 Aggregatore'!$D64="R",SUMIF('00 Alimenta'!$A:$A,$B64,'00 Alimenta'!D:D),SUMIF('00 Alimenta'!$A:$A,$B64,'00 Alimenta'!D:D)*-1) -> 0 | F64: =IF('00 Aggregatore'!$D64="R",SUMIF('00 Alimenta'!$A:$A,$B64,'00 Alimenta'!E:E),SUMIF('00 Alimenta'!$A:$A,$B64,'00 Alimenta'!E:E)*-1) -> 0
A65: AR | B65: AA0590 | C65: A.4.A.3.15.B) Altre prestazioni sanitarie e socio-sanitarie a rilevanza sanitaria non soggette a compensazione Extraregione | D65: R | E65: =IF('00 Aggregatore'!$D65="R",SUMIF('00 Alimenta'!$A:$A,$B65,'00 Alimenta'!D:D),SUMIF('00 Alimenta'!$A:$A,$B65,'00 Alimenta'!D:D)*-1) -> 2626.39 | F65: =IF('00 Aggregatore'!$D65="R",SUMIF('00 Alimenta'!$A:$A,$B65,'00 Alimenta'!E:E),SUMIF('00 Alimenta'!$A:$A,$B65,'00 Alimenta'!E:E)*-1) -> 7192.04
A66: AR | B66: AA0600 | C66: A.4.A.3.16) Altre prestazioni sanitarie a rilevanza sanitaria - Mobilità attiva Internazionale | D66: R | E66: =IF('00 Aggregatore'!$D66="R",SUMIF('00 Alimenta'!$A:$A,$B66,'00 Alimenta'!D:D),SUMIF('00 Alimenta'!$A:$A,$B66,'00 Alimenta'!D:D)*-1) -> 318967.76 | F66: =IF('00 Aggregatore'!$D66="R",SUMIF('00 Alimenta'!$A:$A,$B66,'00 Alimenta'!E:E),SUMIF('00 Alimenta'!$A:$A,$B66,'00 Alimenta'!E:E)*-1) -> 393536.14
A67: AR | B67: AA0601 | C67: A.4.A.3.17) Altre prestazioni sanitarie a rilevanza sanitaria - Mobilità attiva Internazionale rilevata dalle AO, AOU, IRCCS. | D67: R | E67: =IF('00 Aggregatore'!$D67="R",SUMIF('00 Alimenta'!$A:$A,$B67,'00 Alimenta'!D:D),SUMIF('00 Alimenta'!$A:$A,$B67,'00 Alimenta'!D:D)*-1) -> 0 | F67: =IF('00 Aggregatore'!$D67="R",SUMIF('00 Alimenta'!$A:$A,$B67,'00 Alimenta'!E:E),SUMIF('00 Alimenta'!$A:$A,$B67,'00 Alimenta'!E:E)*-1) -> 0
A68: AR | B68: AA0602 | C68: A.4.A.3.18) Altre prestazioni sanitarie e sociosanitarie a rilevanza sanitaria ad Aziende sanitarie e casse mutua estera - (fatturate direttamente) | D68: R | E68: =IF('00 Aggregatore'!$D68="R",SUMIF('00 Alimenta'!$A:$A,$B68,'00 Alimenta'!D:D),SUMIF('00 Alimenta'!$A:$A,$B68,'00 Alimenta'!D:D)*-1) -> 0 | F68: =IF('00 Aggregatore'!$D68="R",SUMIF('00 Alimenta'!$A:$A,$B68,'00 Alimenta'!E:E),SUMIF('00 Alimenta'!$A:$A,$B68,'00 Alimenta'!E:E)*-1) -> 0
A69: AR | B69: AA0620 | C69: A.4.B.1) Prestazioni di ricovero da priv. Extraregione in compensazione (mobilità attiva) | D69: R | E69: =IF('00 Aggregatore'!$D69="R",SUMIF('00 Alimenta'!$A:$A,$B69,'00 Alimenta'!D:D),SUMIF('00 Alimenta'!$A:$A,$B69,'00 Alimenta'!D:D)*-1) -> 10285883.1 | F69: =IF('00 Aggregatore'!$D69="R",SUMIF('00 Alimenta'!$A:$A,$B69,'00 Alimenta'!E:E),SUMIF('00 Alimenta'!$A:$A,$B69,'00 Alimenta'!E:E)*-1) -> 8426930.48
A70: =LEFT(B70,1)&D70 -> AR | B70: AA0630 | C70: A.4.B.2) Prestazioni ambulatoriali da priv. Extraregione in compensazione (mobilità attiva) | D70: R | E70: =IF('00 Aggregatore'!$D70="R",SUMIF('00 Alimenta'!$A:$A,$B70,'00 Alimenta'!D:D),SUMIF('00 Alimenta'!$A:$A,$B70,'00 Alimenta'!D:D)*-1) -> 201606.44 | F70: =IF('00 Aggregatore'!$D70="R",SUMIF('00 Alimenta'!$A:$A,$B70,'00 Alimenta'!E:E),SUMIF('00 Alimenta'!$A:$A,$B70,'00 Alimenta'!E:E)*-1) -> 200940.4
A71: AR | B71: AA0631 | C71: A.4.B.3) Prestazioni di pronto soccorso non seguite da ricovero da priv. Extraregione in compensazione (mobilità attiva) | D71: R | E71: =IF('00 Aggregatore'!$D71="R",SUMIF('00 Alimenta'!$A:$A,$B71,'00 Alimenta'!D:D),SUMIF('00 Alimenta'!$A:$A,$B71,'00 Alimenta'!D:D)*-1) -> 0 | F71: =IF('00 Aggregatore'!$D71="R",SUMIF('00 Alimenta'!$A:$A,$B71,'00 Alimenta'!E:E),SUMIF('00 Alimenta'!$A:$A,$B71,'00 Alimenta'!E:E)*-1) -> 0
A72: AR | B72: AA0640 | C72: A.4.B.4) Prestazioni di File F da priv. Extraregione in compensazione (mobilità attiva) | D72: R | E72: =IF('00 Aggregatore'!$D72="R",SUMIF('00 Alimenta'!$A:$A,$B72,'00 Alimenta'!D:D),SUMIF('00 Alimenta'!$A:$A,$B72,'00 Alimenta'!D:D)*-1) -> 0 | F72: =IF('00 Aggregatore'!$D72="R",SUMIF('00 Alimenta'!$A:$A,$B72,'00 Alimenta'!E:E),SUMIF('00 Alimenta'!$A:$A,$B72,'00 Alimenta'!E:E)*-1) -> 0
A73: AR | B73: AA0650 | C73: A.4.B.5) Altre prestazioni sanitarie e sociosanitarie a rilevanza sanitaria erogate da privati v/residenti Extraregione in compensazione (mobilità attiva) | D73: R | E73: =IF('00 Aggregatore'!$D73="R",SUMIF('00 Alimenta'!$A:$A,$B73,'00 Alimenta'!D:D),SUMIF('00 Alimenta'!$A:$A,$B73,'00 Alimenta'!D:D)*-1) -> 0 | F73: =IF('00 Aggregatore'!$D73="R",SUMIF('00 Alimenta'!$A:$A,$B73,'00 Alimenta'!E:E),SUMIF('00 Alimenta'!$A:$A,$B73,'00 Alimenta'!E:E)*-1) -> 0
A74: AR | B74: AA0660 | C74: A.4.C) Ricavi per prestazioni sanitarie e sociosanitarie a rilevanza sanitaria erogate a privati | D74: R | E74: =IF('00 Aggregatore'!$D74="R",SUMIF('00 Alimenta'!$A:$A,$B74,'00 Alimenta'!D:D),SUMIF('00 Alimenta'!$A:$A,$B74,'00 Alimenta'!D:D)*-1) -> 3620504.31 | F74: =IF('00 Aggregatore'!$D74="R",SUMIF('00 Alimenta'!$A:$A,$B74,'00 Alimenta'!E:E),SUMIF('00 Alimenta'!$A:$A,$B74,'00 Alimenta'!E:E)*-1) -> 3619505.6
A75: AR | B75: AA0680 | C75: A.4.D.1) Ricavi per prestazioni sanitarie intramoenia - Area ospedaliera | D75: R | E75: =IF('00 Aggregatore'!$D75="R",SUMIF('00 Alimenta'!$A:$A,$B75,'00 Alimenta'!D:D),SUMIF('00 Alimenta'!$A:$A,$B75,'00 Alimenta'!D:D)*-1) -> 80436.56 | F75: =IF('00 Aggregatore'!$D75="R",SUMIF('00 Alimenta'!$A:$A,$B75,'00 Alimenta'!E:E),SUMIF('00 Alimenta'!$A:$A,$B75,'00 Alimenta'!E:E)*-1) -> 97957.71
A76: AR | B76: AA0690 | C76: A.4.D.2) Ricavi per prestazioni sanitarie intramoenia - Area specialistica | D76: R | E76: =IF('00 Aggregatore'!$D76="R",SUMIF('00 Alimenta'!$A:$A,$B76,'00 Alimenta'!D:D),SUMIF('00 Alimenta'!$A:$A,$B76,'00 Alimenta'!D:D)*-1) -> 3326104 | F76: =IF('00 Aggregatore'!$D76="R",SUMIF('00 Alimenta'!$A:$A,$B76,'00 Alimenta'!E:E),SUMIF('00 Alimenta'!$A:$A,$B76,'00 Alimenta'!E:E)*-1) -> 3340368
A77: AR | B77: AA0700 | C77: A.4.D.3) Ricavi per prestazioni sanitarie intramoenia - Area sanità pubblica | D77: R | E77: =IF('00 Aggregatore'!$D77="R",SUMIF('00 Alimenta'!$A:$A,$B77,'00 Alimenta'!D:D),SUMIF('00 Alimenta'!$A:$A,$B77,'00 Alimenta'!D:D)*-1) -> 17534.57 | F77: =IF('00 Aggregatore'!$D77="R",SUMIF('00 Alimenta'!$A:$A,$B77,'00 Alimenta'!E:E),SUMIF('00 Alimenta'!$A:$A,$B77,'00 Alimenta'!E:E)*-1) -> 16412.46
A78: AR | B78: AA0710 | C78: A.4.D.4) Ricavi per prestazioni sanitarie intramoenia - Consulenze (ex art. 55 c.1 lett. c), d) ed ex art. 57-58) | D78: R | E78: =IF('00 Aggregatore'!$D78="R",SUMIF('00 Alimenta'!$A:$A,$B78,'00 Alimenta'!D:D),SUMIF('00 Alimenta'!$A:$A,$B78,'00 Alimenta'!D:D)*-1) -> 677848.85 | F78: =IF('00 Aggregatore'!$D78="R",SUMIF('00 Alimenta'!$A:$A,$B78,'00 Alimenta'!E:E),SUMIF('00 Alimenta'!$A:$A,$B78,'00 Alimenta'!E:E)*-1) -> 385532.67
A79: AR | B79: AA0720 | C79: A.4.D.5) Ricavi per prestazioni sanitarie intramoenia - Consulenze (ex art. 55 c.1 lett. c), d) ed ex art. 57-58) (Aziende sanitarie pubbliche della Regione) | D79: R | E79: =IF('00 Aggregatore'!$D79="R",SUMIF('00 Alimenta'!$A:$A,$B79,'00 Alimenta'!D:D),SUMIF('00 Alimenta'!$A:$A,$B79,'00 Alimenta'!D:D)*-1) -> 0 | F79: =IF('00 Aggregatore'!$D79="R",SUMIF('00 Alimenta'!$A:$A,$B79,'00 Alimenta'!E:E),SUMIF('00 Alimenta'!$A:$A,$B79,'00 Alimenta'!E:E)*-1) -> 0
A80: AR | B80: AA0730 | C80: A.4.D.6) Ricavi per prestazioni sanitarie intramoenia - Altro | D80: R | E80: =IF('00 Aggregatore'!$D80="R",SUMIF('00 Alimenta'!$A:$A,$B80,'00 Alimenta'!D:D),SUMIF('00 Alimenta'!$A:$A,$B80,'00 Alimenta'!D:D)*-1) -> 130775.39 | F80: =IF('00 Aggregatore'!$D80="R",SUMIF('00 Alimenta'!$A:$A,$B80,'00 Alimenta'!E:E),SUMIF('00 Alimenta'!$A:$A,$B80,'00 Alimenta'!E:E)*-1) -> 70557.93
A81: AR | B81: AA0740 | C81: A.4.D.7) Ricavi per prestazioni sanitarie intramoenia - Altro (Aziende sanitarie pubbliche della Regione) | D81: R | E81: =IF('00 Aggregatore'!$D81="R",SUMIF('00 Alimenta'!$A:$A,$B81,'00 Alimenta'!D:D),SUMIF('00 Alimenta'!$A:$A,$B81,'00 Alimenta'!D:D)*-1) -> 5779.7 | F81: =IF('00 Aggregatore'!$D81="R",SUMIF('00 Alimenta'!$A:$A,$B81,'00 Alimenta'!E:E),SUMIF('00 Alimenta'!$A:$A,$B81,'00 Alimenta'!E:E)*-1) -> 17895.3
A82: AR | B82: AA0760 | C82: A.5.A) Rimborsi assicurativi | D82: R | E82: =IF('00 Aggregatore'!$D82="R",SUMIF('00 Alimenta'!$A:$A,$B82,'00 Alimenta'!D:D),SUMIF('00 Alimenta'!$A:$A,$B82,'00 Alimenta'!D:D)*-1) -> 151672.58 | F82: =IF('00 Aggregatore'!$D82="R",SUMIF('00 Alimenta'!$A:$A,$B82,'00 Alimenta'!E:E),SUMIF('00 Alimenta'!$A:$A,$B82,'00 Alimenta'!E:E)*-1) -> 157878.72
A83: AR | B83: AA0780 | C83: A.5.B.1) Rimborso degli oneri stipendiali del personale dell'azienda in posizione di comando presso la Regione | D83: R | E83: =IF('00 Aggregatore'!$D83="R",SUMIF('00 Alimenta'!$A:$A,$B83,'00 Alimenta'!D:D),SUMIF('00 Alimenta'!$A:$A,$B83,'00 Alimenta'!D:D)*-1) -> 0 | F83: =IF('00 Aggregatore'!$D83="R",SUMIF('00 Alimenta'!$A:$A,$B83,'00 Alimenta'!E:E),SUMIF('00 Alimenta'!$A:$A,$B83,'00 Alimenta'!E:E)*-1) -> 0
A84: AR | B84: AA0790 | C84: A.5.B.2) Altri concorsi, recuperi e rimborsi da parte della Regione | D84: R | E84: =IF('00 Aggregatore'!$D84="R",SUMIF('00 Alimenta'!$A:$A,$B84,'00 Alimenta'!D:D),SUMIF('00 Alimenta'!$A:$A,$B84,'00 Alimenta'!D:D)*-1) -> 0 | F84: =IF('00 Aggregatore'!$D84="R",SUMIF('00 Alimenta'!$A:$A,$B84,'00 Alimenta'!E:E),SUMIF('00 Alimenta'!$A:$A,$B84,'00 Alimenta'!E:E)*-1) -> 0
A85: AR | B85: AA0810 | C85: A.5.C.1) Rimborso degli oneri stipendiali del personale dipendente dell'azienda in posizione di comando presso Aziende sanitarie pubbliche della Regione | D85: R | E85: =IF('00 Aggregatore'!$D85="R",SUMIF('00 Alimenta'!$A:$A,$B85,'00 Alimenta'!D:D),SUMIF('00 Alimenta'!$A:$A,$B85,'00 Alimenta'!D:D)*-1) -> 23253.72 | F85: =IF('00 Aggregatore'!$D85="R",SUMIF('00 Alimenta'!$A:$A,$B85,'00 Alimenta'!E:E),SUMIF('00 Alimenta'!$A:$A,$B85,'00 Alimenta'!E:E)*-1) -> 0
A86: AR | B86: AA0820 | C86: A.5.C.2) Rimborsi per acquisto beni da parte di Aziende sanitarie pubbliche della Regione | D86: R | E86: =IF('00 Aggregatore'!$D86="R",SUMIF('00 Alimenta'!$A:$A,$B86,'00 Alimenta'!D:D),SUMIF('00 Alimenta'!$A:$A,$B86,'00 Alimenta'!D:D)*-1) -> 0 | F86: =IF('00 Aggregatore'!$D86="R",SUMIF('00 Alimenta'!$A:$A,$B86,'00 Alimenta'!E:E),SUMIF('00 Alimenta'!$A:$A,$B86,'00 Alimenta'!E:E)*-1) -> 0
A87: AR | B87: AA0830 | C87: A.5.C.3) Altri concorsi, recuperi e rimborsi da parte di Aziende sanitarie pubbliche della Regione | D87: R | E87: =IF('00 Aggregatore'!$D87="R",SUMIF('00 Alimenta'!$A:$A,$B87,'00 Alimenta'!D:D),SUMIF('00 Alimenta'!$A:$A,$B87,'00 Alimenta'!D:D)*-1) -> 180596.98 | F87: =IF('00 Aggregatore'!$D87="R",SUMIF('00 Alimenta'!$A:$A,$B87,'00 Alimenta'!E:E),SUMIF('00 Alimenta'!$A:$A,$B87,'00 Alimenta'!E:E)*-1) -> 131694.36
A88: AR | B88: AA0831 | C88: A.5.C.4) Altri concorsi, recuperi e rimborsi da parte della Regione - GSA | D88: R | E88: =IF('00 Aggregatore'!$D88="R",SUMIF('00 Alimenta'!$A:$A,$B88,'00 Alimenta'!D:D),SUMIF('00 Alimenta'!$A:$A,$B88,'00 Alimenta'!D:D)*-1) -> 0 | F88: =IF('00 Aggregatore'!$D88="R",SUMIF('00 Alimenta'!$A:$A,$B88,'00 Alimenta'!E:E),SUMIF('00 Alimenta'!$A:$A,$B88,'00 Alimenta'!E:E)*-1) -> 0
A89: AR | B89: AA0850 | C89: A.5.D.1) Rimborso degli oneri stipendiali del personale dipendente dell'azienda in posizione di comando presso altri soggetti pubblici | D89: R | E89: =IF('00 Aggregatore'!$D89="R",SUMIF('00 Alimenta'!$A:$A,$B89,'00 Alimenta'!D:D),SUMIF('00 Alimenta'!$A:$A,$B89,'00 Alimenta'!D:D)*-1) -> 150326.43 | F89: =IF('00 Aggregatore'!$D89="R",SUMIF('00 Alimenta'!$A:$A,$B89,'00 Alimenta'!E:E),SUMIF('00 Alimenta'!$A:$A,$B89,'00 Alimenta'!E:E)*-1) -> 0
A90: AR | B90: AA0860 | C90: A.5.D.2) Rimborsi per acquisto beni da parte di altri soggetti pubblici | D90: R | E90: =IF('00 Aggregatore'!$D90="R",SUMIF('00 Alimenta'!$A:$A,$B90,'00 Alimenta'!D:D),SUMIF('00 Alimenta'!$A:$A,$B90,'00 Alimenta'!D:D)*-1) -> 8374.78 | F90: =IF('00 Aggregatore'!$D90="R",SUMIF('00 Alimenta'!$A:$A,$B90,'00 Alimenta'!E:E),SUMIF('00 Alimenta'!$A:$A,$B90,'00 Alimenta'!E:E)*-1) -> 5464.29
A91: AR | B91: AA0870 | C91: A.5.D.3) Altri concorsi, recuperi e rimborsi da parte di altri soggetti pubblici | D91: R | E91: =IF('00 Aggregatore'!$D91="R",SUMIF('00 Alimenta'!$A:$A,$B91,'00 Alimenta'!D:D),SUMIF('00 Alimenta'!$A:$A,$B91,'00 Alimenta'!D:D)*-1) -> 94410.65 | F91: =IF('00 Aggregatore'!$D91="R",SUMIF('00 Alimenta'!$A:$A,$B91,'00 Alimenta'!E:E),SUMIF('00 Alimenta'!$A:$A,$B91,'00 Alimenta'!E:E)*-1) -> 43547.27
A92: AR | B92: AA0900 | C92: A.5.E.1.1) Pay-back per il superamento del tetto della spesa farmaceutica territoriale | D92: R | E92: =IF('00 Aggregatore'!$D92="R",SUMIF('00 Alimenta'!$A:$A,$B92,'00 Alimenta'!D:D),SUMIF('00 Alimenta'!$A:$A,$B92,'00 Alimenta'!D:D)*-1) -> 0 | F92: =IF('00 Aggregatore'!$D92="R",SUMIF('00 Alimenta'!$A:$A,$B92,'00 Alimenta'!E:E),SUMIF('00 Alimenta'!$A:$A,$B92,'00 Alimenta'!E:E)*-1) -> 0
A93: AR | B93: AA0910 | C93: A.5.E.1.2) Pay-back per superamento del tetto della spesa farmaceutica ospedaliera | D93: R | E93: =IF('00 Aggregatore'!$D93="R",SUMIF('00 Alimenta'!$A:$A,$B93,'00 Alimenta'!D:D),SUMIF('00 Alimenta'!$A:$A,$B93,'00 Alimenta'!D:D)*-1) -> 0 | F93: =IF('00 Aggregatore'!$D93="R",SUMIF('00 Alimenta'!$A:$A,$B93,'00 Alimenta'!E:E),SUMIF('00 Alimenta'!$A:$A,$B93,'00 Alimenta'!E:E)*-1) -> 0
A94: AR | B94: AA0920 | C94: A.5.E.1.3) Ulteriore Pay-back | D94: R | E94: =IF('00 Aggregatore'!$D94="R",SUMIF('00 Alimenta'!$A:$A,$B94,'00 Alimenta'!D:D),SUMIF('00 Alimenta'!$A:$A,$B94,'00 Alimenta'!D:D)*-1) -> 2615698.91 | F94: =IF('00 Aggregatore'!$D94="R",SUMIF('00 Alimenta'!$A:$A,$B94,'00 Alimenta'!E:E),SUMIF('00 Alimenta'!$A:$A,$B94,'00 Alimenta'!E:E)*-1) -> 2477467.95
A95: AR | B95: AA0921 | C95: A.5.E.2) Rimborso per Pay back sui dispositivi medici | D95: R | E95: =IF('00 Aggregatore'!$D95="R",SUMIF('00 Alimenta'!$A:$A,$B95,'00 Alimenta'!D:D),SUMIF('00 Alimenta'!$A:$A,$B95,'00 Alimenta'!D:D)*-1) -> 0 | F95: =IF('00 Aggregatore'!$D95="R",SUMIF('00 Alimenta'!$A:$A,$B95,'00 Alimenta'!E:E),SUMIF('00 Alimenta'!$A:$A,$B95,'00 Alimenta'!E:E)*-1) -> 0
A96: AR | B96: AA0930 | C96: A.5.E.3) Altri concorsi, recuperi e rimborsi da privati | D96: R | E96: =IF('00 Aggregatore'!$D96="R",SUMIF('00 Alimenta'!$A:$A,$B96,'00 Alimenta'!D:D),SUMIF('00 Alimenta'!$A:$A,$B96,'00 Alimenta'!D:D)*-1) -> 634408.52 | F96: =IF('00 Aggregatore'!$D96="R",SUMIF('00 Alimenta'!$A:$A,$B96,'00 Alimenta'!E:E),SUMIF('00 Alimenta'!$A:$A,$B96,'00 Alimenta'!E:E)*-1) -> 1081735.73
A97: AR | B97: AA0950 | C97: A.6.A) Compartecipazione alla spesa per prestazioni sanitarie - Ticket sulle prestazioni di specialistica ambulatoriale e APA-PAC | D97: R | E97: =IF('00 Aggregatore'!$D97="R",SUMIF('00 Alimenta'!$A:$A,$B97,'00 Alimenta'!D:D),SUMIF('00 Alimenta'!$A:$A,$B97,'00 Alimenta'!D:D)*-1) -> 6543145.31 | F97: =IF('00 Aggregatore'!$D97="R",SUMIF('00 Alimenta'!$A:$A,$B97,'00 Alimenta'!E:E),SUMIF('00 Alimenta'!$A:$A,$B97,'00 Alimenta'!E:E)*-1) -> 6930386.26
A98: AR | B98: AA0960 | C98: A.6.B) Compartecipazione alla spesa per prestazioni sanitarie - Ticket sul pronto soccorso | D98: R | E98: =IF('00 Aggregatore'!$D98="R",SUMIF('00 Alimenta'!$A:$A,$B98,'00 Alimenta'!D:D),SUMIF('00 Alimenta'!$A:$A,$B98,'00 Alimenta'!D:D)*-1) -> 386661.64 | F98: =IF('00 Aggregatore'!$D98="R",SUMIF('00 Alimenta'!$A:$A,$B98,'00 Alimenta'!E:E),SUMIF('00 Alimenta'!$A:$A,$B98,'00 Alimenta'!E:E)*-1) -> 232978.25
A99: AR | B99: AA0970 | C99: A.6.C) Compartecipazione alla spesa per prestazioni sanitarie (Ticket) - Altro | D99: R | E99: =IF('00 Aggregatore'!$D99="R",SUMIF('00 Alimenta'!$A:$A,$B99,'00 Alimenta'!D:D),SUMIF('00 Alimenta'!$A:$A,$B99,'00 Alimenta'!D:D)*-1) -> 0 | F99: =IF('00 Aggregatore'!$D99="R",SUMIF('00 Alimenta'!$A:$A,$B99,'00 Alimenta'!E:E),SUMIF('00 Alimenta'!$A:$A,$B99,'00 Alimenta'!E:E)*-1) -> 0
A100: AR | B100: AA0990 | C100: A.7.A) Quota imputata all'esercizio dei finanziamenti per investimenti dallo Stato | D100: R | E100: =IF('00 Aggregatore'!$D100="R",SUMIF('00 Alimenta'!$A:$A,$B100,'00 Alimenta'!D:D),SUMIF('00 Alimenta'!$A:$A,$B100,'00 Alimenta'!D:D)*-1) -> 54754.03 | F100: =IF('00 Aggregatore'!$D100="R",SUMIF('00 Alimenta'!$A:$A,$B100,'00 Alimenta'!E:E),SUMIF('00 Alimenta'!$A:$A,$B100,'00 Alimenta'!E:E)*-1) -> 86964.13
A101: AR | B101: AA1000 | C101: A.7.B) Quota imputata all'esercizio dei finanziamenti per investimenti da Regione | D101: R | E101: =IF('00 Aggregatore'!$D101="R",SUMIF('00 Alimenta'!$A:$A,$B101,'00 Alimenta'!D:D),SUMIF('00 Alimenta'!$A:$A,$B101,'00 Alimenta'!D:D)*-1) -> 1674245.68 | F101: =IF('00 Aggregatore'!$D101="R",SUMIF('00 Alimenta'!$A:$A,$B101,'00 Alimenta'!E:E),SUMIF('00 Alimenta'!$A:$A,$B101,'00 Alimenta'!E:E)*-1) -> 1986864.15
A102: AR | B102: AA1010 | C102: A.7.C) Quota imputata all'esercizio dei finanziamenti per beni di prima dotazione | D102: R | E102: =IF('00 Aggregatore'!$D102="R",SUMIF('00 Alimenta'!$A:$A,$B102,'00 Alimenta'!D:D),SUMIF('00 Alimenta'!$A:$A,$B102,'00 Alimenta'!D:D)*-1) -> 3577467.93 | F102: =IF('00 Aggregatore'!$D102="R",SUMIF('00 Alimenta'!$A:$A,$B102,'00 Alimenta'!E:E),SUMIF('00 Alimenta'!$A:$A,$B102,'00 Alimenta'!E:E)*-1) -> 3577467.93
A103: AR | B103: AA1020 | C103: A.7.D) Quota imputata all'esercizio dei contributi in c/ esercizio FSR destinati ad investimenti | D103: R | E103: =IF('00 Aggregatore'!$D103="R",SUMIF('00 Alimenta'!$A:$A,$B103,'00 Alimenta'!D:D),SUMIF('00 Alimenta'!$A:$A,$B103,'00 Alimenta'!D:D)*-1) -> 5185207.28 | F103: =IF('00 Aggregatore'!$D103="R",SUMIF('00 Alimenta'!$A:$A,$B103,'00 Alimenta'!E:E),SUMIF('00 Alimenta'!$A:$A,$B103,'00 Alimenta'!E:E)*-1) -> 5079640.42
A104: AR | B104: AA1030 | C104: A.7.E) Quota imputata all'esercizio degli altri contributi in c/ esercizio destinati ad investimenti | D104: R | E104: =IF('00 Aggregatore'!$D104="R",SUMIF('00 Alimenta'!$A:$A,$B104,'00 Alimenta'!D:D),SUMIF('00 Alimenta'!$A:$A,$B104,'00 Alimenta'!D:D)*-1) -> 0 | F104: =IF('00 Aggregatore'!$D104="R",SUMIF('00 Alimenta'!$A:$A,$B104,'00 Alimenta'!E:E),SUMIF('00 Alimenta'!$A:$A,$B104,'00 Alimenta'!E:E)*-1) -> 0
A105: AR | B105: AA1040 | C105: A.7.F) Quota imputata all'esercizio di altre poste del patrimonio netto | D105: R | E105: =IF('00 Aggregatore'!$D105="R",SUMIF('00 Alimenta'!$A:$A,$B105,'00 Alimenta'!D:D),SUMIF('00 Alimenta'!$A:$A,$B105,'00 Alimenta'!D:D)*-1) -> 0 | F105: =IF('00 Aggregatore'!$D105="R",SUMIF('00 Alimenta'!$A:$A,$B105,'00 Alimenta'!E:E),SUMIF('00 Alimenta'!$A:$A,$B105,'00 Alimenta'!E:E)*-1) -> 0
A106: AR | B106: AA1050 | C106: A.8) Incrementi delle immobilizzazioni per lavori interni | D106: R | E106: =IF('00 Aggregatore'!$D106="R",SUMIF('00 Alimenta'!$A:$A,$B106,'00 Alimenta'!D:D),SUMIF('00 Alimenta'!$A:$A,$B106,'00 Alimenta'!D:D)*-1) -> 0 | F106: =IF('00 Aggregatore'!$D106="R",SUMIF('00 Alimenta'!$A:$A,$B106,'00 Alimenta'!E:E),SUMIF('00 Alimenta'!$A:$A,$B106,'00 Alimenta'!E:E)*-1) -> 0
A107: AR | B107: AA1070 | C107: A.9.A) Ricavi per prestazioni non sanitarie | D107: R | E107: =IF('00 Aggregatore'!$D107="R",SUMIF('00 Alimenta'!$A:$A,$B107,'00 Alimenta'!D:D),SUMIF('00 Alimenta'!$A:$A,$B107,'00 Alimenta'!D:D)*-1) -> 1738.6 | F107: =IF('00 Aggregatore'!$D107="R",SUMIF('00 Alimenta'!$A:$A,$B107,'00 Alimenta'!E:E),SUMIF('00 Alimenta'!$A:$A,$B107,'00 Alimenta'!E:E)*-1) -> 6999.55
A108: AR | B108: AA1080 | C108: A.9.B) Fitti attivi ed altri proventi da attività immobiliari | D108: R | E108: =IF('00 Aggregatore'!$D108="R",SUMIF('00 Alimenta'!$A:$A,$B108,'00 Alimenta'!D:D),SUMIF('00 Alimenta'!$A:$A,$B108,'00 Alimenta'!D:D)*-1) -> 186882.15 | F108: =IF('00 Aggregatore'!$D108="R",SUMIF('00 Alimenta'!$A:$A,$B108,'00 Alimenta'!E:E),SUMIF('00 Alimenta'!$A:$A,$B108,'00 Alimenta'!E:E)*-1) -> 286977.87
A109: AR | B109: AA1090 | C109: A.9.C) Altri proventi diversi | D109: R | E109: =IF('00 Aggregatore'!$D109="R",SUMIF('00 Alimenta'!$A:$A,$B109,'00 Alimenta'!D:D),SUMIF('00 Alimenta'!$A:$A,$B109,'00 Alimenta'!D:D)*-1) -> 362826.21 | F109: =IF('00 Aggregatore'!$D109="R",SUMIF('00 Alimenta'!$A:$A,$B109,'00 Alimenta'!E:E),SUMIF('00 Alimenta'!$A:$A,$B109,'00 Alimenta'!E:E)*-1) -> 288673.9
A110: BC | B110: BA0040 | C110: B.1.A.1.1) Medicinali con AIC, ad eccezione di vaccini, emoderivati di produzione regionale, ossigeno e altri gas medicali | D110: C | E110: =IF('00 Aggregatore'!$D110="R",SUMIF('00 Alimenta'!$A:$A,$B110,'00 Alimenta'!D:D),SUMIF('00 Alimenta'!$A:$A,$B110,'00 Alimenta'!D:D)*-1) -> 81177784.88 | F110: =IF('00 Aggregatore'!$D110="R",SUMIF('00 Alimenta'!$A:$A,$B110,'00 Alimenta'!E:E),SUMIF('00 Alimenta'!$A:$A,$B110,'00 Alimenta'!E:E)*-1) -> 85184508.77
A111: BC | B111: BA0050 | C111: B.1.A.1.2) Medicinali senza AIC | D111: C | E111: =IF('00 Aggregatore'!$D111="R",SUMIF('00 Alimenta'!$A:$A,$B111,'00 Alimenta'!D:D),SUMIF('00 Alimenta'!$A:$A,$B111,'00 Alimenta'!D:D)*-1) -> 752264.34 | F111: =IF('00 Aggregatore'!$D111="R",SUMIF('00 Alimenta'!$A:$A,$B111,'00 Alimenta'!E:E),SUMIF('00 Alimenta'!$A:$A,$B111,'00 Alimenta'!E:E)*-1) -> 679663.84
A112: BC | B112: BA0051 | C112: B.1.A.1.3) Ossigeno e altri gas medicali | D112: C | E112: =IF('00 Aggregatore'!$D112="R",SUMIF('00 Alimenta'!$A:$A,$B112,'00 Alimenta'!D:D),SUMIF('00 Alimenta'!$A:$A,$B112,'00 Alimenta'!D:D)*-1) -> 1358852.21 | F112: =IF('00 Aggregatore'!$D112="R",SUMIF('00 Alimenta'!$A:$A,$B112,'00 Alimenta'!E:E),SUMIF('00 Alimenta'!$A:$A,$B112,'00 Alimenta'!E:E)*-1) -> 476848.64
A113: BC | B113: BA0061 | C113: B.1.A.1.4.1) Emoderivati di produzione regionale da pubblico (Aziende sanitarie pubbliche della Regione) - Mobilità intraregionale | D113: C | E113: =IF('00 Aggregatore'!$D113="R",SUMIF('00 Alimenta'!$A:$A,$B113,'00 Alimenta'!D:D),SUMIF('00 Alimenta'!$A:$A,$B113,'00 Alimenta'!D:D)*-1) -> 0 | F113: =IF('00 Aggregatore'!$D113="R",SUMIF('00 Alimenta'!$A:$A,$B113,'00 Alimenta'!E:E),SUMIF('00 Alimenta'!$A:$A,$B113,'00 Alimenta'!E:E)*-1) -> 0
A114: BC | B114: BA0062 | C114: B.1.A.1.4.2) Emoderivati di produzione regionale da pubblico (Aziende sanitarie pubbliche della Regione) - Mobilità extraregionale | D114: C | E114: =IF('00 Aggregatore'!$D114="R",SUMIF('00 Alimenta'!$A:$A,$B114,'00 Alimenta'!D:D),SUMIF('00 Alimenta'!$A:$A,$B114,'00 Alimenta'!D:D)*-1) -> 0 | F114: =IF('00 Aggregatore'!$D114="R",SUMIF('00 Alimenta'!$A:$A,$B114,'00 Alimenta'!E:E),SUMIF('00 Alimenta'!$A:$A,$B114,'00 Alimenta'!E:E)*-1) -> 0
A115: BC | B115: BA0063 | C115: B.1.A.1.4.3) Emoderivati di produzione regionale da altri soggetti | D115: C | E115: =IF('00 Aggregatore'!$D115="R",SUMIF('00 Alimenta'!$A:$A,$B115,'00 Alimenta'!D:D),SUMIF('00 Alimenta'!$A:$A,$B115,'00 Alimenta'!D:D)*-1) -> 0 | F115: =IF('00 Aggregatore'!$D115="R",SUMIF('00 Alimenta'!$A:$A,$B115,'00 Alimenta'!E:E),SUMIF('00 Alimenta'!$A:$A,$B115,'00 Alimenta'!E:E)*-1) -> 0
A116: BC | B116: BA0080 | C116: B.1.A.2.1) da pubblico (Aziende sanitarie pubbliche della Regione) – Mobilità intraregionale | D116: C | E116: =IF('00 Aggregatore'!$D116="R",SUMIF('00 Alimenta'!$A:$A,$B116,'00 Alimenta'!D:D),SUMIF('00 Alimenta'!$A:$A,$B116,'00 Alimenta'!D:D)*-1) -> 0 | F116: =IF('00 Aggregatore'!$D116="R",SUMIF('00 Alimenta'!$A:$A,$B116,'00 Alimenta'!E:E),SUMIF('00 Alimenta'!$A:$A,$B116,'00 Alimenta'!E:E)*-1) -> 0
A117: BC | B117: BA0090 | C117: B.1.A.2.2) da pubblico (Aziende sanitarie pubbliche extra Regione) – Mobilità extraregionale | D117: C | E117: =IF('00 Aggregatore'!$D117="R",SUMIF('00 Alimenta'!$A:$A,$B117,'00 Alimenta'!D:D),SUMIF('00 Alimenta'!$A:$A,$B117,'00 Alimenta'!D:D)*-1) -> 23080.75 | F117: =IF('00 Aggregatore'!$D117="R",SUMIF('00 Alimenta'!$A:$A,$B117,'00 Alimenta'!E:E),SUMIF('00 Alimenta'!$A:$A,$B117,'00 Alimenta'!E:E)*-1) -> 0
A118: BC | B118: BA0100 | C118: B.1.A.2.3) da altri soggetti | D118: C | E118: =IF('00 Aggregatore'!$D118="R",SUMIF('00 Alimenta'!$A:$A,$B118,'00 Alimenta'!D:D),SUMIF('00 Alimenta'!$A:$A,$B118,'00 Alimenta'!D:D)*-1) -> 0 | F118: =IF('00 Aggregatore'!$D118="R",SUMIF('00 Alimenta'!$A:$A,$B118,'00 Alimenta'!E:E),SUMIF('00 Alimenta'!$A:$A,$B118,'00 Alimenta'!E:E)*-1) -> 0
A119: BC | B119: BA0220 | C119: B.1.A.3.1) Dispositivi medici | D119: C | E119: =IF('00 Aggregatore'!$D119="R",SUMIF('00 Alimenta'!$A:$A,$B119,'00 Alimenta'!D:D),SUMIF('00 Alimenta'!$A:$A,$B119,'00 Alimenta'!D:D)*-1) -> 27013313.95 | F119: =IF('00 Aggregatore'!$D119="R",SUMIF('00 Alimenta'!$A:$A,$B119,'00 Alimenta'!E:E),SUMIF('00 Alimenta'!$A:$A,$B119,'00 Alimenta'!E:E)*-1) -> 28968171.86
A120: BC | B120: BA0230 | C120: B.1.A.3.2) Dispositivi medici impiantabili attivi | D120: C | E120: =IF('00 Aggregatore'!$D120="R",SUMIF('00 Alimenta'!$A:$A,$B120,'00 Alimenta'!D:D),SUMIF('00 Alimenta'!$A:$A,$B120,'00 Alimenta'!D:D)*-1) -> 3071999.01 | F120: =IF('00 Aggregatore'!$D120="R",SUMIF('00 Alimenta'!$A:$A,$B120,'00 Alimenta'!E:E),SUMIF('00 Alimenta'!$A:$A,$B120,'00 Alimenta'!E:E)*-1) -> 3788645.64
A121: BC | B121: BA0240 | C121: B.1.A.3.3) Dispositivi medico diagnostici in vitro (IVD) | D121: C | E121: =IF('00 Aggregatore'!$D121="R",SUMIF('00 Alimenta'!$A:$A,$B121,'00 Alimenta'!D:D),SUMIF('00 Alimenta'!$A:$A,$B121,'00 Alimenta'!D:D)*-1) -> 12786548.72 | F121: =IF('00 Aggregatore'!$D121="R",SUMIF('00 Alimenta'!$A:$A,$B121,'00 Alimenta'!E:E),SUMIF('00 Alimenta'!$A:$A,$B121,'00 Alimenta'!E:E)*-1) -> 12483543.45
A122: BC | B122: BA0250 | C122: B.1.A.4) Prodotti dietetici | D122: C | E122: =IF('00 Aggregatore'!$D122="R",SUMIF('00 Alimenta'!$A:$A,$B122,'00 Alimenta'!D:D),SUMIF('00 Alimenta'!$A:$A,$B122,'00 Alimenta'!D:D)*-1) -> 468960.66 | F122: =IF('00 Aggregatore'!$D122="R",SUMIF('00 Alimenta'!$A:$A,$B122,'00 Alimenta'!E:E),SUMIF('00 Alimenta'!$A:$A,$B122,'00 Alimenta'!E:E)*-1) -> 459964.75
A123: BC | B123: BA0260 | C123: B.1.A.5) Materiali per la profilassi (vaccini) | D123: C | E123: =IF('00 Aggregatore'!$D123="R",SUMIF('00 Alimenta'!$A:$A,$B123,'00 Alimenta'!D:D),SUMIF('00 Alimenta'!$A:$A,$B123,'00 Alimenta'!D:D)*-1) -> 2222785.11 | F123: =IF('00 Aggregatore'!$D123="R",SUMIF('00 Alimenta'!$A:$A,$B123,'00 Alimenta'!E:E),SUMIF('00 Alimenta'!$A:$A,$B123,'00 Alimenta'!E:E)*-1) -> 2684881.73
A124: BC | B124: BA0270 | C124: B.1.A.6) Prodotti chimici | D124: C | E124: =IF('00 Aggregatore'!$D124="R",SUMIF('00 Alimenta'!$A:$A,$B124,'00 Alimenta'!D:D),SUMIF('00 Alimenta'!$A:$A,$B124,'00 Alimenta'!D:D)*-1) -> 0 | F124: =IF('00 Aggregatore'!$D124="R",SUMIF('00 Alimenta'!$A:$A,$B124,'00 Alimenta'!E:E),SUMIF('00 Alimenta'!$A:$A,$B124,'00 Alimenta'!E:E)*-1) -> 0
A125: BC | B125: BA0280 | C125: B.1.A.7) Materiali e prodotti per uso veterinario | D125: C | E125: =IF('00 Aggregatore'!$D125="R",SUMIF('00 Alimenta'!$A:$A,$B125,'00 Alimenta'!D:D),SUMIF('00 Alimenta'!$A:$A,$B125,'00 Alimenta'!D:D)*-1) -> 20636.41 | F125: =IF('00 Aggregatore'!$D125="R",SUMIF('00 Alimenta'!$A:$A,$B125,'00 Alimenta'!E:E),SUMIF('00 Alimenta'!$A:$A,$B125,'00 Alimenta'!E:E)*-1) -> 15170.48
A126: BC | B126: BA0290 | C126: B.1.A.8) Altri beni e prodotti sanitari | D126: C | E126: =IF('00 Aggregatore'!$D126="R",SUMIF('00 Alimenta'!$A:$A,$B126,'00 Alimenta'!D:D),SUMIF('00 Alimenta'!$A:$A,$B126,'00 Alimenta'!D:D)*-1) -> 2193506.59 | F126: =IF('00 Aggregatore'!$D126="R",SUMIF('00 Alimenta'!$A:$A,$B126,'00 Alimenta'!E:E),SUMIF('00 Alimenta'!$A:$A,$B126,'00 Alimenta'!E:E)*-1) -> 1988114.71
A127: BC | B127: BA0301 | C127: B.1.A.9.1) Prodotti farmaceutici ed emoderivati | D127: C | E127: =IF('00 Aggregatore'!$D127="R",SUMIF('00 Alimenta'!$A:$A,$B127,'00 Alimenta'!D:D),SUMIF('00 Alimenta'!$A:$A,$B127,'00 Alimenta'!D:D)*-1) -> 0 | F127: =IF('00 Aggregatore'!$D127="R",SUMIF('00 Alimenta'!$A:$A,$B127,'00 Alimenta'!E:E),SUMIF('00 Alimenta'!$A:$A,$B127,'00 Alimenta'!E:E)*-1) -> 0
A128: BC | B128: BA0303 | C128: B.1.A.9.3) Dispositivi medici | D128: C | E128: =IF('00 Aggregatore'!$D128="R",SUMIF('00 Alimenta'!$A:$A,$B128,'00 Alimenta'!D:D),SUMIF('00 Alimenta'!$A:$A,$B128,'00 Alimenta'!D:D)*-1) -> 0 | F128: =IF('00 Aggregatore'!$D128="R",SUMIF('00 Alimenta'!$A:$A,$B128,'00 Alimenta'!E:E),SUMIF('00 Alimenta'!$A:$A,$B128,'00 Alimenta'!E:E)*-1) -> 0
A129: BC | B129: BA0304 | C129: B.1.A.9.4) Prodotti dietetici | D129: C | E129: =IF('00 Aggregatore'!$D129="R",SUMIF('00 Alimenta'!$A:$A,$B129,'00 Alimenta'!D:D),SUMIF('00 Alimenta'!$A:$A,$B129,'00 Alimenta'!D:D)*-1) -> 0 | F129: =IF('00 Aggregatore'!$D129="R",SUMIF('00 Alimenta'!$A:$A,$B129,'00 Alimenta'!E:E),SUMIF('00 Alimenta'!$A:$A,$B129,'00 Alimenta'!E:E)*-1) -> 0
A130: BC | B130: BA0305 | C130: B.1.A.9.5) Materiali per la profilassi (vaccini) | D130: C | E130: =IF('00 Aggregatore'!$D130="R",SUMIF('00 Alimenta'!$A:$A,$B130,'00 Alimenta'!D:D),SUMIF('00 Alimenta'!$A:$A,$B130,'00 Alimenta'!D:D)*-1) -> 0 | F130: =IF('00 Aggregatore'!$D130="R",SUMIF('00 Alimenta'!$A:$A,$B130,'00 Alimenta'!E:E),SUMIF('00 Alimenta'!$A:$A,$B130,'00 Alimenta'!E:E)*-1) -> 0
A131: BC | B131: BA0306 | C131: B.1.A.9.6) Prodotti chimici | D131: C | E131: =IF('00 Aggregatore'!$D131="R",SUMIF('00 Alimenta'!$A:$A,$B131,'00 Alimenta'!D:D),SUMIF('00 Alimenta'!$A:$A,$B131,'00 Alimenta'!D:D)*-1) -> 0 | F131: =IF('00 Aggregatore'!$D131="R",SUMIF('00 Alimenta'!$A:$A,$B131,'00 Alimenta'!E:E),SUMIF('00 Alimenta'!$A:$A,$B131,'00 Alimenta'!E:E)*-1) -> 0
A132: BC | B132: BA0307 | C132: B.1.A.9.7) Materiali e prodotti per uso veterinario | D132: C | E132: =IF('00 Aggregatore'!$D132="R",SUMIF('00 Alimenta'!$A:$A,$B132,'00 Alimenta'!D:D),SUMIF('00 Alimenta'!$A:$A,$B132,'00 Alimenta'!D:D)*-1) -> 0 | F132: =IF('00 Aggregatore'!$D132="R",SUMIF('00 Alimenta'!$A:$A,$B132,'00 Alimenta'!E:E),SUMIF('00 Alimenta'!$A:$A,$B132,'00 Alimenta'!E:E)*-1) -> 0
A133: BC | B133: BA0308 | C133: B.1.A.9.8) Altri beni e prodotti sanitari | D133: C | E133: =IF('00 Aggregatore'!$D133="R",SUMIF('00 Alimenta'!$A:$A,$B133,'00 Alimenta'!D:D),SUMIF('00 Alimenta'!$A:$A,$B133,'00 Alimenta'!D:D)*-1) -> 0 | F133: =IF('00 Aggregatore'!$D133="R",SUMIF('00 Alimenta'!$A:$A,$B133,'00 Alimenta'!E:E),SUMIF('00 Alimenta'!$A:$A,$B133,'00 Alimenta'!E:E)*-1) -> 0
A134: =LEFT(B134,1)&D134 -> BC | B134: BA0320 | C134: B.1.B.1) Prodotti alimentari | D134: C | E134: =IF('00 Aggregatore'!$D134="R",SUMIF('00 Alimenta'!$A:$A,$B134,'00 Alimenta'!D:D),SUMIF('00 Alimenta'!$A:$A,$B134,'00 Alimenta'!D:D)*-1) -> 83.52 | F134: =IF('00 Aggregatore'!$D134="R",SUMIF('00 Alimenta'!$A:$A,$B134,'00 Alimenta'!E:E),SUMIF('00 Alimenta'!$A:$A,$B134,'00 Alimenta'!E:E)*-1) -> 336.06
A135: BC | B135: BA0330 | C135: B.1.B.2) Materiali di guardaroba, di pulizia e di convivenza in genere | D135: C | E135: =IF('00 Aggregatore'!$D135="R",SUMIF('00 Alimenta'!$A:$A,$B135,'00 Alimenta'!D:D),SUMIF('00 Alimenta'!$A:$A,$B135,'00 Alimenta'!D:D)*-1) -> 64306.42 | F135: =IF('00 Aggregatore'!$D135="R",SUMIF('00 Alimenta'!$A:$A,$B135,'00 Alimenta'!E:E),SUMIF('00 Alimenta'!$A:$A,$B135,'00 Alimenta'!E:E)*-1) -> 34271.29
A136: BC | B136: BA0340 | C136: B.1.B.3) Combustibili, carburanti e lubrificanti | D136: C | E136: =IF('00 Aggregatore'!$D136="R",SUMIF('00 Alimenta'!$A:$A,$B136,'00 Alimenta'!D:D),SUMIF('00 Alimenta'!$A:$A,$B136,'00 Alimenta'!D:D)*-1) -> 172419.52 | F136: =IF('00 Aggregatore'!$D136="R",SUMIF('00 Alimenta'!$A:$A,$B136,'00 Alimenta'!E:E),SUMIF('00 Alimenta'!$A:$A,$B136,'00 Alimenta'!E:E)*-1) -> 145758.08
A137: BC | B137: BA0350 | C137: B.1.B.4) Supporti informatici e cancelleria | D137: C | E137: =IF('00 Aggregatore'!$D137="R",SUMIF('00 Alimenta'!$A:$A,$B137,'00 Alimenta'!D:D),SUMIF('00 Alimenta'!$A:$A,$B137,'00 Alimenta'!D:D)*-1) -> 477974.9 | F137: =IF('00 Aggregatore'!$D137="R",SUMIF('00 Alimenta'!$A:$A,$B137,'00 Alimenta'!E:E),SUMIF('00 Alimenta'!$A:$A,$B137,'00 Alimenta'!E:E)*-1) -> 458683.01
A138: BC | B138: BA0360 | C138: B.1.B.5) Materiale per la manutenzione | D138: C | E138: =IF('00 Aggregatore'!$D138="R",SUMIF('00 Alimenta'!$A:$A,$B138,'00 Alimenta'!D:D),SUMIF('00 Alimenta'!$A:$A,$B138,'00 Alimenta'!D:D)*-1) -> 239884.37 | F138: =IF('00 Aggregatore'!$D138="R",SUMIF('00 Alimenta'!$A:$A,$B138,'00 Alimenta'!E:E),SUMIF('00 Alimenta'!$A:$A,$B138,'00 Alimenta'!E:E)*-1) -> 284528.75
A139: BC | B139: BA0370 | C139: B.1.B.6) Altri beni e prodotti non sanitari | D139: C | E139: =IF('00 Aggregatore'!$D139="R",SUMIF('00 Alimenta'!$A:$A,$B139,'00 Alimenta'!D:D),SUMIF('00 Alimenta'!$A:$A,$B139,'00 Alimenta'!D:D)*-1) -> 45073.96 | F139: =IF('00 Aggregatore'!$D139="R",SUMIF('00 Alimenta'!$A:$A,$B139,'00 Alimenta'!E:E),SUMIF('00 Alimenta'!$A:$A,$B139,'00 Alimenta'!E:E)*-1) -> 67162.76
A140: BC | B140: BA0380 | C140: B.1.B.7) Beni e prodotti non sanitari da Aziende sanitarie pubbliche della Regione | D140: C | E140: =IF('00 Aggregatore'!$D140="R",SUMIF('00 Alimenta'!$A:$A,$B140,'00 Alimenta'!D:D),SUMIF('00 Alimenta'!$A:$A,$B140,'00 Alimenta'!D:D)*-1) -> 0 | F140: =IF('00 Aggregatore'!$D140="R",SUMIF('00 Alimenta'!$A:$A,$B140,'00 Alimenta'!E:E),SUMIF('00 Alimenta'!$A:$A,$B140,'00 Alimenta'!E:E)*-1) -> 0
A141: BC | B141: BA0430 | C141: B.2.A.1.1.A) Costi per assistenza MMG | D141: C | E141: =IF('00 Aggregatore'!$D141="R",SUMIF('00 Alimenta'!$A:$A,$B141,'00 Alimenta'!D:D),SUMIF('00 Alimenta'!$A:$A,$B141,'00 Alimenta'!D:D)*-1) -> 24517314.75 | F141: =IF('00 Aggregatore'!$D141="R",SUMIF('00 Alimenta'!$A:$A,$B141,'00 Alimenta'!E:E),SUMIF('00 Alimenta'!$A:$A,$B141,'00 Alimenta'!E:E)*-1) -> 23959444.88
A142: BC | B142: BA0440 | C142: B.2.A.1.1.B) Costi per assistenza PLS | D142: C | E142: =IF('00 Aggregatore'!$D142="R",SUMIF('00 Alimenta'!$A:$A,$B142,'00 Alimenta'!D:D),SUMIF('00 Alimenta'!$A:$A,$B142,'00 Alimenta'!D:D)*-1) -> 6415070.53 | F142: =IF('00 Aggregatore'!$D142="R",SUMIF('00 Alimenta'!$A:$A,$B142,'00 Alimenta'!E:E),SUMIF('00 Alimenta'!$A:$A,$B142,'00 Alimenta'!E:E)*-1) -> 5870213.86
A143: BC | B143: BA0450 | C143: B.2.A.1.1.C) Costi per assistenza Continuità assistenziale | D143: C | E143: =IF('00 Aggregatore'!$D143="R",SUMIF('00 Alimenta'!$A:$A,$B143,'00 Alimenta'!D:D),SUMIF('00 Alimenta'!$A:$A,$B143,'00 Alimenta'!D:D)*-1) -> 3931463.93 | F143: =IF('00 Aggregatore'!$D143="R",SUMIF('00 Alimenta'!$A:$A,$B143,'00 Alimenta'!E:E),SUMIF('00 Alimenta'!$A:$A,$B143,'00 Alimenta'!E:E)*-1) -> 4254569.59
A144: BC | B144: BA0460 | C144: B.2.A.1.1.D) Altro (medicina dei servizi, psicologi, medici 118, ecc) | D144: C | E144: =IF('00 Aggregatore'!$D144="R",SUMIF('00 Alimenta'!$A:$A,$B144,'00 Alimenta'!D:D),SUMIF('00 Alimenta'!$A:$A,$B144,'00 Alimenta'!D:D)*-1) -> 789656.11 | F144: =IF('00 Aggregatore'!$D144="R",SUMIF('00 Alimenta'!$A:$A,$B144,'00 Alimenta'!E:E),SUMIF('00 Alimenta'!$A:$A,$B144,'00 Alimenta'!E:E)*-1) -> 991621.88
A145: BC | B145: BA0470 | C145: B.2.A.1.2) - da pubblico (Aziende sanitarie pubbliche della Regione) - Mobilità intraregionale | D145: C | E145: =IF('00 Aggregatore'!$D145="R",SUMIF('00 Alimenta'!$A:$A,$B145,'00 Alimenta'!D:D),SUMIF('00 Alimenta'!$A:$A,$B145,'00 Alimenta'!D:D)*-1) -> 38671 | F145: =IF('00 Aggregatore'!$D145="R",SUMIF('00 Alimenta'!$A:$A,$B145,'00 Alimenta'!E:E),SUMIF('00 Alimenta'!$A:$A,$B145,'00 Alimenta'!E:E)*-1) -> 51404.4
A146: BC | B146: BA0480 | C146: B.2.A.1.3) - da pubblico (Aziende sanitarie pubbliche Extraregione) - Mobilità extraregionale | D146: C | E146: =IF('00 Aggregatore'!$D146="R",SUMIF('00 Alimenta'!$A:$A,$B146,'00 Alimenta'!D:D),SUMIF('00 Alimenta'!$A:$A,$B146,'00 Alimenta'!D:D)*-1) -> 217107.5 | F146: =IF('00 Aggregatore'!$D146="R",SUMIF('00 Alimenta'!$A:$A,$B146,'00 Alimenta'!E:E),SUMIF('00 Alimenta'!$A:$A,$B146,'00 Alimenta'!E:E)*-1) -> 202760.17
A147: BC | B147: BA0500 | C147: B.2.A.2.1) - da convenzione | D147: C | E147: =IF('00 Aggregatore'!$D147="R",SUMIF('00 Alimenta'!$A:$A,$B147,'00 Alimenta'!D:D),SUMIF('00 Alimenta'!$A:$A,$B147,'00 Alimenta'!D:D)*-1) -> 50129678.23 | F147: =IF('00 Aggregatore'!$D147="R",SUMIF('00 Alimenta'!$A:$A,$B147,'00 Alimenta'!E:E),SUMIF('00 Alimenta'!$A:$A,$B147,'00 Alimenta'!E:E)*-1) -> 46621762.02
A148: BC | B148: BA0510 | C148: B.2.A.2.2) - da pubblico (Aziende sanitarie pubbliche della Regione)- Mobilità intraregionale | D148: C | E148: =IF('00 Aggregatore'!$D148="R",SUMIF('00 Alimenta'!$A:$A,$B148,'00 Alimenta'!D:D),SUMIF('00 Alimenta'!$A:$A,$B148,'00 Alimenta'!D:D)*-1) -> 1277628.07 | F148: =IF('00 Aggregatore'!$D148="R",SUMIF('00 Alimenta'!$A:$A,$B148,'00 Alimenta'!E:E),SUMIF('00 Alimenta'!$A:$A,$B148,'00 Alimenta'!E:E)*-1) -> 1255010.99
A149: BC | B149: BA0520 | C149: B.2.A.2.3) - da pubblico (Extraregione) | D149: C | E149: =IF('00 Aggregatore'!$D149="R",SUMIF('00 Alimenta'!$A:$A,$B149,'00 Alimenta'!D:D),SUMIF('00 Alimenta'!$A:$A,$B149,'00 Alimenta'!D:D)*-1) -> 457054.73 | F149: =IF('00 Aggregatore'!$D149="R",SUMIF('00 Alimenta'!$A:$A,$B149,'00 Alimenta'!E:E),SUMIF('00 Alimenta'!$A:$A,$B149,'00 Alimenta'!E:E)*-1) -> 504044.37
A150: BC | B150: BA0540 | C150: B.2.A.3.1) - da pubblico (Aziende sanitarie pubbliche della Regione) | D150: C | E150: =IF('00 Aggregatore'!$D150="R",SUMIF('00 Alimenta'!$A:$A,$B150,'00 Alimenta'!D:D),SUMIF('00 Alimenta'!$A:$A,$B150,'00 Alimenta'!D:D)*-1) -> 8879359.57 | F150: =IF('00 Aggregatore'!$D150="R",SUMIF('00 Alimenta'!$A:$A,$B150,'00 Alimenta'!E:E),SUMIF('00 Alimenta'!$A:$A,$B150,'00 Alimenta'!E:E)*-1) -> 9027977.09
A151: BC | B151: BA0541 | C151: B.2.A.3.2) prestazioni di pronto soccorso non seguite da ricovero - da pubblico (Aziende sanitarie pubbliche della Regione) | D151: C | E151: =IF('00 Aggregatore'!$D151="R",SUMIF('00 Alimenta'!$A:$A,$B151,'00 Alimenta'!D:D),SUMIF('00 Alimenta'!$A:$A,$B151,'00 Alimenta'!D:D)*-1) -> 0 | F151: =IF('00 Aggregatore'!$D151="R",SUMIF('00 Alimenta'!$A:$A,$B151,'00 Alimenta'!E:E),SUMIF('00 Alimenta'!$A:$A,$B151,'00 Alimenta'!E:E)*-1) -> 0
A152: BC | B152: BA0550 | C152: B.2.A.3.3) - da pubblico (altri soggetti pubbl. della Regione) | D152: C | E152: =IF('00 Aggregatore'!$D152="R",SUMIF('00 Alimenta'!$A:$A,$B152,'00 Alimenta'!D:D),SUMIF('00 Alimenta'!$A:$A,$B152,'00 Alimenta'!D:D)*-1) -> 360209.89 | F152: =IF('00 Aggregatore'!$D152="R",SUMIF('00 Alimenta'!$A:$A,$B152,'00 Alimenta'!E:E),SUMIF('00 Alimenta'!$A:$A,$B152,'00 Alimenta'!E:E)*-1) -> 580281.24
A153: BC | B153: BA0551 | C153: B.2.A.3.4) prestazioni di pronto soccorso non seguite da ricovero - da pubblico (altri soggetti pubbl. della Regione) | D153: C | E153: =IF('00 Aggregatore'!$D153="R",SUMIF('00 Alimenta'!$A:$A,$B153,'00 Alimenta'!D:D),SUMIF('00 Alimenta'!$A:$A,$B153,'00 Alimenta'!D:D)*-1) -> 0 | F153: =IF('00 Aggregatore'!$D153="R",SUMIF('00 Alimenta'!$A:$A,$B153,'00 Alimenta'!E:E),SUMIF('00 Alimenta'!$A:$A,$B153,'00 Alimenta'!E:E)*-1) -> 0
A154: BC | B154: BA0560 | C154: B.2.A.3.5) - da pubblico (Extraregione) | D154: C | E154: =IF('00 Aggregatore'!$D154="R",SUMIF('00 Alimenta'!$A:$A,$B154,'00 Alimenta'!D:D),SUMIF('00 Alimenta'!$A:$A,$B154,'00 Alimenta'!D:D)*-1) -> 4000753.58 | F154: =IF('00 Aggregatore'!$D154="R",SUMIF('00 Alimenta'!$A:$A,$B154,'00 Alimenta'!E:E),SUMIF('00 Alimenta'!$A:$A,$B154,'00 Alimenta'!E:E)*-1) -> 3402818.86
A155: BC | B155: BA0561 | C155: B.2.A.3.6) prestazioni di pronto soccorso non seguite da ricovero - da pubblico (Extraregione) | D155: C | E155: =IF('00 Aggregatore'!$D155="R",SUMIF('00 Alimenta'!$A:$A,$B155,'00 Alimenta'!D:D),SUMIF('00 Alimenta'!$A:$A,$B155,'00 Alimenta'!D:D)*-1) -> 0 | F155: =IF('00 Aggregatore'!$D155="R",SUMIF('00 Alimenta'!$A:$A,$B155,'00 Alimenta'!E:E),SUMIF('00 Alimenta'!$A:$A,$B155,'00 Alimenta'!E:E)*-1) -> 0
A156: BC | B156: BA0570 | C156: B.2.A.3.7) - da privato - Medici SUMAI | D156: C | E156: =IF('00 Aggregatore'!$D156="R",SUMIF('00 Alimenta'!$A:$A,$B156,'00 Alimenta'!D:D),SUMIF('00 Alimenta'!$A:$A,$B156,'00 Alimenta'!D:D)*-1) -> 4486744.21 | F156: =IF('00 Aggregatore'!$D156="R",SUMIF('00 Alimenta'!$A:$A,$B156,'00 Alimenta'!E:E),SUMIF('00 Alimenta'!$A:$A,$B156,'00 Alimenta'!E:E)*-1) -> 4184408.7
A157: BC | B157: BA0590 | C157: B.2.A.3.8.A) Servizi sanitari per assistenza specialistica da IRCCS privati e Policlinici privati | D157: C | E157: =IF('00 Aggregatore'!$D157="R",SUMIF('00 Alimenta'!$A:$A,$B157,'00 Alimenta'!D:D),SUMIF('00 Alimenta'!$A:$A,$B157,'00 Alimenta'!D:D)*-1) -> 83336.34 | F157: =IF('00 Aggregatore'!$D157="R",SUMIF('00 Alimenta'!$A:$A,$B157,'00 Alimenta'!E:E),SUMIF('00 Alimenta'!$A:$A,$B157,'00 Alimenta'!E:E)*-1) -> 55662.5
A158: BC | B158: BA0591 | C158: B.2.A.3.8.B) Servizi sanitari per prestazioni di pronto soccorso non seguite da ricovero - da IRCCS privati e Policlinici privati | D158: C | E158: =IF('00 Aggregatore'!$D158="R",SUMIF('00 Alimenta'!$A:$A,$B158,'00 Alimenta'!D:D),SUMIF('00 Alimenta'!$A:$A,$B158,'00 Alimenta'!D:D)*-1) -> 0 | F158: =IF('00 Aggregatore'!$D158="R",SUMIF('00 Alimenta'!$A:$A,$B158,'00 Alimenta'!E:E),SUMIF('00 Alimenta'!$A:$A,$B158,'00 Alimenta'!E:E)*-1) -> 0
A159: BC | B159: BA0600 | C159: B.2.A.3.8.C) Servizi sanitari per assistenza specialistica da Ospedali Classificati privati | D159: C | E159: =IF('00 Aggregatore'!$D159="R",SUMIF('00 Alimenta'!$A:$A,$B159,'00 Alimenta'!D:D),SUMIF('00 Alimenta'!$A:$A,$B159,'00 Alimenta'!D:D)*-1) -> 0 | F159: =IF('00 Aggregatore'!$D159="R",SUMIF('00 Alimenta'!$A:$A,$B159,'00 Alimenta'!E:E),SUMIF('00 Alimenta'!$A:$A,$B159,'00 Alimenta'!E:E)*-1) -> 0
A160: BC | B160: BA0601 | C160: B.2.A.3.8.D) Servizi sanitari per prestazioni di pronto soccorso non seguite da ricovero - da Ospedali Classificati privati | D160: C | E160: =IF('00 Aggregatore'!$D160="R",SUMIF('00 Alimenta'!$A:$A,$B160,'00 Alimenta'!D:D),SUMIF('00 Alimenta'!$A:$A,$B160,'00 Alimenta'!D:D)*-1) -> 0 | F160: =IF('00 Aggregatore'!$D160="R",SUMIF('00 Alimenta'!$A:$A,$B160,'00 Alimenta'!E:E),SUMIF('00 Alimenta'!$A:$A,$B160,'00 Alimenta'!E:E)*-1) -> 0
A161: BC | B161: BA0610 | C161: B.2.A.3.8.E) Servizi sanitari per assistenza specialistica da Case di Cura private | D161: C | E161: =IF('00 Aggregatore'!$D161="R",SUMIF('00 Alimenta'!$A:$A,$B161,'00 Alimenta'!D:D),SUMIF('00 Alimenta'!$A:$A,$B161,'00 Alimenta'!D:D)*-1) -> 5463686.82 | F161: =IF('00 Aggregatore'!$D161="R",SUMIF('00 Alimenta'!$A:$A,$B161,'00 Alimenta'!E:E),SUMIF('00 Alimenta'!$A:$A,$B161,'00 Alimenta'!E:E)*-1) -> 5344557.33
A162: BC | B162: BA0611 | C162: B.2.A.3.8.F) Servizi sanitari per prestazioni di pronto soccorso non seguite da ricovero - da Case di Cura private | D162: C | E162: =IF('00 Aggregatore'!$D162="R",SUMIF('00 Alimenta'!$A:$A,$B162,'00 Alimenta'!D:D),SUMIF('00 Alimenta'!$A:$A,$B162,'00 Alimenta'!D:D)*-1) -> 0 | F162: =IF('00 Aggregatore'!$D162="R",SUMIF('00 Alimenta'!$A:$A,$B162,'00 Alimenta'!E:E),SUMIF('00 Alimenta'!$A:$A,$B162,'00 Alimenta'!E:E)*-1) -> 0
A163: BC | B163: BA0620 | C163: B.2.A.3.8.G) Servizi sanitari per assistenza specialistica da altri privati | D163: C | E163: =IF('00 Aggregatore'!$D163="R",SUMIF('00 Alimenta'!$A:$A,$B163,'00 Alimenta'!D:D),SUMIF('00 Alimenta'!$A:$A,$B163,'00 Alimenta'!D:D)*-1) -> 3338782.85 | F163: =IF('00 Aggregatore'!$D163="R",SUMIF('00 Alimenta'!$A:$A,$B163,'00 Alimenta'!E:E),SUMIF('00 Alimenta'!$A:$A,$B163,'00 Alimenta'!E:E)*-1) -> 3297882.09
A164: BC | B164: BA0621 | C164: B.2.A.3.8.H) Servizi sanitari per prestazioni di pronto soccorso non seguite da ricovero - da altri privati | D164: C | E164: =IF('00 Aggregatore'!$D164="R",SUMIF('00 Alimenta'!$A:$A,$B164,'00 Alimenta'!D:D),SUMIF('00 Alimenta'!$A:$A,$B164,'00 Alimenta'!D:D)*-1) -> 0 | F164: =IF('00 Aggregatore'!$D164="R",SUMIF('00 Alimenta'!$A:$A,$B164,'00 Alimenta'!E:E),SUMIF('00 Alimenta'!$A:$A,$B164,'00 Alimenta'!E:E)*-1) -> 0
A165: BC | B165: BA0630 | C165: B.2.A.3.9) - da privato per cittadini non residenti - Extraregione (mobilità attiva in compensazione) | D165: C | E165: =IF('00 Aggregatore'!$D165="R",SUMIF('00 Alimenta'!$A:$A,$B165,'00 Alimenta'!D:D),SUMIF('00 Alimenta'!$A:$A,$B165,'00 Alimenta'!D:D)*-1) -> 196698.23 | F165: =IF('00 Aggregatore'!$D165="R",SUMIF('00 Alimenta'!$A:$A,$B165,'00 Alimenta'!E:E),SUMIF('00 Alimenta'!$A:$A,$B165,'00 Alimenta'!E:E)*-1) -> 196872.48
A166: BC | B166: BA0631 | C166: B.2.A.3.10) Servizi sanitari per prestazioni di pronto soccorso non seguite da ricovero - da privato per cittadini non residenti - Extraregione (mobilità attiva in compensazione) | D166: C | E166: =IF('00 Aggregatore'!$D166="R",SUMIF('00 Alimenta'!$A:$A,$B166,'00 Alimenta'!D:D),SUMIF('00 Alimenta'!$A:$A,$B166,'00 Alimenta'!D:D)*-1) -> 0 | F166: =IF('00 Aggregatore'!$D166="R",SUMIF('00 Alimenta'!$A:$A,$B166,'00 Alimenta'!E:E),SUMIF('00 Alimenta'!$A:$A,$B166,'00 Alimenta'!E:E)*-1) -> 0
A167: BC | B167: BA0650 | C167: B.2.A.4.1) - da pubblico (Aziende sanitarie pubbliche della Regione) | D167: C | E167: =IF('00 Aggregatore'!$D167="R",SUMIF('00 Alimenta'!$A:$A,$B167,'00 Alimenta'!D:D),SUMIF('00 Alimenta'!$A:$A,$B167,'00 Alimenta'!D:D)*-1) -> 4832965.95 | F167: =IF('00 Aggregatore'!$D167="R",SUMIF('00 Alimenta'!$A:$A,$B167,'00 Alimenta'!E:E),SUMIF('00 Alimenta'!$A:$A,$B167,'00 Alimenta'!E:E)*-1) -> 5168858.88
A168: BC | B168: BA0660 | C168: B.2.A.4.2) - da pubblico (altri soggetti pubbl. della Regione) | D168: C | E168: =IF('00 Aggregatore'!$D168="R",SUMIF('00 Alimenta'!$A:$A,$B168,'00 Alimenta'!D:D),SUMIF('00 Alimenta'!$A:$A,$B168,'00 Alimenta'!D:D)*-1) -> 0 | F168: =IF('00 Aggregatore'!$D168="R",SUMIF('00 Alimenta'!$A:$A,$B168,'00 Alimenta'!E:E),SUMIF('00 Alimenta'!$A:$A,$B168,'00 Alimenta'!E:E)*-1) -> 0
A169: BC | B169: BA0670 | C169: B.2.A.4.3) - da pubblico (Extraregione) non soggetti a compensazione | D169: C | E169: =IF('00 Aggregatore'!$D169="R",SUMIF('00 Alimenta'!$A:$A,$B169,'00 Alimenta'!D:D),SUMIF('00 Alimenta'!$A:$A,$B169,'00 Alimenta'!D:D)*-1) -> 0 | F169: =IF('00 Aggregatore'!$D169="R",SUMIF('00 Alimenta'!$A:$A,$B169,'00 Alimenta'!E:E),SUMIF('00 Alimenta'!$A:$A,$B169,'00 Alimenta'!E:E)*-1) -> 0
A170: BC | B170: BA0680 | C170: B.2.A.4.4) - da privato (intraregionale) | D170: C | E170: =IF('00 Aggregatore'!$D170="R",SUMIF('00 Alimenta'!$A:$A,$B170,'00 Alimenta'!D:D),SUMIF('00 Alimenta'!$A:$A,$B170,'00 Alimenta'!D:D)*-1) -> 14612451.73 | F170: =IF('00 Aggregatore'!$D170="R",SUMIF('00 Alimenta'!$A:$A,$B170,'00 Alimenta'!E:E),SUMIF('00 Alimenta'!$A:$A,$B170,'00 Alimenta'!E:E)*-1) -> 14522765.17
A171: BC | B171: BA0690 | C171: B.2.A.4.5) - da privato (extraregionale) | D171: C | E171: =IF('00 Aggregatore'!$D171="R",SUMIF('00 Alimenta'!$A:$A,$B171,'00 Alimenta'!D:D),SUMIF('00 Alimenta'!$A:$A,$B171,'00 Alimenta'!D:D)*-1) -> 545484.88 | F171: =IF('00 Aggregatore'!$D171="R",SUMIF('00 Alimenta'!$A:$A,$B171,'00 Alimenta'!E:E),SUMIF('00 Alimenta'!$A:$A,$B171,'00 Alimenta'!E:E)*-1) -> 583099.84
A172: BC | B172: BA0710 | C172: B.2.A.5.1) - da pubblico (Aziende sanitarie pubbliche della Regione) | D172: C | E172: =IF('00 Aggregatore'!$D172="R",SUMIF('00 Alimenta'!$A:$A,$B172,'00 Alimenta'!D:D),SUMIF('00 Alimenta'!$A:$A,$B172,'00 Alimenta'!D:D)*-1) -> 0 | F172: =IF('00 Aggregatore'!$D172="R",SUMIF('00 Alimenta'!$A:$A,$B172,'00 Alimenta'!E:E),SUMIF('00 Alimenta'!$A:$A,$B172,'00 Alimenta'!E:E)*-1) -> 0
A173: BC | B173: BA0720 | C173: B.2.A.5.2) - da pubblico (altri soggetti pubbl. della Regione) | D173: C | E173: =IF('00 Aggregatore'!$D173="R",SUMIF('00 Alimenta'!$A:$A,$B173,'00 Alimenta'!D:D),SUMIF('00 Alimenta'!$A:$A,$B173,'00 Alimenta'!D:D)*-1) -> 0 | F173: =IF('00 Aggregatore'!$D173="R",SUMIF('00 Alimenta'!$A:$A,$B173,'00 Alimenta'!E:E),SUMIF('00 Alimenta'!$A:$A,$B173,'00 Alimenta'!E:E)*-1) -> 0
A174: BC | B174: BA0730 | C174: B.2.A.5.3) - da pubblico (Extraregione) | D174: C | E174: =IF('00 Aggregatore'!$D174="R",SUMIF('00 Alimenta'!$A:$A,$B174,'00 Alimenta'!D:D),SUMIF('00 Alimenta'!$A:$A,$B174,'00 Alimenta'!D:D)*-1) -> 0 | F174: =IF('00 Aggregatore'!$D174="R",SUMIF('00 Alimenta'!$A:$A,$B174,'00 Alimenta'!E:E),SUMIF('00 Alimenta'!$A:$A,$B174,'00 Alimenta'!E:E)*-1) -> 0
A175: BC | B175: BA0740 | C175: B.2.A.5.4) - da privato | D175: C | E175: =IF('00 Aggregatore'!$D175="R",SUMIF('00 Alimenta'!$A:$A,$B175,'00 Alimenta'!D:D),SUMIF('00 Alimenta'!$A:$A,$B175,'00 Alimenta'!D:D)*-1) -> 1802068.84 | F175: =IF('00 Aggregatore'!$D175="R",SUMIF('00 Alimenta'!$A:$A,$B175,'00 Alimenta'!E:E),SUMIF('00 Alimenta'!$A:$A,$B175,'00 Alimenta'!E:E)*-1) -> 1733047.08
A176: BC | B176: BA0760 | C176: B.2.A.6.1) - da pubblico (Aziende sanitarie pubbliche della Regione) | D176: C | E176: =IF('00 Aggregatore'!$D176="R",SUMIF('00 Alimenta'!$A:$A,$B176,'00 Alimenta'!D:D),SUMIF('00 Alimenta'!$A:$A,$B176,'00 Alimenta'!D:D)*-1) -> 0 | F176: =IF('00 Aggregatore'!$D176="R",SUMIF('00 Alimenta'!$A:$A,$B176,'00 Alimenta'!E:E),SUMIF('00 Alimenta'!$A:$A,$B176,'00 Alimenta'!E:E)*-1) -> 0
A177: BC | B177: BA0770 | C177: B.2.A.6.2) - da pubblico (altri soggetti pubbl. della Regione) | D177: C | E177: =IF('00 Aggregatore'!$D177="R",SUMIF('00 Alimenta'!$A:$A,$B177,'00 Alimenta'!D:D),SUMIF('00 Alimenta'!$A:$A,$B177,'00 Alimenta'!D:D)*-1) -> 0 | F177: =IF('00 Aggregatore'!$D177="R",SUMIF('00 Alimenta'!$A:$A,$B177,'00 Alimenta'!E:E),SUMIF('00 Alimenta'!$A:$A,$B177,'00 Alimenta'!E:E)*-1) -> 0
A178: BC | B178: BA0780 | C178: B.2.A.6.3) - da pubblico (Extraregione) | D178: C | E178: =IF('00 Aggregatore'!$D178="R",SUMIF('00 Alimenta'!$A:$A,$B178,'00 Alimenta'!D:D),SUMIF('00 Alimenta'!$A:$A,$B178,'00 Alimenta'!D:D)*-1) -> 0 | F178: =IF('00 Aggregatore'!$D178="R",SUMIF('00 Alimenta'!$A:$A,$B178,'00 Alimenta'!E:E),SUMIF('00 Alimenta'!$A:$A,$B178,'00 Alimenta'!E:E)*-1) -> 0
A179: BC | B179: BA0790 | C179: B.2.A.6.4) - da privato | D179: C | E179: =IF('00 Aggregatore'!$D179="R",SUMIF('00 Alimenta'!$A:$A,$B179,'00 Alimenta'!D:D),SUMIF('00 Alimenta'!$A:$A,$B179,'00 Alimenta'!D:D)*-1) -> 6303229.01 | F179: =IF('00 Aggregatore'!$D179="R",SUMIF('00 Alimenta'!$A:$A,$B179,'00 Alimenta'!E:E),SUMIF('00 Alimenta'!$A:$A,$B179,'00 Alimenta'!E:E)*-1) -> 6846095.71
A180: BC | B180: BA0810 | C180: B.2.A.7.1) - da pubblico (Aziende sanitarie pubbliche della Regione) | D180: C | E180: =IF('00 Aggregatore'!$D180="R",SUMIF('00 Alimenta'!$A:$A,$B180,'00 Alimenta'!D:D),SUMIF('00 Alimenta'!$A:$A,$B180,'00 Alimenta'!D:D)*-1) -> 26481532.39 | F180: =IF('00 Aggregatore'!$D180="R",SUMIF('00 Alimenta'!$A:$A,$B180,'00 Alimenta'!E:E),SUMIF('00 Alimenta'!$A:$A,$B180,'00 Alimenta'!E:E)*-1) -> 28052232.69
A181: BC | B181: BA0820 | C181: B.2.A.7.2) - da pubblico (altri soggetti pubbl. della Regione) | D181: C | E181: =IF('00 Aggregatore'!$D181="R",SUMIF('00 Alimenta'!$A:$A,$B181,'00 Alimenta'!D:D),SUMIF('00 Alimenta'!$A:$A,$B181,'00 Alimenta'!D:D)*-1) -> 0 | F181: =IF('00 Aggregatore'!$D181="R",SUMIF('00 Alimenta'!$A:$A,$B181,'00 Alimenta'!E:E),SUMIF('00 Alimenta'!$A:$A,$B181,'00 Alimenta'!E:E)*-1) -> 0
A182: BC | B182: BA0830 | C182: B.2.A.7.3) - da pubblico (Extraregione) | D182: C | E182: =IF('00 Aggregatore'!$D182="R",SUMIF('00 Alimenta'!$A:$A,$B182,'00 Alimenta'!D:D),SUMIF('00 Alimenta'!$A:$A,$B182,'00 Alimenta'!D:D)*-1) -> 24057993.46 | F182: =IF('00 Aggregatore'!$D182="R",SUMIF('00 Alimenta'!$A:$A,$B182,'00 Alimenta'!E:E),SUMIF('00 Alimenta'!$A:$A,$B182,'00 Alimenta'!E:E)*-1) -> 30364599.56
A183: BC | B183: BA0850 | C183: B.2.A.7.4.A) Servizi sanitari per assistenza ospedaliera da IRCCS privati e Policlinici privati | D183: C | E183: =IF('00 Aggregatore'!$D183="R",SUMIF('00 Alimenta'!$A:$A,$B183,'00 Alimenta'!D:D),SUMIF('00 Alimenta'!$A:$A,$B183,'00 Alimenta'!D:D)*-1) -> 0 | F183: =IF('00 Aggregatore'!$D183="R",SUMIF('00 Alimenta'!$A:$A,$B183,'00 Alimenta'!E:E),SUMIF('00 Alimenta'!$A:$A,$B183,'00 Alimenta'!E:E)*-1) -> 0
A184: BC | B184: BA0860 | C184: B.2.A.7.4.B) Servizi sanitari per assistenza ospedaliera da Ospedali Classificati privati | D184: C | E184: =IF('00 Aggregatore'!$D184="R",SUMIF('00 Alimenta'!$A:$A,$B184,'00 Alimenta'!D:D),SUMIF('00 Alimenta'!$A:$A,$B184,'00 Alimenta'!D:D)*-1) -> 0 | F184: =IF('00 Aggregatore'!$D184="R",SUMIF('00 Alimenta'!$A:$A,$B184,'00 Alimenta'!E:E),SUMIF('00 Alimenta'!$A:$A,$B184,'00 Alimenta'!E:E)*-1) -> 0
A185: BC | B185: BA0870 | C185: B.2.A.7.4.C) Servizi sanitari per assistenza ospedaliera da Case di Cura private | D185: C | E185: =IF('00 Aggregatore'!$D185="R",SUMIF('00 Alimenta'!$A:$A,$B185,'00 Alimenta'!D:D),SUMIF('00 Alimenta'!$A:$A,$B185,'00 Alimenta'!D:D)*-1) -> 62664028.38 | F185: =IF('00 Aggregatore'!$D185="R",SUMIF('00 Alimenta'!$A:$A,$B185,'00 Alimenta'!E:E),SUMIF('00 Alimenta'!$A:$A,$B185,'00 Alimenta'!E:E)*-1) -> 64592865.92
A186: BC | B186: BA0880 | C186: B.2.A.7.4.D) Servizi sanitari per assistenza ospedaliera da altri privati | D186: C | E186: =IF('00 Aggregatore'!$D186="R",SUMIF('00 Alimenta'!$A:$A,$B186,'00 Alimenta'!D:D),SUMIF('00 Alimenta'!$A:$A,$B186,'00 Alimenta'!D:D)*-1) -> 0 | F186: =IF('00 Aggregatore'!$D186="R",SUMIF('00 Alimenta'!$A:$A,$B186,'00 Alimenta'!E:E),SUMIF('00 Alimenta'!$A:$A,$B186,'00 Alimenta'!E:E)*-1) -> 0
A187: BC | B187: BA0890 | C187: B.2.A.7.5) - da privato per cittadini non residenti - Extraregione (mobilità attiva in compensazione) | D187: C | E187: =IF('00 Aggregatore'!$D187="R",SUMIF('00 Alimenta'!$A:$A,$B187,'00 Alimenta'!D:D),SUMIF('00 Alimenta'!$A:$A,$B187,'00 Alimenta'!D:D)*-1) -> 10285883.14 | F187: =IF('00 Aggregatore'!$D187="R",SUMIF('00 Alimenta'!$A:$A,$B187,'00 Alimenta'!E:E),SUMIF('00 Alimenta'!$A:$A,$B187,'00 Alimenta'!E:E)*-1) -> 8426930.51
A188: BC | B188: BA0910 | C188: B.2.A.8.1) - da pubblico (Aziende sanitarie pubbliche della Regione) | D188: C | E188: =IF('00 Aggregatore'!$D188="R",SUMIF('00 Alimenta'!$A:$A,$B188,'00 Alimenta'!D:D),SUMIF('00 Alimenta'!$A:$A,$B188,'00 Alimenta'!D:D)*-1) -> 1551575.5 | F188: =IF('00 Aggregatore'!$D188="R",SUMIF('00 Alimenta'!$A:$A,$B188,'00 Alimenta'!E:E),SUMIF('00 Alimenta'!$A:$A,$B188,'00 Alimenta'!E:E)*-1) -> 1735685.3
A189: BC | B189: BA0920 | C189: B.2.A.8.2) - da pubblico (altri soggetti pubbl. della Regione) | D189: C | E189: =IF('00 Aggregatore'!$D189="R",SUMIF('00 Alimenta'!$A:$A,$B189,'00 Alimenta'!D:D),SUMIF('00 Alimenta'!$A:$A,$B189,'00 Alimenta'!D:D)*-1) -> 0 | F189: =IF('00 Aggregatore'!$D189="R",SUMIF('00 Alimenta'!$A:$A,$B189,'00 Alimenta'!E:E),SUMIF('00 Alimenta'!$A:$A,$B189,'00 Alimenta'!E:E)*-1) -> 0
A190: BC | B190: BA0930 | C190: B.2.A.8.3) - da pubblico (Extraregione) - non soggette a compensazione | D190: C | E190: =IF('00 Aggregatore'!$D190="R",SUMIF('00 Alimenta'!$A:$A,$B190,'00 Alimenta'!D:D),SUMIF('00 Alimenta'!$A:$A,$B190,'00 Alimenta'!D:D)*-1) -> 81781.6 | F190: =IF('00 Aggregatore'!$D190="R",SUMIF('00 Alimenta'!$A:$A,$B190,'00 Alimenta'!E:E),SUMIF('00 Alimenta'!$A:$A,$B190,'00 Alimenta'!E:E)*-1) -> 60576
A191: BC | B191: BA0940 | C191: B.2.A.8.4) - da privato (intraregionale) | D191: C | E191: =IF('00 Aggregatore'!$D191="R",SUMIF('00 Alimenta'!$A:$A,$B191,'00 Alimenta'!D:D),SUMIF('00 Alimenta'!$A:$A,$B191,'00 Alimenta'!D:D)*-1) -> 9798519.84 | F191: =IF('00 Aggregatore'!$D191="R",SUMIF('00 Alimenta'!$A:$A,$B191,'00 Alimenta'!E:E),SUMIF('00 Alimenta'!$A:$A,$B191,'00 Alimenta'!E:E)*-1) -> 9380591.68
A192: BC | B192: BA0950 | C192: B.2.A.8.5) - da privato (extraregionale) | D192: C | E192: =IF('00 Aggregatore'!$D192="R",SUMIF('00 Alimenta'!$A:$A,$B192,'00 Alimenta'!D:D),SUMIF('00 Alimenta'!$A:$A,$B192,'00 Alimenta'!D:D)*-1) -> 1589885.46 | F192: =IF('00 Aggregatore'!$D192="R",SUMIF('00 Alimenta'!$A:$A,$B192,'00 Alimenta'!E:E),SUMIF('00 Alimenta'!$A:$A,$B192,'00 Alimenta'!E:E)*-1) -> 1665426.12
A193: BC | B193: BA0970 | C193: B.2.A.9.1) - da pubblico (Aziende sanitarie pubbliche della Regione) - Mobilità intraregionale | D193: C | E193: =IF('00 Aggregatore'!$D193="R",SUMIF('00 Alimenta'!$A:$A,$B193,'00 Alimenta'!D:D),SUMIF('00 Alimenta'!$A:$A,$B193,'00 Alimenta'!D:D)*-1) -> 4464112.37 | F193: =IF('00 Aggregatore'!$D193="R",SUMIF('00 Alimenta'!$A:$A,$B193,'00 Alimenta'!E:E),SUMIF('00 Alimenta'!$A:$A,$B193,'00 Alimenta'!E:E)*-1) -> 4858115.13
A194: BC | B194: BA0980 | C194: B.2.A.9.2) - da pubblico (altri soggetti pubbl. della Regione) | D194: C | E194: =IF('00 Aggregatore'!$D194="R",SUMIF('00 Alimenta'!$A:$A,$B194,'00 Alimenta'!D:D),SUMIF('00 Alimenta'!$A:$A,$B194,'00 Alimenta'!D:D)*-1) -> 0 | F194: =IF('00 Aggregatore'!$D194="R",SUMIF('00 Alimenta'!$A:$A,$B194,'00 Alimenta'!E:E),SUMIF('00 Alimenta'!$A:$A,$B194,'00 Alimenta'!E:E)*-1) -> 0
A195: BC | B195: BA0990 | C195: B.2.A.9.3) - da pubblico (Extraregione) | D195: C | E195: =IF('00 Aggregatore'!$D195="R",SUMIF('00 Alimenta'!$A:$A,$B195,'00 Alimenta'!D:D),SUMIF('00 Alimenta'!$A:$A,$B195,'00 Alimenta'!D:D)*-1) -> 2195879.04 | F195: =IF('00 Aggregatore'!$D195="R",SUMIF('00 Alimenta'!$A:$A,$B195,'00 Alimenta'!E:E),SUMIF('00 Alimenta'!$A:$A,$B195,'00 Alimenta'!E:E)*-1) -> 1901052.91
A196: BC | B196: BA1000 | C196: B.2.A.9.4) - da privato (intraregionale) | D196: C | E196: =IF('00 Aggregatore'!$D196="R",SUMIF('00 Alimenta'!$A:$A,$B196,'00 Alimenta'!D:D),SUMIF('00 Alimenta'!$A:$A,$B196,'00 Alimenta'!D:D)*-1) -> 432985.28 | F196: =IF('00 Aggregatore'!$D196="R",SUMIF('00 Alimenta'!$A:$A,$B196,'00 Alimenta'!E:E),SUMIF('00 Alimenta'!$A:$A,$B196,'00 Alimenta'!E:E)*-1) -> 1712231.06
A197: BC | B197: BA1010 | C197: B.2.A.9.5) - da privato (extraregionale) | D197: C | E197: =IF('00 Aggregatore'!$D197="R",SUMIF('00 Alimenta'!$A:$A,$B197,'00 Alimenta'!D:D),SUMIF('00 Alimenta'!$A:$A,$B197,'00 Alimenta'!D:D)*-1) -> 0 | F197: =IF('00 Aggregatore'!$D197="R",SUMIF('00 Alimenta'!$A:$A,$B197,'00 Alimenta'!E:E),SUMIF('00 Alimenta'!$A:$A,$B197,'00 Alimenta'!E:E)*-1) -> 0
A198: =LEFT(B198,1)&D198 -> BC | B198: BA1020 | C198: B.2.A.9.6) - da privato per cittadini non residenti - Extraregione (mobilità attiva in compensazione) | D198: C | E198: =IF('00 Aggregatore'!$D198="R",SUMIF('00 Alimenta'!$A:$A,$B198,'00 Alimenta'!D:D),SUMIF('00 Alimenta'!$A:$A,$B198,'00 Alimenta'!D:D)*-1) -> 0 | F198: =IF('00 Aggregatore'!$D198="R",SUMIF('00 Alimenta'!$A:$A,$B198,'00 Alimenta'!E:E),SUMIF('00 Alimenta'!$A:$A,$B198,'00 Alimenta'!E:E)*-1) -> 0
A199: BC | B199: BA1040 | C199: B.2.A.10.1) - da pubblico (Aziende sanitarie pubbliche della Regione) - Mobilità intraregionale | D199: C | E199: =IF('00 Aggregatore'!$D199="R",SUMIF('00 Alimenta'!$A:$A,$B199,'00 Alimenta'!D:D),SUMIF('00 Alimenta'!$A:$A,$B199,'00 Alimenta'!D:D)*-1) -> 0 | F199: =IF('00 Aggregatore'!$D199="R",SUMIF('00 Alimenta'!$A:$A,$B199,'00 Alimenta'!E:E),SUMIF('00 Alimenta'!$A:$A,$B199,'00 Alimenta'!E:E)*-1) -> 46.2
A200: BC | B200: BA1050 | C200: B.2.A.10.2) - da pubblico (altri soggetti pubbl. della Regione) | D200: C | E200: =IF('00 Aggregatore'!$D200="R",SUMIF('00 Alimenta'!$A:$A,$B200,'00 Alimenta'!D:D),SUMIF('00 Alimenta'!$A:$A,$B200,'00 Alimenta'!D:D)*-1) -> 0 | F200: =IF('00 Aggregatore'!$D200="R",SUMIF('00 Alimenta'!$A:$A,$B200,'00 Alimenta'!E:E),SUMIF('00 Alimenta'!$A:$A,$B200,'00 Alimenta'!E:E)*-1) -> 0
A201: BC | B201: BA1060 | C201: B.2.A.10.3) - da pubblico (Extraregione) | D201: C | E201: =IF('00 Aggregatore'!$D201="R",SUMIF('00 Alimenta'!$A:$A,$B201,'00 Alimenta'!D:D),SUMIF('00 Alimenta'!$A:$A,$B201,'00 Alimenta'!D:D)*-1) -> 95302.31 | F201: =IF('00 Aggregatore'!$D201="R",SUMIF('00 Alimenta'!$A:$A,$B201,'00 Alimenta'!E:E),SUMIF('00 Alimenta'!$A:$A,$B201,'00 Alimenta'!E:E)*-1) -> 106826.2
A202: BC | B202: BA1070 | C202: B.2.A.10.4) - da privato | D202: C | E202: =IF('00 Aggregatore'!$D202="R",SUMIF('00 Alimenta'!$A:$A,$B202,'00 Alimenta'!D:D),SUMIF('00 Alimenta'!$A:$A,$B202,'00 Alimenta'!D:D)*-1) -> 1821580.51 | F202: =IF('00 Aggregatore'!$D202="R",SUMIF('00 Alimenta'!$A:$A,$B202,'00 Alimenta'!E:E),SUMIF('00 Alimenta'!$A:$A,$B202,'00 Alimenta'!E:E)*-1) -> 1401125.08
... 240 more rows

Sheet 00 CE
A2: AGG | B2: CODICE | C2: VOCE MODELLO CE | D2: SUM | F2: ='00 Aggregatore'!E4 -> Esercizio 2018 | G2: ='00 Aggregatore'!F4 -> Esercizio 2019
C3: A) Valore della produzione
B4: AA0010 | C4: A.1) Contributi in c/esercizio | D4: S | E4: AA0010 | F4: =(F5+F14+F29+F34) -> 569823505.8 | G4: =(G5+G14+G29+G34) -> 573160588.7
B5: AA0020 | C5: A.1.A) Contributi da Regione o Prov. Aut. per quota F.S. regionale | D5: S | E5: AA0020 | F5: =+F6+F13 -> 569244565.9 | G5: =+G6+G13 -> 571940770.6
B6: AA0030 | C6: A.1.A.1) da Regione o Prov. Aut. per quota F.S. regionale indistinto | D6: S | E6: AA0030 | F6: =+F7+F8+F9+F12 -> 555479764 | G6: =+G7+G8+G9+G12 -> 559016190.7
B7: AA0031 | C7: A.1.A.1.1) Finanziamento indistinto | E7: AA0031 | F7: =SUMIF('00 Aggregatore'!$B:$B,$E7,'00 Aggregatore'!E:E) -> 555479764 | G7: =SUMIF('00 Aggregatore'!$B:$B,$E7,'00 Aggregatore'!F:F) -> 557753921.8
B8: AA0032 | C8: A.1.A.1.2) Finanziamento indistinto finalizzato da Regione | E8: AA0032 | F8: =SUMIF('00 Aggregatore'!$B:$B,$E8,'00 Aggregatore'!E:E) -> 0 | G8: =SUMIF('00 Aggregatore'!$B:$B,$E8,'00 Aggregatore'!F:F) -> 1262268.83
B9: AA0033 | C9: A.1.A.1.3) Funzioni | D9: S | E9: AA0033 | F9: =+F10+F11 -> 0 | G9: =+G10+G11 -> 0
B10: AA0034 | C10: A.1.A.1.3.A) Funzioni - Pronto Soccorso | E10: AA0034 | F10: =SUMIF('00 Aggregatore'!$B:$B,$E10,'00 Aggregatore'!E:E) -> 0 | G10: =SUMIF('00 Aggregatore'!$B:$B,$E10,'00 Aggregatore'!F:F) -> 0
B11: AA0035 | C11: A.1.A.1.3.B) Funzioni - Altro | E11: AA0035 | F11: =SUMIF('00 Aggregatore'!$B:$B,$E11,'00 Aggregatore'!E:E) -> 0 | G11: =SUMIF('00 Aggregatore'!$B:$B,$E11,'00 Aggregatore'!F:F) -> 0
B12: AA0036 | C12: A.1.A.1.4) Quota finalizzata per il Piano aziendale di cui all'art. 1, comma 528, L. 208/2015 | E12: AA0036 | F12: =SUMIF('00 Aggregatore'!$B:$B,$E12,'00 Aggregatore'!E:E) -> 0 | G12: =SUMIF('00 Aggregatore'!$B:$B,$E12,'00 Aggregatore'!F:F) -> 0
B13: AA0040 | C13: A.1.A.2) da Regione o Prov. Aut. per quota F.S. regionale vincolato | E13: AA0040 | F13: =SUMIF('00 Aggregatore'!$B:$B,$E13,'00 Aggregatore'!E:E) -> 13764801.84 | G13: =SUMIF('00 Aggregatore'!$B:$B,$E13,'00 Aggregatore'!F:F) -> 12924579.97
B14: AA0050 | C14: A.1.B) Contributi c/esercizio (extra fondo) | D14: S | E14: AA0050 | F14: =+F15+F20+F23 -> 578939.97 | G14: =+G15+G20+G23 -> 1219818.04
B15: AA0060 | C15: A.1.B.1) da Regione o Prov. Aut. (extra fondo) | D15: S | E15: AA0060 | F15: =+F16+F17+F18+F19 -> 410404.72 | G15: =+G16+G17+G18+G19 -> 1181117.45
B16: AA0070 | C16: A.1.B.1.1) Contributi da Regione o Prov. Aut. (extra fondo) vincolati | E16: AA0070 | F16: =SUMIF('00 Aggregatore'!$B:$B,$E16,'00 Aggregatore'!E:E) -> 410404.72 | G16: =SUMIF('00 Aggregatore'!$B:$B,$E16,'00 Aggregatore'!F:F) -> 964199.29
B17: AA0080 | C17: A.1.B.1.2) Contributi da Regione o Prov. Aut. (extra fondo) - Risorse aggiuntive da bilancio regionale a titolo di copertura LEA | E17: AA0080 | F17: =SUMIF('00 Aggregatore'!$B:$B,$E17,'00 Aggregatore'!E:E) -> 0 | G17: =SUMIF('00 Aggregatore'!$B:$B,$E17,'00 Aggregatore'!F:F) -> 0
B18: AA0090 | C18: A.1.B.1.3) Contributi da Regione o Prov. Aut. (extra fondo) - Risorse aggiuntive da bilancio regionale a titolo di copertura extra LEA | E18: AA0090 | F18: =SUMIF('00 Aggregatore'!$B:$B,$E18,'00 Aggregatore'!E:E) -> 0 | G18: =SUMIF('00 Aggregatore'!$B:$B,$E18,'00 Aggregatore'!F:F) -> 0
B19: AA0100 | C19: A.1.B.1.4) Contributi da Regione o Prov. Aut. (extra fondo) - Altro | E19: AA0100 | F19: =SUMIF('00 Aggregatore'!$B:$B,$E19,'00 Aggregatore'!E:E) -> 0 | G19: =SUMIF('00 Aggregatore'!$B:$B,$E19,'00 Aggregatore'!F:F) -> 216918.16
B20: AA0110 | C20: A.1.B.2) Contributi da Aziende sanitarie pubbliche della Regione o Prov. Aut. (extra fondo) | D20: S | E20: AA0110 | F20: =+F21+F22 -> 0 | G20: =+G21+G22 -> 0
B21: AA0120 | C21: A.1.B.2.1) Contributi da Aziende sanitarie pubbliche della Regione o Prov. Aut. (extra fondo) vincolati | E21: AA0120 | F21: =SUMIF('00 Aggregatore'!$B:$B,$E21,'00 Aggregatore'!E:E) -> 0 | G21: =SUMIF('00 Aggregatore'!$B:$B,$E21,'00 Aggregatore'!F:F) -> 0
B22: AA0130 | C22: A.1.B.2.2) Contributi da Aziende sanitarie pubbliche della Regione o Prov. Aut. (extra fondo) altro | E22: AA0130 | F22: =SUMIF('00 Aggregatore'!$B:$B,$E22,'00 Aggregatore'!E:E) -> 0 | G22: =SUMIF('00 Aggregatore'!$B:$B,$E22,'00 Aggregatore'!F:F) -> 0
B23: AA0140 | C23: A.1.B.3) Contributi da Ministero della Salute e da altri soggetti pubblici (extra fondo) | D23: S | E23: AA0140 | F23: =+F24+F25+F26+F27+F28 -> 168535.25 | G23: =+G24+G25+G26+G27+G28 -> 38700.59
B24: AA0141 | C24: A.1.B.3.1) Contributi da Ministero della Salute (extra fondo) | E24: AA0141 | F24: =SUMIF('00 Aggregatore'!$B:$B,$E24,'00 Aggregatore'!E:E) -> 0 | G24: =SUMIF('00 Aggregatore'!$B:$B,$E24,'00 Aggregatore'!F:F) -> 0
B25: AA0150 | C25: A.1.B.3.2) Contributi da altri soggetti pubblici (extra fondo) vincolati | E25: AA0150 | F25: =SUMIF('00 Aggregatore'!$B:$B,$E25,'00 Aggregatore'!E:E) -> 168535.25 | G25: =SUMIF('00 Aggregatore'!$B:$B,$E25,'00 Aggregatore'!F:F) -> 38700.59
B26: AA0160 | C26: A.1.B.3.3) Contributi da altri soggetti pubblici (extra fondo) L. 210/92 | E26: AA0160 | F26: =SUMIF('00 Aggregatore'!$B:$B,$E26,'00 Aggregatore'!E:E) -> 0 | G26: =SUMIF('00 Aggregatore'!$B:$B,$E26,'00 Aggregatore'!F:F) -> 0
B27: AA0170 | C27: A.1.B.3.4) Contributi da altri soggetti pubblici (extra fondo) altro | E27: AA0170 | F27: =SUMIF('00 Aggregatore'!$B:$B,$E27,'00 Aggregatore'!E:E) -> 0 | G27: =SUMIF('00 Aggregatore'!$B:$B,$E27,'00 Aggregatore'!F:F) -> 0
B28: AA0171 | C28: A.1.B.3.5) Contibuti da altri soggetti pubblici (extra fondo) - in attuazione dell’art.79, comma 1 sexies lettera c), del D.L. 112/2008, convertito con legge 133/2008 e della legge 23 dicembre 2009 n. 191. | E28: AA0171 | F28: =SUMIF('00 Aggregatore'!$B:$B,$E28,'00 Aggregatore'!E:E) -> 0 | G28: =SUMIF('00 Aggregatore'!$B:$B,$E28,'00 Aggregatore'!F:F) -> 0
B29: AA0180 | C29: A.1.C) Contributi c/esercizio per ricerca | D29: S | E29: AA0180 | F29: =+F30+F31+F32+F33 -> 0 | G29: =+G30+G31+G32+G33 -> 0
B30: AA0190 | C30: A.1.C.1) Contributi da Ministero della Salute per ricerca corrente | E30: AA0190 | F30: =SUMIF('00 Aggregatore'!$B:$B,$E30,'00 Aggregatore'!E:E) -> 0 | G30: =SUMIF('00 Aggregatore'!$B:$B,$E30,'00 Aggregatore'!F:F) -> 0
B31: AA0200 | C31: A.1.C.2) Contributi da Ministero della Salute per ricerca finalizzata | E31: AA0200 | F31: =SUMIF('00 Aggregatore'!$B:$B,$E31,'00 Aggregatore'!E:E) -> 0 | G31: =SUMIF('00 Aggregatore'!$B:$B,$E31,'00 Aggregatore'!F:F) -> 0
B32: AA0210 | C32: A.1.C.3) Contributi da Regione ed altri soggetti pubblici per ricerca | E32: AA0210 | F32: =SUMIF('00 Aggregatore'!$B:$B,$E32,'00 Aggregatore'!E:E) -> 0 | G32: =SUMIF('00 Aggregatore'!$B:$B,$E32,'00 Aggregatore'!F:F) -> 0
B33: AA0220 | C33: A.1.C.4) Contributi da privati per ricerca | E33: AA0220 | F33: =SUMIF('00 Aggregatore'!$B:$B,$E33,'00 Aggregatore'!E:E) -> 0 | G33: =SUMIF('00 Aggregatore'!$B:$B,$E33,'00 Aggregatore'!F:F) -> 0
B34: AA0230 | C34: A.1.D) Contributi c/esercizio da privati | E34: AA0230 | F34: =SUMIF('00 Aggregatore'!$B:$B,$E34,'00 Aggregatore'!E:E) -> 0 | G34: =SUMIF('00 Aggregatore'!$B:$B,$E34,'00 Aggregatore'!F:F) -> 0
B35: AA0240 | C35: A.2) Rettifica contributi c/esercizio per destinazione ad investimenti | D35: S | E35: AA0240 | F35: =+F36+F37 -> -4347846.81 | G35: =+G36+G37 -> -3379701.26
B36: AA0250 | C36: A.2.A) Rettifica contributi in c/esercizio per destinazione ad investimenti - da Regione o Prov. Aut. per quota F.S. regionale | E36: AA0250 | F36: =SUMIF('00 Aggregatore'!$B:$B,$E36,'00 Aggregatore'!E:E) -> -4347846.81 | G36: =SUMIF('00 Aggregatore'!$B:$B,$E36,'00 Aggregatore'!F:F) -> -3379701.26
B37: AA0260 | C37: A.2.B) Rettifica contributi in c/esercizio per destinazione ad investimenti - altri contributi | E37: AA0260 | F37: =SUMIF('00 Aggregatore'!$B:$B,$E37,'00 Aggregatore'!E:E) -> 0 | G37: =SUMIF('00 Aggregatore'!$B:$B,$E37,'00 Aggregatore'!F:F) -> 0
B38: AA0270 | C38: A.3) Utilizzo fondi per quote inutilizzate contributi finalizzati e vincolati di esercizi precedenti | D38: S | E38: AA0270 | F38: =+F39+F40+F41+F42+F43 -> 8070784.32 | G38: =+G39+G40+G41+G42+G43 -> 17786604.38
B39: AA0271 | C39: A.3.A) Utilizzo fondi per quote inutilizzate contributi di esercizi precedenti da Regione o Prov. Aut. per quota F.S. regionale indistinto finalizzato | E39: AA0271 | F39: =SUMIF('00 Aggregatore'!$B:$B,$E39,'00 Aggregatore'!E:E) -> 0 | G39: =SUMIF('00 Aggregatore'!$B:$B,$E39,'00 Aggregatore'!F:F) -> 0
B40: AA0280 | C40: A.3.B) Utilizzo fondi per quote inutilizzate contributi di esercizi precedenti da Regione o Prov. Aut. per quota F.S. regionale vincolato | E40: AA0280 | F40: =SUMIF('00 Aggregatore'!$B:$B,$E40,'00 Aggregatore'!E:E) -> 8070784.32 | G40: =SUMIF('00 Aggregatore'!$B:$B,$E40,'00 Aggregatore'!F:F) -> 17544374.61
B41: AA0290 | C41: A.3.C) Utilizzo fondi per quote inutilizzate contributi di esercizi precedenti da soggetti pubblici (extra fondo) vincolati | E41: AA0290 | F41: =SUMIF('00 Aggregatore'!$B:$B,$E41,'00 Aggregatore'!E:E) -> 0 | G41: =SUMIF('00 Aggregatore'!$B:$B,$E41,'00 Aggregatore'!F:F) -> 242229.77
B42: AA0300 | C42: A.3.D) Utilizzo fondi per quote inutilizzate contributi di esercizi precedenti per ricerca | E42: AA0300 | F42: =SUMIF('00 Aggregatore'!$B:$B,$E42,'00 Aggregatore'!E:E) -> 0 | G42: =SUMIF('00 Aggregatore'!$B:$B,$E42,'00 Aggregatore'!F:F) -> 0
B43: AA0310 | C43: A.3.E) Utilizzo fondi per quote inutilizzate contributi vincolati di esercizi precedenti da privati | E43: AA0310 | F43: =SUMIF('00 Aggregatore'!$B:$B,$E43,'00 Aggregatore'!E:E) -> 0 | G43: =SUMIF('00 Aggregatore'!$B:$B,$E43,'00 Aggregatore'!F:F) -> 0
B44: AA0320 | C44: A.4) Ricavi per prestazioni sanitarie e sociosanitarie a rilevanza sanitaria | D44: S | E44: AA0320 | F44: =+F45+F84+F90+F91 -> 130750492 | G44: =+G45+G84+G90+G91 -> 136688020.5
B45: AA0330 | C45: A.4.A) Ricavi per prestazioni sanitarie e sociosanitarie a rilevanza sanitaria erogate a soggetti pubblici | D45: S | E45: AA0330 | F45: =+F46+F62+F63 -> 112404019.1 | G45: =+G46+G62+G63 -> 120511919.9
B46: AA0340 | C46: A.4.A.1) Ricavi per prestaz. sanitarie e sociosanitarie a rilevanza sanitaria erogate ad Aziende sanitarie pubbliche della Regione | D46: S | E46: AA0340 | F46: =SUM(F47:F61) -> 99510381.01 | G46: =SUM(G47:G61) -> 102476232.3
B47: AA0350 | C47: A.4.A.1.1) Prestazioni di ricovero | E47: AA0350 | F47: =SUMIF('00 Aggregatore'!$B:$B,$E47,'00 Aggregatore'!E:E) -> 63932152.8 | G47: =SUMIF('00 Aggregatore'!$B:$B,$E47,'00 Aggregatore'!F:F) -> 64992534.34
B48: AA0360 | C48: A.4.A.1.2) Prestazioni di specialistica ambulatoriale | E48: AA0360 | F48: =SUMIF('00 Aggregatore'!$B:$B,$E48,'00 Aggregatore'!E:E) -> 8495470.67 | G48: =SUMIF('00 Aggregatore'!$B:$B,$E48,'00 Aggregatore'!F:F) -> 9019951.57
B49: AA0361 | C49: A.4.A.1.3) Prestazioni di pronto soccorso non seguite da ricovero | E49: AA0361 | F49: =SUMIF('00 Aggregatore'!$B:$B,$E49,'00 Aggregatore'!E:E) -> 0 | G49: =SUMIF('00 Aggregatore'!$B:$B,$E49,'00 Aggregatore'!F:F) -> 0
B50: AA0370 | C50: A.4.A.1.4) Prestazioni di psichiatria residenziale e semiresidenziale | E50: AA0370 | F50: =SUMIF('00 Aggregatore'!$B:$B,$E50,'00 Aggregatore'!E:E) -> 4667985.86 | G50: =SUMIF('00 Aggregatore'!$B:$B,$E50,'00 Aggregatore'!F:F) -> 4699731.63
B51: AA0380 | C51: A.4.A.1.5) Prestazioni di File F | E51: AA0380 | F51: =SUMIF('00 Aggregatore'!$B:$B,$E51,'00 Aggregatore'!E:E) -> 13551276.25 | G51: =SUMIF('00 Aggregatore'!$B:$B,$E51,'00 Aggregatore'!F:F) -> 15293240.5
B52: AA0390 | C52: A.4.A.1.6) Prestazioni servizi MMG, PLS, Contin. assistenziale | E52: AA0390 | F52: =SUMIF('00 Aggregatore'!$B:$B,$E52,'00 Aggregatore'!E:E) -> 76930.02 | G52: =SUMIF('00 Aggregatore'!$B:$B,$E52,'00 Aggregatore'!F:F) -> 139164.66
B53: AA0400 | C53: A.4.A.1.7) Prestazioni servizi farmaceutica convenzionata | E53: AA0400 | F53: =SUMIF('00 Aggregatore'!$B:$B,$E53,'00 Aggregatore'!E:E) -> 1554303.34 | G53: =SUMIF('00 Aggregatore'!$B:$B,$E53,'00 Aggregatore'!F:F) -> 1464959.73
B54: AA0410 | C54: A.4.A.1.8) Prestazioni termali | E54: AA0410 | F54: =SUMIF('00 Aggregatore'!$B:$B,$E54,'00 Aggregatore'!E:E) -> 1071238.47 | G54: =SUMIF('00 Aggregatore'!$B:$B,$E54,'00 Aggregatore'!F:F) -> 825373.77
B55: AA0420 | C55: A.4.A.1.9) Prestazioni trasporto ambulanze ed elisoccorso | E55: AA0420 | F55: =SUMIF('00 Aggregatore'!$B:$B,$E55,'00 Aggregatore'!E:E) -> 176712.63 | G55: =SUMIF('00 Aggregatore'!$B:$B,$E55,'00 Aggregatore'!F:F) -> 215493.58
B56: AA0421 | C56: A.4.A.1.10) Prestazioni assistenza integrativa | E56: AA0421 | F56: =SUMIF('00 Aggregatore'!$B:$B,$E56,'00 Aggregatore'!E:E) -> 0 | G56: =SUMIF('00 Aggregatore'!$B:$B,$E56,'00 Aggregatore'!F:F) -> 0
B57: AA0422 | C57: A.4.A.1.11) Prestazioni assistenza protesica | E57: AA0422 | F57: =SUMIF('00 Aggregatore'!$B:$B,$E57,'00 Aggregatore'!E:E) -> 0 | G57: =SUMIF('00 Aggregatore'!$B:$B,$E57,'00 Aggregatore'!F:F) -> 0
B58: AA0423 | C58: A.4.A.1.12) Prestazioni assistenza riabilitativa extraospedaliera | E58: AA0423 | F58: =SUMIF('00 Aggregatore'!$B:$B,$E58,'00 Aggregatore'!E:E) -> 0 | G58: =SUMIF('00 Aggregatore'!$B:$B,$E58,'00 Aggregatore'!F:F) -> 0
B59: AA0424 | C59: A.4.A.1.13) Ricavi per cessione di emocomponenti e cellule staminali | E59: AA0424 | F59: =SUMIF('00 Aggregatore'!$B:$B,$E59,'00 Aggregatore'!E:E) -> 0 | G59: =SUMIF('00 Aggregatore'!$B:$B,$E59,'00 Aggregatore'!F:F) -> 0
B60: AA0425 | C60: A.4.A.1.14) Prestazioni assistenza domiciliare integrata (ADI) | E60: AA0425 | F60: =SUMIF('00 Aggregatore'!$B:$B,$E60,'00 Aggregatore'!E:E) -> 0 | G60: =SUMIF('00 Aggregatore'!$B:$B,$E60,'00 Aggregatore'!F:F) -> 0
B61: AA0430 | C61: A.4.A.1.15) Altre prestazioni sanitarie e socio-sanitarie a rilevanza sanitaria | E61: AA0430 | F61: =SUMIF('00 Aggregatore'!$B:$B,$E61,'00 Aggregatore'!E:E) -> 5984310.97 | G61: =SUMIF('00 Aggregatore'!$B:$B,$E61,'00 Aggregatore'!F:F) -> 5825782.54
B62: AA0440 | C62: A.4.A.2) Ricavi per prestaz. sanitarie e sociosanitarie a rilevanza sanitaria erogate ad altri soggetti pubblici | E62: AA0440 | F62: =SUMIF('00 Aggregatore'!$B:$B,$E62,'00 Aggregatore'!E:E) -> 90381.5 | G62: =SUMIF('00 Aggregatore'!$B:$B,$E62,'00 Aggregatore'!F:F) -> 56370.17
B63: AA0450 | C63: A.4.A.3) Ricavi per prestaz. sanitarie e sociosanitarie a rilevanza sanitaria erogate a soggetti pubblici Extraregione | D63: S | E63: AA0450 | F63: =SUM(F64:F78,F81,F82,F83) -> 12803256.57 | G63: =SUM(G64:G78,G81,G82,G83) -> 17979317.43
B64: AA0460 | C64: A.4.A.3.1) Prestazioni di ricovero | E64: AA0460 | F64: =SUMIF('00 Aggregatore'!$B:$B,$E64,'00 Aggregatore'!E:E) -> 7320391.07 | G64: =SUMIF('00 Aggregatore'!$B:$B,$E64,'00 Aggregatore'!F:F) -> 11878307.28
B65: AA0470 | C65: A.4.A.3.2) Prestazioni ambulatoriali | E65: AA0470 | F65: =SUMIF('00 Aggregatore'!$B:$B,$E65,'00 Aggregatore'!E:E) -> 1477229.91 | G65: =SUMIF('00 Aggregatore'!$B:$B,$E65,'00 Aggregatore'!F:F) -> 2030527.06
B66: AA0471 | C66: A.4.A.3.3) Prestazioni pronto soccorso non seguite da ricovero | E66: AA0471 | F66: =SUMIF('00 Aggregatore'!$B:$B,$E66,'00 Aggregatore'!E:E) -> 0 | G66: =SUMIF('00 Aggregatore'!$B:$B,$E66,'00 Aggregatore'!F:F) -> 0
B67: AA0480 | C67: A.4.A.3.4) Prestazioni di psichiatria non soggetta a compensazione (resid. e semiresid.) | E67: AA0480 | F67: =SUMIF('00 Aggregatore'!$B:$B,$E67,'00 Aggregatore'!E:E) -> 0 | G67: =SUMIF('00 Aggregatore'!$B:$B,$E67,'00 Aggregatore'!F:F) -> 0
B68: AA0490 | C68: A.4.A.3.5) Prestazioni di File F | E68: AA0490 | F68: =SUMIF('00 Aggregatore'!$B:$B,$E68,'00 Aggregatore'!E:E) -> 2471453.08 | G68: =SUMIF('00 Aggregatore'!$B:$B,$E68,'00 Aggregatore'!F:F) -> 1915086.72
B69: AA0500 | C69: A.4.A.3.6) Prestazioni servizi MMG, PLS, Contin. assistenziale Extraregione | E69: AA0500 | F69: =SUMIF('00 Aggregatore'!$B:$B,$E69,'00 Aggregatore'!E:E) -> 56122.64 | G69: =SUMIF('00 Aggregatore'!$B:$B,$E69,'00 Aggregatore'!F:F) -> 19433.84
B70: AA0510 | C70: A.4.A.3.7) Prestazioni servizi farmaceutica convenzionata Extraregione | E70: AA0510 | F70: =SUMIF('00 Aggregatore'!$B:$B,$E70,'00 Aggregatore'!E:E) -> 506661.23 | G70: =SUMIF('00 Aggregatore'!$B:$B,$E70,'00 Aggregatore'!F:F) -> 1142996.67
B71: AA0520 | C71: A.4.A.3.8) Prestazioni termali Extraregione | E71: AA0520 | F71: =SUMIF('00 Aggregatore'!$B:$B,$E71,'00 Aggregatore'!E:E) -> 180073.68 | G71: =SUMIF('00 Aggregatore'!$B:$B,$E71,'00 Aggregatore'!F:F) -> 237345.51
B72: AA0530 | C72: A.4.A.3.9) Prestazioni trasporto ambulanze ed elisoccorso Extraregione | E72: AA0530 | F72: =SUMIF('00 Aggregatore'!$B:$B,$E72,'00 Aggregatore'!E:E) -> 469730.81 | G72: =SUMIF('00 Aggregatore'!$B:$B,$E72,'00 Aggregatore'!F:F) -> 309535.11
B73: AA0541 | C73: A.4.A.3.10) Prestazioni assistenza integrativa da pubblico (extraregione) | E73: AA0541 | F73: =SUMIF('00 Aggregatore'!$B:$B,$E73,'00 Aggregatore'!E:E) -> 0 | G73: =SUMIF('00 Aggregatore'!$B:$B,$E73,'00 Aggregatore'!F:F) -> 0
B74: AA0542 | C74: A.4.A.3.11) Prestazioni assistenza protesica da pubblico (extraregione) | E74: AA0542 | F74: =SUMIF('00 Aggregatore'!$B:$B,$E74,'00 Aggregatore'!E:E) -> 0 | G74: =SUMIF('00 Aggregatore'!$B:$B,$E74,'00 Aggregatore'!F:F) -> 0
B75: AA0550 | C75: A.4.A.3.12) Ricavi per cessione di emocomponenti e cellule staminali Extraregione | E75: AA0550 | F75: =SUMIF('00 Aggregatore'!$B:$B,$E75,'00 Aggregatore'!E:E) -> 0 | G75: =SUMIF('00 Aggregatore'!$B:$B,$E75,'00 Aggregatore'!F:F) -> 45357.06
B76: AA0560 | C76: A.4.A.3.13) Ricavi GSA per differenziale saldo mobilità interregionale | E76: AA0560 | F76: =SUMIF('00 Aggregatore'!$B:$B,$E76,'00 Aggregatore'!E:E) -> 0 | G76: =SUMIF('00 Aggregatore'!$B:$B,$E76,'00 Aggregatore'!F:F) -> 0
B77: AA0561 | C77: A.4.A.3.14) Altre prestazioni sanitarie e sociosanitarie a rilevanza sanitaria erogate a soggetti pubblici Extraregione | E77: AA0561 | F77: =SUMIF('00 Aggregatore'!$B:$B,$E77,'00 Aggregatore'!E:E) -> 0 | G77: =SUMIF('00 Aggregatore'!$B:$B,$E77,'00 Aggregatore'!F:F) -> 0
B78: AA0570 | C78: A.4.A.3.15) Altre prestazioni sanitarie e sociosanitarie a rilevanza sanitaria non soggette a compensazione Extraregione | D78: S | E78: AA0570 | F78: =+F79+F80 -> 2626.39 | G78: =+G79+G80 -> 7192.04
B79: AA0580 | C79: A.4.A.3.15.A) Prestazioni di assistenza riabilitativa non soggette a compensazione Extraregione | E79: AA0580 | F79: =SUMIF('00 Aggregatore'!$B:$B,$E79,'00 Aggregatore'!E:E) -> 0 | G79: =SUMIF('00 Aggregatore'!$B:$B,$E79,'00 Aggregatore'!F:F) -> 0
B80: AA0590 | C80: A.4.A.3.15.B) Altre prestazioni sanitarie e socio-sanitarie a rilevanza sanitaria non soggette a compensazione Extraregione | E80: AA0590 | F80: =SUMIF('00 Aggregatore'!$B:$B,$E80,'00 Aggregatore'!E:E) -> 2626.39 | G80: =SUMIF('00 Aggregatore'!$B:$B,$E80,'00 Aggregatore'!F:F) -> 7192.04
B81: AA0600 | C81: A.4.A.3.16) Altre prestazioni sanitarie a rilevanza sanitaria - Mobilità attiva Internazionale | E81: AA0600 | F81: =SUMIF('00 Aggregatore'!$B:$B,$E81,'00 Aggregatore'!E:E) -> 318967.76 | G81: =SUMIF('00 Aggregatore'!$B:$B,$E81,'00 Aggregatore'!F:F) -> 393536.14
B82: AA0601 | C82: A.4.A.3.17) Altre prestazioni sanitarie a rilevanza sanitaria - Mobilità attiva Internazionale rilevata dalle AO, AOU, IRCCS. | E82: AA0601 | F82: =SUMIF('00 Aggregatore'!$B:$B,$E82,'00 Aggregatore'!E:E) -> 0 | G82: =SUMIF('00 Aggregatore'!$B:$B,$E82,'00 Aggregatore'!F:F) -> 0
B83: AA0602 | C83: A.4.A.3.18) Altre prestazioni sanitarie e sociosanitarie a rilevanza sanitaria ad Aziende sanitarie e casse mutua estera - (fatturate direttamente) | E83: AA0602 | F83: =SUMIF('00 Aggregatore'!$B:$B,$E83,'00 Aggregatore'!E:E) -> 0 | G83: =SUMIF('00 Aggregatore'!$B:$B,$E83,'00 Aggregatore'!F:F) -> 0
B84: AA0610 | C84: A.4.B) Ricavi per prestazioni sanitarie e sociosanitarie a rilevanza sanitaria erogate da privati v/residenti Extraregione in compensazione (mobilità attiva) | D84: S | E84: AA0610 | F84: =SUM(F85:F89) -> 10487489.54 | G84: =SUM(G85:G89) -> 8627870.88
B85: AA0620 | C85: A.4.B.1) Prestazioni di ricovero da priv. Extraregione in compensazione (mobilità attiva) | E85: AA0620 | F85: =SUMIF('00 Aggregatore'!$B:$B,$E85,'00 Aggregatore'!E:E) -> 10285883.1 | G85: =SUMIF('00 Aggregatore'!$B:$B,$E85,'00 Aggregatore'!F:F) -> 8426930.48
B86: AA0630 | C86: A.4.B.2) Prestazioni ambulatoriali da priv. Extraregione in compensazione (mobilità attiva) | E86: AA0630 | F86: =SUMIF('00 Aggregatore'!$B:$B,$E86,'00 Aggregatore'!E:E) -> 201606.44 | G86: =SUMIF('00 Aggregatore'!$B:$B,$E86,'00 Aggregatore'!F:F) -> 200940.4
B87: AA0631 | C87: A.4.B.3) Prestazioni di pronto soccorso non seguite da ricovero da priv. Extraregione in compensazione (mobilità attiva) | E87: AA0631 | F87: =SUMIF('00 Aggregatore'!$B:$B,$E87,'00 Aggregatore'!E:E) -> 0 | G87: =SUMIF('00 Aggregatore'!$B:$B,$E87,'00 Aggregatore'!F:F) -> 0
B88: AA0640 | C88: A.4.B.4) Prestazioni di File F da priv. Extraregione in compensazione (mobilità attiva) | E88: AA0640 | F88: =SUMIF('00 Aggregatore'!$B:$B,$E88,'00 Aggregatore'!E:E) -> 0 | G88: =SUMIF('00 Aggregatore'!$B:$B,$E88,'00 Aggregatore'!F:F) -> 0
B89: AA0650 | C89: A.4.B.5) Altre prestazioni sanitarie e sociosanitarie a rilevanza sanitaria erogate da privati v/residenti Extraregione in compensazione (mobilità attiva) | E89: AA0650 | F89: =SUMIF('00 Aggregatore'!$B:$B,$E89,'00 Aggregatore'!E:E) -> 0 | G89: =SUMIF('00 Aggregatore'!$B:$B,$E89,'00 Aggregatore'!F:F) -> 0
B90: AA0660 | C90: A.4.C) Ricavi per prestazioni sanitarie e sociosanitarie a rilevanza sanitaria erogate a privati | E90: AA0660 | F90: =SUMIF('00 Aggregatore'!$B:$B,$E90,'00 Aggregatore'!E:E) -> 3620504.31 | G90: =SUMIF('00 Aggregatore'!$B:$B,$E90,'00 Aggregatore'!F:F) -> 3619505.6
B91: AA0670 | C91: A.4.D) Ricavi per prestazioni sanitarie erogate in regime di intramoenia | D91: S | E91: AA0670 | F91: =SUM(F92:F98) -> 4238479.07 | G91: =SUM(G92:G98) -> 3928724.07
B92: AA0680 | C92: A.4.D.1) Ricavi per prestazioni sanitarie intramoenia - Area ospedaliera | E92: AA0680 | F92: =SUMIF('00 Aggregatore'!$B:$B,$E92,'00 Aggregatore'!E:E) -> 80436.56 | G92: =SUMIF('00 Aggregatore'!$B:$B,$E92,'00 Aggregatore'!F:F) -> 97957.71
B93: AA0690 | C93: A.4.D.2) Ricavi per prestazioni sanitarie intramoenia - Area specialistica | E93: AA0690 | F93: =SUMIF('00 Aggregatore'!$B:$B,$E93,'00 Aggregatore'!E:E) -> 3326104 | G93: =SUMIF('00 Aggregatore'!$B:$B,$E93,'00 Aggregatore'!F:F) -> 3340368
B94: AA0700 | C94: A.4.D.3) Ricavi per prestazioni sanitarie intramoenia - Area sanità pubblica | E94: AA0700 | F94: =SUMIF('00 Aggregatore'!$B:$B,$E94,'00 Aggregatore'!E:E) -> 17534.57 | G94: =SUMIF('00 Aggregatore'!$B:$B,$E94,'00 Aggregatore'!F:F) -> 16412.46
B95: AA0710 | C95: A.4.D.4) Ricavi per prestazioni sanitarie intramoenia - Consulenze (ex art. 55 c.1 lett. c), d) ed ex art. 57-58) | E95: AA0710 | F95: =SUMIF('00 Aggregatore'!$B:$B,$E95,'00 Aggregatore'!E:E) -> 677848.85 | G95: =SUMIF('00 Aggregatore'!$B:$B,$E95,'00 Aggregatore'!F:F) -> 385532.67
B96: AA0720 | C96: A.4.D.5) Ricavi per prestazioni sanitarie intramoenia - Consulenze (ex art. 55 c.1 lett. c), d) ed ex art. 57-58) (Aziende sanitarie pubbliche della Regione) | E96: AA0720 | F96: =SUMIF('00 Aggregatore'!$B:$B,$E96,'00 Aggregatore'!E:E) -> 0 | G96: =SUMIF('00 Aggregatore'!$B:$B,$E96,'00 Aggregatore'!F:F) -> 0
B97: AA0730 | C97: A.4.D.6) Ricavi per prestazioni sanitarie intramoenia - Altro | E97: AA0730 | F97: =SUMIF('00 Aggregatore'!$B:$B,$E97,'00 Aggregatore'!E:E) -> 130775.39 | G97: =SUMIF('00 Aggregatore'!$B:$B,$E97,'00 Aggregatore'!F:F) -> 70557.93
B98: AA0740 | C98: A.4.D.7) Ricavi per prestazioni sanitarie intramoenia - Altro (Aziende sanitarie pubbliche della Regione) | E98: AA0740 | F98: =SUMIF('00 Aggregatore'!$B:$B,$E98,'00 Aggregatore'!E:E) -> 5779.7 | G98: =SUMIF('00 Aggregatore'!$B:$B,$E98,'00 Aggregatore'!F:F) -> 17895.3
B99: AA0750 | C99: A.5) Concorsi, recuperi e rimborsi | D99: S | E99: AA0750 | F99: =+F100+F101+F104+F109+F113 -> 3858742.57 | G99: =+G100+G101+G104+G109+G113 -> 3897788.32
B100: AA0760 | C100: A.5.A) Rimborsi assicurativi | E100: AA0760 | F100: =SUMIF('00 Aggregatore'!$B:$B,$E100,'00 Aggregatore'!E:E) -> 151672.58 | G100: =SUMIF('00 Aggregatore'!$B:$B,$E100,'00 Aggregatore'!F:F) -> 157878.72
B101: AA0770 | C101: A.5.B) Concorsi, recuperi e rimborsi da Regione | D101: S | E101: AA0770 | F101: =+F102+F103 -> 0 | G101: =+G102+G103 -> 0
B102: AA0780 | C102: A.5.B.1) Rimborso degli oneri stipendiali del personale dell'azienda in posizione di comando presso la Regione | E102: AA0780 | F102: =SUMIF('00 Aggregatore'!$B:$B,$E102,'00 Aggregatore'!E:E) -> 0 | G102: =SUMIF('00 Aggregatore'!$B:$B,$E102,'00 Aggregatore'!F:F) -> 0
B103: AA0790 | C103: A.5.B.2) Altri concorsi, recuperi e rimborsi da parte della Regione | E103: AA0790 | F103: =SUMIF('00 Aggregatore'!$B:$B,$E103,'00 Aggregatore'!E:E) -> 0 | G103: =SUMIF('00 Aggregatore'!$B:$B,$E103,'00 Aggregatore'!F:F) -> 0
B104: AA0800 | C104: A.5.C) Concorsi, recuperi e rimborsi da Aziende sanitarie pubbliche della Regione | D104: S | E104: AA0800 | F104: =+F105+F106+F107+F108 -> 203850.7 | G104: =+G105+G106+G107+G108 -> 131694.36
B105: AA0810 | C105: A.5.C.1) Rimborso degli oneri stipendiali del personale dipendente dell'azienda in posizione di comando presso Aziende sanitarie pubbliche della Regione | E105: AA0810 | F105: =SUMIF('00 Aggregatore'!$B:$B,$E105,'00 Aggregatore'!E:E) -> 23253.72 | G105: =SUMIF('00 Aggregatore'!$B:$B,$E105,'00 Aggregatore'!F:F) -> 0
B106: AA0820 | C106: A.5.C.2) Rimborsi per acquisto beni da parte di Aziende sanitarie pubbliche della Regione | E106: AA0820 | F106: =SUMIF('00 Aggregatore'!$B:$B,$E106,'00 Aggregatore'!E:E) -> 0 | G106: =SUMIF('00 Aggregatore'!$B:$B,$E106,'00 Aggregatore'!F:F) -> 0
B107: AA0830 | C107: A.5.C.3) Altri concorsi, recuperi e rimborsi da parte di Aziende sanitarie pubbliche della Regione | E107: AA0830 | F107: =SUMIF('00 Aggregatore'!$B:$B,$E107,'00 Aggregatore'!E:E) -> 180596.98 | G107: =SUMIF('00 Aggregatore'!$B:$B,$E107,'00 Aggregatore'!F:F) -> 131694.36
B108: AA0831 | C108: A.5.C.4) Altri concorsi, recuperi e rimborsi da parte della Regione - GSA | E108: AA0831 | F108: =SUMIF('00 Aggregatore'!$B:$B,$E108,'00 Aggregatore'!E:E) -> 0 | G108: =SUMIF('00 Aggregatore'!$B:$B,$E108,'00 Aggregatore'!F:F) -> 0
B109: AA0840 | C109: A.5.D) Concorsi, recuperi e rimborsi da altri soggetti pubblici | D109: S | E109: AA0840 | F109: =+F110+F111+F112 -> 253111.86 | G109: =+G110+G111+G112 -> 49011.56
B110: AA0850 | C110: A.5.D.1) Rimborso degli oneri stipendiali del personale dipendente dell'azienda in posizione di comando presso altri soggetti pubblici | E110: AA0850 | F110: =SUMIF('00 Aggregatore'!$B:$B,$E110,'00 Aggregatore'!E:E) -> 150326.43 | G110: =SUMIF('00 Aggregatore'!$B:$B,$E110,'00 Aggregatore'!F:F) -> 0
B111: AA0860 | C111: A.5.D.2) Rimborsi per acquisto beni da parte di altri soggetti pubblici | E111: AA0860 | F111: =SUMIF('00 Aggregatore'!$B:$B,$E111,'00 Aggregatore'!E:E) -> 8374.78 | G111: =SUMIF('00 Aggregatore'!$B:$B,$E111,'00 Aggregatore'!F:F) -> 5464.29
B112: AA0870 | C112: A.5.D.3) Altri concorsi, recuperi e rimborsi da parte di altri soggetti pubblici | E112: AA0870 | F112: =SUMIF('00 Aggregatore'!$B:$B,$E112,'00 Aggregatore'!E:E) -> 94410.65 | G112: =SUMIF('00 Aggregatore'!$B:$B,$E112,'00 Aggregatore'!F:F) -> 43547.27
B113: AA0880 | C113: A.5.E) Concorsi, recuperi e rimborsi da privati | D113: S | E113: AA0880 | F113: =+F114+F118+F119 -> 3250107.43 | G113: =+G114+G118+G119 -> 3559203.68
B114: AA0890 | C114: A.5.E.1) Rimborso da aziende farmaceutiche per Pay back | D114: S | E114: AA0890 | F114: =+F115+F116+F117 -> 2615698.91 | G114: =+G115+G116+G117 -> 2477467.95
B115: AA0900 | C115: A.5.E.1.1) Pay-back per il superamento del tetto della spesa farmaceutica territoriale | E115: AA0900 | F115: =SUMIF('00 Aggregatore'!$B:$B,$E115,'00 Aggregatore'!E:E) -> 0 | G115: =SUMIF('00 Aggregatore'!$B:$B,$E115,'00 Aggregatore'!F:F) -> 0
B116: AA0910 | C116: A.5.E.1.2) Pay-back per superamento del tetto della spesa farmaceutica ospedaliera | E116: AA0910 | F116: =SUMIF('00 Aggregatore'!$B:$B,$E116,'00 Aggregatore'!E:E) -> 0 | G116: =SUMIF('00 Aggregatore'!$B:$B,$E116,'00 Aggregatore'!F:F) -> 0
B117: AA0920 | C117: A.5.E.1.3) Ulteriore Pay-back | E117: AA0920 | F117: =SUMIF('00 Aggregatore'!$B:$B,$E117,'00 Aggregatore'!E:E) -> 2615698.91 | G117: =SUMIF('00 Aggregatore'!$B:$B,$E117,'00 Aggregatore'!F:F) -> 2477467.95
B118: AA0921 | C118: A.5.E.2) Rimborso per Pay back sui dispositivi medici | E118: AA0921 | F118: =SUMIF('00 Aggregatore'!$B:$B,$E118,'00 Aggregatore'!E:E) -> 0 | G118: =SUMIF('00 Aggregatore'!$B:$B,$E118,'00 Aggregatore'!F:F) -> 0
B119: AA0930 | C119: A.5.E.3) Altri concorsi, recuperi e rimborsi da privati | E119: AA0930 | F119: =SUMIF('00 Aggregatore'!$B:$B,$E119,'00 Aggregatore'!E:E) -> 634408.52 | G119: =SUMIF('00 Aggregatore'!$B:$B,$E119,'00 Aggregatore'!F:F) -> 1081735.73
B120: AA0940 | C120: A.6) Compartecipazione alla spesa per prestazioni sanitarie (Ticket) | D120: S | E120: AA0940 | F120: =+F121+F122+F123 -> 6929806.95 | G120: =+G121+G122+G123 -> 7163364.51
B121: AA0950 | C121: A.6.A) Compartecipazione alla spesa per prestazioni sanitarie - Ticket sulle prestazioni di specialistica ambulatoriale e APA-PAC | E121: AA0950 | F121: =SUMIF('00 Aggregatore'!$B:$B,$E121,'00 Aggregatore'!E:E) -> 6543145.31 | G121: =SUMIF('00 Aggregatore'!$B:$B,$E121,'00 Aggregatore'!F:F) -> 6930386.26
B122: AA0960 | C122: A.6.B) Compartecipazione alla spesa per prestazioni sanitarie - Ticket sul pronto soccorso | E122: AA0960 | F122: =SUMIF('00 Aggregatore'!$B:$B,$E122,'00 Aggregatore'!E:E) -> 386661.64 | G122: =SUMIF('00 Aggregatore'!$B:$B,$E122,'00 Aggregatore'!F:F) -> 232978.25
B123: AA0970 | C123: A.6.C) Compartecipazione alla spesa per prestazioni sanitarie (Ticket) - Altro | E123: AA0970 | F123: =SUMIF('00 Aggregatore'!$B:$B,$E123,'00 Aggregatore'!E:E) -> 0 | G123: =SUMIF('00 Aggregatore'!$B:$B,$E123,'00 Aggregatore'!F:F) -> 0
B124: AA0980 | C124: A.7) Quota contributi c/capitale imputata all'esercizio | D124: S | E124: AA0980 | F124: =+F125+F126+F127+F128+F129+F130 -> 10491674.92 | G124: =+G125+G126+G127+G128+G129+G130 -> 10730936.63
B125: AA0990 | C125: A.7.A) Quota imputata all'esercizio dei finanziamenti per investimenti dallo Stato | E125: AA0990 | F125: =SUMIF('00 Aggregatore'!$B:$B,$E125,'00 Aggregatore'!E:E) -> 54754.03 | G125: =SUMIF('00 Aggregatore'!$B:$B,$E125,'00 Aggregatore'!F:F) -> 86964.13
B126: AA1000 | C126: A.7.B) Quota imputata all'esercizio dei finanziamenti per investimenti da Regione | E126: AA1000 | F126: =SUMIF('00 Aggregatore'!$B:$B,$E126,'00 Aggregatore'!E:E) -> 1674245.68 | G126: =SUMIF('00 Aggregatore'!$B:$B,$E126,'00 Aggregatore'!F:F) -> 1986864.15
B127: AA1010 | C127: A.7.C) Quota imputata all'esercizio dei finanziamenti per beni di prima dotazione | E127: AA1010 | F127: =SUMIF('00 Aggregatore'!$B:$B,$E127,'00 Aggregatore'!E:E) -> 3577467.93 | G127: =SUMIF('00 Aggregatore'!$B:$B,$E127,'00 Aggregatore'!F:F) -> 3577467.93
B128: AA1020 | C128: A.7.D) Quota imputata all'esercizio dei contributi in c/ esercizio FSR destinati ad investimenti | E128: AA1020 | F128: =SUMIF('00 Aggregatore'!$B:$B,$E128,'00 Aggregatore'!E:E) -> 5185207.28 | G128: =SUMIF('00 Aggregatore'!$B:$B,$E128,'00 Aggregatore'!F:F) -> 5079640.42
B129: AA1030 | C129: A.7.E) Quota imputata all'esercizio degli altri contributi in c/ esercizio destinati ad investimenti | E129: AA1030 | F129: =SUMIF('00 Aggregatore'!$B:$B,$E129,'00 Aggregatore'!E:E) -> 0 | G129: =SUMIF('00 Aggregatore'!$B:$B,$E129,'00 Aggregatore'!F:F) -> 0
B130: AA1040 | C130: A.7.F) Quota imputata all'esercizio di altre poste del patrimonio netto | E130: AA1040 | F130: =SUMIF('00 Aggregatore'!$B:$B,$E130,'00 Aggregatore'!E:E) -> 0 | G130: =SUMIF('00 Aggregatore'!$B:$B,$E130,'00 Aggregatore'!F:F) -> 0
B131: AA1050 | C131: A.8) Incrementi delle immobilizzazioni per lavori interni | E131: AA1050 | F131: =SUMIF('00 Aggregatore'!$B:$B,$E131,'00 Aggregatore'!E:E) -> 0 | G131: =SUMIF('00 Aggregatore'!$B:$B,$E131,'00 Aggregatore'!F:F) -> 0
B132: AA1060 | C132: A.9) Altri ricavi e proventi | D132: S | E132: AA1060 | F132: =+F133+F134+F135 -> 551446.96 | G132: =+G133+G134+G135 -> 582651.32
B133: AA1070 | C133: A.9.A) Ricavi per prestazioni non sanitarie | E133: AA1070 | F133: =SUMIF('00 Aggregatore'!$B:$B,$E133,'00 Aggregatore'!E:E) -> 1738.6 | G133: =SUMIF('00 Aggregatore'!$B:$B,$E133,'00 Aggregatore'!F:F) -> 6999.55
B134: AA1080 | C134: A.9.B) Fitti attivi ed altri proventi da attività immobiliari | E134: AA1080 | F134: =SUMIF('00 Aggregatore'!$B:$B,$E134,'00 Aggregatore'!E:E) -> 186882.15 | G134: =SUMIF('00 Aggregatore'!$B:$B,$E134,'00 Aggregatore'!F:F) -> 286977.87
B135: AA1090 | C135: A.9.C) Altri proventi diversi | E135: AA1090 | F135: =SUMIF('00 Aggregatore'!$B:$B,$E135,'00 Aggregatore'!E:E) -> 362826.21 | G135: =SUMIF('00 Aggregatore'!$B:$B,$E135,'00 Aggregatore'!F:F) -> 288673.9
B136: AZ9999 | C136: Totale valore della produzione (A) | D136: S | E136: AZ9999 | F136: =+F132+F131+F124+F120+F99+F44+F38+F35+F4 -> 726128606.7 | G136: =+G132+G131+G124+G120+G99+G44+G38+G35+G4 -> 746630253
C137: B) Costi della produzione
B138: BA0010 | C138: B.1) Acquisti di beni | D138: S | E138: BA0010 | F138: =+F139+F169 -> 132089475.3 | G138: =+G139+G169 -> 137720253.8
B139: BA0020 | C139: B.1.A) Acquisti di beni sanitari | D139: S | E139: BA0020 | F139: =+F140+F148+F152+F156+F157+F158+F159+F160+F161+F161 -> 131089732.6 | G139: =+G140+G148+G152+G156+G157+G158+G159+G160+G161+G161 -> 136729513.9
B140: BA0030 | C140: B.1.A.1) Prodotti farmaceutici ed emoderivati | D140: S | E140: BA0030 | F140: =SUM(F141:F144) -> 83288901.43 | G140: =SUM(G141:G144) -> 86341021.25
B141: BA0040 | C141: B.1.A.1.1) Medicinali con AIC, ad eccezione di vaccini, emoderivati di produzione regionale, ossigeno e altri gas medicali | E141: BA0040 | F141: =SUMIF('00 Aggregatore'!$B:$B,$E141,'00 Aggregatore'!E:E) -> 81177784.88 | G141: =SUMIF('00 Aggregatore'!$B:$B,$E141,'00 Aggregatore'!F:F) -> 85184508.77
B142: BA0050 | C142: B.1.A.1.2) Medicinali senza AIC | E142: BA0050 | F142: =SUMIF('00 Aggregatore'!$B:$B,$E142,'00 Aggregatore'!E:E) -> 752264.34 | G142: =SUMIF('00 Aggregatore'!$B:$B,$E142,'00 Aggregatore'!F:F) -> 679663.84
B143: BA0051 | C143: B.1.A.1.3) Ossigeno e altri gas medicali | E143: BA0051 | F143: =SUMIF('00 Aggregatore'!$B:$B,$E143,'00 Aggregatore'!E:E) -> 1358852.21 | G143: =SUMIF('00 Aggregatore'!$B:$B,$E143,'00 Aggregatore'!F:F) -> 476848.64
B144: BA0060 | C144: B.1.A.1.4) Emoderivati di produzione regionale | D144: S | E144: BA0060 | F144: =SUM(F145:F147) -> 0 | G144: =SUM(G145:G147) -> 0
B145: BA0061 | C145: B.1.A.1.4.1) Emoderivati di produzione regionale da pubblico (Aziende sanitarie pubbliche della Regione) - Mobilità intraregionale | E145: BA0061 | F145: =SUMIF('00 Aggregatore'!$B:$B,$E145,'00 Aggregatore'!E:E) -> 0 | G145: =SUMIF('00 Aggregatore'!$B:$B,$E145,'00 Aggregatore'!F:F) -> 0
B146: BA0062 | C146: B.1.A.1.4.2) Emoderivati di produzione regionale da pubblico (Aziende sanitarie pubbliche della Regione) - Mobilità extraregionale | E146: BA0062 | F146: =SUMIF('00 Aggregatore'!$B:$B,$E146,'00 Aggregatore'!E:E) -> 0 | G146: =SUMIF('00 Aggregatore'!$B:$B,$E146,'00 Aggregatore'!F:F) -> 0
B147: BA0063 | C147: B.1.A.1.4.3) Emoderivati di produzione regionale da altri soggetti | E147: BA0063 | F147: =SUMIF('00 Aggregatore'!$B:$B,$E147,'00 Aggregatore'!E:E) -> 0 | G147: =SUMIF('00 Aggregatore'!$B:$B,$E147,'00 Aggregatore'!F:F) -> 0
B148: BA0070 | C148: B.1.A.2) Sangue ed emocomponenti | D148: S | E148: BA0070 | F148: =SUM(F149:F151) -> 23080.75 | G148: =SUM(G149:G151) -> 0
B149: BA0080 | C149: B.1.A.2.1) da pubblico (Aziende sanitarie pubbliche della Regione) – Mobilità intraregionale | E149: BA0080 | F149: =SUMIF('00 Aggregatore'!$B:$B,$E149,'00 Aggregatore'!E:E) -> 0 | G149: =SUMIF('00 Aggregatore'!$B:$B,$E149,'00 Aggregatore'!F:F) -> 0
B150: BA0090 | C150: B.1.A.2.2) da pubblico (Aziende sanitarie pubbliche extra Regione) – Mobilità extraregionale | E150: BA0090 | F150: =SUMIF('00 Aggregatore'!$B:$B,$E150,'00 Aggregatore'!E:E) -> 23080.75 | G150: =SUMIF('00 Aggregatore'!$B:$B,$E150,'00 Aggregatore'!F:F) -> 0
B151: BA0100 | C151: B.1.A.2.3) da altri soggetti | E151: BA0100 | F151: =SUMIF('00 Aggregatore'!$B:$B,$E151,'00 Aggregatore'!E:E) -> 0 | G151: =SUMIF('00 Aggregatore'!$B:$B,$E151,'00 Aggregatore'!F:F) -> 0
B152: BA0210 | C152: B.1.A.3) Dispositivi medici | D152: S | E152: BA0210 | F152: =SUM(F153:F155) -> 42871861.68 | G152: =SUM(G153:G155) -> 45240360.95
B153: BA0220 | C153: B.1.A.3.1) Dispositivi medici | E153: BA0220 | F153: =SUMIF('00 Aggregatore'!$B:$B,$E153,'00 Aggregatore'!E:E) -> 27013313.95 | G153: =SUMIF('00 Aggregatore'!$B:$B,$E153,'00 Aggregatore'!F:F) -> 28968171.86
B154: BA0230 | C154: B.1.A.3.2) Dispositivi medici impiantabili attivi | E154: BA0230 | F154: =SUMIF('00 Aggregatore'!$B:$B,$E154,'00 Aggregatore'!E:E) -> 3071999.01 | G154: =SUMIF('00 Aggregatore'!$B:$B,$E154,'00 Aggregatore'!F:F) -> 3788645.64
B155: BA0240 | C155: B.1.A.3.3) Dispositivi medico diagnostici in vitro (IVD) | E155: BA0240 | F155: =SUMIF('00 Aggregatore'!$B:$B,$E155,'00 Aggregatore'!E:E) -> 12786548.72 | G155: =SUMIF('00 Aggregatore'!$B:$B,$E155,'00 Aggregatore'!F:F) -> 12483543.45
B156: BA0250 | C156: B.1.A.4) Prodotti dietetici | E156: BA0250 | F156: =SUMIF('00 Aggregatore'!$B:$B,$E156,'00 Aggregatore'!E:E) -> 468960.66 | G156: =SUMIF('00 Aggregatore'!$B:$B,$E156,'00 Aggregatore'!F:F) -> 459964.75
B157: BA0260 | C157: B.1.A.5) Materiali per la profilassi (vaccini) | E157: BA0260 | F157: =SUMIF('00 Aggregatore'!$B:$B,$E157,'00 Aggregatore'!E:E) -> 2222785.11 | G157: =SUMIF('00 Aggregatore'!$B:$B,$E157,'00 Aggregatore'!F:F) -> 2684881.73
B158: BA0270 | C158: B.1.A.6) Prodotti chimici | E158: BA0270 | F158: =SUMIF('00 Aggregatore'!$B:$B,$E158,'00 Aggregatore'!E:E) -> 0 | G158: =SUMIF('00 Aggregatore'!$B:$B,$E158,'00 Aggregatore'!F:F) -> 0
B159: BA0280 | C159: B.1.A.7) Materiali e prodotti per uso veterinario | E159: BA0280 | F159: =SUMIF('00 Aggregatore'!$B:$B,$E159,'00 Aggregatore'!E:E) -> 20636.41 | G159: =SUMIF('00 Aggregatore'!$B:$B,$E159,'00 Aggregatore'!F:F) -> 15170.48
B160: BA0290 | C160: B.1.A.8) Altri beni e prodotti sanitari | E160: BA0290 | F160: =SUMIF('00 Aggregatore'!$B:$B,$E160,'00 Aggregatore'!E:E) -> 2193506.59 | G160: =SUMIF('00 Aggregatore'!$B:$B,$E160,'00 Aggregatore'!F:F) -> 1988114.71
B161: BA0300 | C161: B.1.A.9) Beni e prodotti sanitari da Aziende sanitarie pubbliche della Regione | D161: S | E161: BA0300 | F161: =SUM(F162:F168) -> 0 | G161: =SUM(G162:G168) -> 0
B162: BA0301 | C162: B.1.A.9.1) Prodotti farmaceutici ed emoderivati | E162: BA0301 | F162: =SUMIF('00 Aggregatore'!$B:$B,$E162,'00 Aggregatore'!E:E) -> 0 | G162: =SUMIF('00 Aggregatore'!$B:$B,$E162,'00 Aggregatore'!F:F) -> 0
B163: BA0303 | C163: B.1.A.9.3) Dispositivi medici | E163: BA0303 | F163: =SUMIF('00 Aggregatore'!$B:$B,$E163,'00 Aggregatore'!E:E) -> 0 | G163: =SUMIF('00 Aggregatore'!$B:$B,$E163,'00 Aggregatore'!F:F) -> 0
B164: BA0304 | C164: B.1.A.9.4) Prodotti dietetici | E164: BA0304 | F164: =SUMIF('00 Aggregatore'!$B:$B,$E164,'00 Aggregatore'!E:E) -> 0 | G164: =SUMIF('00 Aggregatore'!$B:$B,$E164,'00 Aggregatore'!F:F) -> 0
B165: BA0305 | C165: B.1.A.9.5) Materiali per la profilassi (vaccini) | E165: BA0305 | F165: =SUMIF('00 Aggregatore'!$B:$B,$E165,'00 Aggregatore'!E:E) -> 0 | G165: =SUMIF('00 Aggregatore'!$B:$B,$E165,'00 Aggregatore'!F:F) -> 0
B166: BA0306 | C166: B.1.A.9.6) Prodotti chimici | E166: BA0306 | F166: =SUMIF('00 Aggregatore'!$B:$B,$E166,'00 Aggregatore'!E:E) -> 0 | G166: =SUMIF('00 Aggregatore'!$B:$B,$E166,'00 Aggregatore'!F:F) -> 0
B167: BA0307 | C167: B.1.A.9.7) Materiali e prodotti per uso veterinario | E167: BA0307 | F167: =SUMIF('00 Aggregatore'!$B:$B,$E167,'00 Aggregatore'!E:E) -> 0 | G167: =SUMIF('00 Aggregatore'!$B:$B,$E167,'00 Aggregatore'!F:F) -> 0
B168: BA0308 | C168: B.1.A.9.8) Altri beni e prodotti sanitari | E168: BA0308 | F168: =SUMIF('00 Aggregatore'!$B:$B,$E168,'00 Aggregatore'!E:E) -> 0 | G168: =SUMIF('00 Aggregatore'!$B:$B,$E168,'00 Aggregatore'!F:F) -> 0
B169: BA0310 | C169: B.1.B) Acquisti di beni non sanitari | D169: S | E169: BA0310 | F169: =SUM(F170:F176) -> 999742.69 | G169: =SUM(G170:G176) -> 990739.95
B170: BA0320 | C170: B.1.B.1) Prodotti alimentari | E170: BA0320 | F170: =SUMIF('00 Aggregatore'!$B:$B,$E170,'00 Aggregatore'!E:E) -> 83.52 | G170: =SUMIF('00 Aggregatore'!$B:$B,$E170,'00 Aggregatore'!F:F) -> 336.06
B171: BA0330 | C171: B.1.B.2) Materiali di guardaroba, di pulizia e di convivenza in genere | E171: BA0330 | F171: =SUMIF('00 Aggregatore'!$B:$B,$E171,'00 Aggregatore'!E:E) -> 64306.42 | G171: =SUMIF('00 Aggregatore'!$B:$B,$E171,'00 Aggregatore'!F:F) -> 34271.29
B172: BA0340 | C172: B.1.B.3) Combustibili, carburanti e lubrificanti | E172: BA0340 | F172: =SUMIF('00 Aggregatore'!$B:$B,$E172,'00 Aggregatore'!E:E) -> 172419.52 | G172: =SUMIF('00 Aggregatore'!$B:$B,$E172,'00 Aggregatore'!F:F) -> 145758.08
B173: BA0350 | C173: B.1.B.4) Supporti informatici e cancelleria | E173: BA0350 | F173: =SUMIF('00 Aggregatore'!$B:$B,$E173,'00 Aggregatore'!E:E) -> 477974.9 | G173: =SUMIF('00 Aggregatore'!$B:$B,$E173,'00 Aggregatore'!F:F) -> 458683.01
B174: BA0360 | C174: B.1.B.5) Materiale per la manutenzione | E174: BA0360 | F174: =SUMIF('00 Aggregatore'!$B:$B,$E174,'00 Aggregatore'!E:E) -> 239884.37 | G174: =SUMIF('00 Aggregatore'!$B:$B,$E174,'00 Aggregatore'!F:F) -> 284528.75
B175: BA0370 | C175: B.1.B.6) Altri beni e prodotti non sanitari | E175: BA0370 | F175: =SUMIF('00 Aggregatore'!$B:$B,$E175,'00 Aggregatore'!E:E) -> 45073.96 | G175: =SUMIF('00 Aggregatore'!$B:$B,$E175,'00 Aggregatore'!F:F) -> 67162.76
B176: BA0380 | C176: B.1.B.7) Beni e prodotti non sanitari da Aziende sanitarie pubbliche della Regione | E176: BA0380 | F176: =SUMIF('00 Aggregatore'!$B:$B,$E176,'00 Aggregatore'!E:E) -> 0 | G176: =SUMIF('00 Aggregatore'!$B:$B,$E176,'00 Aggregatore'!F:F) -> 0
B177: BA0390 | C177: B.2) Acquisti di servizi | D177: S | E177: BA0390 | F177: =+F178+F308 -> 368048523.8 | G177: =+G178+G308 -> 374074005.1
B178: BA0400 | C178: B.2.A) Acquisti servizi sanitari | D178: S | E178: BA0400 | F178: =+F179+F187+F191+F210+F216+F221+F226+F236+F242+F249+F255+F260+F269+F277+F285+F299+F307 -> 331170827.9 | G178: =+G179+G187+G191+G210+G216+G221+G226+G236+G242+G249+G255+G260+G269+G277+G285+G299+G307 -> 337098602.4
B179: BA0410 | C179: B.2.A.1) Acquisti servizi sanitari per medicina di base | D179: S | E179: BA0410 | F179: =+F180+F185+F186 -> 35909283.82 | G179: =+G180+G185+G186 -> 35330014.78
B180: BA0420 | C180: B.2.A.1.1) - da convenzione | D180: S | E180: BA0420 | F180: =SUM(F181:F184) -> 35653505.32 | G180: =SUM(G181:G184) -> 35075850.21
B181: BA0430 | C181: B.2.A.1.1.A) Costi per assistenza MMG | E181: BA0430 | F181: =SUMIF('00 Aggregatore'!$B:$B,$E181,'00 Aggregatore'!E:E) -> 24517314.75 | G181: =SUMIF('00 Aggregatore'!$B:$B,$E181,'00 Aggregatore'!F:F) -> 23959444.88
B182: BA0440 | C182: B.2.A.1.1.B) Costi per assistenza PLS | E182: BA0440 | F182: =SUMIF('00 Aggregatore'!$B:$B,$E182,'00 Aggregatore'!E:E) -> 6415070.53 | G182: =SUMIF('00 Aggregatore'!$B:$B,$E182,'00 Aggregatore'!F:F) -> 5870213.86
B183: BA0450 | C183: B.2.A.1.1.C) Costi per assistenza Continuità assistenziale | E183: BA0450 | F183: =SUMIF('00 Aggregatore'!$B:$B,$E183,'00 Aggregatore'!E:E) -> 3931463.93 | G183: =SUMIF('00 Aggregatore'!$B:$B,$E183,'00 Aggregatore'!F:F) -> 4254569.59
B184: BA0460 | C184: B.2.A.1.1.D) Altro (medicina dei servizi, psicologi, medici 118, ecc) | E184: BA0460 | F184: =SUMIF('00 Aggregatore'!$B:$B,$E184,'00 Aggregatore'!E:E) -> 789656.11 | G184: =SUMIF('00 Aggregatore'!$B:$B,$E184,'00 Aggregatore'!F:F) -> 991621.88
B185: BA0470 | C185: B.2.A.1.2) - da pubblico (Aziende sanitarie pubbliche della Regione) - Mobilità intraregionale | E185: BA0470 | F185: =SUMIF('00 Aggregatore'!$B:$B,$E185,'00 Aggregatore'!E:E) -> 38671 | G185: =SUMIF('00 Aggregatore'!$B:$B,$E185,'00 Aggregatore'!F:F) -> 51404.4
B186: BA0480 | C186: B.2.A.1.3) - da pubblico (Aziende sanitarie pubbliche Extraregione) - Mobilità extraregionale | E186: BA0480 | F186: =SUMIF('00 Aggregatore'!$B:$B,$E186,'00 Aggregatore'!E:E) -> 217107.5 | G186: =SUMIF('00 Aggregatore'!$B:$B,$E186,'00 Aggregatore'!F:F) -> 202760.17
B187: BA0490 | C187: B.2.A.2) Acquisti servizi sanitari per farmaceutica | D187: S | E187: BA0490 | F187: =+F188+F189+F190 -> 51864361.03 | G187: =+G188+G189+G190 -> 48380817.38
B188: BA0500 | C188: B.2.A.2.1) - da convenzione | E188: BA0500 | F188: =SUMIF('00 Aggregatore'!$B:$B,$E188,'00 Aggregatore'!E:E) -> 50129678.23 | G188: =SUMIF('00 Aggregatore'!$B:$B,$E188,'00 Aggregatore'!F:F) -> 46621762.02
B189: BA0510 | C189: B.2.A.2.2) - da pubblico (Aziende sanitarie pubbliche della Regione)- Mobilità intraregionale | E189: BA0510 | F189: =SUMIF('00 Aggregatore'!$B:$B,$E189,'00 Aggregatore'!E:E) -> 1277628.07 | G189: =SUMIF('00 Aggregatore'!$B:$B,$E189,'00 Aggregatore'!F:F) -> 1255010.99
B190: BA0520 | C190: B.2.A.2.3) - da pubblico (Extraregione) | E190: BA0520 | F190: =SUMIF('00 Aggregatore'!$B:$B,$E190,'00 Aggregatore'!E:E) -> 457054.73 | G190: =SUMIF('00 Aggregatore'!$B:$B,$E190,'00 Aggregatore'!F:F) -> 504044.37
B191: BA0530 | C191: B.2.A.3) Acquisti servizi sanitari per assistenza specialistica ambulatoriale | D191: S | E191: BA0530 | F191: =+F192+F193+F194+F195+F196+F197+F198+F199+F208+F209 -> 26809571.49 | G191: =+G192+G193+G194+G195+G196+G197+G198+G199+G208+G209 -> 26090460.29
B192: BA0540 | C192: B.2.A.3.1) - da pubblico (Aziende sanitarie pubbliche della Regione) | E192: BA0540 | F192: =SUMIF('00 Aggregatore'!$B:$B,$E192,'00 Aggregatore'!E:E) -> 8879359.57 | G192: =SUMIF('00 Aggregatore'!$B:$B,$E192,'00 Aggregatore'!F:F) -> 9027977.09
B193: BA0541 | C193: B.2.A.3.2) prestazioni di pronto soccorso non seguite da ricovero - da pubblico (Aziende sanitarie pubbliche della Regione) | E193: BA0541 | F193: =SUMIF('00 Aggregatore'!$B:$B,$E193,'00 Aggregatore'!E:E) -> 0 | G193: =SUMIF('00 Aggregatore'!$B:$B,$E193,'00 Aggregatore'!F:F) -> 0
B194: BA0550 | C194: B.2.A.3.3) - da pubblico (altri soggetti pubbl. della Regione) | E194: BA0550 | F194: =SUMIF('00 Aggregatore'!$B:$B,$E194,'00 Aggregatore'!E:E) -> 360209.89 | G194: =SUMIF('00 Aggregatore'!$B:$B,$E194,'00 Aggregatore'!F:F) -> 580281.24
B195: BA0551 | C195: B.2.A.3.4) prestazioni di pronto soccorso non seguite da ricovero - da pubblico (altri soggetti pubbl. della Regione) | E195: BA0551 | F195: =SUMIF('00 Aggregatore'!$B:$B,$E195,'00 Aggregatore'!E:E) -> 0 | G195: =SUMIF('00 Aggregatore'!$B:$B,$E195,'00 Aggregatore'!F:F) -> 0
B196: BA0560 | C196: B.2.A.3.5) - da pubblico (Extraregione) | E196: BA0560 | F196: =SUMIF('00 Aggregatore'!$B:$B,$E196,'00 Aggregatore'!E:E) -> 4000753.58 | G196: =SUMIF('00 Aggregatore'!$B:$B,$E196,'00 Aggregatore'!F:F) -> 3402818.86
B197: BA0561 | C197: B.2.A.3.6) prestazioni di pronto soccorso non seguite da ricovero - da pubblico (Extraregione) | E197: BA0561 | F197: =SUMIF('00 Aggregatore'!$B:$B,$E197,'00 Aggregatore'!E:E) -> 0 | G197: =SUMIF('00 Aggregatore'!$B:$B,$E197,'00 Aggregatore'!F:F) -> 0
B198: BA0570 | C198: B.2.A.3.7) - da privato - Medici SUMAI | E198: BA0570 | F198: =SUMIF('00 Aggregatore'!$B:$B,$E198,'00 Aggregatore'!E:E) -> 4486744.21 | G198: =SUMIF('00 Aggregatore'!$B:$B,$E198,'00 Aggregatore'!F:F) -> 4184408.7
B199: BA0580 | C199: B.2.A.3.8) - da privato | D199: S | E199: BA0580 | F199: =SUM(F200:F207) -> 8885806.01 | G199: =SUM(G200:G207) -> 8698101.92
B200: BA0590 | C200: B.2.A.3.8.A) Servizi sanitari per assistenza specialistica da IRCCS privati e Policlinici privati | E200: BA0590 | F200: =SUMIF('00 Aggregatore'!$B:$B,$E200,'00 Aggregatore'!E:E) -> 83336.34 | G200: =SUMIF('00 Aggregatore'!$B:$B,$E200,'00 Aggregatore'!F:F) -> 55662.5
B201: BA0591 | C201: B.2.A.3.8.B) Servizi sanitari per prestazioni di pronto soccorso non seguite da ricovero - da IRCCS privati e Policlinici privati | E201: BA0591 | F201: =SUMIF('00 Aggregatore'!$B:$B,$E201,'00 Aggregatore'!E:E) -> 0 | G201: =SUMIF('00 Aggregatore'!$B:$B,$E201,'00 Aggregatore'!F:F) -> 0
... 364 more rows

Sheet Tab 50-51
A1: 17. Contributi in conto esercizio
B3: Tab. 50 – Dettagli contributi in conto esercizio
A4: CODICE MOD. CE | B4: CONTRIBUTI IN C/ESERCIZIO | C4: Quota Capitaria | D4: Funzioni | E4: Altro | F4: Note
A7: AA0030 | B7: Contributi da Regione o Prov. Aut. per quota F.S. regionale indistinto | C7: =C8+C9 -> 548308449 | D7: 10707741.57 | E7: 0
A8: AA0031 | B8: Finanziamento indistinto | C8: 547046180 | D8: 10707741.57 | E8: 0
A9: AA0032 | B9: Finanziamento indistinto finalizzato da Regione | C9: 1262269 | D9: 0 | E9: 0
A10: AA0033 | B10: Funzioni | C10: 0 | D10: 0 | E10: 0
A11: AA0034 | B11: Funzioni - Pronto Soccorso | C11: 0 | D11: 0 | E11: 0
A12: AA0035 | B12: Funzioni - Altro | C12: 0 | D12: 0 | E12: 0
A13: AA0036 | B13: Quota finalizzata per il Piano aziendale di cui all'art. 1 c. 528 L. 208/2015
A14: AA0080 | B14: Contributi da Regione o Prov. Aut. (extra fondo) - Risorse aggiuntive da bilancio regionale a titolo di copertura LEA | C14: 0 | D14: 0 | E14: 0
A15: AA0090 | B15: Contributi da Regione o Prov. Aut. (extra fondo) - Risorse aggiuntive da bilancio regionale a titolo di copertura extra LEA | C15: 0 | D15: 0 | E15: 0
B18: Tab. 51 – Informativa contributi in conto esercizio
A19: CODICE MOD. CE | B19: DETTAGLIO CONTRIBUTI IN C/ESERCIZIO | C19: Atto | F19: Data | G19: Oggetto | I19: Importo assegnato | J19: Importo utilizzato | K19: Codice conto
A22: AA0020 | B22: DA REGIONE O P.A. PER QUOTA F.S. REGIONALE: | I22: =I23+I28 -> 571940770.5
A23: AA0030 | B23: Quota F.S. regionale - indistinto | C23: Delibera di Giunta Regionale in corso di adozione - Nota prot. n.0145029/20/DPF012 del 18/05/2020"Linee guida alla redazione del bilancio d'esercizio al 31/12/2019" | F23: 2020-05-18 | G23: Riparto delle disponibilità finanaziarie per il SSR anno 2019 a favore delle ASL e della GSA presso la Regione | I23: =C7+D7 -> 559016190.6 | K23: 03.01.01.01.01
K26: 03.01.01.01.02
A28: AA0040 | B28: Quota F.S. regionale - vincolato: | I28: =SUM(I29:I34) -> 12924579.97
B29: Rimborso farmaci innovativi 2019- Obiettivi PSN | C29: DPF003/160 | F29: 2019-11-28 | G29: Legge 23 dicembre 1996, n. 662, c. 34 e 34-bis, art. 1 "Misure di razionalizzazione della finanza pubblica". Erogazione alle AASSLL della somma trasferita quale rimborso alle Regioni per l'acquisto dei farmaci innovativi - Anno 2019 | I29: 2357218.1 | J29: 0 | K29: 03.01.01.02.12
B30: Rimborso farmaci innovativi oncologici 2019 - Obiettivi PSN | C30: DPF003/159 | F30: 2019-11-28 | G30: Legge 23 dicembre 1996, n. 662, c. 34 e 34-bis, art. 1 "Misure di razionalizzazione della finanza pubblica". Erogazione alle AASSLL della somma trasferita quale rimborso alle Regioni per l'acquisto dei farmaci innovativi oncologici - Anno 2019 | I30: 3033996.06 | J30: 0
B31: Obiettivi di Piano 2019 art. 11 cc. 34 e 34bis L. 662/96 | C31: DPF/64 | F31: 2019-11-29 | G31: Obiettivi di Piano 2019 | I31: 4740235.87 | J31: 0
B32: Obiettivi di Piano 2019 art. 11 cc. 34 e 34bis L. 662/96 | C32: DPF010/30 | F32: 2019-10-14 | G32: Obiettivi di Piano 2019 Prevenzione | I32: 1664771.79 | J32: 0
B33: Sanità Penitenziaria 2019 | C33: DPF015/21 | F33: 2020-04-28 | G33: Attività sanitaria nei confronti dei detenuti internati e dei minorenni sottoposti a provvedimento penale ex DPCM 1 aprile 2008 | I33: 1081066.15 | J33: 0
B34: Prevenzione e assistenza detenuti tossicodipendenti 2019 | C34: DPF15/72 | F34: 2019-12-13 | G34: Finanziamento dello Stato per la prevenzione e l'assistenza dei detenuti tossicodipendenti | I34: 47292 | J34: 0
A35: AA0050 | B35: EXTRA FONDO: | I35: =I36+I57+I68+I50+I51+I52+I54+I60+I73+I74+I76 -> 1219818.04
A36: AA0070 | B36: Contributi da Regione o Prov. Aut. (extra fondo) vincolati: | I36: =SUM(I37:I49) -> 964199.29 | J36: =SUM(J37:J49) -> 964199.29
B37: Protezione soggetti malati celiachia anno 2018 | C37: DPF009/34 | F37: 2019-05-16 | G37: Protezione soggetti malati celiachia anno 2018 | H37: PROTEZIONE MALATI CELIACHIA ANNO 2018 | I37: 24051.23 | J37: =I37 -> 24051.23 | K37: 03.01.02.01.01
B38: Piano regionale GAP anno 2017 | C38: DPF010/05 | F38: 2019-02-07 | G38: Piano regionale GAP anno 2017 DGR 644/2018 - Prevenzione, cura e riabilitazione persone affette da gioco d'azzardo patologico L. 208/15 | H38: PIANO REGIONALE GAP ANNO 2017 DGR 644/2018 - PREVENZIONE, CURA E RIABILITAZIONE PERSONE AFFETTE DA GIOCO D'AZZARDO PATOLOGICO L. 208/15 | I38: 189876.91 | J38: =I38 -> 189876.91
B39: Piano regionale GAP anno 2016 | C39: DPF010/15 | F39: 2019-05-14 | G39: Piano regionale GAP anno 2016 DGR 644/2018 - Prevenzione, cura e riabilitazione persone affette da gioco d'azzardo patologico L. 208/15 | H39: PIANO REGIONALE GAP ANNO 2016 DGR 644/2018 - PREVENZIONE, CURA E RIABILITAZIONE PERSONE AFFETTE DA GIOCO D'AZZARDO PATOLOGICO L. 208/15 | I39: 244375.48 | J39: 244375.48
B40: Contributi integrazione sociale ciechi pluriminorati - anni 2014 2015 2016 | C40: DPF010/22 | F40: 2019-06-20 | G40: L. 284/1997 Prevenzione e riabilitazione visiva ciechi pluriminorati - anni 2014 2015 2016 | H40: L. 284/1997 PREVENZIONE E RIABILITAZIONE VISIVA CIECHI PLURIMINORATI - ANNUALITA' 2014 2015 2016 | I40: 4505.45 | J40: 4505.45
B41: Ricollocamento personale ESACRI - anno 2018 | C41: DPF004/08 | F41: 2019-08-07 | G41: Ricollocamento personale ESACRI presso ASL - anno 2018 | H41: RICOLLOCAMENTO PERSONALE ESACRI ANNO 2018 | I41: 329519.04 | J41: 329519.04
B42: Protezione soggetti malati di celiachia anno 2017 | C42: DPF009/45 | F42: 2019-07-23 | G42: Protezione soggetti malati di celiachia anno 2017 | H42: PROTEZIONE SOGGETTI MALATI CELIACHIA ANNO 2017 | I42: 23203.59 | J42: 23203.59
B43: Prevenzione e riabilitazione visiva ciechi pluriminorati anno 2017 | C43: DPF010/24 | F43: 2019-07-17 | G43: L. 284/1997 Prevenzione e riabilitazione visiva ciechi pluriminorati - anno 2017 | H43: L. 284/1997 PREVENZIONE E RIABILITAZIONE VISIVA CIECHI PLURIMINORATI - ANNUALITA' 2014 2015 2016 | I43: 993.34 | J43: 993.34
B44: Finanziamento 2019 Consultori familiari | C44: DPF015/68 | F44: 2019-12-04 | G44: Consultori familiari 2019 | H44: CONSULTORI FAMILIARI 2019 | I44: 24314.87 | J44: 24314.87
B45: D.LGS. 194/2008 Fondo Servizio Veterinario | C45: DPF011/140 | F45: 2019-12-06 | G45: D.LGS. 194/2008 Fondo Servizio Veterinario | H45: D.LGS. 194/2008 FONDO SERVIZIO VETERINARIO | I45: 7214.2 | J45: 7214.2
B46: Progetto AGENAS 'La valutazione partecipata del grado di umanizzazione delle strutture di ricovero' | C46: DPF007/05 | F46: 2019-12-04 | G46: AGENAS 'Valutazione grado umanizzazione strutture ricovero' | H46: AGENAS 'VALUTAZIONE GRADO UMANIZZAZIONE STRUTTURE RICOVERO' | I46: 1125 | J46: 1125
B47: Prevenzione e riabilitazione visiva ciechi pluriminorati anno 2018 | C47: DPF010/32 | F47: 2019-11-26 | G47: L. 284/1997 Prevenzione e riabilitazione visiva ciechi pluriminorati - anno 2018 | H47: L. 284/1997 PREVENZIONE E RIABILITAZIONE VISIVA CIECHI PLURIMINORATI - ANNUALITA' 2014 2015 2016 | I47: 3814.01 | J47: 3814.01
B48: Rimborso prestazioni sanitarie a favore di stranieri non in regola di cui all'art. 35, c. 6, D. Lgs. n. 286 del 25/07/1998 | C48: DGR 100 | F48: 2020-02-24 | G48: Network per la diagnosi precoce di disturbo dello spettro dell'autismo | H48: NETWORK DIAGNOSI PRECOCE DISTURBO SPETTRO AUTISMO | I48: 30206.17 | J48: 30206.17
B49: Progetto EVA: dall'età evolutiva all'età adulta | C49: DGR 45 | F49: 2019-01-25 | G49: Progetto EVA: dall'età evolutiva all'età adulta | H49: PROGETTO EVA: DALL'ETA' EVOLUTIVA ALL'ETA' ADULTA | I49: 81000 | J49: 81000
A50: AA0080 | B50: Contributi da Regione o Prov. Aut. (extra fondo) - Risorse aggiuntive da bilancio regionale a titolo di copertura LEA | I50: 0
A51: AA0090 | B51: Contributi da Regione o Prov. Aut. (extra fondo) - Risorse aggiuntive da bilancio regionale a titolo di copertura extra LEA | I51: 0
A52: AA0100 | B52: Contributi da Regione o Prov. Aut. (extra fondo) - Altro: | I52: =SUM(I53) -> 216918.16 | J52: =SUM(J53) -> 216918.16
B53: Rimborso prestazioni sanitarie a favore di stranieri non in regola di cui all'art. 35, c. 6, D. Lgs. n. 286 del 25/07/1998 | C53: DPF015/22 | F53: 2020-04-28 | G53: Rimborso prestazioni sanitarie a favore di stranieri non in regola di cui all'art. 35, c. 6, D. Lgs. n. 286 del 25/07/1998 | I53: 216918.16 | J53: 216918.16 | K53: 03.01.02.01.04
A54: AA0120 | B54: Contributi da Aziende sanitarie pubbliche della Regione o Prov. Aut. (extra fondo) vincolati: | I54: 0
B55: Progetto 1 | I55: 0
B56: Progetto …. | I56: 0
A57: AA0130 | B57: Contributi da Aziende sanitarie pubbliche (extra fondo) altro: | I57: =SUM(I58) -> 0
B58: Progetto 1 | I58: 0
B59: Progetto …. | I59: 0
A60: AA0141 | B60: Contributi da Ministero della Salute (extra fondo) | I60: 0
A68: AA0150 | B68: Contributi da altri soggetti pubblici (extra fondo) vincolati: | I68: =SUM(I69:I72) -> 38700.59 | J68: =SUM(J69:J72) -> 38700.59
B69: Comune di Pescara | G69: Contributo Comune di Pescara Mediazione Interculturale | I69: 7500 | J69: 7500 | K69: 03.01.02.03.02
B70: Istituto Superiore di Sanità | G70: Progetto CCM "Infezione e colonizzazione da multiresistenti nell'anziano in RSA | H70: Convenzioni Ministero 780-ISTITUTO SUPERIORE DELLA SANITA' | I70: 1120 | J70: =I70 -> 1120 | K70: 03.01.02.03.06
B71: Regione Abruzzo | C71: DPF009/33 | F71: 2019-05-16 | G71: Contributo modifica strumenti di guida anno 2018 | H71: CONTRIBUTO MODIFICA STRUMENTI DI GUIDA ANNO 2018 | I71: 5820.55 | J71: =I71 -> 5820.55
B72: Regione Abruzzo | C72: DPF013/84 | F72: 2019-07-24 | G72: Contributo portatori grave disabilità psichica e motoria per rimborso spese acquisto ausili informatici anno 2018 | H72: CONTRIBUTO PORTATORI GRAVE DISABILITA' PSICHICA E MOTORIA PER RIMBORSO SPESE ACQUISTO AUSILI INFORMATICI ANNO 2018 | I72: 24260.04 | J72: =I72 -> 24260.04
A73: AA0160 | B73: Contributi da altri soggetti pubblici (extra fondo) L.210/92: | I73: 0
A74: AA0170 | B74: Contributi da altri soggetti pubblici (extra fondo) altro: | I74: 0
B75: …. | I75: 0
A76: AA0171 | B76: Contibuti da altri soggetti pubblici (extra fondo) - in attuazione dell’art.79, c. 1 sexies lettera c) del D.L. 112/2008, convertito con L. 133/2008 e della L. 23 dicembre 2009 n. 191. | I76: 0
B77: PER RICERCA: | I77: 0
A78: AA0190 | B78: Contributi da Ministero della Salute per ricerca corrente: | I78: 0
B79: …. | I79: 0
A80: AA0200 | B80: Contributi da Ministero della Salute per ricerca finalizzata: | I80: 0
B81: Progetto …. | I81: 0
A82: AA0210 | B82: Contributi da Regione ed altri soggetti pubblici per ricerca: | I82: 0
B83: …. | I83: 0
A84: AA0220 | B84: Contributi da privati per ricerca: | I84: 0
B85: …. | I85: 0
A86: AA0230 | B86: CONTRIBUTI DA PRIVATI: | I86: 0
B87: …. | I87: 0
A89: TOTALE CONTRIBUTI IN C/ESERCIZIO | I89: =I22+I35 -> 573160588.6

Sheet Dettaglio voce AA0280
A2: Dettaglio somme vincolate anni precedenti rilevate nella voce AA0280
A4: Descrizione somma vincolata | B4: Anno di competenza | C4: Estremi Provvedimento | D4: Importo in €
A5: Prevenzione e assistenza detenuti tossicodipendenti - Saldo 2018 - D. Lgs. n. 230/1999 | B5: 2018 | C5: DPF015/40 del 20/08/2019 | D5: 9458
A6: Sanità Penitenziaria - Saldo 2018 | B6: 2018 | C6: DPF015/44 del 22/08/2019 | D6: 228242
A7: Extracomunitari irregolari D.Lgs. 286/98 - 2017 | B7: 2017 | C7: DPF015/15 del 27/02/2019 | D7: 149325.14
A8: Extracomunitari irregolari D.Lgs. 286/98 - Acconto 2018 | B8: 2018 | C8: DPF015/32 del 03/06/2019 | D8: 80223.45
A9: Extracomunitari irregolari D.Lgs. 286/98 - Saldo 2018 | B9: 2018 | C9: DPF015/42 del 22/08/2019 | D9: 23358.96
A10: Lotta contro AIDS - 25° corso formazione professionale | C10: DPF004/07 del 16/07/2019 | D10: 67983.01
A11: Obiettivi di piano 2009 | B11: 2009 | C11: DGR n. 246/2009 | D11: 26511.27 | E11: a
A12: Obiettivi di piano 2010 | B12: 2010 | C12: DGR N. 655 del 31/08/2010 | D12: 30868.07 | E12: a
A13: Obiettivi di piano 2011 | B13: 2011 | C13: DGR n. 412 del 15/06/2011 | D13: 233228.6 | E13: a
A14: Obiettivi di Piano 2012 | B14: 2012 | C14: DGR n. 8 del 14/01/2013 | D14: 725233.25 | E14: a
A15: Obiettivi di Piano 2013 | B15: 2013 | C15: DGR n. 269 del 14/04/2014 | D15: 1996570.68 | E15: a
A16: Obiettivi di Piano 2014 | B16: 2014 | C16: DGR n. 812 del 29/09/2015 | D16: 747660.34 | E16: a
A17: Obiettivi di Piano 2015 | B17: 2015 | C17: DGR n. 178 del 22/03/2016 | D17: 1601402.34 | E17: a
A18: Obiettivi di Piano 2016 | B18: 2016 | C18: DGR n. 260/2017 | D18: 1044825.78 | E18: a
A19: Obiettivi di Piano 2017 | B19: 2017 | C19: DGR n. 92/2018 | D19: 1537915.36 | E19: a
A20: Obiettivi di Piano 2018 | B20: 2018 | C20: DGR n. 209/2019 | D20: 6453869.29 | E20: a
A21: Obiettivi di Piano 2018: Sanità penitenziaria 2018 | B21: 2018 | C21: DPF015/19 del 21/03/19 | D21: 725026.74 | E21: a
A22: Obiettivi di Piano 2018: Detenuti tossicodipendenti 2018 | B22: 2018 | C22: DPF015/74 del 20/12/18 | D22: 37833.6 | E22: a
A23: Scarico utilizzo 2019 per acquisto attrezzature | D23: 1824839 | E23: a
A24: TOTALE | D24: =SUM(D5:D23) -> 17544374.88
A28: Somma a : Totale utilizzi contributi da Regione per quota FS vincolato in accordo con Tabella 36 € | D28: =D11+D12+D13+D14+D15+D16+D17+D18+D19+D20+D21+D22+D23 -> 16985784.32

Sheet Tab 52
B1: Tab. 52 – Dettaglio rettifica contributi in conto esercizio per destinazione ad investimenti
A2: CODICE MOD. CE | B2: DETTAGLIO RETTIFICA CONTRIBUTI C/ESERCIZIO PER DESTINAZIONE AD INVESTIMENTI | C2: Contributo assegnato | D2: Quota destinata ad investimenti | E2: Incidenza %
A3: AA0020 | B3: Contributi in c/esercizio da Regione o P.A. per quota F.S. regionale | C3: 571940771 | D3: 3379701.26 | E3: =D3/C3 -> 0.005909180515
A4: AA0060 | B4: Contributi in c/esercizio da Regione o P.A. extra fondo | C4: 1181117 | D4: 0 | E4: =D4/C4 -> 0
A5: AA0110 | B5: Contributi in c/esercizio da aziende sanitarie pubbliche (extra fondo) | C5: 0 | D5: 0
A6: AA0180 | B6: Contributi in c/esercizio per ricerca | C6: 0 | D6: 0
A7: AA0230 | B7: Contributi in c/esercizio da privati | C7: 0 | D7: 0
B8: Totale | C8: =SUM(C3:C7) -> 573121888 | D8: =SUM(D3:D7) -> 3379701.26 | E8: =D8/C8 -> 0.005897002594
A10: L'importo 2019 della "Rettifica contributi in c/esercizio per destinazione ad investimenti - da Regione o Provincia Autonoma per quota F.S. Regionale vicolato" è così determinato:
B11: Descrizione | C11: A | D11: B | E11: A*B
C12: % Rettifica | D12: Investimenti | E12: Importo
B13: Rettifica contributi FSR per acquisto beni anno 2019 | C13: 1 | D13: 3379701.26 | E13: =C13*D13 -> 3379701.26
B14: TOTALE | D14: =SUM(D13:D13) -> 3379701.26 | E14: =SUM(E13:E13) -> 3379701.26
A19: Altre informazioni relative a contributi in conto esercizio
A20: Informazione | C20: Caso presente in azienda? | E20: Se sì, illustrare
A21: CT01. Sono state rilevate significative variazioni rispetto all'esercizio precedente? | C21: SI | E21: L'ammontare dei contribuiti in c/esercizio (voce A1 del Conto Economico ex D.Lgs. 118/2011) subisce, rispetto al 2018, un incremento di circa €/mln 3,3.
E22: Tale aumento è dovuto essenzialmente alle maggiori somme assegnate nell'esercizio 2019 per quota FSR indistinta rispetto al 2018 (per circa €/mln 2,7), e dalle maggiori assegnazioni per quota FSR vincolato (per circa €/mln 0,6). In particolare, l'incremento della quota FSR indistinta è riconducibile all'aumento del finanziamento per quota capitaria, mentre ll'incremento del finanziamento vincolato è dovuto alle maggiori delle somme assegnate, riferite agli anni 2016, 2017 e 2018 , a valere sull'esercizio 2019, per la prevenzione e cura delle patologie riferite al Gioco d'Azzardo Patologico.

Sheet Tab 52bis
A2: Tab. 52 bis – Dettaglio PAY BACK
A4: Ricavi per Payback consuntivo 2019
A6: PAY-BACK 2018 VOCE CE AA0920 "Ulteriore Pay-back" VOCE PDC 03.04.05.01.03
A7: DETERMINAZIONI | B7: ASL 203
A8: Sconto 1,83% II° semestre 2018 accertato ed impegnato con DPF003/129 del 18/09/2019 e liquidato con la DPF003/130 del 19/09/2019 | B8: 513222.68
A9: Pay Back" Specialità medicinali varie" accertato e impegnato con DPF003/155 del 20/11/2019. | B9: 383282.33
A10: Sconto 1,83% I° semestre 2019 accertato impegnato con DPF003/ 184 del 31.12.2019 . | B10: 520757.02
A11: Pay Back 5% accertato e impegnato con DPF003/186 del 31.12.2019 | B11: 646300.09
A12: Condizioni negoziali da applicarsi in ragione della scadenza degli effetti degli accordi stipulati ai sensi dell'articolo 11, comma 1, del decreto-legge n. 158/2012. (Determina DG n. 473/2019). accertato e impegnato con DPF003/161 del 28/11/2019 | B12: 91298.05
A13: Condizioni negoziali da applicarsi in ragione della scadenza degli effetti degli accordi stipulati ai sensi dell'articolo 11, comma 1, del decreto-legge n. 158/2012. (Determina DG n. 473/2019). " accertato e impegnato con DPF003/185 del31/12/2019. | B13: 47853.51
A14: Rinegozazione del prezzo di rimborso dei medicinali a carico del SSN specialità medicinali varie accertato e impegnato con DPF003/172 del 10/12/2019 specialità medicinali varie | B14: 274754.27
A15: Totale voce CE AA0920 | B15: =SUM(B8:B14) -> 2477467.95
A18: I Ricavi per Pay-back 2019 sono stati contabilizzati nella voce CE AA0920 "Ulteriore Pay-Back"
A19: secondo gli importi comunicati dalla Regione nelle Linee Guida alla redazione del Bilancio
A20: di Esercizio 2019 (Nota prot. n. RA/0145029/20/DPF012 del 18/05/2020 ).
A22: Non sono stati iscritti nel 2019 ulteriori importi rispetto a quelli comunicati dalla Regione nelle
A23: Linee Guida alla redazione del Bilancio di Esercizio 2019.

Sheet Tab 53
A1: 18. Proventi e ricavi diversi
B3: Tab. 53 – Dettaglio ricavi per prestazioni sanitarie in mobilità
A4: CODICE MOD. CE | B4: DETTAGLIO RICAVI PER PRESTAZIONI SANITARIE IN MOBILITA' | C4: PUBBLICO | F4: PRIVATO | I4: TOTALE
C5: Avezzano-Sulmona-L'Aquila | D5: Lanciano-Vasto-Chieti | E5: Teramo | F5: Avezzano-Sulmona-L'Aquila | G5: Lanciano-Vasto-Chieti | H5: Teramo | K5: VALORE CE | L5: Diff | M5: Ctrl
B6: RICAVI DA MOBILITA' SANITARIA INFRAREGIONALE (A) | C6: =SUM(C7:C21) -> 10536502.67 | D6: 32311099.95 | E6: 11343340.32 | F6: 5024822.01 | G6: 29230264.53 | H6: 14030202.84 | I6: =I7+I8+I10+I11+I12+I13+I14+I15+I21 -> 102476232.3 | K6: =SUM(K7:K24) -> 102476232.3
A7: AA0350 | B7: Prestazioni di ricovero | C7: 5945759.68 | D7: 18789551.18 | E7: 5724018.84 | F7: 2924659.34 | G7: 20847556.03 | H7: 10760989.27 | I7: =SUM(C7:H7) -> 64992534.34 | K7: =SUMIF('00 CE'!B:B,'Tab 53'!A7,'00 CE'!G:G) -> 64992534.34 | L7: =I7-K7 -> 0 | M7: =IF(L7=0,"OK"," CTRL") -> OK
A8: AA0360 | B8: Prestazioni di specialistica ambulatoriale | C8: 1433596.06 | D8: 3564960.53 | E8: 1620198.18 | F8: 74919.19 | G8: 1405582.94 | H8: 920694.67 | I8: 9019951.57 | K8: =SUMIF('00 CE'!B:B,'Tab 53'!A8,'00 CE'!G:G) -> 9019951.57 | L8: =I8-K8 -> 0 | M8: =IF(L8=0,"OK"," CTRL") -> OK
A9: AA0361 | B9: Prestazioni di pronto soccorso non seguite da ricovero | C9: 0 | D9: 0 | E9: 0 | F9: 0 | G9: 0 | H9: 0 | I9: 0 | K9: =SUMIF('00 CE'!B:B,'Tab 53'!A9,'00 CE'!G:G) -> 0 | L9: 0 | M9: OK
A10: AA0370 | B10: Prestazioni di psichiatria residenziale e semiresidenziale | C10: 0 | D10: 0 | E10: 0 | F10: 652436.01 | G10: 3004755.76 | H10: 1042539.86 | I10: 4699731.63 | K10: =SUMIF('00 CE'!B:B,'Tab 53'!A10,'00 CE'!G:G) -> 4699731.63 | L10: 0 | M10: OK
A11: AA0380 | B11: Prestazioni di File F | C11: 2808499.76 | D11: 8948254.99 | E11: 3536485.75 | F11: 0 | G11: 0 | H11: 0 | I11: 15293240.5 | K11: =SUMIF('00 CE'!B:B,'Tab 53'!A11,'00 CE'!G:G) -> 15293240.5 | L11: 0 | M11: OK
A12: AA0390 | B12: Prestazioni servizi MMG, PLS, Contin. assistenziale | C12: 35100.18 | D12: 76086.36 | E12: 27978.12 | F12: 0 | G12: 0 | H12: 0 | I12: 139164.66 | K12: =SUMIF('00 CE'!B:B,'Tab 53'!A12,'00 CE'!G:G) -> 139164.66 | L12: 0 | M12: OK
A13: AA0400 | B13: Prestazioni servizi farmaceutica convenzionata | C13: 276981.58 | D13: 806194.43 | E13: 381783.72 | F13: 0 | G13: 0 | H13: 0 | I13: 1464959.73 | K13: =SUMIF('00 CE'!B:B,'Tab 53'!A13,'00 CE'!G:G) -> 1464959.73 | L13: 0 | M13: OK
A14: AA0410 | B14: Prestazioni termali | C14: 0 | D14: 0 | E14: 0 | F14: 316040.91 | G14: 453683.35 | H14: 55649.51 | I14: 825373.77 | K14: =SUMIF('00 CE'!B:B,'Tab 53'!A14,'00 CE'!G:G) -> 825373.77 | L14: 0 | M14: OK
A15: AA0420 | B15: Prestazioni trasporto ambulanze ed elisoccorso | C15: 36565.41 | D15: 126052.46 | E15: 52875.71 | F15: 0 | G15: 0 | H15: 0 | I15: 215493.58 | K15: =SUMIF('00 CE'!B:B,'Tab 53'!A15,'00 CE'!G:G) -> 215493.58 | L15: 0 | M15: OK
A16: AA0421 | B16: Prestazioni assistenza integrativa | C16: 0 | D16: 0 | E16: 0 | F16: 0 | G16: 0 | H16: 0 | I16: 0 | K16: =SUMIF('00 CE'!B:B,'Tab 53'!A16,'00 CE'!G:G) -> 0 | L16: 0 | M16: OK
A17: AA0422 | B17: Prestazioni assistenza protesica | C17: 0 | D17: 0 | E17: 0 | F17: 0 | G17: 0 | H17: 0 | I17: 0 | K17: =SUMIF('00 CE'!B:B,'Tab 53'!A17,'00 CE'!G:G) -> 0 | L17: 0 | M17: OK
A18: AA0423 | B18: Prestazioni assistenza riabilitativa extraospedaliera | C18: 0 | D18: 0 | E18: 0 | F18: 0 | G18: 0 | H18: 0 | I18: 0 | K18: =SUMIF('00 CE'!B:B,'Tab 53'!A18,'00 CE'!G:G) -> 0 | L18: 0 | M18: OK
A19: AA0424 | B19: Ricavi per cessione di emocomponenti e cellule staminali | C19: 0 | D19: 0 | E19: 0 | F19: 0 | G19: 0 | H19: 0 | I19: 0 | K19: =SUMIF('00 CE'!B:B,'Tab 53'!A19,'00 CE'!G:G) -> 0 | L19: 0 | M19: OK
A20: AA0425 | B20: Prestazioni assistenza domiciliare integrata (ADI) | C20: 0 | D20: 0 | E20: 0 | F20: 0 | G20: 0 | H20: 0 | I20: 0 | K20: =SUMIF('00 CE'!B:B,'Tab 53'!A20,'00 CE'!G:G) -> 0 | L20: 0 | M20: OK
A21: AA0430 | B21: Altre prestazioni sanitarie e socio-sanitarie | C21: 0 | D21: 0 | E21: 0 | F21: 1056766.56 | G21: 3518686.45 | H21: 1250329.53 | I21: 5825782.54 | K21: =SUMIF('00 CE'!B:B,'Tab 53'!A21,'00 CE'!G:G) -> 5825782.54 | L21: 0 | M21: OK
B23: RICAVI DA MOBILITA' SANITARIA EXTRAREGIONALE (B) | C23: =SUM(C24:C39) -> 0 | D23: 0 | E23: 0 | F23: 0 | G23: 0 | H23: 0 | I23: =I24+I25+I27+I28+I29+I30+I31+I32+I33+I35+I39+I36+I37+I38 -> 26599996.27
A24: AA0460 | B24: Prestazioni di ricovero | I24: =SUMIF('00 CE'!B:B,'Tab 53'!A24,'00 CE'!G:G) -> 11878307.28
A25: AA0470 | B25: Prestazioni di specialistica ambulatoriale | I25: =SUMIF('00 CE'!B:B,'Tab 53'!A25,'00 CE'!G:G) -> 2030527.06
A26: AA0471 | B26: Prestazioni pronto soccorso non seguite da ricovero | I26: =SUMIF('00 CE'!B:B,'Tab 53'!A26,'00 CE'!G:G) -> 0
A27: AA0480 | B27: Prestazioni di psichiatria residenziale e semiresidenziale | I27: =SUMIF('00 CE'!B:B,'Tab 53'!A27,'00 CE'!G:G) -> 0
A28: AA0490 | B28: Prestazioni di File F | I28: =SUMIF('00 CE'!B:B,'Tab 53'!A28,'00 CE'!G:G) -> 1915086.72
A29: AA0500 | B29: Prestazioni servizi MMG, PLS, Contin. assistenziale | I29: =SUMIF('00 CE'!B:B,'Tab 53'!A29,'00 CE'!G:G) -> 19433.84
A30: AA0510 | B30: Prestazioni servizi farmaceutica convenzionata | I30: =SUMIF('00 CE'!B:B,'Tab 53'!A30,'00 CE'!G:G) -> 1142996.67
A31: AA0520 | B31: Prestazioni termali | I31: =SUMIF('00 CE'!B:B,'Tab 53'!A31,'00 CE'!G:G) -> 237345.51
A32: AA0530 | B32: Prestazioni trasporto ambulanze ed elisoccorso | I32: =SUMIF('00 CE'!B:B,'Tab 53'!A32,'00 CE'!G:G) -> 309535.11
A33: AA0541 | B33: Prestazioni assistenza integrativa da pubblico (extraregione) | I33: =SUMIF('00 CE'!B:B,'Tab 53'!A33,'00 CE'!G:G) -> 0
A34: AA0542 | B34: Prestazioni assistenza protesica da pubblico (extraregione) | I34: =SUMIF('00 CE'!B:B,'Tab 53'!A34,'00 CE'!G:G) -> 0
A35: AA0550 | B35: Ricavi per cessione di emocomponenti e cellule staminali | I35: =SUMIF('00 CE'!B:B,'Tab 53'!A35,'00 CE'!G:G) -> 45357.06
A36: AA0560 | B36: Ricavi per differenziale tariffe TUC | I36: =SUMIF('00 CE'!B:B,'Tab 53'!A36,'00 CE'!G:G) -> 0
A37: AA0620 | B37: Prestazioni di ricovero da privati Extraregione in compensazione (mobilità attiva) | I37: =SUMIF('00 CE'!B:B,'Tab 53'!A37,'00 CE'!G:G) -> 8426930.48
A38: AA0630 | B38: Prestazioni ambulatoriali da privati Extraregione in compensazione (mobilità attiva) | I38: =SUMIF('00 CE'!B:B,'Tab 53'!A38,'00 CE'!G:G) -> 200940.4
A39: AA0600 | B39: Altre prestazioni sanitarie a rilevanza sanitaria - Mobilità attiva Internazionale | I39: =SUMIF('00 CE'!B:B,'Tab 53'!A39,'00 CE'!G:G) -> 393536.14
B41: TOTALE RICAVI DA MOBILITA' (A+B) | C41: =C6+C23 -> 10536502.67 | D41: 32311099.95 | E41: 11343340.32 | F41: 5024822.01 | G41: 29230264.53 | H41: 14030202.84 | I41: 129076228.6
B43: RICAVI PER PRESTAZIONI OGGETTO DI FATTURAZIONE DIRETTA INFRAREGIONALE (C) | C43: 48630.48 | D43: 134319.37 | E43: 16943.96 | F43: 0 | G43: 0 | H43: 0 | I43: =C43+D43+E43+F43+G43+H43 -> 199893.81
A45: AA0570 | B45: RICAVI PER PREST. OGGETTO DI FATTUR. DIRETTA EXTRAREGIONALE (D) | I45: 7192
B47: TOTALE RICAVI PER PREST. OGGETTO DI FATTURAZ. DIRETTA (C+D) | C47: =C43+C45 -> 48630.48 | D47: 134319.37 | E47: 16943.96 | F47: 0 | G47: 0 | H47: 0 | I47: =I43+I45 -> 207085.81
B49: TOTALE RICAVI AZIENDE REGIONE (A+C) | C49: =C6+C43 -> 10585133.15 | D49: 32445419.32 | E49: 11360284.28 | F49: 5024822.01 | G49: 29230264.53 | H49: 14030202.84 | I49: 102676126.1
B50: TOTALE RICAVI AZIENDE EXTRA REGIONE (B+D) | I50: =I23+I45 -> 26607188.27
B51: TOTALE RICAVI AZIENDE SANITARIE PUBBLICHE (A+B+C+D) | C51: =C41+C43+C45 -> 10585133.15 | D51: 32445419.32 | E51: 11360284.28 | F51: 5024822.01 | G51: 29230264.53 | H51: 14030202.84 | I51: =I49+I50 -> 129283314.4
A54: Nella riga "Ricavi per prestazioni oggetto di fatturazione diretta infraregionale" sono stati inseriti i ricavi conseguiti dall'Azienda nei confronti delle AASSLL della Regione per prestazioni fuori mobilità, oggetto di fatturazione diretta. Tali valori sono stati riconciliati con le AASSLL della Regione alla data del 31/12/2019.
A58: TABELLA DI RACCORDO - DETTAGLIO PER PRESTAZIONI SANITARIE IN MOBILITA'
A59: Voce CE | B59: Descrizione | C59: Importo | D59: Voce CE D.Lgs. 118/2011
A60: AA0340 | B60: Ricavi da mobilità sanitaria infraregionale | C60: 102476232.5 | D60: A4 a) | E60: a)
A61: AA0450 | B61: Ricavi da mobilità sanitaria extraregionale | C61: =17979317-C62 -> 17972125 | E61: a)
A62: AA0450 | B62: Ricavi da mobilità sanitaria extraregionale (oggetto di fatturazione diretta) | C62: 7192
A63: AA0610 | B63: Ricavi per prestazioni sanitarie e sociosanitarie a rilevanza sanitaria erogate da privati v/residenti extraregione in compensazione | C63: 8627871.45 | E63: a)
A64: AA0670 | B64: Ricavi per prestazioni sanitarie erogate in regime intramoenia | C64: 3928724 | D64: A4 b)
A65: AA0440 | B65: Ricavi per prestazioni sanitarie e sociosanitarie a rilevanza sanitaria erogate ad altri soggetti pubblici | C65: 56370 | D65: A4 c)
A66: AA0660 | B66: Ricavi per prestazioni sanitarie e sociosanitarie a rilevanza sanitaria erogate a privati | C66: 3619506
A67: Totale ricavi per prestazioni sanitarie e sociosanitarie a rilevanza sanitaria | C67: =SUM(C60:C66) -> 136688020.9 | D67: A 4
A69: Somma a | B69: Totale ricavi da mobilità sanitaria | C69: =C60+C61+C63 -> 129076228.9 | D69: in accordo con Tabella 53
A72: I ricavi di mobilità sono aumentati, rispetto al precedente esercizio, di circa 6.282€/000. Detto incremento è stato determinato per €/000 2.966 dall'aumento dei ricavi per mobilità sanitaria infraregionale e per €/000 3.313 dall'aumento dei ricavi da mobilità sanitaria extraregionale. Nello specifico, la mobilità sanitaria infraregionale è aumentata nel corso del 2019 per effetto sia dell'incremento della mobilità sanitaria da pubblico, in particolare nei confronti della ASL di Lanciano-Vasto-Chieti con riferimento ai ricavi per File F (€/000 1.108, sia dell'incremento della mobilità sanitaria da privato, soprattutto a seguito dell'aumento dei ricavi per prestazioni di ricovero nei confronti della ASL di Teramo (€/000 1.748) . L'incremento dei ricavi per mobilità sanitaria extraregionale è principalmente ascrivibile all'aumento dei ricavi per prestazioni di ricovero (per €/000 2.699), per prestazioni di servizi di assistenza Farmaceutica Convenzionata (€/000 636) e per prestazioni di assistenza specialistica ambulatoriale (€/000 553) erogate a cittadini residenti al di fuori del territorio regionale. E' opportuno precisare che la mobilità extra regionale viene contabilizzata con due anni di ritardo rispetto all'esercizio di competenza e, come stabilisce il D. Lgs. n. 118/2011, la rilevazione contabile vine e effettuata al netto (+ o -) degli eventuali conguagli.

Sheet Tab 53 riclassifica regionale
A1: 18. Proventi e ricavi diversi
B3: Tab. 53 – Dettaglio ricavi per prestazioni sanitarie in mobilità ( riclassifica regionale)
A4: CODICE MOD. CE | B4: DETTAGLIO RICAVI PER PRESTAZIONI SANITARIE IN MOBILITA' | C4: PUBBLICO | F4: PRIVATO | I4: TOTALE
C5: Avezzano-Sulmona-L'Aquila | D5: Lanciano-Vasto-Chieti | E5: Teramo | F5: Avezzano-Sulmona-L'Aquila | G5: Lanciano-Vasto-Chieti | H5: Teramo | K5: VALORE CE | L5: Diff | M5: Ctrl
B6: RICAVI DA MOBILITA' SANITARIA INFRAREGIONALE (A) | C6: =SUM(C7:C21) -> 10536502.67 | D6: 32311099.95 | E6: 11343340.32 | F6: 5024822.01 | G6: 29230264.53 | H6: 14030202.84 | I6: =I7+I8+I10+I11+I12+I13+I14+I15+I21 -> 102476232.3 | K6: =SUM(K7:K24) -> 102476232.3
A7: AA0350 | B7: Prestazioni di ricovero | C7: 5945759.68 | D7: 18789551.18 | E7: 5724018.84 | F7: 2924659.34 | G7: 20847556.03 | H7: 10760989.27 | I7: =SUM(C7:H7) -> 64992534.34 | K7: =SUMIF('00 CE'!B:B,'Tab 53 riclassifica regionale'!A7,'00 CE'!G:G) -> 64992534.34 | L7: =I7-K7 -> 0 | M7: =IF(L7=0,"OK"," CTRL") -> OK
A8: AA0360 | B8: Prestazioni di specialistica ambulatoriale | C8: 1433596.06 | D8: 3564960.53 | E8: 1620198.18 | F8: 74919.19 | G8: 1405582.94 | H8: 920694.67 | I8: 9019951.57 | K8: =SUMIF('00 CE'!B:B,'Tab 53 riclassifica regionale'!A8,'00 CE'!G:G) -> 9019951.57 | L8: =I8-K8 -> 0 | M8: =IF(L8=0,"OK"," CTRL") -> OK
A9: AA0361 | B9: Prestazioni di pronto soccorso non seguite da ricovero | C9: 0 | D9: 0 | E9: 0 | F9: 0 | G9: 0 | H9: 0 | I9: 0 | K9: =SUMIF('00 CE'!B:B,'Tab 53 riclassifica regionale'!A9,'00 CE'!G:G) -> 0 | L9: 0 | M9: OK
A10: AA0370 | B10: Prestazioni di psichiatria residenziale e semiresidenziale | C10: 0 | D10: 0 | E10: 0 | F10: 652436.01 | G10: 3004755.76 | H10: 1042539.86 | I10: 4699731.63 | K10: =SUMIF('00 CE'!B:B,'Tab 53 riclassifica regionale'!A10,'00 CE'!G:G) -> 4699731.63 | L10: 0 | M10: OK
A11: AA0380 | B11: Prestazioni di File F | C11: 2808499.76 | D11: 8948254.99 | E11: 3536485.75 | F11: 0 | G11: 0 | H11: 0 | I11: 15293240.5 | K11: =SUMIF('00 CE'!B:B,'Tab 53 riclassifica regionale'!A11,'00 CE'!G:G) -> 15293240.5 | L11: 0 | M11: OK
A12: AA0390 | B12: Prestazioni servizi MMG, PLS, Contin. assistenziale | C12: 35100.18 | D12: 76086.36 | E12: 27978.12 | F12: 0 | G12: 0 | H12: 0 | I12: 139164.66 | K12: =SUMIF('00 CE'!B:B,'Tab 53 riclassifica regionale'!A12,'00 CE'!G:G) -> 139164.66 | L12: 0 | M12: OK
A13: AA0400 | B13: Prestazioni servizi farmaceutica convenzionata | C13: 276981.58 | D13: 806194.43 | E13: 381783.72 | F13: 0 | G13: 0 | H13: 0 | I13: 1464959.73 | K13: =SUMIF('00 CE'!B:B,'Tab 53 riclassifica regionale'!A13,'00 CE'!G:G) -> 1464959.73 | L13: 0 | M13: OK
A14: AA0410 | B14: Prestazioni termali | C14: 0 | D14: 0 | E14: 0 | F14: 316040.91 | G14: 453683.35 | H14: 55649.51 | I14: 825373.77 | K14: =SUMIF('00 CE'!B:B,'Tab 53 riclassifica regionale'!A14,'00 CE'!G:G) -> 825373.77 | L14: 0 | M14: OK
A15: AA0420 | B15: Prestazioni trasporto ambulanze ed elisoccorso | C15: 36565.41 | D15: 126052.46 | E15: 52875.71 | F15: 0 | G15: 0 | H15: 0 | I15: 215493.58 | K15: =SUMIF('00 CE'!B:B,'Tab 53 riclassifica regionale'!A15,'00 CE'!G:G) -> 215493.58 | L15: 0 | M15: OK
A16: AA0421 | B16: Prestazioni assistenza integrativa | C16: 0 | D16: 0 | E16: 0 | F16: 0 | G16: 0 | H16: 0 | I16: 0 | K16: =SUMIF('00 CE'!B:B,'Tab 53 riclassifica regionale'!A16,'00 CE'!G:G) -> 0 | L16: 0 | M16: OK
A17: AA0422 | B17: Prestazioni assistenza protesica | C17: 0 | D17: 0 | E17: 0 | F17: 0 | G17: 0 | H17: 0 | I17: 0 | K17: =SUMIF('00 CE'!B:B,'Tab 53 riclassifica regionale'!A17,'00 CE'!G:G) -> 0 | L17: 0 | M17: OK
A18: AA0423 | B18: Prestazioni assistenza riabilitativa extraospedaliera | C18: 0 | D18: 0 | E18: 0 | F18: 0 | G18: 0 | H18: 0 | I18: 0 | K18: =SUMIF('00 CE'!B:B,'Tab 53 riclassifica regionale'!A18,'00 CE'!G:G) -> 0 | L18: 0 | M18: OK
A19: AA0424 | B19: Ricavi per cessione di emocomponenti e cellule staminali | C19: 0 | D19: 0 | E19: 0 | F19: 0 | G19: 0 | H19: 0 | I19: 0 | K19: =SUMIF('00 CE'!B:B,'Tab 53 riclassifica regionale'!A19,'00 CE'!G:G) -> 0 | L19: 0 | M19: OK
A20: AA0425 | B20: Prestazioni assistenza domiciliare integrata (ADI) | C20: 0 | D20: 0 | E20: 0 | F20: 0 | G20: 0 | H20: 0 | I20: 0 | K20: =SUMIF('00 CE'!B:B,'Tab 53 riclassifica regionale'!A20,'00 CE'!G:G) -> 0 | L20: 0 | M20: OK
A21: AA0430 | B21: Altre prestazioni sanitarie e socio-sanitarie | C21: 0 | D21: 0 | E21: 0 | F21: 1056766.56 | G21: 3518686.45 | H21: 1250329.53 | I21: 5825782.54 | K21: =SUMIF('00 CE'!B:B,'Tab 53 riclassifica regionale'!A21,'00 CE'!G:G) -> 5825782.54 | L21: 0 | M21: OK
B23: RICAVI DA MOBILITA' SANITARIA EXTRAREGIONALE (B) | C23: =SUM(C24:C46) -> 0 | D23: 0 | E23: 0 | F23: 0 | G23: 0 | H23: 0 | I23: =I24+I25+I27+I28+I29+I30+I31+I32+I33+I35+I36+I40+I41 -> 26206460.13
A24: AA0460 | B24: Prestazioni di ricovero | I24: =SUMIF('00 CE'!B:B,'Tab 53 riclassifica regionale'!A24,'00 CE'!G:G) -> 11878307.28
A25: AA0470 | B25: Prestazioni di specialistica ambulatoriale | I25: =SUMIF('00 CE'!B:B,'Tab 53 riclassifica regionale'!A25,'00 CE'!G:G) -> 2030527.06
A26: AA0471 | B26: Prestazioni pronto soccorso non seguite da ricovero | I26: =SUMIF('00 CE'!B:B,'Tab 53 riclassifica regionale'!A26,'00 CE'!G:G) -> 0
A27: AA0480 | B27: Prestazioni di psichiatria residenziale e semiresidenziale | I27: =SUMIF('00 CE'!B:B,'Tab 53 riclassifica regionale'!A27,'00 CE'!G:G) -> 0
A28: AA0490 | B28: Prestazioni di File F | I28: =SUMIF('00 CE'!B:B,'Tab 53 riclassifica regionale'!A28,'00 CE'!G:G) -> 1915086.72
A29: AA0500 | B29: Prestazioni servizi MMG, PLS, Contin. assistenziale | I29: =SUMIF('00 CE'!B:B,'Tab 53 riclassifica regionale'!A29,'00 CE'!G:G) -> 19433.84
A30: AA0510 | B30: Prestazioni servizi farmaceutica convenzionata | I30: =SUMIF('00 CE'!B:B,'Tab 53 riclassifica regionale'!A30,'00 CE'!G:G) -> 1142996.67
A31: AA0520 | B31: Prestazioni termali | I31: =SUMIF('00 CE'!B:B,'Tab 53 riclassifica regionale'!A31,'00 CE'!G:G) -> 237345.51
A32: AA0530 | B32: Prestazioni trasporto ambulanze ed elisoccorso | I32: =SUMIF('00 CE'!B:B,'Tab 53 riclassifica regionale'!A32,'00 CE'!G:G) -> 309535.11
A33: AA0541 | B33: Prestazioni assistenza integrativa da pubblico (extraregione) | I33: =SUMIF('00 CE'!B:B,'Tab 53 riclassifica regionale'!A33,'00 CE'!G:G) -> 0
A34: AA0542 | B34: Prestazioni assistenza protesica da pubblico (extraregione) | I34: =SUMIF('00 CE'!B:B,'Tab 53 riclassifica regionale'!A34,'00 CE'!G:G) -> 0
A35: AA0550 | B35: Ricavi per cessione di emocomponenti e cellule staminali | I35: =SUMIF('00 CE'!B:B,'Tab 53 riclassifica regionale'!A35,'00 CE'!G:G) -> 45357.06
A36: AA0560 | B36: Ricavi per differenziale tariffe TUC | I36: =SUMIF('00 CE'!B:B,'Tab 53 riclassifica regionale'!A36,'00 CE'!G:G) -> 0
A37: AA0561 | B37: Altre prestazioni sanitarie e sociosanitarie a rilevanza sanitaria non soggette a compensazione Extraregione | I37: =SUMIF('00 CE'!B:B,'Tab 53 riclassifica regionale'!A37,'00 CE'!G:G) -> 0
A38: AA0580 | B38: Altre prestazioni sanitarie e sociosanitarie a rilevanza sanitaria non soggette a compensazione Extraregione | I38: =SUMIF('00 CE'!B:B,'Tab 53 riclassifica regionale'!A38,'00 CE'!G:G) -> 0
A39: AA0590 | B39: Prestazioni di assistenza riabilitativa non soggette a compensazione Extraregione | I39: =SUMIF('00 CE'!B:B,'Tab 53 riclassifica regionale'!A39,'00 CE'!G:G) -> 7192.04
A40: AA0620 | B40: Prestazioni di ricovero da privati Extraregione in compensazione (mobilità attiva) | I40: =SUMIF('00 CE'!B:B,'Tab 53 riclassifica regionale'!A40,'00 CE'!G:G) -> 8426930.48
A41: AA0630 | B41: Prestazioni ambulatoriali da privati Extraregione in compensazione (mobilità attiva) | I41: =SUMIF('00 CE'!B:B,'Tab 53 riclassifica regionale'!A41,'00 CE'!G:G) -> 200940.4
A42: AA0631 | B42: Prestazioni di pronto soccorso non seguite da ricovero da priv. Extraregione in compensazione (mobilità attiva) | I42: =SUMIF('00 CE'!B:B,'Tab 53 riclassifica regionale'!A42,'00 CE'!G:G) -> 0
A43: AA0640 | B43: Prestazioni di File F da priv. Extraregione in compensazione (mobilità attiva) | I43: =SUMIF('00 CE'!B:B,'Tab 53 riclassifica regionale'!A43,'00 CE'!G:G) -> 0
A44: AA0650 | B44: Altre prestazioni sanitarie e sociosanitarie a rilevanza sanitaria erogate da privati v/residenti Extraregione in compensazione (mobilità attiva) | I44: =SUMIF('00 CE'!B:B,'Tab 53 riclassifica regionale'!A44,'00 CE'!G:G) -> 0
A45: EA0080 | B45: Sopravvenienze attive v/terzi relative alla mobilità extraregionale | I45: =SUMIF('00 CE'!B:B,'Tab 53 riclassifica regionale'!A45,'00 CE'!G:G) -> 0
A46: EA0180 | B46: Insussistenze attive v/terzi relative alla mobilità extraregionale | I46: =SUMIF('00 CE'!B:B,'Tab 53 riclassifica regionale'!A46,'00 CE'!G:G) -> 0
B48: TOTALE RICAVI DA MOBILITA' (A+B) | C48: =C6+C23 -> 10536502.67 | D48: 32311099.95 | E48: 11343340.32 | F48: 5024822.01 | G48: 29230264.53 | H48: 14030202.84 | I48: 128682692.4
B50: RICAVI PER PRESTAZIONI OGGETTO DI FATTURAZIONE DIRETTA INFRAREGIONALE (C) | C50: 48630.48 | D50: 134319.37 | E50: 16943.96 | F50: 0 | G50: 0 | H50: 0 | I50: =C50+D50+E50+F50+G50+H50 -> 199893.81
A52: AA0570 | B52: RICAVI PER PREST. OGGETTO DI FATTUR. DIRETTA EXTRAREGIONALE (D) | I52: 7192
B54: TOTALE RICAVI PER PREST. OGGETTO DI FATTURAZ. DIRETTA (C+D) | C54: =C50+C52 -> 48630.48 | D54: 134319.37 | E54: 16943.96 | F54: 0 | G54: 0 | H54: 0 | I54: =I50+I52 -> 207085.81
B56: TOTALE RICAVI AZIENDE REGIONE (A+C) | C56: =C6+C50 -> 10585133.15 | D56: 32445419.32 | E56: 11360284.28 | F56: 5024822.01 | G56: 29230264.53 | H56: 14030202.84 | I56: 102676126.1
B57: TOTALE RICAVI AZIENDE EXTRA REGIONE (B+D) | I57: =I23+I52 -> 26213652.13
B58: TOTALE RICAVI AZIENDE SANITARIE PUBBLICHE (A+B+C+D) | C58: =C48+C50+C52 -> 10585133.15 | D58: 32445419.32 | E58: 11360284.28 | F58: 5024822.01 | G58: 29230264.53 | H58: 14030202.84 | I58: =I56+I57 -> 128889778.3

Sheet Tab 54
B1: Tab. 54 – Dettaglio ricavi e costi per prestazioni sanitarie erogate in regime di intramoenia
A2: CODICE MOD. CE | B2: PRESTAZIONI SANITARIE EROGATE IN REGIME DI INTRAMOENIA | C2: ="Valore CE " &'00 Aggregatore'!$F$2 -> Valore CE 2019 | D2: ="Valore CE " &'00 Aggregatore'!$F$2 -1 -> Valore CE 2018 | E2: Variazioni importo | F2: %
A4: AA0680 | B4: Ricavi per prestazioni sanitarie intramoenia - Area ospedaliera | C4: =SUMIF('00 CE'!$B:$B,'Tab 54'!$A4,'00 CE'!G:G) -> 97957.71 | D4: =SUMIF('00 CE'!$B:$B,'Tab 54'!$A4,'00 CE'!F:F) -> 80436.56 | E4: =C4-D4 -> 17521.15 | F4: =IF(AND(C4=0,D4=0),0,IF(C4=0,"",IF(D4=0,"",E4/D4))) -> 0.2178257002
A5: AA0690 | B5: Ricavi per prestazioni sanitarie intramoenia - Area specialistica | C5: =SUMIF('00 CE'!$B:$B,'Tab 54'!$A5,'00 CE'!G:G) -> 3340368 | D5: =SUMIF('00 CE'!$B:$B,'Tab 54'!$A5,'00 CE'!F:F) -> 3326104 | E5: =C5-D5 -> 14264 | F5: =IF(AND(C5=0,D5=0),0,IF(C5=0,"",IF(D5=0,"",E5/D5))) -> 0.004288500901
A6: AA0700 | B6: Ricavi per prestazioni sanitarie intramoenia - Area sanità pubblica | C6: =SUMIF('00 CE'!$B:$B,'Tab 54'!$A6,'00 CE'!G:G) -> 16412.46 | D6: =SUMIF('00 CE'!$B:$B,'Tab 54'!$A6,'00 CE'!F:F) -> 17534.57 | E6: =C6-D6 -> -1122.11 | F6: -0.06399415555
A7: AA0710 | B7: Ricavi per prestazioni sanitarie intramoenia - Consulenze (ex art. 55 c.1 lett. c), d) ed ex art. 57-58) | C7: =SUMIF('00 CE'!$B:$B,'Tab 54'!$A7,'00 CE'!G:G) -> 385532.67 | D7: =SUMIF('00 CE'!$B:$B,'Tab 54'!$A7,'00 CE'!F:F) -> 677848.85 | E7: =C7-D7 -> -292316.18 | F7: -0.431240947
A8: AA0720 | B8: Ricavi per prestazioni sanitarie intramoenia - Consulenze (ex art. 55 c.1 lett. c), d) ed ex art. 57-58) (Aziende sanitarie pubbliche della Regione) | C8: =SUMIF('00 CE'!$B:$B,'Tab 54'!$A8,'00 CE'!G:G) -> 0 | D8: =SUMIF('00 CE'!$B:$B,'Tab 54'!$A8,'00 CE'!F:F) -> 0 | E8: =C8-D8 -> 0 | F8: 0
A9: AA0730 | B9: Ricavi per prestazioni sanitarie intramoenia - Altro | C9: =SUMIF('00 CE'!$B:$B,'Tab 54'!$A9,'00 CE'!G:G) -> 70557.93 | D9: =SUMIF('00 CE'!$B:$B,'Tab 54'!$A9,'00 CE'!F:F) -> 130775.39 | E9: =C9-D9 -> -60217.46 | F9: -0.4604647709
A10: AA0740 | B10: Ricavi per prestazioni sanitarie intramoenia - Altro (Aziende sanitarie pubbliche della Regione) | C10: =SUMIF('00 CE'!$B:$B,'Tab 54'!$A10,'00 CE'!G:G) -> 17895.3 | D10: =SUMIF('00 CE'!$B:$B,'Tab 54'!$A10,'00 CE'!F:F) -> 5779.7 | E10: =C10-D10 -> 12115.6 | F10: 2.096233369
A11: AA0670 | B11: TOTALE RICAVI INTRAMOENIA | C11: =SUM(C4:C10) -> 3928724.07 | D11: =SUM(D4:D10) -> 4238479.07 | E11: -309755 | F11: -0.07308163964
A12: BA1210 | B12: Compartecipazione al personale per att. libero professionale intramoenia - Area ospedaliera | C12: =SUMIF('00 CE'!$B:$B,'Tab 54'!$A12,'00 CE'!G:G) -> 60058.96 | D12: =SUMIF('00 CE'!$B:$B,'Tab 54'!$A12,'00 CE'!F:F) -> 54218.1 | E12: 5840.86 | F12: 0.1077289687
A13: BA1220 | B13: Compartecipazione al personale per att. libero professionale intramoenia- Area specialistica | C13: =SUMIF('00 CE'!$B:$B,'Tab 54'!$A13,'00 CE'!G:G) -> 2527432.63 | D13: =SUMIF('00 CE'!$B:$B,'Tab 54'!$A13,'00 CE'!F:F) -> 2563747.47 | E13: -36314.84 | F13: -0.01416474923
A14: BA1230 | B14: Compartecipazione al personale per att. libero professionale intramoenia - Area sanità pubblica | C14: =SUMIF('00 CE'!$B:$B,'Tab 54'!$A14,'00 CE'!G:G) -> 14345.3 | D14: =SUMIF('00 CE'!$B:$B,'Tab 54'!$A14,'00 CE'!F:F) -> 15233.61 | E14: -888.31 | F14: -0.05831250767
A15: BA1240 | B15: Compartecipazione al personale per att. libero professionale intramoenia - Consulenze (ex art. 55 c.1 lett. c), d) ed ex Art. 57-58) | C15: =SUMIF('00 CE'!$B:$B,'Tab 54'!$A15,'00 CE'!G:G) -> 335908.3 | D15: =SUMIF('00 CE'!$B:$B,'Tab 54'!$A15,'00 CE'!F:F) -> 579327.3 | E15: -243419 | F15: -0.4201752619
A16: BA1250 | B16: Compartecipazione al personale per att. libero professionale intramoenia- Consulenze (ex art. 55 c.1 lett. c), d) ed ex Art. 57-58) (Aziende sanitarie pubbliche della Regione) | C16: =SUMIF('00 CE'!$B:$B,'Tab 54'!$A16,'00 CE'!G:G) -> 0 | D16: =SUMIF('00 CE'!$B:$B,'Tab 54'!$A16,'00 CE'!F:F) -> 0 | E16: 0 | F16: 0
A17: BA1260 | B17: Compartecipazione al personale per att. libero professionale intramoenia - Altro | C17: =SUMIF('00 CE'!$B:$B,'Tab 54'!$A17,'00 CE'!G:G) -> 53017.42 | D17: =SUMIF('00 CE'!$B:$B,'Tab 54'!$A17,'00 CE'!F:F) -> 108504.84 | E17: -55487.42 | F17: -0.5113819807
A18: BA1270 | B18: Compartecipazione al personale per att. libero professionale intramoenia- Altro (Aziende sanitarie pubbliche della Regione) | C18: =SUMIF('00 CE'!$B:$B,'Tab 54'!$A18,'00 CE'!G:G) -> 0 | D18: =SUMIF('00 CE'!$B:$B,'Tab 54'!$A18,'00 CE'!F:F) -> 0 | E18: 0 | F18: 0
A19: BA1200 | B19: TOTALE QUOTE RETROCESSE AL PERSONALE (ESCLUSO IRAP) | C19: =SUM(C12:C18) -> 2990762.61 | D19: =SUM(D12:D18) -> 3321031.32 | E19: -330268.71 | F19: -0.09944763484
B20: Indennità di esclusività medica per attività di libera professione | C20: 0 | D20: 0 | E20: 0 | F20: 0
A21: YA0040 | B21: IRAP relativa ad attività di libera professione (intramoenia) | C21: 408949.45 | D21: 418750.77 | E21: -9801.32 | F21: =IF(C21=0,0,ROUND(E21/C21,4)) -> -0.024
B22: Costi diretti aziendali | C22: =37177.5+292387.2 -> 329564.7 | D22: 303694.96 | E22: 25869.74 | F22: 0.0785
B23: Costi generali aziendali | C23: 30238.65 | D23: 28044.3 | E23: 2194.35 | F23: 0.0726
A24: ** | B24: Fondo di perequazione | C24: 0 | D24: 0 | E24: 0 | F24: 0
B25: TOTALE ALTRI COSTI INTRAMOENIA | C25: =SUM(C20:C24) -> 768752.8 | D25: =SUM(D20:D24) -> 750490.03 | E25: 18262.77 | F25: 0.0238
B26: RICAVI - COSTI INTRAMOENIA | C26: =C11-(C19+C25) -> 169208.66 | D26: =D11-(D19+D25) -> 166957.72 | E26: 2250.94 | F26: 0.0133
B29: Voce CE YA0040 - Conto "1101030102 - IRAP libera professione relativa ad attività istituzionale (ex. art. 55 c. 2 CCNL)" | C29: 168163.43 | D29: 157583.91
B30: TOTALE CONTABILITA' SEPARATA | C30: =C27+C29 -> 168163.43 | D30: =D27+D29 -> 157583.91
B31: DI CUI 5% BALDUZZI | C31: 149063 | D31: 150170
A33: * L'importo evidenziato si riferisce al conto 1101030102 "IRAP libera professione relativa ad attività istituzionale (ex. art. 55 c. 2 CCNL) ininfluente ai fini della rilevazione della Contabilità Separata
A34: ** Il valore del Fondo di Perequazione è contabilizzato nelle voci di CE relative alla rilevazione dei costi ("TOTALE QUOTE RETROCESSE AL PERSONALE (ESCLUSO IRAP)"- Tab 54

Sheet Tab 55
B1: Tab. 55 – Dettaglio rimborsi da aziende sanitarie pubbliche della Regione per acquisti di beni
B2: DETTAGLIO RIMBORSI DA AZIENDE SANITARIE PUBBLICHE DELLA REGIONE PER ACQUISTI DI BENI | C2: Azienda … | D2: Azienda … | E2: Azienda … | F2: Azienda … | G2: TOTALE
B3: Prodotti farmaceutici ed emoderivati:
B4: Medicinali con AIC, ad eccezione di vaccini ed emoderivati di produzione regionale
B5: Medicinali senza AIC
B6: Emoderivati di produzione regionale
B7: Sangue ed emocomponenti
B8: Dispositivi medici:
B9: Dispositivi medici
B10: Dispositivi medici impiantabili attivi
B11: Dispositivi medico diagnostici in vitro (IVD)
B12: Prodotti dietetici
B13: Materiali per la profilassi (vaccini)
B14: Prodotti chimici
B15: Materiali e prodotti per uso veterinario
B16: Altri beni e prodotti sanitari
B17: Prodotti alimentari
B18: Materiali di guardaroba, di pulizia e di convivenza in genere
B19: Combustibili, carburanti e lubrificanti
B20: Supporti informatici e cancelleria
B21: Materiale per la manutenzione
B22: Altri beni e prodotti non sanitari
B23: TOTALE
A27: Altre informazioni relative a proventi e ricavi diversi
A28: Informazione | C28: Caso presente in azienda? | E28: Se sì, illustrare
A29: CT01. Sono state rilevate significative variazioni rispetto all'esercizio precedente? | D29: NO

Sheet Tab 56-57
A1: 19. Acquisti di beni
B3: Tab. 56 – Dettaglio acquisti di beni sanitari per tipologia di distribuzione
A4: CODICE MOD. CE | B4: DETTAGLIO ACQUISTI DI BENI SANITARI PER TIPOLOGIA DI DISTRIBUZIONE | C4: Distribuzione | E4: Consumi Ospedalieri | F4: TOTALE
C5: Diretta | D5: Per conto
A6: BA0030 | B6: Prodotti farmaceutici ed emoderivati: | C6: =C7+C8+C9+C10+C11+C12 -> 45629803 | D6: 11254953 | E6: 29456265 | F6: =F7+F8+F9+F10+F11+F12 -> 86341021
A7: BA0040 | B7: Medicinali con AIC, ad eccezione di vaccini ed emoderivati di produzione regionale | C7: 45629803 | D7: 11254953 | E7: =28776601-476879 -> 28299722 | F7: =C7+D7+E7 -> 85184478
A8: BA0050 | B8: Medicinali senza AIC | C8: 0 | D8: 0 | E8: 679664 | F8: =C8+D8+E8 -> 679664
A9: BA0051 | B9: B.1.A.1.3) Ossigeno e altri gas medicali | C9: 0 | D9: 0 | E9: 476879 | F9: 476879
A10: BA0061 | B10: B.1.A.1.4.1) Emoderivati di produzione regionale da pubblico (Aziende sanitarie pubbliche della Regione) - Mobilità intraregionale | C10: 0 | D10: 0 | E10: 0 | F10: 0
A11: BA0062 | B11: B.1.A.1.4.2) Emoderivati di produzione regionale da pubblico (Aziende sanitarie pubbliche della Regione) - Mobilità extraregionale | C11: 0 | D11: 0 | E11: 0 | F11: =C11+D11+E11 -> 0
A12: BA0063 | B12: B.1.A.1.4.3) Emoderivati di produzione regionale da altri soggetti | C12: 0 | D12: 0 | E12: 0 | F12: 0
A13: BA0250 | B13: Prodotti dietetici | C13: 382782.6649 | D13: 0 | E13: 77182.0851 | F13: 459964.75
B14: TOTALE | C14: =C6+C13 -> 46012585.66 | D14: =D6+D13 -> 11254953 | E14: 29533447.09 | F14: 86800985.75
B17: Tab. 57 – Dettaglio acquisti di beni da aziende sanitarie pubbliche
A18: CODICE MOD. CE | B18: DETTAGLIO ACQUISTI DI BENI DA AZIENDE SANITARIE PUBBLICHE DELLA REGIONE | C18: Azienda … | D18: Azienda … | E18: Azienda … | F18: Azienda | G18: TOTALE | H18: TOTALE
A19: BA0030 | B19: Prodotti farmaceutici ed emoderivati:
A20: BA0040 | B20: Medicinali con AIC, ad eccezione di vaccini ed emoderivati di produzione regionale
A21: BA0050 | B21: Medicinali senza AIC
A22: BA0051 | B22: B.1.A.1.3) Ossigeno e altri gas medicali
A23: BA0060 | B23: Emoderivati di produzione regionale
A24: BA0061 | B24: B.1.A.1.4.1) Emoderivati di produzione regionale da pubblico (Aziende sanitarie pubbliche della Regione) - Mobilità intraregionale
A25: BA0062 | B25: B.1.A.1.4.2) Emoderivati di produzione regionale da pubblico (Aziende sanitarie pubbliche della Regione) - Mobilità extraregionale
A26: BA0063 | B26: B.1.A.1.4.3) Emoderivati di produzione regionale da altri soggetti
A27: BA0070 | B27: Sangue ed emocomponenti
A28: BA0080 | B28: da pubblico (Aziende sanitarie pubbliche della Regione) – Mobilità intraregionale
A29: BA0090 | B29: da pubblico (Aziende sanitarie pubbliche extra Regione) – Mobilità extraregionale
A30: BA0100 | B30: Da altri soggetti
A31: BA0210 | B31: Dispositivi medici:
A32: BA0220 | B32: Dispositivi medici
A33: BA0230 | B33: Dispositivi medici impiantabili attivi
A34: BA0240 | B34: Dispositivi medico diagnostici in vitro (IVD)
A35: BA0250 | B35: Prodotti dietetici
A36: BA0260 | B36: Materiali per la profilassi (vaccini)
A37: BA0270 | B37: Prodotti chimici
A38: BA0280 | B38: Materiali e prodotti per uso veterinario
A39: BA0290 | B39: Altri beni e prodotti sanitari
A40: BA0300 | B40: Beni e prodotti sanitari da Aziende sanitarie pubbliche della Regione
A41: BA0301 | B41: B.1.A.9.1) Prodotti farmaceutici ed emoderivati
A42: BA0303 | B42: B.1.A.9.3) Dispositivi medici
A43: BA0304 | B43: B.1.A.9.4) Prodotti dietetici
A44: BA0305 | B44: B.1.A.9.5) Materiali per la profilassi (vaccini)
A45: BA0306 | B45: B.1.A.9.6) Prodotti chimici
A46: BA0307 | B46: B.1.A.9.7) Materiali e prodotti per uso veterinario
A47: BA0308 | B47: B.1.A.9.8) Altri beni e prodotti sanitari
A48: BA0320 | B48: Prodotti alimentari
A49: BA0330 | B49: Materiali di guardaroba, di pulizia e di convivenza in genere
A50: BA0340 | B50: Combustibili, carburanti e lubrificanti
A51: BA0350 | B51: Supporti informatici e cancelleria
A52: BA0360 | B52: Materiale per la manutenzione
A53: BA0370 | B53: Altri beni e prodotti non sanitari
A54: BA0380 | B54: Beni e prodotti non sanitari da Aziende sanitarie pubbliche della Regione
A55: BA0010 | B55: TOTALE | H55: =H19+H27+H31+H35+H36+H37+H38+H39+H40+H49+H48+H50+H51+H52+H53 -> 0

Sheet AB01-02-03
A1: AB01 - Acquisti di beni
A2: AB01 | B2: Ciascuna tipologia di bene, compreso nelle voci relative agli acquisti di beni sanitari e non sanitari, è monitorata attraverso il sistema gestionale del magazzino, che rileva ogni tipologia di movimento, in entrata e in uscita.
A4: Altre informazioni relative agli acquisti di beni
A5: Informazione | C5: Caso presente in azienda? | E5: Se SI, illustrare
A6: AB02. Sono stati rilevati costi per acquisto di beni da altre Aziende Sanitarie della Regione? Se sì, di quali tipologie di beni si tratta? | D6: NO
A7: AB03. Sono state rilevate significative variazioni rispetto all'esercizio precedente? | D7: SI | E7: Si veda commento sottostante.
A10: Il costo per acquisti di beni ha subito, rispetto all'esercizio 2018, un incremento del 4,26 % ( circa 5,6 €/mln). Tale variazione è dovuta sostanzialmente all'incremento delle seguenti voci:
A12: - i costi di acquisto di prodotti farmaceutici ed emoderivati, in particolare dei medicinali con AIC (+ €/mln 3);
A13: - i costi di acquisto di beni sanitari (+ €/mln 2,6), con particolare riferimento ai Dispositivi Medici (+2,4)
A14: Con riferimento all'incremento del costo per l'acquisto dei farmaci, di circa €/mln 3,52 , esso è stato determinato sia dall'immissione in commercio di nuovi farmaci, sia dall'estensione delle indicazioni terapeutiche dei farmaci esistenti.
A15: In particolare tra gennaio - dicembre 2019 sono stati inseriti in Prontuario Ospedaliero nuovi farmaci ad alto costo Tra i farmaci di nuova introduzione e a maggiore impatto di spesa si segnalano il "ZINPLAPLAVA, il TIORFIX, lo XELIANZ, il KEVZARA, il PREVIMIS, il NINLARO ed altri , il cui utilizzo ha generato un incremento di spesa di + €/mln 3.
A16: Per quanto riguarda, invece, le estensioni delle indicazioni terapeutiche, si evidenzia che tale fenomeno è particolarmente presente nell'area ematologica. A tal proposito, presso la ASL di Pescara opera l'unico Dipartimento di Ematologia regionale, su cui, a seguito del depotenziamento di alcune realtà periferiche, confluiscono molti pazienti che venivano precedentemente curati negli altri punti della rete regionale. Nel campo ematologico molti farmaci già in uso nel 2019 hanno avuto recentemente una estensione delle indicazioni da parte di AIFA.
A17: L'aumento della spesa è stato anche determinato dalla progressiva introduzione di nuove terapie, specialmente in campo oncologico, che prevedono l'utilizzo di farmaci già in uso, ma in associazione tra loro.
A18: Infine, all'incremento della spesa farmaceutica ha contribuito anche l' entrata a regime della DPC , avviata nel mese di Agosto 2018. Il servizio farmaceutico ospedaliero ha stimato che nel periodo gennaio - dicembre 2019 la spesa per farmaci DPC risulta pari a €/mln 11,2, di cui €/ mln 2 con precedente regime convenzionata.

Sheet Tab-57 bis
K3: Tab. 57-bis
B5: Farmaci | G5: Costo CE | H5: Prezzi medi di acquisto Consuntivo 2019 | I5: Importo payback/note di credito ricevute direttamente dalla ASL (prezzo/volume, capping ed altri accordi) CE Consuntivo 2019
A6: Fondo Inn. | B6: AIC | C6: Denominazione e Confezione | D6: Principio attivo | E6: Data Efficacia | F6: Data Scadenza | G6: CE Consuntivo 2019 | I6: Riferito ad acquisti 2019 | J6: Riferito ad acquisti 2018 | K6: Riferito ad acquisti anni precedenti
A7: I | B7: 045676133 | C7: DUPIXENT*1PEN 200MG 1,14ML | D7: dupilumab | E7: 2018-09-08 | F7: 2021-09-07 | G7: 0 | H7: 0 | I7: 0 | J7: 0 | K7: 0
A8: I | B8: 045676095 | C8: DUPIXENT*1SIR 200MG 1,14ML | D8: dupilumab | E8: 2018-09-08 | F8: 2021-09-07 | G8: 0 | H8: 0 | I8: 0 | J8: 0 | K8: 0
A9: I | B9: 045676018 | C9: DUPIXENT*1SIR 300MG 2ML | D9: dupilumab | E9: 2018-09-08 | F9: 2021-09-07 | G9: 0 | H9: 0 | I9: 0 | J9: 0 | K9: 0
A10: I | B10: 045676057 | C10: DUPIXENT*1SIR 300MG 2ML | D10: dupilumab | E10: 2018-09-08 | F10: 2021-09-07 | G10: 0 | H10: 0 | I10: 0 | J10: 0 | K10: 0
A11: I | B11: 045676145 | C11: DUPIXENT*2PEN 200MG 1,14ML | D11: dupilumab | E11: 2018-09-08 | F11: 2021-09-07 | G11: 0 | H11: 0 | I11: 0 | J11: 0 | K11: 0
A12: I | B12: 045676107 | C12: DUPIXENT*2SIR 200MG 1,14ML | D12: dupilumab | E12: 2018-09-08 | F12: 2021-09-07 | G12: 0 | H12: 0 | I12: 0 | J12: 0 | K12: 0
A13: I | B13: 045676020 | C13: DUPIXENT*2SIR 300MG 2ML | D13: dupilumab | E13: 2018-09-08 | F13: 2021-09-07 | G13: 0 | H13: 0 | I13: 0 | J13: 0 | K13: 0
A14: I | B14: 045676069 | C14: DUPIXENT*2SIR 300MG 2ML | D14: dupilumab | E14: 2018-09-08 | F14: 2021-09-07 | G14: 125382.4 | H14: 457.6 | I14: 0 | J14: 0 | K14: 0
A15: I | B15: 045676158 | C15: DUPIXENT*3PEN 200MG 1,14ML | D15: dupilumab | E15: 2018-09-08 | F15: 2021-09-07 | G15: 0 | H15: 0 | I15: 0 | J15: 0 | K15: 0
A16: I | B16: 045676119 | C16: DUPIXENT*3SIR 200MG 1,14ML | D16: dupilumab | E16: 2018-09-08 | F16: 2021-09-07 | G16: 0 | H16: 0 | I16: 0 | J16: 0 | K16: 0
A17: I | B17: 045676032 | C17: DUPIXENT*3SIR 300MG 2ML | D17: dupilumab | E17: 2018-09-08 | F17: 2021-09-07 | G17: 0 | H17: 0 | I17: 0 | J17: 0 | K17: 0
A18: I | B18: 045676071 | C18: DUPIXENT*3SIR 300MG 2ML | D18: dupilumab | E18: 2018-09-08 | F18: 2021-09-07 | G18: 0 | H18: 0 | I18: 0 | J18: 0 | K18: 0
A19: I | B19: 045676160 | C19: DUPIXENT*6PEN 200MG 1,14ML | D19: dupilumab | E19: 2018-09-08 | F19: 2021-09-07 | G19: 0 | H19: 0 | I19: 0 | J19: 0 | K19: 0
A20: I | B20: 045676121 | C20: DUPIXENT*6SIR 200MG 1,14ML | D20: dupilumab | E20: 2018-09-08 | F20: 2021-09-07 | G20: 0 | H20: 0 | I20: 0 | J20: 0 | K20: 0
A21: I | B21: 045676044 | C21: DUPIXENT*6SIR 300MG 2ML | D21: dupilumab | E21: 2018-09-08 | F21: 2021-09-07 | G21: 0 | H21: 0 | I21: 0 | J21: 0 | K21: 0
A22: I | B22: 045676083 | C22: DUPIXENT*6SIR 300MG 2ML | D22: dupilumab | E22: 2018-09-08 | F22: 2021-09-07 | G22: 0 | H22: 0 | I22: 0 | J22: 0 | K22: 0
A23: I | B23: 044928012 | C23: EPCLUSA 1FL 28CPR 400+100MG | D23: sofosbuvir/velpatasvir | E23: 2017-04-27 | F23: 2020-04-26 | G23: 1906667.04 | H23: 654.76 | I23: 1651669.44 | J23: 0 | K23: 0
A24: I | B24: 046130023 | C24: HEMLIBRA*SC 150MG/ML 0,4ML | D24: emicizumab | E24: 2018-12-07 | F24: 2021-12-06 | G24: 0 | H24: 0 | I24: 0 | J24: 0 | K24: 0
A25: I | B25: 046130035 | C25: HEMLIBRA*SC 150MG/ML 0,7ML | D25: emicizumab | E25: 2018-12-07 | F25: 2021-12-06 | G25: 0 | H25: 0 | I25: 0 | J25: 0 | K25: 0
A26: I | B26: 046130047 | C26: HEMLIBRA*SC 150MG/ML 1ML | D26: emicizumab | E26: 2018-12-07 | F26: 2021-12-06 | G26: 0 | H26: 0 | I26: 0 | J26: 0 | K26: 0
A27: I | B27: 046130011 | C27: HEMLIBRA*SC 30MG/ML 1ML | D27: emicizumab | E27: 2018-12-07 | F27: 2021-12-06 | G27: 0 | H27: 0 | I27: 0 | J27: 0 | K27: 0
A28: I | B28: 045445018 | C28: MAVIRET*84CPR RIV 100MG+40MG | D28: glecaprevir/pibrentasvir | E28: 2017-09-28 | F28: 2020-04-26 | G28: 498846.04 | H28: 39.86 | I28: 46454.21 | J28: 0 | K28: 0
A29: I | B29: 045383015 | C29: OXERVATE*COLL 7FL 20MCG/ML 1ML | D29: cenegermin | E29: 2018-01-24 | F29: 2021-01-23 | G29: 0 | H29: 0 | I29: 0 | J29: 0 | K29: 0
A30: I | B30: 045890011 | C30: PREVYMIS*28CPR RIV 240MG | D30: letermovir | E30: 2018-09-18 | F30: 2021-09-17 | G30: 176011.33 | H30: 146.19 | I30: 0 | J30: 0 | K30: 0
A31: I | B31: 045890023 | C31: PREVYMIS*28CPR RIV 480MG | D31: letermovir | E31: 2018-09-18 | F31: 2021-09-17 | G31: 0 | H31: 0 | I31: 0 | J31: 0 | K31: 0
A32: I | B32: 045890035 | C32: PREVYMIS*INFUS 1FL 240MG 12ML | D32: letermovir | E32: 2018-09-18 | F32: 2021-09-17 | G32: 0 | H32: 0 | I32: 0 | J32: 0 | K32: 0
A33: I | B33: 045890047 | C33: PREVYMIS*INFUS 1FL 480MG 24ML | D33: letermovir | E33: 2018-09-18 | F33: 2021-09-17 | G33: 0 | H33: 0 | I33: 0 | J33: 0 | K33: 0
A34: I | B34: 045426018 | C34: SPINRAZA*1FL 12MG 5ML 2,4MG/ML | D34: nusinersen | E34: 2017-09-28 | F34: 2020-09-27 | G34: 304920 | H34: 50820 | I34: 0 | J34: 0 | K34: 0
A35: I | B35: 044880019 | C35: STRIMVELIS EV 1-10MILIONI CELL | D35: cellule autologhe CD34+ | E35: 2016-08-16 | F35: 2019-08-15 | G35: 0 | H35: 0 | I35: 0 | J35: 0 | K35: 0
A36: I | B36: 045494010 | C36: VOSEVI*28CPR 400+100+100MG FL | D36: sofosbuvir/velpatasvir/voxilaprevir | E36: 2018-04-19 | F36: 2020-04-26 | G36: 125885.69 | H36: 642.27 | I36: 99705.69 | J36: 0 | K36: 0
A37: I | B37: 044929014 | C37: ZEPATIER 28CPR RIV 50MG+100MG | D37: elbasvir/grazoprevir | E37: 2017-02-04 | F37: 2020-02-03 | G37: 264000.01 | H37: 78.57 | I37: 2933.34 | J37: 0 | K37: 0
A38: FONDO INNOVATIVI NON ONCOLOGICI | G38: =SUM(G7:G37) -> 3401712.51 | I38: =SUM(I7:I37) -> 1800762.68 | J38: =SUM(J7:J37) -> 0 | K38: 0
A39: IO | B39: 045267010 | C39: ALECENSA*224CPS 150MG | D39: alectinib | E39: 2018-08-01 | F39: 2020-01-31 | G39: 209001.66 | H39: 21.7 | I39: 0 | J39: 0 | K39: 0
A40: IO | B40: 045267022 | C40: ALECENSA*240CPS 150MG FL | D40: alectinib | E40: 2018-08-01 | F40: 2021-07-31 | G40: 0 | H40: 0 | I40: 0 | J40: 0 | K40: 0
A41: IO | B41: 044885022 | C41: DARZALEX*EV 1FL 20ML 20MG/ML | D41: daratumumab | E41: 2018-04-19 | F41: 2019-04-18 | G41: 422711.98 | H41: 1870.41 | I41: 180177.86 | J41: 0 | K41: 0
A42: IO | B42: 044885010 | C42: DARZALEX*EV 1FL 5ML 20MG/ML | D42: daratumumab | E42: 2018-04-19 | F42: 2019-04-18 | G42: 70607.46 | H42: 467.6 | I42: 24557.55 | J42: 0 | K42: 0
A43: IO | B43: 044885034 | C43: DARZALEX*EV 6+5FL 20MG/ML | D43: daratumumab | E43: 2018-04-19 | F43: 2021-04-18 | G43: 0 | H43: 0 | I43: 0 | J43: 0 | K43: 0
A44: IO | B44: 043693023 | C44: IMBRUVICA*FL 120CPS 140MG | D44: ibrutinib | E44: 2016-01-05 | F44: 2019-01-04 | G44: 0 | H44: 0 | I44: 0 | J44: 0 | K44: 0
A45: IO | B45: 043693011 | C45: IMBRUVICA*FL 90CPS 140MG | D45: ibrutinib | E45: 2016-01-05 | F45: 2019-01-04 | G45: 0 | H45: 0 | I45: 0 | J45: 0 | K45: 0
A46: IO | B46: 047089014 | C46: IMFINZI*EV 1FL 10ML 50MG/ML | D46: durvalumab | E46: 2019-09-07 | F46: 2022-09-06 | G46: 0 | H46: 0 | I46: 0 | J46: 0 | K46: 0
A47: IO | B47: 047089026 | C47: IMFINZI*EV 1FL 2,4ML 50MG/ML | D47: durvalumab | E47: 2019-09-07 | F47: 2022-09-06 | G47: 0 | H47: 0 | I47: 0 | J47: 0 | K47: 0
A48: IO | B48: 044386023 | C48: KEYTRUDA*1FL 4ML 25MG/ML | D48: pembrolizumab | E48: 2016-05-11 | F48: 24/06/2020 | G48: 1551394.46 | H48: 2679.44 | I48: 0 | J48: 0 | K48: 0
A49: IO | B49: 044386011 | C49: KEYTRUDA*1FL POLV EV 50MG/ML | D49: pembrolizumab | E49: 2016-05-11 | F49: 24/06/2020 | G49: 0 | H49: 0 | I49: 0 | J49: 0 | K49: 0
A50: IO | B50: 046996017 | C50: KYMRIAH*EV 1-3 SACCHE | D50: tisagenelecleucel | E50: 2019-08-13 | F50: 2020-08-12 | G50: 0 | H50: 0 | I50: 0 | J50: 0 | K50: 0
A51: IO | B51: 045677010 | C51: LUTATHERA*1FL 370MBQ/ML20,5-25 | D51: Lutezio-177 lu-oxodotreotide | E51: 30/03/2019 | F51: 29/03/2022 | G51: 0 | H51: 0 | I51: 0 | J51: 0 | K51: 0
A52: IO | B52: 043524026 | C52: MEKINIST*30CPR RIV 0,5MG FL | D52: trametinib | E52: 2019-12-17 | F52: 2022-12-16 | G52: 0 | H52: 0 | I52: 0 | J52: 0 | K52: 0
A53: IO | B53: 043524040 | C53: MEKINIST*30CPR RIV 1MG FL | D53: trametinib | E53: 2019-12-17 | F53: 2022-12-16 | G53: 0 | H53: 0 | I53: 0 | J53: 0 | K53: 0
A54: IO | B54: 043524065 | C54: MEKINIST*30CPR RIV 2MG FL | D54: trametinib | E54: 2019-12-17 | F54: 2022-12-16 | G54: 1929.38 | H54: 64.31 | I54: 0 | J54: 0 | K54: 0
A55: IO | B55: 043524014 | C55: MEKINIST*7CPR RIV 0,5MG FL | D55: trametinib | E55: 2019-12-17 | F55: 2022-12-16 | G55: 0 | H55: 0 | I55: 0 | J55: 0 | K55: 0
A56: IO | B56: 043524038 | C56: MEKINIST*7CPR RIV 1MG FL | D56: trametinib | E56: 2019-12-17 | F56: 2022-12-16 | G56: 0 | H56: 0 | I56: 0 | J56: 0 | K56: 0
A57: IO | B57: 043524053 | C57: MEKINIST*7CPR RIV 2MG FL | D57: trametinib | E57: 2019-12-17 | F57: 2022-12-16 | G57: 0 | H57: 0 | I57: 0 | J57: 0 | K57: 0
A58: IO | B58: 044291021 | C58: OPDIVO*INFUS 1F 10ML 10MG/ML | D58: nivolumab | E58: 2016-03-25 | F58: 2019-03-24 | G58: 299376 | H58: 1108.8 | I58: 0 | J58: 0 | K58: 0
A59: IO | B59: 044291019 | C59: OPDIVO*INFUS 1F 4ML 10MG/ML | D59: nivolumab | E59: 2016-03-25 | F59: 2019-03-24 | G59: 44385 | H59: 443.85 | I59: 0 | J59: 0 | K59: 0
A60: IO | B60: 044291033 | C60: OPDIVO*INFUS 1FL 24ML 10MG/ML | D60: nivolumab | E60: 2016-03-25 | F60: 2022-12-17 | G60: 0 | H60: 0 | I60: 0 | J60: 0 | K60: 0
A61: IO | B61: 045427010 | C61: QARZIBA*1FL 4,5ML 4,5MG/ML | D61: dinutuximab beta | E61: 2018-08-01 | F61: 2021-07-31 | G61: 0 | H61: 0 | I61: 0 | J61: 0 | K61: 0
A62: IO | B62: 045612013 | C62: RYDAPT*112CPS MOLLI 25MG | D62: midostaurina | E62: 2018-08-17 | F62: 2021-08-16 | G62: 89855.64 | H62: 89.14 | I62: 0 | J62: 0 | K62: 0
A63: IO | B63: 045612025 | C63: RYDAPT*56CPS MOLLI 25MG | D63: midostaurina | E63: 2018-08-17 | F63: 2021-08-16 | G63: 0 | H63: 0 | I63: 0 | J63: 0 | K63: 0
A64: IO | B64: 042923021 | C64: TAFINLAR*120CPS 50MG FL | D64: dabrafenib | E64: 2019-12-17 | F64: 2022-12-16 | G64: 0 | H64: 0 | I64: 0 | J64: 0 | K64: 0
A65: IO | B65: 042923045 | C65: TAFINLAR*120CPS 75MG FL | D65: dabrafenib | E65: 2019-12-17 | F65: 2022-12-16 | G65: 3170.54 | H65: 26.42 | I65: 0 | J65: 0 | K65: 0
A66: IO | B66: 042923019 | C66: TAFINLAR*28CPS 50MG FL | D66: dabrafenib | E66: 2019-12-17 | F66: 2022-12-16 | G66: 0 | H66: 0 | I66: 0 | J66: 0 | K66: 0
A67: IO | B67: 042923033 | C67: TAFINLAR*28CPS 75MG FL | D67: dabrafenib | E67: 2019-12-17 | F67: 2022-12-16 | G67: 0 | H67: 0 | I67: 0 | J67: 0 | K67: 0
A68: IO | B68: 044729034 | C68: TAGRISSO*28CPR RIV 40MG | D68: osimertinib | E68: 2019-11-30 | F68: 2021-05-29 | G68: 0 | H68: 0 | I68: 0 | J68: 0 | K68: 0
A69: IO | B69: 044729046 | C69: TAGRISSO*28CPR RIV 80MG | D69: osimertinib | E69: 2019-11-30 | F69: 2021-05-29 | G69: 24019.84 | H69: 142.98 | I69: 0 | J69: 0 | K69: 0
A70: IO | B70: 044729010 | C70: TAGRISSO*30CPR RIV 40MG | D70: osimertinib | E70: 2019-11-30 | F70: 2021-05-29 | G70: 0 | H70: 0 | I70: 0 | J70: 0 | K70: 0
A71: IO | B71: 044729022 | C71: TAGRISSO*30CPR RIV 80MG | D71: osimertinib | E71: 2019-11-30 | F71: 2021-05-29 | G71: 0 | H71: 0 | I71: 0 | J71: 0 | K71: 0
A72: IO | B72: 045590015 | C72: TECENTRIQ*INFUS 60MG/ML 20ML | D72: atezolizumab | E72: 2018-07-15 | F72: 2019-03-24 | G72: 28251.72 | H72: 3139.08 | I72: 0 | J72: 0 | K72: 0
A73: IO | B73: 046965012 | C73: VYXEOS*EV 44MG+100MG 5ML 1FL | D73: citarabina e daunorubicina | E73: 2019-06-19 | F73: 2022-06-18 | G73: 54968.15 | H73: 3435.51 | I73: 0 | J73: 0 | K73: 0
A74: IO | B74: 046965024 | C74: VYXEOS*EV 44MG+100MG 5ML 2FL | D74: citarabina e daunorubicina | E74: 2019-06-19 | F74: 2022-06-18 | G74: 0 | H74: 0 | I74: 0 | J74: 0 | K74: 0
A75: IO | B75: 046965036 | C75: VYXEOS*EV 44MG+100MG 5ML 5FL | D75: citarabina e daunorubicina | E75: 2019-06-19 | F75: 2022-06-18 | G75: 0 | H75: 0 | I75: 0 | J75: 0 | K75: 0
A76: IO | B76: 046995015 | C76: YESCARTA*EV 1 SACCA | D76: axicabtagene ciloleucel | E76: 2019-11-12 | F76: 2020-11-11 | G76: 0 | H76: 0 | I76: 0 | J76: 0 | K76: 0
A77: FONDO INNOVATIVI ONCOLOGICI | G77: =SUM(G39:G76) -> 2799671.83 | I77: =SUM(I39:I76) -> 204735.41 | J77: =SUM(J39:J76) -> 0 | K77: 0
A78: TOTALE GENERALE | G78: =G38+G77 -> 6201384.34 | I78: =I38+I77 -> 2005498.09 | J78: =J38+J77 -> 0 | K78: 0
C80: FONDO INNOVATIVI NETTO
C81: Fondo innovativi non oncologici | G81: =G38-(I38+J38) -> 1600949.83
C82: Fondo innovativi oncologici | G82: =G77-(I77+K77) -> 2594936.42
C83: TOTALE GENERALE | G83: =SUM(G81:G82) -> 4195886.25

Sheet Tab 58
A1: 20. Acquisti di servizi
B3: Tab. 58 – Dettaglio acquisti di servizi sanitari in mobilità
A4: CODICE MOD. CE | B4: DETTAGLIO ACQUISTI DI SERVIZI SANITARI IN MOBILITA' | C4: PUBBLICO | F4: PRIVATO | I4: TOTALE
C5: Avezzano-Sulmona-L'Aquila | D5: Lanciano-Vasto-Chieti | E5: Teramo | F5: Avezzano-Sulmona-L'Aquila | G5: Lanciano-Vasto-Chieti | H5: Teramo | K5: VALORE CE | L5: Diff | M5: Ctrl | O5: SOMMA
B6: COSTI DA MOBILITA' SANITARIA INFRAREGIONALE (A) | C6: =SUM(C7:C19) -> 3594736.66 | D6: 29107985.48 | E6: 6379262.13 | F6: 1525771.6 | G6: 9181799.37 | H6: 2265815.15 | I6: 52055370.39 | K6: 52055370.39
A7: BA0470 | B7: Acquisti servizi sanitari per medicina di base | C7: 13400.46 | D7: 24574.05 | E7: 13429.89 | F7: 0 | G7: 0 | H7: 0 | I7: =SUM(C7:H7) -> 51404.4 | K7: =SUMIF('00 CE'!B:B,'Tab 58'!A7,'00 CE'!G:G) -> 51404.4 | L7: =I7-K7 -> 0 | M7: =IF(L7=0,"OK"," CTRL") -> OK | O7: =IF(VLOOKUP(A7,'00 CE'!$B$4:$D$565,3,0)=0,"",VLOOKUP(A7,'00 CE'!$B$4:$D$565,3,0)) -> 
A8: BA0510 | B8: Acquisti servizi sanitari per farmaceutica | C8: 216926.18 | D8: 877699.17 | E8: 160385.64 | F8: 0 | G8: 0 | H8: 0 | I8: =SUM(C8:H8) -> 1255010.99 | K8: =SUMIF('00 CE'!B:B,'Tab 58'!A8,'00 CE'!G:G) -> 1255010.99 | L8: =I8-K8 -> 0 | M8: =IF(L8=0,"OK"," CTRL") -> OK | O8: =IF(VLOOKUP(A8,'00 CE'!$B$4:$D$565,3,0)=0,"",VLOOKUP(A8,'00 CE'!$B$4:$D$565,3,0)) -> 
A9: BA0540 | B9: Acquisti servizi sanitari per assistenza specialistica ambulatoriale | C9: 571607.28 | D9: 6041533.55 | E9: 1189429.36 | F9: 50604.99 | G9: 1169814.94 | H9: 4986.97 | I9: 9027977.09 | K9: =SUMIF('00 CE'!B:B,'Tab 58'!A9,'00 CE'!G:G) -> 9027977.09 | L9: 0 | M9: OK | O9: =IF(VLOOKUP(A9,'00 CE'!$B$4:$D$565,3,0)=0,"",VLOOKUP(A9,'00 CE'!$B$4:$D$565,3,0)) -> 
A10: BA0541 | B10: B.2.A.3.2) prestazioni di pronto soccorso non seguite da ricovero - da pubblico (Aziende sanitarie pubbliche della Regione) | C10: 0 | D10: 0 | E10: 0 | F10: 0 | G10: 0 | H10: 0 | I10: 0 | K10: =SUMIF('00 CE'!B:B,'Tab 58'!A10,'00 CE'!G:G) -> 0 | L10: =I10-K10 -> 0 | M10: OK | O10: =IF(VLOOKUP(A10,'00 CE'!$B$4:$D$565,3,0)=0,"",VLOOKUP(A10,'00 CE'!$B$4:$D$565,3,0)) -> 
A11: BA0650 | B11: Acquisti servizi sanitari per assistenza riabilitativa | C11: 0 | D11: 0 | E11: 0 | F11: 160475.56 | G11: 2760468.84 | H11: 2247914.48 | I11: 5168858.88 | K11: =SUMIF('00 CE'!B:B,'Tab 58'!A11,'00 CE'!G:G) -> 5168858.88 | L11: 0 | M11: OK | O11: =IF(VLOOKUP(A11,'00 CE'!$B$4:$D$565,3,0)=0,"",VLOOKUP(A11,'00 CE'!$B$4:$D$565,3,0)) -> 
A12: BA0710 | B12: Acquisti servizi sanitari per assistenza integrativa | C12: 0 | D12: 0 | E12: 0 | F12: 0 | G12: 0 | H12: 0 | I12: 0 | K12: =SUMIF('00 CE'!B:B,'Tab 58'!A12,'00 CE'!G:G) -> 0 | L12: 0 | M12: OK | O12: =IF(VLOOKUP(A12,'00 CE'!$B$4:$D$565,3,0)=0,"",VLOOKUP(A12,'00 CE'!$B$4:$D$565,3,0)) -> 
A13: BA0760 | B13: Acquisti servizi sanitari per assistenza protesica | C13: 0 | D13: 0 | E13: 0 | F13: 0 | G13: 0 | H13: 0 | I13: 0 | K13: =SUMIF('00 CE'!B:B,'Tab 58'!A13,'00 CE'!G:G) -> 0 | L13: 0 | M13: OK | O13: =IF(VLOOKUP(A13,'00 CE'!$B$4:$D$565,3,0)=0,"",VLOOKUP(A13,'00 CE'!$B$4:$D$565,3,0)) -> 
A14: BA0810 | B14: Acquisti servizi sanitari per assistenza ospedaliera | C14: 2614630.48 | D14: 17677755.69 | E14: 4723863.14 | F14: 776695.68 | G14: 2259287.7 | H14: 0 | I14: 28052232.69 | K14: =SUMIF('00 CE'!B:B,'Tab 58'!A14,'00 CE'!G:G) -> 28052232.69 | L14: 0 | M14: OK | O14: =IF(VLOOKUP(A14,'00 CE'!$B$4:$D$565,3,0)=0,"",VLOOKUP(A14,'00 CE'!$B$4:$D$565,3,0)) -> 
A15: BA0910 | B15: Acquisto prestazioni di psichiatria residenziale e semiresidenziale | C15: 0 | D15: 0 | E15: 0 | F15: 492858.01 | G15: 1242827.29 | H15: 0 | I15: 1735685.3 | K15: =SUMIF('00 CE'!B:B,'Tab 58'!A15,'00 CE'!G:G) -> 1735685.3 | L15: 0 | M15: OK | O15: =IF(VLOOKUP(A15,'00 CE'!$B$4:$D$565,3,0)=0,"",VLOOKUP(A15,'00 CE'!$B$4:$D$565,3,0)) -> 
A16: BA0970 | B16: Acquisto prestazioni di distribuzione farmaci File F | C16: 160099.92 | D16: 4412479.15 | E16: 285536.06 | F16: 0 | G16: 0 | H16: 0 | I16: 4858115.13 | K16: =SUMIF('00 CE'!B:B,'Tab 58'!A16,'00 CE'!G:G) -> 4858115.13 | L16: 0 | M16: OK | O16: =IF(VLOOKUP(A16,'00 CE'!$B$4:$D$565,3,0)=0,"",VLOOKUP(A16,'00 CE'!$B$4:$D$565,3,0)) -> 
A17: BA1040 | B17: Acquisto prestazioni termali in convenzione | C17: 0 | D17: 0 | E17: 0 | F17: 46.2 | G17: 0 | H17: 0 | I17: 46.2 | K17: =SUMIF('00 CE'!B:B,'Tab 58'!A17,'00 CE'!G:G) -> 46.2 | L17: 0 | M17: OK | O17: =IF(VLOOKUP(A17,'00 CE'!$B$4:$D$565,3,0)=0,"",VLOOKUP(A17,'00 CE'!$B$4:$D$565,3,0)) -> 
A18: BA1100 | B18: Acquisto prestazioni trasporto sanitario | C18: 18072.34 | D18: 73943.87 | E18: 6618.04 | F18: 0 | G18: 0 | H18: 0 | I18: 98634.25 | K18: =SUMIF('00 CE'!B:B,'Tab 58'!A18,'00 CE'!G:G) -> 98634.25 | L18: 0 | M18: OK | O18: =IF(VLOOKUP(A18,'00 CE'!$B$4:$D$565,3,0)=0,"",VLOOKUP(A18,'00 CE'!$B$4:$D$565,3,0)) -> 
A19: BA1150 | B19: Acquisto prestazioni Socio-Sanitarie a rilevanza sanitaria | C19: 0 | D19: 0 | E19: 0 | F19: 45091.16 | G19: =1434685.5+314715.1 -> 1749400.6 | H19: 12913.7 | I19: 1807405.46 | K19: =SUMIF('00 CE'!B:B,'Tab 58'!A19,'00 CE'!G:G) -> 1807405.46 | L19: 0 | M19: OK | O19: =IF(VLOOKUP(A19,'00 CE'!$B$4:$D$565,3,0)=0,"",VLOOKUP(A19,'00 CE'!$B$4:$D$565,3,0)) -> S
A20: BA1151 | B20: B.2.A.12.1.A) Assistenza domiciliare integrata (ADI) | C20: 0 | D20: 0 | E20: 0 | F20: 0 | G20: 0 | H20: 0 | I20: 0 | K20: =SUMIF('00 CE'!B:B,'Tab 58'!A20,'00 CE'!G:G) -> 0 | L20: =I20-K20 -> 0 | M20: =IF(L20=0,"OK"," CTRL") -> OK | O20: =IF(VLOOKUP(A20,'00 CE'!$B$4:$D$565,3,0)=0,"",VLOOKUP(A20,'00 CE'!$B$4:$D$565,3,0)) -> 
A21: BA1152 | B21: B.2.A.12.1.B) Altre prestazioni socio-sanitarie a rilevanza sanitaria | C21: 0 | D21: 0 | E21: 0 | F21: 45091.16 | G21: =1434685.5+314715.1 -> 1749400.6 | H21: 12913.7 | I21: 1807405.46 | K21: =SUMIF('00 CE'!B:B,'Tab 58'!A21,'00 CE'!G:G) -> 1807405.46 | L21: 0 | M21: OK | O21: =IF(VLOOKUP(A21,'00 CE'!$B$4:$D$565,3,0)=0,"",VLOOKUP(A21,'00 CE'!$B$4:$D$565,3,0)) -> 
B23: COSTI DA MOBILITA' SANITARIA EXTRAREGIONALE (B) | C23: =SUM(C24:C34) -> 0 | D23: 0 | E23: 0 | F23: 0 | G23: 0 | H23: 0 | I23: =SUM(I24:I34) -> 38960621.41
A24: BA0480 | B24: Acquisti servizi sanitari per medicina di base | I24: =SUMIF('00 CE'!B:B,'Tab 58'!A24,'00 CE'!G:G) -> 202760.17 | O24: =IF(VLOOKUP(A24,'00 CE'!$B$4:$D$565,3,0)=0,"",VLOOKUP(A24,'00 CE'!$B$4:$D$565,3,0)) -> 
A25: BA0520 | B25: Acquisti servizi sanitari per farmaceutica | I25: =SUMIF('00 CE'!B:B,'Tab 58'!A25,'00 CE'!G:G) -> 504044.37 | O25: =IF(VLOOKUP(A25,'00 CE'!$B$4:$D$565,3,0)=0,"",VLOOKUP(A25,'00 CE'!$B$4:$D$565,3,0)) -> 
A26: BA0560 | B26: Acquisti servizi sanitari per assistenza specialistica ambulatoriale | I26: =SUMIF('00 CE'!B:B,'Tab 58'!A26,'00 CE'!G:G) -> 3402818.86 | O26: =IF(VLOOKUP(A26,'00 CE'!$B$4:$D$565,3,0)=0,"",VLOOKUP(A26,'00 CE'!$B$4:$D$565,3,0)) -> 
A27: BA0561 | B27: B.2.A.3.6) prestazioni di pronto soccorso non seguite da ricovero - da pubblico (Extraregione) | I27: =SUMIF('00 CE'!B:B,'Tab 58'!A27,'00 CE'!G:G) -> 0 | O27: =IF(VLOOKUP(A27,'00 CE'!$B$4:$D$565,3,0)=0,"",VLOOKUP(A27,'00 CE'!$B$4:$D$565,3,0)) -> 
A28: BA0730 | B28: Acquisti servizi sanitari per assistenza integrativa | I28: =SUMIF('00 CE'!B:B,'Tab 58'!A28,'00 CE'!G:G) -> 0 | O28: =IF(VLOOKUP(A28,'00 CE'!$B$4:$D$565,3,0)=0,"",VLOOKUP(A28,'00 CE'!$B$4:$D$565,3,0)) -> 
A29: BA0780 | B29: Acquisti servizi sanitari per assistenza protesica | I29: =SUMIF('00 CE'!B:B,'Tab 58'!A29,'00 CE'!G:G) -> 0 | O29: =IF(VLOOKUP(A29,'00 CE'!$B$4:$D$565,3,0)=0,"",VLOOKUP(A29,'00 CE'!$B$4:$D$565,3,0)) -> 
A30: BA0830 | B30: Acquisti servizi sanitari per assistenza ospedaliera | I30: =SUMIF('00 CE'!B:B,'Tab 58'!A30,'00 CE'!G:G) -> 30364599.56 | O30: =IF(VLOOKUP(A30,'00 CE'!$B$4:$D$565,3,0)=0,"",VLOOKUP(A30,'00 CE'!$B$4:$D$565,3,0)) -> 
A31: BA0990 | B31: Acquisto prestazioni di distribuzione farmaci e File F | I31: =SUMIF('00 CE'!B:B,'Tab 58'!A31,'00 CE'!G:G) -> 1901052.91 | O31: =IF(VLOOKUP(A31,'00 CE'!$B$4:$D$565,3,0)=0,"",VLOOKUP(A31,'00 CE'!$B$4:$D$565,3,0)) -> 
A32: BA1060 | B32: Acquisto prestazioni termali in convenzione | I32: =SUMIF('00 CE'!B:B,'Tab 58'!A32,'00 CE'!G:G) -> 106826.2 | O32: =IF(VLOOKUP(A32,'00 CE'!$B$4:$D$565,3,0)=0,"",VLOOKUP(A32,'00 CE'!$B$4:$D$565,3,0)) -> 
A33: BA1120 | B33: Acquisto prestazioni trasporto sanitario | I33: =SUMIF('00 CE'!B:B,'Tab 58'!A33,'00 CE'!G:G) -> 148466.56
A34: BA1540 | B34: Costi per servizi Sanitari Mobilità Internazionale passiva | I34: =SUMIF('00 CE'!B:B,'Tab 58'!A34,'00 CE'!G:G) -> 2330052.78 | O34: =IF(VLOOKUP(A34,'00 CE'!$B$4:$D$565,3,0)=0,"",VLOOKUP(A34,'00 CE'!$B$4:$D$565,3,0)) -> 
B36: TOTALE COSTI DA MOBILITA' (A+B) | C36: =C6+C23 -> 3594736.66 | D36: =D6+D23 -> 29107985.48 | E36: 6379262.13 | F36: 1525771.6 | G36: 9181799.37 | H36: 2265815.15 | I36: =I6+I23 -> 91015991.8
B38: COSTI PER PRESTAZIONI OGGETTO DI FATTURAZIONE DIRETTA INFRAREGIONALE (C) | C38: 466796.15 | D38: 41456.72 | E38: 119237.35 | F38: 0 | G38: 0 | H38: 0 | I38: =SUM(C38:H38) -> 627490.22
B40: COSTI PER PREST. OGGETTO DI FATTUR. DIRETTA EXTRAREGIONALE (D) | I40: =156346.41+163730.41 -> 320076.82
B42: TOTALE COSTI PER PREST. OGGETTO DI FATTURAZ. DIRETTA (C+D) | C42: =C38+C40 -> 466796.15 | D42: =D38+D40 -> 41456.72 | E42: 119237.35 | F42: 0 | G42: 0 | H42: 0 | I42: 947567.04
B44: TOTALE COSTI AZIENDE REGIONE (A+C) | C44: =C38+C6 -> 4061532.81 | D44: 29149442.2 | E44: 6498499.48 | F44: 1525771.6 | G44: 9181799.37 | H44: 2265815.15 | I44: =I38+I6 -> 52682860.61
B45: TOTALE COSTI AZIENDE EXTRA REGIONE (B+D) | I45: =I23+I40 -> 39280698.23
B46: TOTALE COSTI AZIENDE SANITARIE PUBBLICHE (A+B+C+D) | C46: =C36+C38+C40 -> 4061532.81 | D46: 29149442.2 | E46: 6498499.48 | F46: 1525771.6 | G46: 9181799.37 | H46: =H36+H38+H40 -> 2265815.15 | I46: =I36+I38+I40 -> 91963558.84
A50: Nella riga "Costi per prestazioni oggetto di fatturazione diretta infraregionale" sono stati inseriti i costi sostenuti dall'Azienda nei confronti delle AASSLL della Regione per prestazioni fuori mobilità, oggetto di fatturazione diretta. Tali valori sono stati riconciliati con le AASSLL della Regione alla data del 31/12/2019.
A53: I costi di mobilità passiva sono aumentati, rispetto al precedente esercizio, di circa €/mln 8,4 . Detta variazione è stata determinata dall'incremento dei costi per mobilità sanitaria infraregionale (+€/mln 2,7), e dall'incremento dei costi per mobilità sanitaria extraregionale (+ €/mln 5,7). Nello specifico, la mobilità passiva infraregionale è aumentata a causa dei maggiori costi di acquisto di servizi sanitari per assistenza ospedaliera (per + €/mln 1,6) , in particolare nei confronti della ASL di Lanciano-Vasto-Chieti ( €/mln .1), e per l'acquisto di prestazioni riabilitative e di psichiatria residenziale e semiresidenziale I costi per mobilità sanitaria extraregionale sono aumentati nel corso del 2019 principalmente per effetto dell'incremento dei costi per acquisti di servizi sanitari per assistenza ospedaliera (per €/mln 6,5) . Tale incremento è stato parzialmente compensato dalla riduzione dei costi per acquisti di servizi sanitari per assistenza ambulatoriale (per €/mln- 0,6). In merito alla mobilità sanitaria extra regionale va precisato, ad ogni buon conto, che essa, ai sensi del D. Lgs. 118/2011, viene contabilizzata con due anni di ritardo rispetto all'esercizio di competenza e, come stabilisce il citato decreto, la rilevazione contabile viene effettuata al netto degli eventuali conguagli (+ o -) dei due esercizi precedenti.

Sheet Tab 58 bis
A1: Tab. 58 bis - Tabella di raccordo - DETTAGLIO ACQUISTI DI SERVIZI SANITARI IN MOBILITA'
A3: Voce CE | B3: Descrizione | D3: Importo | E3: Voce CE D.Lgs. 118/2011 | G3: SOMMA
A4: BA0410 | B4: B.2.A.1) Acquisti servizi sanitari per medicina di base | D4: =SUM(D5:D7) -> 35330014.78 | E4: B 2) a) | G4: =IF(VLOOKUP(A4,'00 CE'!$B$4:$D$565,3,0)=0,"",VLOOKUP(A4,'00 CE'!$B$4:$D$565,3,0)) -> S
A5: BA0420 | B5: B.2.A.1.1) - da convenzione | D5: =SUMIF('00 CE'!B:B,'Tab 58 bis'!A5,'00 CE'!G:G) -> 35075850.21 | G5: =IF(VLOOKUP(A5,'00 CE'!$B$4:$D$565,3,0)=0,"",VLOOKUP(A5,'00 CE'!$B$4:$D$565,3,0)) -> S
A6: BA0470 | B6: B.2.A.1.2) - da pubblico (Aziende sanitarie pubbliche della Regione) - Mobilità intraregionale | C6: a | D6: =SUMIF('00 CE'!B:B,'Tab 58 bis'!A6,'00 CE'!G:G) -> 51404.4 | G6: =IF(VLOOKUP(A6,'00 CE'!$B$4:$D$565,3,0)=0,"",VLOOKUP(A6,'00 CE'!$B$4:$D$565,3,0)) -> 
A7: BA0480 | B7: B.2.A.1.3) - da pubblico (Aziende sanitarie pubbliche Extraregione) - Mobilità extraregionale | C7: b | D7: =SUMIF('00 CE'!B:B,'Tab 58 bis'!A7,'00 CE'!G:G) -> 202760.17 | G7: =IF(VLOOKUP(A7,'00 CE'!$B$4:$D$565,3,0)=0,"",VLOOKUP(A7,'00 CE'!$B$4:$D$565,3,0)) -> 
A8: BA0490 | B8: B.2.A.2) Acquisti servizi sanitari per farmaceutica | D8: =SUM(D9:D11) -> 48380817.38 | E8: B 2) b) | G8: =IF(VLOOKUP(A8,'00 CE'!$B$4:$D$565,3,0)=0,"",VLOOKUP(A8,'00 CE'!$B$4:$D$565,3,0)) -> S
A9: BA0500 | B9: B.2.A.2.1) - da convenzione | D9: =SUMIF('00 CE'!B:B,'Tab 58 bis'!A9,'00 CE'!G:G) -> 46621762.02 | G9: =IF(VLOOKUP(A9,'00 CE'!$B$4:$D$565,3,0)=0,"",VLOOKUP(A9,'00 CE'!$B$4:$D$565,3,0)) -> 
A10: BA0510 | B10: B.2.A.2.2) - da pubblico (Aziende sanitarie pubbliche della Regione)- Mobilità intraregionale | C10: a | D10: =SUMIF('00 CE'!B:B,'Tab 58 bis'!A10,'00 CE'!G:G) -> 1255010.99 | G10: =IF(VLOOKUP(A10,'00 CE'!$B$4:$D$565,3,0)=0,"",VLOOKUP(A10,'00 CE'!$B$4:$D$565,3,0)) -> 
A11: BA0520 | B11: B.2.A.2.3) - da pubblico (Extraregione) | C11: b | D11: =SUMIF('00 CE'!B:B,'Tab 58 bis'!A11,'00 CE'!G:G) -> 504044.37 | G11: =IF(VLOOKUP(A11,'00 CE'!$B$4:$D$565,3,0)=0,"",VLOOKUP(A11,'00 CE'!$B$4:$D$565,3,0)) -> 
A12: BA0530 | B12: B.2.A.3) Acquisti servizi sanitari per assistenza specialistica ambulatoriale | D12: =SUM(D13:D22) -> 26090460.29 | E12: B 2) c) | G12: =IF(VLOOKUP(A12,'00 CE'!$B$4:$D$565,3,0)=0,"",VLOOKUP(A12,'00 CE'!$B$4:$D$565,3,0)) -> S
A13: BA0540 | B13: B.2.A.3.1) - da pubblico (Aziende sanitarie pubbliche della Regione) | C13: a | D13: =SUMIF('00 CE'!B:B,'Tab 58 bis'!A13,'00 CE'!G:G) -> 9027977.09 | G13: =IF(VLOOKUP(A13,'00 CE'!$B$4:$D$565,3,0)=0,"",VLOOKUP(A13,'00 CE'!$B$4:$D$565,3,0)) -> 
A14: BA0541 | B14: B.2.A.3.2) prestazioni di pronto soccorso non seguite da ricovero - da pubblico (Aziende sanitarie pubbliche della Regione) | D14: =SUMIF('00 CE'!B:B,'Tab 58 bis'!A14,'00 CE'!G:G) -> 0 | G14: =IF(VLOOKUP(A14,'00 CE'!$B$4:$D$565,3,0)=0,"",VLOOKUP(A14,'00 CE'!$B$4:$D$565,3,0)) -> 
A15: BA0550 | B15: B.2.A.3.2) - da pubblico (altri soggetti pubbl. della Regione) | D15: =SUMIF('00 CE'!B:B,'Tab 58 bis'!A15,'00 CE'!G:G) -> 580281.24 | G15: =IF(VLOOKUP(A15,'00 CE'!$B$4:$D$565,3,0)=0,"",VLOOKUP(A15,'00 CE'!$B$4:$D$565,3,0)) -> 
A16: BA0551 | B16: B.2.A.3.4) prestazioni di pronto soccorso non seguite da ricovero - da pubblico (altri soggetti pubbl. della Regione) | D16: =SUMIF('00 CE'!B:B,'Tab 58 bis'!A16,'00 CE'!G:G) -> 0 | G16: =IF(VLOOKUP(A16,'00 CE'!$B$4:$D$565,3,0)=0,"",VLOOKUP(A16,'00 CE'!$B$4:$D$565,3,0)) -> 
A17: BA0560 | B17: B.2.A.3.3) - da pubblico (Extraregione) | C17: b | D17: =SUMIF('00 CE'!B:B,'Tab 58 bis'!A17,'00 CE'!G:G) -> 3402818.86 | G17: =IF(VLOOKUP(A17,'00 CE'!$B$4:$D$565,3,0)=0,"",VLOOKUP(A17,'00 CE'!$B$4:$D$565,3,0)) -> 
A18: BA0561 | B18: A.4.A.3.14) Altre prestazioni sanitarie e sociosanitarie a rilevanza sanitaria erogate a soggetti pubblici Extraregione | D18: =SUMIF('00 CE'!B:B,'Tab 58 bis'!A18,'00 CE'!G:G) -> 0 | G18: =IF(VLOOKUP(A18,'00 CE'!$B$4:$D$565,3,0)=0,"",VLOOKUP(A18,'00 CE'!$B$4:$D$565,3,0)) -> 
A19: BA0570 | B19: B.2.A.3.4) - da privato - Medici SUMAI | D19: =SUMIF('00 CE'!B:B,'Tab 58 bis'!A19,'00 CE'!G:G) -> 4184408.7 | G19: =IF(VLOOKUP(A19,'00 CE'!$B$4:$D$565,3,0)=0,"",VLOOKUP(A19,'00 CE'!$B$4:$D$565,3,0)) -> 
A20: BA0580 | B20: B.2.A.3.5) - da privato | D20: =SUMIF('00 CE'!B:B,'Tab 58 bis'!A20,'00 CE'!G:G) -> 8698101.92 | G20: =IF(VLOOKUP(A20,'00 CE'!$B$4:$D$565,3,0)=0,"",VLOOKUP(A20,'00 CE'!$B$4:$D$565,3,0)) -> S
A21: BA0630 | B21: B.2.A.3.6) - da privato per cittadini non residenti - Extraregione (mobilità attiva in compensazione) | D21: =SUMIF('00 CE'!B:B,'Tab 58 bis'!A21,'00 CE'!G:G) -> 196872.48 | G21: =IF(VLOOKUP(A21,'00 CE'!$B$4:$D$565,3,0)=0,"",VLOOKUP(A21,'00 CE'!$B$4:$D$565,3,0)) -> 
A22: BA0631 | B22: A.4.B.3) Prestazioni di pronto soccorso non seguite da ricovero da priv. Extraregione in compensazione (mobilità attiva) | D22: =SUMIF('00 CE'!B:B,'Tab 58 bis'!A22,'00 CE'!G:G) -> 0 | G22: =IF(VLOOKUP(A22,'00 CE'!$B$4:$D$565,3,0)=0,"",VLOOKUP(A22,'00 CE'!$B$4:$D$565,3,0)) -> 
A23: BA0640 | B23: B.2.A.4) Acquisti servizi sanitari per assistenza riabilitativa | D23: =SUM(D24:D27) -> 20274723.89 | E23: B 2) d) | G23: =IF(VLOOKUP(A23,'00 CE'!$B$4:$D$565,3,0)=0,"",VLOOKUP(A23,'00 CE'!$B$4:$D$565,3,0)) -> S
A24: BA0650 | B24: B.2.A.4.1) - da pubblico (Aziende sanitarie pubbliche della Regione) | C24: a | D24: =SUMIF('00 CE'!B:B,'Tab 58 bis'!A24,'00 CE'!G:G) -> 5168858.88 | G24: =IF(VLOOKUP(A24,'00 CE'!$B$4:$D$565,3,0)=0,"",VLOOKUP(A24,'00 CE'!$B$4:$D$565,3,0)) -> 
A25: BA0670 | B25: B.2.A.4.3) - da pubblico (Extraregione) non soggetti a compensazione | D25: =SUMIF('00 CE'!B:B,'Tab 58 bis'!A25,'00 CE'!G:G) -> 0 | G25: =IF(VLOOKUP(A25,'00 CE'!$B$4:$D$565,3,0)=0,"",VLOOKUP(A25,'00 CE'!$B$4:$D$565,3,0)) -> 
A26: BA0680 | B26: B.2.A.4.4) - da privato (intraregionale) | D26: =SUMIF('00 CE'!B:B,'Tab 58 bis'!A26,'00 CE'!G:G) -> 14522765.17 | G26: =IF(VLOOKUP(A26,'00 CE'!$B$4:$D$565,3,0)=0,"",VLOOKUP(A26,'00 CE'!$B$4:$D$565,3,0)) -> 
A27: BA0690 | B27: B.2.A.4.5) - da privato (extraregionale) | D27: =SUMIF('00 CE'!B:B,'Tab 58 bis'!A27,'00 CE'!G:G) -> 583099.84 | G27: =IF(VLOOKUP(A27,'00 CE'!$B$4:$D$565,3,0)=0,"",VLOOKUP(A27,'00 CE'!$B$4:$D$565,3,0)) -> 
A28: BA0700 | B28: B.2.A.5) Acquisti servizi sanitari per assistenza integrativa | D28: =SUM(D29:D29) -> 1733047.08 | E28: B 2) e) | G28: =IF(VLOOKUP(A28,'00 CE'!$B$4:$D$565,3,0)=0,"",VLOOKUP(A28,'00 CE'!$B$4:$D$565,3,0)) -> S
A29: BA0740 | B29: B.2.A.5.4) - da privato | D29: =SUMIF('00 CE'!B:B,'Tab 58 bis'!A29,'00 CE'!G:G) -> 1733047.08 | G29: =IF(VLOOKUP(A29,'00 CE'!$B$4:$D$565,3,0)=0,"",VLOOKUP(A29,'00 CE'!$B$4:$D$565,3,0)) -> 
A30: BA0750 | B30: B.2.A.6) Acquisti servizi sanitari per assistenza protesica | D30: =SUM(D31) -> 6846095.71 | E30: B 2) f) | G30: =IF(VLOOKUP(A30,'00 CE'!$B$4:$D$565,3,0)=0,"",VLOOKUP(A30,'00 CE'!$B$4:$D$565,3,0)) -> S
A31: BA0790 | B31: B.2.A.6.4) - da privato | D31: =SUMIF('00 CE'!B:B,'Tab 58 bis'!A31,'00 CE'!G:G) -> 6846095.71 | G31: =IF(VLOOKUP(A31,'00 CE'!$B$4:$D$565,3,0)=0,"",VLOOKUP(A31,'00 CE'!$B$4:$D$565,3,0)) -> 
A32: BA0800 | B32: B.2.A.7) Acquisti servizi sanitari per assistenza ospedaliera | D32: =SUM(D33:D36) -> 131436628.7 | E32: B 2) g) | G32: =IF(VLOOKUP(A32,'00 CE'!$B$4:$D$565,3,0)=0,"",VLOOKUP(A32,'00 CE'!$B$4:$D$565,3,0)) -> S
A33: BA0810 | B33: B.2.A.7.1) - da pubblico (Aziende sanitarie pubbliche della Regione) | C33: a | D33: =SUMIF('00 CE'!B:B,'Tab 58 bis'!A33,'00 CE'!G:G) -> 28052232.69 | G33: =IF(VLOOKUP(A33,'00 CE'!$B$4:$D$565,3,0)=0,"",VLOOKUP(A33,'00 CE'!$B$4:$D$565,3,0)) -> 
A34: BA0830 | B34: B.2.A.7.3) - da pubblico (Extraregione) | C34: b | D34: =SUMIF('00 CE'!B:B,'Tab 58 bis'!A34,'00 CE'!G:G) -> 30364599.56 | G34: =IF(VLOOKUP(A34,'00 CE'!$B$4:$D$565,3,0)=0,"",VLOOKUP(A34,'00 CE'!$B$4:$D$565,3,0)) -> 
A35: BA0840 | B35: B.2.A.7.4) - da privato | D35: =SUMIF('00 CE'!B:B,'Tab 58 bis'!A35,'00 CE'!G:G) -> 64592865.92 | G35: =IF(VLOOKUP(A35,'00 CE'!$B$4:$D$565,3,0)=0,"",VLOOKUP(A35,'00 CE'!$B$4:$D$565,3,0)) -> S
A36: BA0890 | B36: B.2.A.7.5) - da privato per cittadini non residenti - Extraregione (mobilità attiva in compensazione) | D36: =SUMIF('00 CE'!B:B,'Tab 58 bis'!A36,'00 CE'!G:G) -> 8426930.51 | G36: =IF(VLOOKUP(A36,'00 CE'!$B$4:$D$565,3,0)=0,"",VLOOKUP(A36,'00 CE'!$B$4:$D$565,3,0)) -> 
A37: BA0900 | B37: B.2.A.8) Acquisto prestazioni di psichiatria residenziale e semiresidenziale | D37: =SUM(D38:D42) -> 12842279.1 | E37: B 2) h) | G37: =IF(VLOOKUP(A37,'00 CE'!$B$4:$D$565,3,0)=0,"",VLOOKUP(A37,'00 CE'!$B$4:$D$565,3,0)) -> S
A38: BA0910 | B38: B.2.A.8.1) - da pubblico (Aziende sanitarie pubbliche della Regione) | C38: a | D38: =SUMIF('00 CE'!B:B,'Tab 58 bis'!A38,'00 CE'!G:G) -> 1735685.3 | G38: =IF(VLOOKUP(A38,'00 CE'!$B$4:$D$565,3,0)=0,"",VLOOKUP(A38,'00 CE'!$B$4:$D$565,3,0)) -> 
A39: BA0920 | B39: B.2.A.8.2) - da pubblico (altri soggetti pubbl. della Regione) | D39: =SUMIF('00 CE'!B:B,'Tab 58 bis'!A39,'00 CE'!G:G) -> 0 | G39: =IF(VLOOKUP(A39,'00 CE'!$B$4:$D$565,3,0)=0,"",VLOOKUP(A39,'00 CE'!$B$4:$D$565,3,0)) -> 
A40: BA0930 | B40: B.2.A.8.3) - da pubblico (Extraregione) - non soggette a compensazione | D40: =SUMIF('00 CE'!B:B,'Tab 58 bis'!A40,'00 CE'!G:G) -> 60576 | G40: =IF(VLOOKUP(A40,'00 CE'!$B$4:$D$565,3,0)=0,"",VLOOKUP(A40,'00 CE'!$B$4:$D$565,3,0)) -> 
A41: BA0940 | B41: B.2.A.8.4) - da privato (intraregionale) | D41: =SUMIF('00 CE'!B:B,'Tab 58 bis'!A41,'00 CE'!G:G) -> 9380591.68 | G41: =IF(VLOOKUP(A41,'00 CE'!$B$4:$D$565,3,0)=0,"",VLOOKUP(A41,'00 CE'!$B$4:$D$565,3,0)) -> 
A42: BA0950 | B42: B.2.A.8.5) - da privato (extraregionale) | D42: =SUMIF('00 CE'!B:B,'Tab 58 bis'!A42,'00 CE'!G:G) -> 1665426.12 | G42: =IF(VLOOKUP(A42,'00 CE'!$B$4:$D$565,3,0)=0,"",VLOOKUP(A42,'00 CE'!$B$4:$D$565,3,0)) -> 
A43: BA0960 | B43: B.2.A.9) Acquisto prestazioni di distribuzione farmaci File F | D43: =SUM(D44:D46) -> 8471399.1 | E43: B 2) i) | G43: =IF(VLOOKUP(A43,'00 CE'!$B$4:$D$565,3,0)=0,"",VLOOKUP(A43,'00 CE'!$B$4:$D$565,3,0)) -> S
A44: BA0970 | B44: B.2.A.9.1) - da pubblico (Aziende sanitarie pubbliche della Regione) - Mobilità intraregionale | C44: a | D44: =SUMIF('00 CE'!B:B,'Tab 58 bis'!A44,'00 CE'!G:G) -> 4858115.13 | G44: =IF(VLOOKUP(A44,'00 CE'!$B$4:$D$565,3,0)=0,"",VLOOKUP(A44,'00 CE'!$B$4:$D$565,3,0)) -> 
A45: BA0990 | B45: B.2.A.9.3) - da pubblico (Extraregione) | C45: b | D45: =SUMIF('00 CE'!B:B,'Tab 58 bis'!A45,'00 CE'!G:G) -> 1901052.91 | G45: =IF(VLOOKUP(A45,'00 CE'!$B$4:$D$565,3,0)=0,"",VLOOKUP(A45,'00 CE'!$B$4:$D$565,3,0)) -> 
A46: BA1000 | B46: B.2.A.9.4) - da privato (intraregionale) | D46: =SUMIF('00 CE'!B:B,'Tab 58 bis'!A46,'00 CE'!G:G) -> 1712231.06 | G46: =IF(VLOOKUP(A46,'00 CE'!$B$4:$D$565,3,0)=0,"",VLOOKUP(A46,'00 CE'!$B$4:$D$565,3,0)) -> 
A47: BA1030 | B47: B.2.A.10) Acquisto prestazioni termali in convenzione | D47: =SUM(D48:D51) -> 1664343.88 | E47: B 2) j) | G47: =IF(VLOOKUP(A47,'00 CE'!$B$4:$D$565,3,0)=0,"",VLOOKUP(A47,'00 CE'!$B$4:$D$565,3,0)) -> S
A48: BA1040 | B48: B.2.A.10.1) - da pubblico (Aziende sanitarie pubbliche della Regione) - Mobilità intraregionale | C48: a | D48: =SUMIF('00 CE'!B:B,'Tab 58 bis'!A48,'00 CE'!G:G) -> 46.2 | G48: =IF(VLOOKUP(A48,'00 CE'!$B$4:$D$565,3,0)=0,"",VLOOKUP(A48,'00 CE'!$B$4:$D$565,3,0)) -> 
A49: BA1060 | B49: B.2.A.10.3) - da pubblico (Extraregione) | C49: b | D49: =SUMIF('00 CE'!B:B,'Tab 58 bis'!A49,'00 CE'!G:G) -> 106826.2 | G49: =IF(VLOOKUP(A49,'00 CE'!$B$4:$D$565,3,0)=0,"",VLOOKUP(A49,'00 CE'!$B$4:$D$565,3,0)) -> 
A50: BA1070 | B50: B.2.A.10.4) - da privato | D50: =SUMIF('00 CE'!B:B,'Tab 58 bis'!A50,'00 CE'!G:G) -> 1401125.08 | G50: =IF(VLOOKUP(A50,'00 CE'!$B$4:$D$565,3,0)=0,"",VLOOKUP(A50,'00 CE'!$B$4:$D$565,3,0)) -> 
A51: BA1080 | B51: B.2.A.10.5) - da privato per cittadini non residenti - Extraregione (mobilità attiva in compensazione) | D51: =SUMIF('00 CE'!B:B,'Tab 58 bis'!A51,'00 CE'!G:G) -> 156346.4 | G51: =IF(VLOOKUP(A51,'00 CE'!$B$4:$D$565,3,0)=0,"",VLOOKUP(A51,'00 CE'!$B$4:$D$565,3,0)) -> 
A52: BA1090 | B52: B.2.A.11) Acquisto prestazioni di trasporto sanitario | D52: =SUM(D53:D55) -> 7848424.45 | E52: B 2) k) | G52: =IF(VLOOKUP(A52,'00 CE'!$B$4:$D$565,3,0)=0,"",VLOOKUP(A52,'00 CE'!$B$4:$D$565,3,0)) -> S
A53: BA1100 | B53: B.2.A.11.1) - da pubblico (Aziende sanitarie pubbliche della Regione) - Mobilità intraregionale | C53: a | D53: =SUMIF('00 CE'!B:B,'Tab 58 bis'!A53,'00 CE'!G:G) -> 98634.25 | G53: =IF(VLOOKUP(A53,'00 CE'!$B$4:$D$565,3,0)=0,"",VLOOKUP(A53,'00 CE'!$B$4:$D$565,3,0)) -> 
A54: BA1120 | B54: B.2.A.11.3) - da pubblico (Extraregione) | C54: b | D54: =SUMIF('00 CE'!B:B,'Tab 58 bis'!A54,'00 CE'!G:G) -> 148466.56 | G54: =IF(VLOOKUP(A54,'00 CE'!$B$4:$D$565,3,0)=0,"",VLOOKUP(A54,'00 CE'!$B$4:$D$565,3,0)) -> 
A55: BA1130 | B55: B.2.A.11.4) - da privato | D55: =SUMIF('00 CE'!B:B,'Tab 58 bis'!A55,'00 CE'!G:G) -> 7601323.64 | G55: =IF(VLOOKUP(A55,'00 CE'!$B$4:$D$565,3,0)=0,"",VLOOKUP(A55,'00 CE'!$B$4:$D$565,3,0)) -> 
A56: BA1140 | B56: B.2.A.12) Acquisto prestazioni Socio-Sanitarie a rilevanza sanitaria | D56: =SUM(D57:D62) -> 17664091.36 | E56: B 2) l) | G56: =IF(VLOOKUP(A56,'00 CE'!$B$4:$D$565,3,0)=0,"",VLOOKUP(A56,'00 CE'!$B$4:$D$565,3,0)) -> S
A57: BA1150 | B57: B.2.A.12.1) - da pubblico (Aziende sanitarie pubbliche della Regione) - Mobilità intraregionale | C57: a | D57: =SUMIF('00 CE'!B:B,'Tab 58 bis'!A57,'00 CE'!G:G) -> 1807405.46 | G57: =IF(VLOOKUP(A57,'00 CE'!$B$4:$D$565,3,0)=0,"",VLOOKUP(A57,'00 CE'!$B$4:$D$565,3,0)) -> S
A58: BA1160 | B58: B.2.A.12.2) - da pubblico (altri soggetti pubblici della Regione) | D58: =SUMIF('00 CE'!B:B,'Tab 58 bis'!A58,'00 CE'!G:G) -> 0 | G58: =IF(VLOOKUP(A58,'00 CE'!$B$4:$D$565,3,0)=0,"",VLOOKUP(A58,'00 CE'!$B$4:$D$565,3,0)) -> 
A59: BA1161 | B59: B.2.A.12.3) - da pubblico (Extraregione) - Acquisto di Altre prestazioni sociosanitarie a rilevanza sanitaria erogate a soggetti pubblici Extraregione | D59: =SUMIF('00 CE'!B:B,'Tab 58 bis'!A59,'00 CE'!G:G) -> 0 | G59: =IF(VLOOKUP(A59,'00 CE'!$B$4:$D$565,3,0)=0,"",VLOOKUP(A59,'00 CE'!$B$4:$D$565,3,0)) -> 
A60: BA1170 | B60: B.2.A.12.3) - da pubblico (Extraregione) non soggette a compensazione | D60: =SUMIF('00 CE'!B:B,'Tab 58 bis'!A60,'00 CE'!G:G) -> 163730.37 | G60: =IF(VLOOKUP(A60,'00 CE'!$B$4:$D$565,3,0)=0,"",VLOOKUP(A60,'00 CE'!$B$4:$D$565,3,0)) -> 
A61: BA1180 | B61: B.2.A.12.4) - da privato (intraregionale) | D61: =SUMIF('00 CE'!B:B,'Tab 58 bis'!A61,'00 CE'!G:G) -> 13625990.66 | G61: =IF(VLOOKUP(A61,'00 CE'!$B$4:$D$565,3,0)=0,"",VLOOKUP(A61,'00 CE'!$B$4:$D$565,3,0)) -> 
A62: BA1190 | B62: B.2.A.12.5) - da privato (extraregionale) | D62: =SUMIF('00 CE'!B:B,'Tab 58 bis'!A62,'00 CE'!G:G) -> 2066964.87 | G62: =IF(VLOOKUP(A62,'00 CE'!$B$4:$D$565,3,0)=0,"",VLOOKUP(A62,'00 CE'!$B$4:$D$565,3,0)) -> 
A63: BA1200 | B63: B.2.A.13) Compartecipazione al personale per att. libero-prof. (intramoenia) | D63: =SUM(D64:D70) -> 2990762.61 | E63: B 2) m) | G63: =IF(VLOOKUP(A63,'00 CE'!$B$4:$D$565,3,0)=0,"",VLOOKUP(A63,'00 CE'!$B$4:$D$565,3,0)) -> S
A64: BA1210 | B64: B.2.A.13.1) Compartecipazione al personale per att. libero professionale intramoenia - Area ospedaliera | D64: =SUMIF('00 CE'!B:B,'Tab 58 bis'!A64,'00 CE'!G:G) -> 60058.96 | G64: =IF(VLOOKUP(A64,'00 CE'!$B$4:$D$565,3,0)=0,"",VLOOKUP(A64,'00 CE'!$B$4:$D$565,3,0)) -> 
A65: BA1220 | B65: B.2.A.13.2) Compartecipazione al personale per att. libero professionale intramoenia- Area specialistica | D65: =SUMIF('00 CE'!B:B,'Tab 58 bis'!A65,'00 CE'!G:G) -> 2527432.63 | G65: =IF(VLOOKUP(A65,'00 CE'!$B$4:$D$565,3,0)=0,"",VLOOKUP(A65,'00 CE'!$B$4:$D$565,3,0)) -> 
A66: BA1230 | B66: B.2.A.13.3) Compartecipazione al personale per att. libero professionale intramoenia - Area sanità pubblica | D66: =SUMIF('00 CE'!B:B,'Tab 58 bis'!A66,'00 CE'!G:G) -> 14345.3 | G66: =IF(VLOOKUP(A66,'00 CE'!$B$4:$D$565,3,0)=0,"",VLOOKUP(A66,'00 CE'!$B$4:$D$565,3,0)) -> 
A67: BA1240 | B67: B.2.A.13.4) Compartecipazione al personale per att. libero professionale intramoenia - Consulenze (ex art. 55 c.1 lett. c), d) ed ex Art. 57-58) | D67: =SUMIF('00 CE'!B:B,'Tab 58 bis'!A67,'00 CE'!G:G) -> 335908.3 | G67: =IF(VLOOKUP(A67,'00 CE'!$B$4:$D$565,3,0)=0,"",VLOOKUP(A67,'00 CE'!$B$4:$D$565,3,0)) -> 
A68: BA1250 | B68: B.2.A.13.5) Compartecipazione al personale per att. libero professionale intramoenia - Consulenze (ex art. 55 c.1 lett. c), d) ed ex Art. 57-58) (Aziende sanitarie pubbliche della Regione) | D68: =SUMIF('00 CE'!B:B,'Tab 58 bis'!A68,'00 CE'!G:G) -> 0 | G68: =IF(VLOOKUP(A68,'00 CE'!$B$4:$D$565,3,0)=0,"",VLOOKUP(A68,'00 CE'!$B$4:$D$565,3,0)) -> 
A69: BA1260 | B69: B.2.A.13.6) Compartecipazione al personale per att. libero professionale intramoenia - Altro | D69: =SUMIF('00 CE'!B:B,'Tab 58 bis'!A69,'00 CE'!G:G) -> 53017.42 | G69: =IF(VLOOKUP(A69,'00 CE'!$B$4:$D$565,3,0)=0,"",VLOOKUP(A69,'00 CE'!$B$4:$D$565,3,0)) -> 
A70: BA1270 | B70: B.2.A.13.7) Compartecipazione al personale per att. libero professionale intramoenia - Altro (Aziende sanitarie pubbliche della Regione) | D70: =SUMIF('00 CE'!B:B,'Tab 58 bis'!A70,'00 CE'!G:G) -> 0 | G70: =IF(VLOOKUP(A70,'00 CE'!$B$4:$D$565,3,0)=0,"",VLOOKUP(A70,'00 CE'!$B$4:$D$565,3,0)) -> 
A71: BA1280 | B71: B.2.A.14) Rimborsi, assegni e contributi sanitari | D71: =SUM(D72:D76) -> 2341034.66 | E71: B 2) n) | G71: =IF(VLOOKUP(A71,'00 CE'!$B$4:$D$565,3,0)=0,"",VLOOKUP(A71,'00 CE'!$B$4:$D$565,3,0)) -> S
A72: BA1290 | B72: B.2.A.14.1) Contributi ad associazioni di volontariato | D72: =SUMIF('00 CE'!B:B,'Tab 58 bis'!A72,'00 CE'!G:G) -> 367251.39 | G72: =IF(VLOOKUP(A72,'00 CE'!$B$4:$D$565,3,0)=0,"",VLOOKUP(A72,'00 CE'!$B$4:$D$565,3,0)) -> 
A73: BA1300 | B73: B.2.A.14.2) Rimborsi per cure all'estero | D73: =SUMIF('00 CE'!B:B,'Tab 58 bis'!A73,'00 CE'!G:G) -> 12227.29 | G73: =IF(VLOOKUP(A73,'00 CE'!$B$4:$D$565,3,0)=0,"",VLOOKUP(A73,'00 CE'!$B$4:$D$565,3,0)) -> 
A74: BA1330 | B74: B.2.A.14.5) Altri rimborsi, assegni e contributi | D74: =SUMIF('00 CE'!B:B,'Tab 58 bis'!A74,'00 CE'!G:G) -> 1961555.98 | G74: =IF(VLOOKUP(A74,'00 CE'!$B$4:$D$565,3,0)=0,"",VLOOKUP(A74,'00 CE'!$B$4:$D$565,3,0)) -> 
A75: BA1340 | B75: B.2.A.14.6) Rimborsi, assegni e contributi v/Aziende sanitarie pubbliche della Regione | D75: =SUMIF('00 CE'!B:B,'Tab 58 bis'!A75,'00 CE'!G:G) -> 0 | G75: =IF(VLOOKUP(A75,'00 CE'!$B$4:$D$565,3,0)=0,"",VLOOKUP(A75,'00 CE'!$B$4:$D$565,3,0)) -> 
A76: BA1341 | B76: B.2.A.14.7) Rimborsi, assegni e contributi v/Regione - GSA | D76: =SUMIF('00 CE'!B:B,'Tab 58 bis'!A76,'00 CE'!G:G) -> 0 | G76: =IF(VLOOKUP(A76,'00 CE'!$B$4:$D$565,3,0)=0,"",VLOOKUP(A76,'00 CE'!$B$4:$D$565,3,0)) -> 
A77: BA1350 | B77: B.2.A.15) Consulenze, Collaborazioni, Interinale e altre prestazioni di lavoro sanitarie e sociosanitarie | D77: =SUMIF('00 CE'!B:B,'Tab 58 bis'!A77,'00 CE'!G:G) -> 5940516.54 | E77: B 2) o) | G77: =IF(VLOOKUP(A77,'00 CE'!$B$4:$D$565,3,0)=0,"",VLOOKUP(A77,'00 CE'!$B$4:$D$565,3,0)) -> S
A78: BA1490 | B78: B.2.A.16) Altri servizi sanitari e sociosanitari a rilevanza sanitaria | D78: =SUMIF('00 CE'!B:B,'Tab 58 bis'!A78,'00 CE'!G:G) -> 7243962.92 | E78: B 2) p)
A79: BA1540 | B79: di cui : Costi per servizi sanitari - Mobilità internazionale passiva | C79: c | D79: =SUMIF('00 CE'!B:B,'Tab 58 bis'!A79,'00 CE'!G:G) -> 2330052.78 | G79: =IF(VLOOKUP(A79,'00 CE'!$B$4:$D$565,3,0)=0,"",VLOOKUP(A79,'00 CE'!$B$4:$D$565,3,0)) -> 
A81: BA0400 | B81: Totale Acquisti servizi sanitari | D81: =D4+D8+D12+D23+D28+D30+D32+D37+D43+D47+D52+D56+D63+D71+D77+D78 -> 337098602.4 | E81: B.2
A83: Somma a | B83: Costi da mobilità sanitaria infraregionale | D83: =D6+D10+D13+D24+D33+D38+D44+D48+D53+D57 -> 52055370.39
A84: Somma b | B84: Costi da mobilità sanitaria extraregionale | D84: =D7+D11+D17+D34+D45+D49+D54 -> 36630568.63
A85: Somma c | B85: Costi da mobilità sanitaria internazionale | D85: =D79 -> 2330052.78
A86: TOTALE COSTI DA MOBILITA' SANITARIA | D86: =SUM(D83:D85) -> 91015991.8 | E86: in accordo con Tabella n. 58

Sheet Tab 58 riclassifica regionale
A1: 20. Acquisti di servizi
B3: Tab. 58 – Dettaglio acquisti di servizi sanitari in mobilità ( riclassifica regionale)
A4: CODICE MOD. CE | B4: DETTAGLIO ACQUISTI DI SERVIZI SANITARI IN MOBILITA' | C4: PUBBLICO | F4: PRIVATO | I4: TOTALE
C5: Avezzano-Sulmona-L'Aquila | D5: Lanciano-Vasto-Chieti | E5: Teramo | F5: Avezzano-Sulmona-L'Aquila | G5: Lanciano-Vasto-Chieti | H5: Teramo | K5: VALORE CE | L5: Diff | M5: Ctrl | O5: SOMMA
B6: COSTI DA MOBILITA' SANITARIA INFRAREGIONALE (A) | C6: =SUM(C8:C20) -> 3594736.66 | D6: 29107985.48 | E6: 6379262.13 | F6: 1525771.6 | G6: 9181799.37 | H6: 2265815.15 | I6: 52055370.39 | K6: 52055370.39
A7: BA0061 | B7: Emoderivati di produzione regionale da pubblico (Aziende sanitarie pubbliche della Regione) - Mobilità intraregionale | C7: 0 | D7: 0 | E7: 0 | F7: 0 | G7: 0 | H7: 0 | I7: =SUM(C7:H7) -> 0
A8: BA0470 | B8: Acquisti servizi sanitari per medicina di base | C8: 13400.46 | D8: 24574.05 | E8: 13429.89 | F8: 0 | G8: 0 | H8: 0 | I8: =SUM(C8:H8) -> 51404.4 | K8: =SUMIF('00 CE'!B:B,'Tab 58 riclassifica regionale'!A8,'00 CE'!G:G) -> 51404.4 | L8: =I8-K8 -> 0 | M8: =IF(L8=0,"OK"," CTRL") -> OK | O8: =IF(VLOOKUP(A8,'00 CE'!$B$4:$D$565,3,0)=0,"",VLOOKUP(A8,'00 CE'!$B$4:$D$565,3,0)) -> 
A9: BA0510 | B9: Acquisti servizi sanitari per farmaceutica | C9: 216926.18 | D9: 877699.17 | E9: 160385.64 | F9: 0 | G9: 0 | H9: 0 | I9: =SUM(C9:H9) -> 1255010.99 | K9: =SUMIF('00 CE'!B:B,'Tab 58 riclassifica regionale'!A9,'00 CE'!G:G) -> 1255010.99 | L9: =I9-K9 -> 0 | M9: =IF(L9=0,"OK"," CTRL") -> OK | O9: =IF(VLOOKUP(A9,'00 CE'!$B$4:$D$565,3,0)=0,"",VLOOKUP(A9,'00 CE'!$B$4:$D$565,3,0)) -> 
A10: BA0540 | B10: Acquisti servizi sanitari per assistenza specialistica ambulatoriale | C10: 571607.28 | D10: 6041533.55 | E10: 1189429.36 | F10: 50604.99 | G10: 1169814.94 | H10: 4986.97 | I10: 9027977.09 | K10: =SUMIF('00 CE'!B:B,'Tab 58 riclassifica regionale'!A10,'00 CE'!G:G) -> 9027977.09 | L10: 0 | M10: OK | O10: =IF(VLOOKUP(A10,'00 CE'!$B$4:$D$565,3,0)=0,"",VLOOKUP(A10,'00 CE'!$B$4:$D$565,3,0)) -> 
A11: BA0541 | B11: B.2.A.3.2) prestazioni di pronto soccorso non seguite da ricovero - da pubblico (Aziende sanitarie pubbliche della Regione) | C11: 0 | D11: 0 | E11: 0 | F11: 0 | G11: 0 | H11: 0 | I11: 0 | K11: =SUMIF('00 CE'!B:B,'Tab 58 riclassifica regionale'!A11,'00 CE'!G:G) -> 0 | L11: 0 | M11: OK | O11: =IF(VLOOKUP(A11,'00 CE'!$B$4:$D$565,3,0)=0,"",VLOOKUP(A11,'00 CE'!$B$4:$D$565,3,0)) -> 
A12: BA0650 | B12: Acquisti servizi sanitari per assistenza riabilitativa | C12: 0 | D12: 0 | E12: 0 | F12: 160475.56 | G12: 2760468.84 | H12: 2247914.48 | I12: 5168858.88 | K12: =SUMIF('00 CE'!B:B,'Tab 58 riclassifica regionale'!A12,'00 CE'!G:G) -> 5168858.88 | L12: 0 | M12: OK | O12: =IF(VLOOKUP(A12,'00 CE'!$B$4:$D$565,3,0)=0,"",VLOOKUP(A12,'00 CE'!$B$4:$D$565,3,0)) -> 
A13: BA0710 | B13: Acquisti servizi sanitari per assistenza integrativa | C13: 0 | D13: 0 | E13: 0 | F13: 0 | G13: 0 | H13: 0 | I13: 0 | K13: =SUMIF('00 CE'!B:B,'Tab 58 riclassifica regionale'!A13,'00 CE'!G:G) -> 0 | L13: 0 | M13: OK | O13: =IF(VLOOKUP(A13,'00 CE'!$B$4:$D$565,3,0)=0,"",VLOOKUP(A13,'00 CE'!$B$4:$D$565,3,0)) -> 
A14: BA0760 | B14: Acquisti servizi sanitari per assistenza protesica | C14: 0 | D14: 0 | E14: 0 | F14: 0 | G14: 0 | H14: 0 | I14: 0 | K14: =SUMIF('00 CE'!B:B,'Tab 58 riclassifica regionale'!A14,'00 CE'!G:G) -> 0 | L14: 0 | M14: OK | O14: =IF(VLOOKUP(A14,'00 CE'!$B$4:$D$565,3,0)=0,"",VLOOKUP(A14,'00 CE'!$B$4:$D$565,3,0)) -> 
A15: BA0810 | B15: Acquisti servizi sanitari per assistenza ospedaliera | C15: 2614630.48 | D15: 17677755.69 | E15: 4723863.14 | F15: 776695.68 | G15: 2259287.7 | H15: 0 | I15: 28052232.69 | K15: =SUMIF('00 CE'!B:B,'Tab 58 riclassifica regionale'!A15,'00 CE'!G:G) -> 28052232.69 | L15: 0 | M15: OK | O15: =IF(VLOOKUP(A15,'00 CE'!$B$4:$D$565,3,0)=0,"",VLOOKUP(A15,'00 CE'!$B$4:$D$565,3,0)) -> 
A16: BA0910 | B16: Acquisto prestazioni di psichiatria residenziale e semiresidenziale | C16: 0 | D16: 0 | E16: 0 | F16: 492858.01 | G16: 1242827.29 | H16: 0 | I16: 1735685.3 | K16: =SUMIF('00 CE'!B:B,'Tab 58 riclassifica regionale'!A16,'00 CE'!G:G) -> 1735685.3 | L16: 0 | M16: OK | O16: =IF(VLOOKUP(A16,'00 CE'!$B$4:$D$565,3,0)=0,"",VLOOKUP(A16,'00 CE'!$B$4:$D$565,3,0)) -> 
A17: BA0970 | B17: Acquisto prestazioni di distribuzione farmaci File F | C17: 160099.92 | D17: 4412479.15 | E17: 285536.06 | F17: 0 | G17: 0 | H17: 0 | I17: 4858115.13 | K17: =SUMIF('00 CE'!B:B,'Tab 58 riclassifica regionale'!A17,'00 CE'!G:G) -> 4858115.13 | L17: 0 | M17: OK | O17: =IF(VLOOKUP(A17,'00 CE'!$B$4:$D$565,3,0)=0,"",VLOOKUP(A17,'00 CE'!$B$4:$D$565,3,0)) -> 
A18: BA1040 | B18: Acquisto prestazioni termali in convenzione | C18: 0 | D18: 0 | E18: 0 | F18: 46.2 | G18: 0 | H18: 0 | I18: 46.2 | K18: =SUMIF('00 CE'!B:B,'Tab 58 riclassifica regionale'!A18,'00 CE'!G:G) -> 46.2 | L18: 0 | M18: OK | O18: =IF(VLOOKUP(A18,'00 CE'!$B$4:$D$565,3,0)=0,"",VLOOKUP(A18,'00 CE'!$B$4:$D$565,3,0)) -> 
A19: BA1100 | B19: Acquisto prestazioni trasporto sanitario | C19: 18072.34 | D19: 73943.87 | E19: 6618.04 | F19: 0 | G19: 0 | H19: 0 | I19: 98634.25 | K19: =SUMIF('00 CE'!B:B,'Tab 58 riclassifica regionale'!A19,'00 CE'!G:G) -> 98634.25 | L19: 0 | M19: OK | O19: =IF(VLOOKUP(A19,'00 CE'!$B$4:$D$565,3,0)=0,"",VLOOKUP(A19,'00 CE'!$B$4:$D$565,3,0)) -> 
A20: BA1150 | B20: Acquisto prestazioni Socio-Sanitarie a rilevanza sanitaria | C20: 0 | D20: 0 | E20: 0 | F20: 45091.16 | G20: =1434685.5+314715.1 -> 1749400.6 | H20: 12913.7 | I20: 1807405.46 | K20: =SUMIF('00 CE'!B:B,'Tab 58 riclassifica regionale'!A20,'00 CE'!G:G) -> 1807405.46 | L20: 0 | M20: OK | O20: =IF(VLOOKUP(A20,'00 CE'!$B$4:$D$565,3,0)=0,"",VLOOKUP(A20,'00 CE'!$B$4:$D$565,3,0)) -> S
B22: COSTI DA MOBILITA' SANITARIA EXTRAREGIONALE (B) | C22: =SUM(C25:C34) -> 0 | D22: 0 | E22: 0 | F22: 0 | G22: 0 | H22: 0 | I22: 36630568.63
A23: BA0062 | B23: Emoderivati di produzione regionale da pubblico (Aziende sanitarie pubbliche della Regione) - Mobilità extraregionale | I23: =SUMIF('00 CE'!B:B,'Tab 58 riclassifica regionale'!A23,'00 CE'!G:G) -> 0
A24: BA0090 | B24: da pubblico (Aziende sanitarie pubbliche extra Regione) – Mobilità extraregionale | I24: =SUMIF('00 CE'!B:B,'Tab 58 riclassifica regionale'!A24,'00 CE'!G:G) -> 0
A25: BA0480 | B25: Acquisti servizi sanitari per medicina di base | I25: =SUMIF('00 CE'!B:B,'Tab 58 riclassifica regionale'!A25,'00 CE'!G:G) -> 202760.17 | O25: =IF(VLOOKUP(A25,'00 CE'!$B$4:$D$565,3,0)=0,"",VLOOKUP(A25,'00 CE'!$B$4:$D$565,3,0)) -> 
A26: BA0520 | B26: Acquisti servizi sanitari per farmaceutica | I26: =SUMIF('00 CE'!B:B,'Tab 58 riclassifica regionale'!A26,'00 CE'!G:G) -> 504044.37 | O26: =IF(VLOOKUP(A26,'00 CE'!$B$4:$D$565,3,0)=0,"",VLOOKUP(A26,'00 CE'!$B$4:$D$565,3,0)) -> 
A27: BA0560 | B27: Acquisti servizi sanitari per assistenza specialistica ambulatoriale | I27: =SUMIF('00 CE'!B:B,'Tab 58 riclassifica regionale'!A27,'00 CE'!G:G) -> 3402818.86 | O27: =IF(VLOOKUP(A27,'00 CE'!$B$4:$D$565,3,0)=0,"",VLOOKUP(A27,'00 CE'!$B$4:$D$565,3,0)) -> 
A28: BA0561 | B28: B.2.A.3.6) prestazioni di pronto soccorso non seguite da ricovero - da pubblico (Extraregione) | I28: =SUMIF('00 CE'!B:B,'Tab 58 riclassifica regionale'!A28,'00 CE'!G:G) -> 0 | O28: =IF(VLOOKUP(A28,'00 CE'!$B$4:$D$565,3,0)=0,"",VLOOKUP(A28,'00 CE'!$B$4:$D$565,3,0)) -> 
A29: BA0730 | B29: Acquisti servizi sanitari per assistenza integrativa | I29: =SUMIF('00 CE'!B:B,'Tab 58 riclassifica regionale'!A29,'00 CE'!G:G) -> 0 | O29: =IF(VLOOKUP(A29,'00 CE'!$B$4:$D$565,3,0)=0,"",VLOOKUP(A29,'00 CE'!$B$4:$D$565,3,0)) -> 
A30: BA0780 | B30: Acquisti servizi sanitari per assistenza protesica | I30: =SUMIF('00 CE'!B:B,'Tab 58 riclassifica regionale'!A30,'00 CE'!G:G) -> 0 | O30: =IF(VLOOKUP(A30,'00 CE'!$B$4:$D$565,3,0)=0,"",VLOOKUP(A30,'00 CE'!$B$4:$D$565,3,0)) -> 
A31: BA0830 | B31: Acquisti servizi sanitari per assistenza ospedaliera | I31: =SUMIF('00 CE'!B:B,'Tab 58 riclassifica regionale'!A31,'00 CE'!G:G) -> 30364599.56 | O31: =IF(VLOOKUP(A31,'00 CE'!$B$4:$D$565,3,0)=0,"",VLOOKUP(A31,'00 CE'!$B$4:$D$565,3,0)) -> 
A32: BA0990 | B32: Acquisto prestazioni di distribuzione farmaci e File F | I32: =SUMIF('00 CE'!B:B,'Tab 58 riclassifica regionale'!A32,'00 CE'!G:G) -> 1901052.91 | O32: =IF(VLOOKUP(A32,'00 CE'!$B$4:$D$565,3,0)=0,"",VLOOKUP(A32,'00 CE'!$B$4:$D$565,3,0)) -> 
A33: BA1060 | B33: Acquisto prestazioni termali in convenzione | I33: =SUMIF('00 CE'!B:B,'Tab 58 riclassifica regionale'!A33,'00 CE'!G:G) -> 106826.2 | O33: =IF(VLOOKUP(A33,'00 CE'!$B$4:$D$565,3,0)=0,"",VLOOKUP(A33,'00 CE'!$B$4:$D$565,3,0)) -> 
A34: BA1120 | B34: Acquisto prestazioni trasporto sanitario | I34: =SUMIF('00 CE'!B:B,'Tab 58 riclassifica regionale'!A34,'00 CE'!G:G) -> 148466.56
B35: TOTALE COSTI DA MOBILITA' (A+B) | C35: =C6+C22 -> 3594736.66 | D35: 29107985.48 | E35: 6379262.13 | F35: 1525771.6 | G35: 9181799.37 | H35: 2265815.15 | I35: 88685939.02
B43: COSTI PER PRESTAZIONI OGGETTO DI FATTURAZIONE DIRETTA INFRAREGIONALE (C) | C43: 466796.15 | D43: 41456.72 | E43: 119237.35 | F43: 0 | G43: 0 | H43: 0 | I43: =SUM(C43:H43) -> 627490.22
B45: COSTI PER PREST. OGGETTO DI FATTUR. DIRETTA EXTRAREGIONALE (D) | I45: =156346.41+163730.41 -> 320076.82
B47: TOTALE COSTI PER PREST. OGGETTO DI FATTURAZ. DIRETTA (C+D) | C47: =C43+C45 -> 466796.15 | D47: =D43+D45 -> 41456.72 | E47: 119237.35 | F47: 0 | G47: 0 | H47: 0 | I47: 947567.04
B49: TOTALE COSTI AZIENDE REGIONE (A+C) | C49: =C43+C6 -> 4061532.81 | D49: 29149442.2 | E49: 6498499.48 | F49: 1525771.6 | G49: 9181799.37 | H49: 2265815.15 | I49: 52682860.61
B50: TOTALE COSTI AZIENDE EXTRA REGIONE (B+D) | I50: =I22+I45 -> 36950645.45
B51: TOTALE COSTI AZIENDE SANITARIE PUBBLICHE (A+B+C+D) | C51: =C35+C43+C45 -> 4061532.81 | D51: 29149442.2 | E51: 6498499.48 | F51: 1525771.6 | G51: 9181799.37 | H51: 2265815.15 | I51: 89633506.06

Sheet Tab 59-60
B1: Tab. 59 – Dettaglio acquisti di servizi sanitari – I parte
A2: CODICE MOD. CE | B2: DETTAGLIO ACQUISTI DI SERVIZI SANITARI | C2: ="Valore CE " &'00 Aggregatore'!$F$2 -> Valore CE 2019 | D2: ="Valore CE " &'00 Aggregatore'!$F$2 -1 -> Valore CE 2018 | E2: Variazioni importo | F2: Variazioni % | H2: SOMMA
A4: BA0410 | B4: ACQUISTI DI SERVIZI SANITARI - MEDICINA DI BASE | C4: =C5+C10+C11 -> 35330014.78 | D4: =D5+D10+D11 -> 35909283.82 | E4: =C4-D4 -> -579269.04 | F4: =IF(AND(C4=0,D4=0),0,IF(C4=0,"",IF(D4=0,"",E4/D4))) -> -0.01613145622
A5: BA0420 | B5: - da convenzione | C5: =SUMIF('00 CE'!$B:$B,$A5,'00 CE'!G:G) -> 35075850.21 | D5: =SUMIF('00 CE'!$B:$B,$A5,'00 CE'!F:F) -> 35653505.32 | E5: =C5-D5 -> -577655.11 | F5: =IF(AND(C5=0,D5=0),0,IF(C5=0,"",IF(D5=0,"",E5/D5))) -> -0.01620191633 | H5: =IF(A5="","",IF(VLOOKUP(A5,'00 CE'!$B$4:$D$565,3,0)=0,"",VLOOKUP(A5,'00 CE'!$B$4:$D$565,3,0))) -> S
A6: BA0430 | B6: Costi per assistenza MMG | C6: =SUMIF('00 CE'!$B:$B,$A6,'00 CE'!G:G) -> 23959444.88 | D6: =SUMIF('00 CE'!$B:$B,$A6,'00 CE'!F:F) -> 24517314.75 | E6: =C6-D6 -> -557869.87 | F6: -0.02275411788 | H6: =IF(A6="","",IF(VLOOKUP(A6,'00 CE'!$B$4:$D$565,3,0)=0,"",VLOOKUP(A6,'00 CE'!$B$4:$D$565,3,0))) -> 
A7: BA0440 | B7: Costi per assistenza PLS | C7: =SUMIF('00 CE'!$B:$B,$A7,'00 CE'!G:G) -> 5870213.86 | D7: =SUMIF('00 CE'!$B:$B,$A7,'00 CE'!F:F) -> 6415070.53 | E7: -544856.67 | F7: -0.08493385497 | H7: =IF(A7="","",IF(VLOOKUP(A7,'00 CE'!$B$4:$D$565,3,0)=0,"",VLOOKUP(A7,'00 CE'!$B$4:$D$565,3,0))) -> 
A8: BA0450 | B8: Costi per assistenza Continuità assistenziale | C8: =SUMIF('00 CE'!$B:$B,$A8,'00 CE'!G:G) -> 4254569.59 | D8: =SUMIF('00 CE'!$B:$B,$A8,'00 CE'!F:F) -> 3931463.93 | E8: 323105.66 | F8: 0.08218456681 | H8: =IF(A8="","",IF(VLOOKUP(A8,'00 CE'!$B$4:$D$565,3,0)=0,"",VLOOKUP(A8,'00 CE'!$B$4:$D$565,3,0))) -> 
A9: BA0460 | B9: Altro (medicina dei servizi, psicologi, medici 118, ecc) | C9: =SUMIF('00 CE'!$B:$B,$A9,'00 CE'!G:G) -> 991621.88 | D9: =SUMIF('00 CE'!$B:$B,$A9,'00 CE'!F:F) -> 789656.11 | E9: 201965.77 | F9: 0.2557642085 | H9: =IF(A9="","",IF(VLOOKUP(A9,'00 CE'!$B$4:$D$565,3,0)=0,"",VLOOKUP(A9,'00 CE'!$B$4:$D$565,3,0))) -> 
A10: BA0470 | B10: - da pubblico (Aziende sanitarie pubbliche della Regione) - Mobilità intraregionale | C10: =SUMIF('00 CE'!$B:$B,$A10,'00 CE'!G:G) -> 51404.4 | D10: =SUMIF('00 CE'!$B:$B,$A10,'00 CE'!F:F) -> 38671 | E10: 12733.4 | F10: 0.3292751674 | H10: =IF(A10="","",IF(VLOOKUP(A10,'00 CE'!$B$4:$D$565,3,0)=0,"",VLOOKUP(A10,'00 CE'!$B$4:$D$565,3,0))) -> 
A11: BA0480 | B11: - da pubblico (Aziende sanitarie pubbliche Extraregione) - Mobilità extraregionale | C11: =SUMIF('00 CE'!$B:$B,$A11,'00 CE'!G:G) -> 202760.17 | D11: =SUMIF('00 CE'!$B:$B,$A11,'00 CE'!F:F) -> 217107.5 | E11: -14347.33 | F11: -0.06608399065 | H11: =IF(A11="","",IF(VLOOKUP(A11,'00 CE'!$B$4:$D$565,3,0)=0,"",VLOOKUP(A11,'00 CE'!$B$4:$D$565,3,0))) -> 
B12: ACQUISTI DI SERVIZI SANITARI - FARMACEUTICA | C12: =SUM(C13:C15) -> 48380817.38 | D12: =SUM(D13:D15) -> 51864361.03 | E12: =SUM(E13:E15) -> -3483543.65 | F12: -0.06716642374 | H12: =IF(A12="","",IF(VLOOKUP(A12,'00 CE'!$B$4:$D$565,3,0)=0,"",VLOOKUP(A12,'00 CE'!$B$4:$D$565,3,0))) -> 
A13: BA0500 | B13: - da convenzione | C13: =SUMIF('00 CE'!$B:$B,$A13,'00 CE'!G:G) -> 46621762.02 | D13: =SUMIF('00 CE'!$B:$B,$A13,'00 CE'!F:F) -> 50129678.23 | E13: =C13-D13 -> -3507916.21 | F13: -0.06997683476 | H13: =IF(A13="","",IF(VLOOKUP(A13,'00 CE'!$B$4:$D$565,3,0)=0,"",VLOOKUP(A13,'00 CE'!$B$4:$D$565,3,0))) -> 
A14: BA0510 | B14: - da pubblico (Aziende sanitarie pubbliche della Regione)- Mobilità intraregionale | C14: =SUMIF('00 CE'!$B:$B,$A14,'00 CE'!G:G) -> 1255010.99 | D14: =SUMIF('00 CE'!$B:$B,$A14,'00 CE'!F:F) -> 1277628.07 | E14: -22617.08 | F14: -0.01770239754 | H14: =IF(A14="","",IF(VLOOKUP(A14,'00 CE'!$B$4:$D$565,3,0)=0,"",VLOOKUP(A14,'00 CE'!$B$4:$D$565,3,0))) -> 
A15: BA0520 | B15: - da pubblico (Extraregione) | C15: =SUMIF('00 CE'!$B:$B,$A15,'00 CE'!G:G) -> 504044.37 | D15: =SUMIF('00 CE'!$B:$B,$A15,'00 CE'!F:F) -> 457054.73 | E15: 46989.64 | F15: 0.102809657 | H15: =IF(A15="","",IF(VLOOKUP(A15,'00 CE'!$B$4:$D$565,3,0)=0,"",VLOOKUP(A15,'00 CE'!$B$4:$D$565,3,0))) -> 
B16: ACQUISTI DI SERVIZI SANITARI PER ASSITENZA SPECIALISTICA AMBULATORIALE | C16: =C17+C18+C19+C20+C22+C21+C23+C24+C33 -> 26090460.29 | D16: =D17+D19+D21+D23+D24+D33 -> 26809571.49 | E16: =C16-D16 -> -719111.2 | F16: -0.02682292778 | H16: =IF(A16="","",IF(VLOOKUP(A16,'00 CE'!$B$4:$D$565,3,0)=0,"",VLOOKUP(A16,'00 CE'!$B$4:$D$565,3,0))) -> 
A17: BA0540 | B17: - da pubblico (Aziende sanitarie pubbliche della Regione) | C17: =SUMIF('00 CE'!$B:$B,$A17,'00 CE'!G:G) -> 9027977.09 | D17: =SUMIF('00 CE'!$B:$B,$A17,'00 CE'!F:F) -> 8879359.57 | E17: 148617.52 | F17: 0.01673741432 | H17: =IF(A17="","",IF(VLOOKUP(A17,'00 CE'!$B$4:$D$565,3,0)=0,"",VLOOKUP(A17,'00 CE'!$B$4:$D$565,3,0))) -> 
A18: BA0541 | B18: B.2.A.3.2) prestazioni di pronto soccorso non seguite da ricovero - da pubblico (Aziende sanitarie pubbliche della Regione) | C18: =SUMIF('00 CE'!$B:$B,$A18,'00 CE'!G:G) -> 0 | D18: =SUMIF('00 CE'!$B:$B,$A18,'00 CE'!F:F) -> 0 | E18: 0 | F18: =IF(AND(C18=0,D18=0),0,IF(C18=0,"",IF(D18=0,"",E18/D18))) -> 0 | H18: =IF(A18="","",IF(VLOOKUP(A18,'00 CE'!$B$4:$D$565,3,0)=0,"",VLOOKUP(A18,'00 CE'!$B$4:$D$565,3,0))) -> 
A19: BA0550 | B19: - da pubblico (altri soggetti pubbl. della Regione) | C19: =SUMIF('00 CE'!$B:$B,$A19,'00 CE'!G:G) -> 580281.24 | D19: =SUMIF('00 CE'!$B:$B,$A19,'00 CE'!F:F) -> 360209.89 | E19: 220071.35 | F19: 0.6109531029 | H19: =IF(A19="","",IF(VLOOKUP(A19,'00 CE'!$B$4:$D$565,3,0)=0,"",VLOOKUP(A19,'00 CE'!$B$4:$D$565,3,0))) -> 
A20: BA0551 | B20: B.2.A.3.4) prestazioni di pronto soccorso non seguite da ricovero - da pubblico (altri soggetti pubbl. della Regione) | C20: =SUMIF('00 CE'!$B:$B,$A20,'00 CE'!G:G) -> 0 | D20: =SUMIF('00 CE'!$B:$B,$A20,'00 CE'!F:F) -> 0 | E20: 0 | F20: =IF(AND(C20=0,D20=0),0,IF(C20=0,"",IF(D20=0,"",E20/D20))) -> 0 | H20: =IF(A20="","",IF(VLOOKUP(A20,'00 CE'!$B$4:$D$565,3,0)=0,"",VLOOKUP(A20,'00 CE'!$B$4:$D$565,3,0))) -> 
A21: BA0560 | B21: - da pubblico (Extraregione) | C21: =SUMIF('00 CE'!$B:$B,$A21,'00 CE'!G:G) -> 3402818.86 | D21: =SUMIF('00 CE'!$B:$B,$A21,'00 CE'!F:F) -> 4000753.58 | E21: -597934.72 | F21: -0.1494555233 | H21: =IF(A21="","",IF(VLOOKUP(A21,'00 CE'!$B$4:$D$565,3,0)=0,"",VLOOKUP(A21,'00 CE'!$B$4:$D$565,3,0))) -> 
A22: BA0561 | B22: B.2.A.3.6) prestazioni di pronto soccorso non seguite da ricovero - da pubblico (Extraregione) | C22: =SUMIF('00 CE'!$B:$B,$A22,'00 CE'!G:G) -> 0 | D22: =SUMIF('00 CE'!$B:$B,$A22,'00 CE'!F:F) -> 0 | E22: 0 | F22: =IF(AND(C22=0,D22=0),0,IF(C22=0,"",IF(D22=0,"",E22/D22))) -> 0 | H22: =IF(A22="","",IF(VLOOKUP(A22,'00 CE'!$B$4:$D$565,3,0)=0,"",VLOOKUP(A22,'00 CE'!$B$4:$D$565,3,0))) -> 
A23: BA0570 | B23: - da privato - Medici SUMAI | C23: =SUMIF('00 CE'!$B:$B,$A23,'00 CE'!G:G) -> 4184408.7 | D23: =SUMIF('00 CE'!$B:$B,$A23,'00 CE'!F:F) -> 4486744.21 | E23: -302335.51 | F23: -0.06738416452 | H23: =IF(A23="","",IF(VLOOKUP(A23,'00 CE'!$B$4:$D$565,3,0)=0,"",VLOOKUP(A23,'00 CE'!$B$4:$D$565,3,0))) -> 
A24: BA0580 | B24: - da privato | C24: =SUMIF('00 CE'!$B:$B,$A24,'00 CE'!G:G) -> 8698101.92 | D24: =SUMIF('00 CE'!$B:$B,$A24,'00 CE'!F:F) -> 8885806.01 | E24: -187704.09 | F24: -0.02112403645 | H24: =IF(A24="","",IF(VLOOKUP(A24,'00 CE'!$B$4:$D$565,3,0)=0,"",VLOOKUP(A24,'00 CE'!$B$4:$D$565,3,0))) -> S
A25: BA0590 | B25: Servizi sanitari per assistenza specialistica da IRCCS privati e Policlinici privati | C25: =SUMIF('00 CE'!$B:$B,$A25,'00 CE'!G:G) -> 55662.5 | D25: =SUMIF('00 CE'!$B:$B,$A25,'00 CE'!F:F) -> 83336.34 | E25: -27673.84 | F25: -0.3320740988 | H25: =IF(A25="","",IF(VLOOKUP(A25,'00 CE'!$B$4:$D$565,3,0)=0,"",VLOOKUP(A25,'00 CE'!$B$4:$D$565,3,0))) -> 
A26: BA0591 | B26: B.2.A.3.8.B) Servizi sanitari per prestazioni di pronto soccorso non seguite da ricovero - da IRCCS privati e Policlinici privati | C26: =SUMIF('00 CE'!$B:$B,$A26,'00 CE'!G:G) -> 0 | D26: =SUMIF('00 CE'!$B:$B,$A26,'00 CE'!F:F) -> 0 | E26: 0 | F26: =IF(AND(C26=0,D26=0),0,IF(C26=0,"",IF(D26=0,"",E26/D26))) -> 0 | H26: =IF(A26="","",IF(VLOOKUP(A26,'00 CE'!$B$4:$D$565,3,0)=0,"",VLOOKUP(A26,'00 CE'!$B$4:$D$565,3,0))) -> 
A27: BA0600 | B27: Servizi sanitari per assistenza specialistica da Ospedali Classificati privati | C27: =SUMIF('00 CE'!$B:$B,$A27,'00 CE'!G:G) -> 0 | D27: =SUMIF('00 CE'!$B:$B,$A27,'00 CE'!F:F) -> 0 | E27: 0 | F27: 0 | H27: =IF(A27="","",IF(VLOOKUP(A27,'00 CE'!$B$4:$D$565,3,0)=0,"",VLOOKUP(A27,'00 CE'!$B$4:$D$565,3,0))) -> 
A28: BA0601 | B28: B.2.A.3.8.D) Servizi sanitari per prestazioni di pronto soccorso non seguite da ricovero - da Ospedali Classificati privati | C28: =SUMIF('00 CE'!$B:$B,$A28,'00 CE'!G:G) -> 0 | D28: =SUMIF('00 CE'!$B:$B,$A28,'00 CE'!F:F) -> 0 | E28: 0 | F28: =IF(AND(C28=0,D28=0),0,IF(C28=0,"",IF(D28=0,"",E28/D28))) -> 0 | H28: =IF(A28="","",IF(VLOOKUP(A28,'00 CE'!$B$4:$D$565,3,0)=0,"",VLOOKUP(A28,'00 CE'!$B$4:$D$565,3,0))) -> 
A29: BA0610 | B29: Servizi sanitari per assistenza specialistica da Case di Cura private | C29: =SUMIF('00 CE'!$B:$B,$A29,'00 CE'!G:G) -> 5344557.33 | D29: =SUMIF('00 CE'!$B:$B,$A29,'00 CE'!F:F) -> 5463686.82 | E29: -119129.49 | F29: -0.02180386503 | H29: =IF(A29="","",IF(VLOOKUP(A29,'00 CE'!$B$4:$D$565,3,0)=0,"",VLOOKUP(A29,'00 CE'!$B$4:$D$565,3,0))) -> 
A30: BA0611 | B30: B.2.A.3.8.F) Servizi sanitari per prestazioni di pronto soccorso non seguite da ricovero - da Case di Cura private | C30: =SUMIF('00 CE'!$B:$B,$A30,'00 CE'!G:G) -> 0 | D30: =SUMIF('00 CE'!$B:$B,$A30,'00 CE'!F:F) -> 0 | E30: 0 | F30: =IF(AND(C30=0,D30=0),0,IF(C30=0,"",IF(D30=0,"",E30/D30))) -> 0 | H30: =IF(A30="","",IF(VLOOKUP(A30,'00 CE'!$B$4:$D$565,3,0)=0,"",VLOOKUP(A30,'00 CE'!$B$4:$D$565,3,0))) -> 
A31: BA0620 | B31: Servizi sanitari per assistenza specialistica da altri privati | C31: =SUMIF('00 CE'!$B:$B,$A31,'00 CE'!G:G) -> 3297882.09 | D31: =SUMIF('00 CE'!$B:$B,$A31,'00 CE'!F:F) -> 3338782.85 | E31: -40900.76 | F31: -0.0122502007 | H31: =IF(A31="","",IF(VLOOKUP(A31,'00 CE'!$B$4:$D$565,3,0)=0,"",VLOOKUP(A31,'00 CE'!$B$4:$D$565,3,0))) -> 
A32: BA0621 | B32: B.2.A.3.8.H) Servizi sanitari per prestazioni di pronto soccorso non seguite da ricovero - da altri privati | C32: =SUMIF('00 CE'!$B:$B,$A32,'00 CE'!G:G) -> 0 | D32: =SUMIF('00 CE'!$B:$B,$A32,'00 CE'!F:F) -> 0 | E32: 0 | F32: =IF(AND(C32=0,D32=0),0,IF(C32=0,"",IF(D32=0,"",E32/D32))) -> 0 | H32: =IF(A32="","",IF(VLOOKUP(A32,'00 CE'!$B$4:$D$565,3,0)=0,"",VLOOKUP(A32,'00 CE'!$B$4:$D$565,3,0))) -> 
A33: BA0630 | B33: - da privato per cittadini non residenti - Extraregione (mobilità attiva in compensazione) | C33: =SUMIF('00 CE'!$B:$B,$A33,'00 CE'!G:G) -> 196872.48 | D33: =SUMIF('00 CE'!$B:$B,$A33,'00 CE'!F:F) -> 196698.23 | E33: 174.25 | F33: 0.0008858747738 | H33: =IF(A33="","",IF(VLOOKUP(A33,'00 CE'!$B$4:$D$565,3,0)=0,"",VLOOKUP(A33,'00 CE'!$B$4:$D$565,3,0))) -> 
A34: BA0631 | B34: B.2.A.3.10) Servizi sanitari per prestazioni di pronto soccorso non seguite da ricovero - da privato per cittadini non residenti - Extraregione (mobilità attiva in compensazione) | C34: =SUMIF('00 CE'!$B:$B,$A34,'00 CE'!G:G) -> 0 | D34: =SUMIF('00 CE'!$B:$B,$A34,'00 CE'!F:F) -> 0 | E34: 0 | F34: =IF(AND(C34=0,D34=0),0,IF(C34=0,"",IF(D34=0,"",E34/D34))) -> 0 | H34: =IF(A34="","",IF(VLOOKUP(A34,'00 CE'!$B$4:$D$565,3,0)=0,"",VLOOKUP(A34,'00 CE'!$B$4:$D$565,3,0))) -> 
A35: BA0640 | B35: ACQUISTI DI SERVIZI SANITARI PER ASSISTENZA RIABILITATIVA | C35: =SUM(C36:C40) -> 20274723.89 | D35: =SUM(D36:D40) -> 19990902.56 | E35: 283821.33 | F35: 0.01419752456 | H35: =IF(A35="","",IF(VLOOKUP(A35,'00 CE'!$B$4:$D$565,3,0)=0,"",VLOOKUP(A35,'00 CE'!$B$4:$D$565,3,0))) -> S
A36: BA0650 | B36: - da pubblico (Aziende sanitarie pubbliche della Regione) | C36: =SUMIF('00 CE'!$B:$B,$A36,'00 CE'!G:G) -> 5168858.88 | D36: =SUMIF('00 CE'!$B:$B,$A36,'00 CE'!F:F) -> 4832965.95 | E36: 335892.93 | F36: 0.06950037171 | H36: =IF(A36="","",IF(VLOOKUP(A36,'00 CE'!$B$4:$D$565,3,0)=0,"",VLOOKUP(A36,'00 CE'!$B$4:$D$565,3,0))) -> 
A37: BA0660 | B37: - da pubblico (altri soggetti pubbl. della Regione) | C37: =SUMIF('00 CE'!$B:$B,$A37,'00 CE'!G:G) -> 0 | D37: =SUMIF('00 CE'!$B:$B,$A37,'00 CE'!F:F) -> 0 | E37: 0 | F37: 0 | H37: =IF(A37="","",IF(VLOOKUP(A37,'00 CE'!$B$4:$D$565,3,0)=0,"",VLOOKUP(A37,'00 CE'!$B$4:$D$565,3,0))) -> 
A38: BA0670 | B38: - da pubblico (Extraregione) non soggetti a compensazione | C38: =SUMIF('00 CE'!$B:$B,$A38,'00 CE'!G:G) -> 0 | D38: =SUMIF('00 CE'!$B:$B,$A38,'00 CE'!F:F) -> 0 | E38: 0 | F38: 0 | H38: =IF(A38="","",IF(VLOOKUP(A38,'00 CE'!$B$4:$D$565,3,0)=0,"",VLOOKUP(A38,'00 CE'!$B$4:$D$565,3,0))) -> 
A39: BA0680 | B39: - da privato (intraregionale) | C39: =SUMIF('00 CE'!$B:$B,$A39,'00 CE'!G:G) -> 14522765.17 | D39: =SUMIF('00 CE'!$B:$B,$A39,'00 CE'!F:F) -> 14612451.73 | E39: -89686.56 | F39: -0.006137680497 | H39: =IF(A39="","",IF(VLOOKUP(A39,'00 CE'!$B$4:$D$565,3,0)=0,"",VLOOKUP(A39,'00 CE'!$B$4:$D$565,3,0))) -> 
A40: BA0690 | B40: - da privato (extraregionale) | C40: =SUMIF('00 CE'!$B:$B,$A40,'00 CE'!G:G) -> 583099.84 | D40: =SUMIF('00 CE'!$B:$B,$A40,'00 CE'!F:F) -> 545484.88 | E40: 37614.96 | F40: 0.06895692508 | H40: =IF(A40="","",IF(VLOOKUP(A40,'00 CE'!$B$4:$D$565,3,0)=0,"",VLOOKUP(A40,'00 CE'!$B$4:$D$565,3,0))) -> 
A41: BA0700 | B41: ACQUISTI DI SERVIZI SANITARI PER ASSISTENZA INTEGRATIVA | C41: =SUM(C42:C45) -> 1733047.08 | D41: =SUM(D42:D45) -> 1802068.84 | E41: -69021.76 | F41: -0.0383014003 | H41: =IF(A41="","",IF(VLOOKUP(A41,'00 CE'!$B$4:$D$565,3,0)=0,"",VLOOKUP(A41,'00 CE'!$B$4:$D$565,3,0))) -> S
A42: BA0710 | B42: - da pubblico (Aziende sanitarie pubbliche della Regione) | C42: =SUMIF('00 CE'!$B:$B,$A42,'00 CE'!G:G) -> 0 | D42: =SUMIF('00 CE'!$B:$B,$A42,'00 CE'!F:F) -> 0 | E42: 0 | F42: 0 | H42: =IF(A42="","",IF(VLOOKUP(A42,'00 CE'!$B$4:$D$565,3,0)=0,"",VLOOKUP(A42,'00 CE'!$B$4:$D$565,3,0))) -> 
A43: BA0720 | B43: - da pubblico (altri soggetti pubbl. della Regione) | C43: =SUMIF('00 CE'!$B:$B,$A43,'00 CE'!G:G) -> 0 | D43: =SUMIF('00 CE'!$B:$B,$A43,'00 CE'!F:F) -> 0 | E43: 0 | F43: 0 | H43: =IF(A43="","",IF(VLOOKUP(A43,'00 CE'!$B$4:$D$565,3,0)=0,"",VLOOKUP(A43,'00 CE'!$B$4:$D$565,3,0))) -> 
A44: BA0730 | B44: - da pubblico (Extraregione) | C44: =SUMIF('00 CE'!$B:$B,$A44,'00 CE'!G:G) -> 0 | D44: =SUMIF('00 CE'!$B:$B,$A44,'00 CE'!F:F) -> 0 | E44: 0 | F44: 0 | H44: =IF(A44="","",IF(VLOOKUP(A44,'00 CE'!$B$4:$D$565,3,0)=0,"",VLOOKUP(A44,'00 CE'!$B$4:$D$565,3,0))) -> 
A45: BA0740 | B45: - da privato | C45: =SUMIF('00 CE'!$B:$B,$A45,'00 CE'!G:G) -> 1733047.08 | D45: =SUMIF('00 CE'!$B:$B,$A45,'00 CE'!F:F) -> 1802068.84 | E45: -69021.76 | F45: -0.0383014003 | H45: =IF(A45="","",IF(VLOOKUP(A45,'00 CE'!$B$4:$D$565,3,0)=0,"",VLOOKUP(A45,'00 CE'!$B$4:$D$565,3,0))) -> 
A46: BA0750 | B46: ACQUISTI DI SERVIZI SANITARI PER ASSISTENZA PROTESICA | C46: =SUM(C47:C50) -> 6846095.71 | D46: =SUM(D47:D50) -> 6303229.01 | E46: 542866.7 | F46: 0.08612517475 | H46: =IF(A46="","",IF(VLOOKUP(A46,'00 CE'!$B$4:$D$565,3,0)=0,"",VLOOKUP(A46,'00 CE'!$B$4:$D$565,3,0))) -> S
A47: BA0760 | B47: - da pubblico (Aziende sanitarie pubbliche della Regione) | C47: =SUMIF('00 CE'!$B:$B,$A47,'00 CE'!G:G) -> 0 | D47: =SUMIF('00 CE'!$B:$B,$A47,'00 CE'!F:F) -> 0 | E47: 0 | F47: 0 | H47: =IF(A47="","",IF(VLOOKUP(A47,'00 CE'!$B$4:$D$565,3,0)=0,"",VLOOKUP(A47,'00 CE'!$B$4:$D$565,3,0))) -> 
A48: BA0770 | B48: - da pubblico (altri soggetti pubbl. della Regione) | C48: =SUMIF('00 CE'!$B:$B,$A48,'00 CE'!G:G) -> 0 | D48: =SUMIF('00 CE'!$B:$B,$A48,'00 CE'!F:F) -> 0 | E48: 0 | F48: 0 | H48: =IF(A48="","",IF(VLOOKUP(A48,'00 CE'!$B$4:$D$565,3,0)=0,"",VLOOKUP(A48,'00 CE'!$B$4:$D$565,3,0))) -> 
A49: BA0780 | B49: - da pubblico (Extraregione) | C49: =SUMIF('00 CE'!$B:$B,$A49,'00 CE'!G:G) -> 0 | D49: =SUMIF('00 CE'!$B:$B,$A49,'00 CE'!F:F) -> 0 | E49: 0 | F49: 0 | H49: =IF(A49="","",IF(VLOOKUP(A49,'00 CE'!$B$4:$D$565,3,0)=0,"",VLOOKUP(A49,'00 CE'!$B$4:$D$565,3,0))) -> 
A50: BA0790 | B50: - da privato | C50: =SUMIF('00 CE'!$B:$B,$A50,'00 CE'!G:G) -> 6846095.71 | D50: =SUMIF('00 CE'!$B:$B,$A50,'00 CE'!F:F) -> 6303229.01 | E50: 542866.7 | F50: 0.08612517475 | H50: =IF(A50="","",IF(VLOOKUP(A50,'00 CE'!$B$4:$D$565,3,0)=0,"",VLOOKUP(A50,'00 CE'!$B$4:$D$565,3,0))) -> 
A51: BA0800 | B51: ACQUISTI DI SERVIZI SANITARI PER ASSISTENZA OSPEDALIERA | C51: =C52+C53+C54+C55+C60 -> 131436628.7 | D51: =D52+D53+D54+D55+D60 -> 123489437.4 | E51: 7947191.31 | F51: 0.06435523134 | H51: =IF(A51="","",IF(VLOOKUP(A51,'00 CE'!$B$4:$D$565,3,0)=0,"",VLOOKUP(A51,'00 CE'!$B$4:$D$565,3,0))) -> S
A52: BA0810 | B52: - da pubblico (Aziende sanitarie pubbliche della Regione) | C52: =SUMIF('00 CE'!$B:$B,$A52,'00 CE'!G:G) -> 28052232.69 | D52: =SUMIF('00 CE'!$B:$B,$A52,'00 CE'!F:F) -> 26481532.39 | E52: 1570700.3 | F52: 0.05931304416 | H52: =IF(A52="","",IF(VLOOKUP(A52,'00 CE'!$B$4:$D$565,3,0)=0,"",VLOOKUP(A52,'00 CE'!$B$4:$D$565,3,0))) -> 
A53: BA0820 | B53: - da pubblico (altri soggetti pubbl. della Regione) | C53: =SUMIF('00 CE'!$B:$B,$A53,'00 CE'!G:G) -> 0 | D53: =SUMIF('00 CE'!$B:$B,$A53,'00 CE'!F:F) -> 0 | E53: 0 | F53: 0 | H53: =IF(A53="","",IF(VLOOKUP(A53,'00 CE'!$B$4:$D$565,3,0)=0,"",VLOOKUP(A53,'00 CE'!$B$4:$D$565,3,0))) -> 
A54: BA0830 | B54: - da pubblico (Extraregione) | C54: =SUMIF('00 CE'!$B:$B,$A54,'00 CE'!G:G) -> 30364599.56 | D54: =SUMIF('00 CE'!$B:$B,$A54,'00 CE'!F:F) -> 24057993.46 | E54: 6306606.1 | F54: 0.2621418162 | H54: =IF(A54="","",IF(VLOOKUP(A54,'00 CE'!$B$4:$D$565,3,0)=0,"",VLOOKUP(A54,'00 CE'!$B$4:$D$565,3,0))) -> 
A55: BA0840 | B55: - da privato | C55: =SUMIF('00 CE'!$B:$B,$A55,'00 CE'!G:G) -> 64592865.92 | D55: =SUMIF('00 CE'!$B:$B,$A55,'00 CE'!F:F) -> 62664028.38 | E55: 1928837.54 | F55: 0.03078061832 | H55: =IF(A55="","",IF(VLOOKUP(A55,'00 CE'!$B$4:$D$565,3,0)=0,"",VLOOKUP(A55,'00 CE'!$B$4:$D$565,3,0))) -> S
A56: BA0850 | B56: Servizi sanitari per assistenza ospedaliera da IRCCS privati e Policlinici privati | C56: =SUMIF('00 CE'!$B:$B,$A56,'00 CE'!G:G) -> 0 | D56: =SUMIF('00 CE'!$B:$B,$A56,'00 CE'!F:F) -> 0 | E56: 0 | F56: 0 | H56: =IF(A56="","",IF(VLOOKUP(A56,'00 CE'!$B$4:$D$565,3,0)=0,"",VLOOKUP(A56,'00 CE'!$B$4:$D$565,3,0))) -> 
A57: BA0860 | B57: Servizi sanitari per assistenza ospedaliera da Ospedali Classificati privati | C57: =SUMIF('00 CE'!$B:$B,$A57,'00 CE'!G:G) -> 0 | D57: =SUMIF('00 CE'!$B:$B,$A57,'00 CE'!F:F) -> 0 | E57: 0 | F57: 0 | H57: =IF(A57="","",IF(VLOOKUP(A57,'00 CE'!$B$4:$D$565,3,0)=0,"",VLOOKUP(A57,'00 CE'!$B$4:$D$565,3,0))) -> 
A58: BA0870 | B58: Servizi sanitari per assistenza ospedaliera da Case di Cura private | C58: =SUMIF('00 CE'!$B:$B,$A58,'00 CE'!G:G) -> 64592865.92 | D58: =SUMIF('00 CE'!$B:$B,$A58,'00 CE'!F:F) -> 62664028.38 | E58: 1928837.54 | F58: 0.03078061832 | H58: =IF(A58="","",IF(VLOOKUP(A58,'00 CE'!$B$4:$D$565,3,0)=0,"",VLOOKUP(A58,'00 CE'!$B$4:$D$565,3,0))) -> 
A59: BA0880 | B59: Servizi sanitari per assistenza ospedaliera da altri privati | C59: =SUMIF('00 CE'!$B:$B,$A59,'00 CE'!G:G) -> 0 | D59: =SUMIF('00 CE'!$B:$B,$A59,'00 CE'!F:F) -> 0 | E59: 0 | F59: 0 | H59: =IF(A59="","",IF(VLOOKUP(A59,'00 CE'!$B$4:$D$565,3,0)=0,"",VLOOKUP(A59,'00 CE'!$B$4:$D$565,3,0))) -> 
A60: BA0890 | B60: - da privato per cittadini non residenti - Extraregione (mobilità attiva in compensazione) | C60: =SUMIF('00 CE'!$B:$B,$A60,'00 CE'!G:G) -> 8426930.51 | D60: =SUMIF('00 CE'!$B:$B,$A60,'00 CE'!F:F) -> 10285883.14 | E60: -1858952.63 | F60: -0.1807285388 | H60: =IF(A60="","",IF(VLOOKUP(A60,'00 CE'!$B$4:$D$565,3,0)=0,"",VLOOKUP(A60,'00 CE'!$B$4:$D$565,3,0))) -> 
A61: BA0900 | B61: ACQUISTI PRESTAZIONI DI PSICHIATRICA RESIDENZIALE E SEMIRESIDENZIALE | C61: =SUM(C62:C66) -> 12842279.1 | D61: =SUM(D62:D66) -> 13021762.4 | E61: -179483.3 | F61: -0.01378333397 | H61: =IF(A61="","",IF(VLOOKUP(A61,'00 CE'!$B$4:$D$565,3,0)=0,"",VLOOKUP(A61,'00 CE'!$B$4:$D$565,3,0))) -> S
A62: BA0910 | B62: - da pubblico (Aziende sanitarie pubbliche della Regione) | C62: =SUMIF('00 CE'!$B:$B,$A62,'00 CE'!G:G) -> 1735685.3 | D62: =SUMIF('00 CE'!$B:$B,$A62,'00 CE'!F:F) -> 1551575.5 | E62: 184109.8 | F62: 0.1186599041 | H62: =IF(A62="","",IF(VLOOKUP(A62,'00 CE'!$B$4:$D$565,3,0)=0,"",VLOOKUP(A62,'00 CE'!$B$4:$D$565,3,0))) -> 
A63: BA0920 | B63: - da pubblico (altri soggetti pubbl. della Regione) | C63: =SUMIF('00 CE'!$B:$B,$A63,'00 CE'!G:G) -> 0 | D63: =SUMIF('00 CE'!$B:$B,$A63,'00 CE'!F:F) -> 0 | E63: 0 | F63: 0 | H63: =IF(A63="","",IF(VLOOKUP(A63,'00 CE'!$B$4:$D$565,3,0)=0,"",VLOOKUP(A63,'00 CE'!$B$4:$D$565,3,0))) -> 
A64: BA0930 | B64: - da pubblico (Extraregione) - non soggette a compensazione | C64: =SUMIF('00 CE'!$B:$B,$A64,'00 CE'!G:G) -> 60576 | D64: =SUMIF('00 CE'!$B:$B,$A64,'00 CE'!F:F) -> 81781.6 | E64: -21205.6 | F64: -0.2592954894 | H64: =IF(A64="","",IF(VLOOKUP(A64,'00 CE'!$B$4:$D$565,3,0)=0,"",VLOOKUP(A64,'00 CE'!$B$4:$D$565,3,0))) -> 
A65: BA0940 | B65: - da privato (intraregionale) | C65: =SUMIF('00 CE'!$B:$B,$A65,'00 CE'!G:G) -> 9380591.68 | D65: =SUMIF('00 CE'!$B:$B,$A65,'00 CE'!F:F) -> 9798519.84 | E65: -417928.16 | F65: -0.04265217266 | H65: =IF(A65="","",IF(VLOOKUP(A65,'00 CE'!$B$4:$D$565,3,0)=0,"",VLOOKUP(A65,'00 CE'!$B$4:$D$565,3,0))) -> 
A66: BA0950 | B66: - da privato (extraregionale) | C66: =SUMIF('00 CE'!$B:$B,$A66,'00 CE'!G:G) -> 1665426.12 | D66: =SUMIF('00 CE'!$B:$B,$A66,'00 CE'!F:F) -> 1589885.46 | E66: 75540.66 | F66: 0.04751327181 | H66: =IF(A66="","",IF(VLOOKUP(A66,'00 CE'!$B$4:$D$565,3,0)=0,"",VLOOKUP(A66,'00 CE'!$B$4:$D$565,3,0))) -> 
A67: BA0960 | B67: ACQUISTI PRESTAZIONI DI DISTRIBUZIONE FARMACI FILE F | C67: =SUM(C68:C73) -> 8471399.1 | D67: =SUM(D68:D73) -> 7092976.69 | E67: 1378422.41 | F67: 0.1943362385 | H67: =IF(A67="","",IF(VLOOKUP(A67,'00 CE'!$B$4:$D$565,3,0)=0,"",VLOOKUP(A67,'00 CE'!$B$4:$D$565,3,0))) -> S
A68: BA0970 | B68: - da pubblico (Aziende sanitarie pubbliche della Regione) - Mobilità intraregionale | C68: =SUMIF('00 CE'!$B:$B,$A68,'00 CE'!G:G) -> 4858115.13 | D68: =SUMIF('00 CE'!$B:$B,$A68,'00 CE'!F:F) -> 4464112.37 | E68: 394002.76 | F68: 0.0882600453 | H68: =IF(A68="","",IF(VLOOKUP(A68,'00 CE'!$B$4:$D$565,3,0)=0,"",VLOOKUP(A68,'00 CE'!$B$4:$D$565,3,0))) -> 
A69: BA0980 | B69: - da pubblico (altri soggetti pubbl. della Regione) | C69: =SUMIF('00 CE'!$B:$B,$A69,'00 CE'!G:G) -> 0 | D69: =SUMIF('00 CE'!$B:$B,$A69,'00 CE'!F:F) -> 0 | E69: 0 | F69: 0 | H69: =IF(A69="","",IF(VLOOKUP(A69,'00 CE'!$B$4:$D$565,3,0)=0,"",VLOOKUP(A69,'00 CE'!$B$4:$D$565,3,0))) -> 
A70: BA0990 | B70: - da pubblico (Extraregione) | C70: =SUMIF('00 CE'!$B:$B,$A70,'00 CE'!G:G) -> 1901052.91 | D70: =SUMIF('00 CE'!$B:$B,$A70,'00 CE'!F:F) -> 2195879.04 | E70: -294826.13 | F70: -0.1342633745 | H70: =IF(A70="","",IF(VLOOKUP(A70,'00 CE'!$B$4:$D$565,3,0)=0,"",VLOOKUP(A70,'00 CE'!$B$4:$D$565,3,0))) -> 
A71: BA1000 | B71: - da privato (intraregionale) | C71: =SUMIF('00 CE'!$B:$B,$A71,'00 CE'!G:G) -> 1712231.06 | D71: =SUMIF('00 CE'!$B:$B,$A71,'00 CE'!F:F) -> 432985.28 | E71: 1279245.78 | F71: 2.954478683 | H71: =IF(A71="","",IF(VLOOKUP(A71,'00 CE'!$B$4:$D$565,3,0)=0,"",VLOOKUP(A71,'00 CE'!$B$4:$D$565,3,0))) -> 
A72: BA1010 | B72: - da privato (extraregionale) | C72: =SUMIF('00 CE'!$B:$B,$A72,'00 CE'!G:G) -> 0 | D72: =SUMIF('00 CE'!$B:$B,$A72,'00 CE'!F:F) -> 0 | E72: 0 | F72: 0 | H72: =IF(A72="","",IF(VLOOKUP(A72,'00 CE'!$B$4:$D$565,3,0)=0,"",VLOOKUP(A72,'00 CE'!$B$4:$D$565,3,0))) -> 
A73: BA1020 | B73: - da privato per cittadini non residenti - Extraregione (mobilità attiva in compensazione) | C73: =SUMIF('00 CE'!$B:$B,$A73,'00 CE'!G:G) -> 0 | D73: =SUMIF('00 CE'!$B:$B,$A73,'00 CE'!F:F) -> 0 | E73: 0 | F73: 0 | H73: =IF(A73="","",IF(VLOOKUP(A73,'00 CE'!$B$4:$D$565,3,0)=0,"",VLOOKUP(A73,'00 CE'!$B$4:$D$565,3,0))) -> 
A74: BA1030 | B74: ACQUISTI PRESTAZIONI TERMALI IN CONVENZIONE | C74: =SUM(C75:C79) -> 1664343.88 | D74: =SUM(D75:D79) -> 2149505.71 | E74: -485161.83 | F74: -0.225708556 | H74: =IF(A74="","",IF(VLOOKUP(A74,'00 CE'!$B$4:$D$565,3,0)=0,"",VLOOKUP(A74,'00 CE'!$B$4:$D$565,3,0))) -> S
A75: BA1040 | B75: - da pubblico (Aziende sanitarie pubbliche della Regione) - Mobilità intraregionale | C75: =SUMIF('00 CE'!$B:$B,$A75,'00 CE'!G:G) -> 46.2 | D75: =SUMIF('00 CE'!$B:$B,$A75,'00 CE'!F:F) -> 0 | E75: 46.2 | H75: =IF(A75="","",IF(VLOOKUP(A75,'00 CE'!$B$4:$D$565,3,0)=0,"",VLOOKUP(A75,'00 CE'!$B$4:$D$565,3,0))) -> 
A76: BA1050 | B76: - da pubblico (altri soggetti pubbl. della Regione) | C76: =SUMIF('00 CE'!$B:$B,$A76,'00 CE'!G:G) -> 0 | D76: =SUMIF('00 CE'!$B:$B,$A76,'00 CE'!F:F) -> 0 | E76: 0 | F76: 0 | H76: =IF(A76="","",IF(VLOOKUP(A76,'00 CE'!$B$4:$D$565,3,0)=0,"",VLOOKUP(A76,'00 CE'!$B$4:$D$565,3,0))) -> 
A77: BA1060 | B77: - da pubblico (Extraregione) | C77: =SUMIF('00 CE'!$B:$B,$A77,'00 CE'!G:G) -> 106826.2 | D77: =SUMIF('00 CE'!$B:$B,$A77,'00 CE'!F:F) -> 95302.31 | E77: 11523.89 | F77: =IF(AND(C77=0,D77=0),0,IF(C77=0,"",IF(D77=0,"",E77/D77))) -> 0.1209193145 | H77: =IF(A77="","",IF(VLOOKUP(A77,'00 CE'!$B$4:$D$565,3,0)=0,"",VLOOKUP(A77,'00 CE'!$B$4:$D$565,3,0))) -> 
A78: BA1070 | B78: - da privato | C78: =SUMIF('00 CE'!$B:$B,$A78,'00 CE'!G:G) -> 1401125.08 | D78: =SUMIF('00 CE'!$B:$B,$A78,'00 CE'!F:F) -> 1821580.51 | E78: -420455.43 | F78: -0.230819021 | H78: =IF(A78="","",IF(VLOOKUP(A78,'00 CE'!$B$4:$D$565,3,0)=0,"",VLOOKUP(A78,'00 CE'!$B$4:$D$565,3,0))) -> 
A79: BA1080 | B79: - da privato per cittadini non residenti - Extraregione (mobilità attiva in compensazione) | C79: =SUMIF('00 CE'!$B:$B,$A79,'00 CE'!G:G) -> 156346.4 | D79: =SUMIF('00 CE'!$B:$B,$A79,'00 CE'!F:F) -> 232622.89 | E79: -76276.49 | F79: -0.3278976115 | H79: =IF(A79="","",IF(VLOOKUP(A79,'00 CE'!$B$4:$D$565,3,0)=0,"",VLOOKUP(A79,'00 CE'!$B$4:$D$565,3,0))) -> 
H80: =IF(A80="","",IF(VLOOKUP(A80,'00 CE'!$B$4:$D$565,3,0)=0,"",VLOOKUP(A80,'00 CE'!$B$4:$D$565,3,0))) -> 
B81: Tab. 60 – Dettaglio acquisti di servizi sanitari – II parte | H81: =IF(A81="","",IF(VLOOKUP(A81,'00 CE'!$B$4:$D$565,3,0)=0,"",VLOOKUP(A81,'00 CE'!$B$4:$D$565,3,0))) -> 
A82: CODICE MOD. CE | B82: DETTAGLIO ACQUISTI DI SERVIZI SANITARI | C82: ="Valore CE " &'00 Aggregatore'!$F$2 -> Valore CE 2019 | D82: ="Valore CE " &'00 Aggregatore'!$F$2 -1 -> Valore CE 2018 | E82: Variazioni importo | F82: Variazioni %
H83: =IF(A83="","",IF(VLOOKUP(A83,'00 CE'!$B$4:$D$565,3,0)=0,"",VLOOKUP(A83,'00 CE'!$B$4:$D$565,3,0))) -> 
A84: BA1090 | B84: ACQUISTI PRESTAZIONI DI TRASPORTO SANITARIO | C84: =SUM(C85:C88) -> 7848424.45 | D84: =SUM(D85:D88) -> 8783342.46 | E84: =C84-D84 -> -934918.01 | F84: =IF(AND(C84=0,D84=0),0,IF(C84=0,"",IF(D84=0,"",E84/D84))) -> -0.1064421676 | H84: =IF(A84="","",IF(VLOOKUP(A84,'00 CE'!$B$4:$D$565,3,0)=0,"",VLOOKUP(A84,'00 CE'!$B$4:$D$565,3,0))) -> S
A85: BA1100 | B85: - da pubblico (Aziende sanitarie pubbliche della Regione) - Mobilità intraregionale | C85: =SUMIF('00 CE'!$B:$B,$A85,'00 CE'!G:G) -> 98634.25 | D85: =SUMIF('00 CE'!$B:$B,$A85,'00 CE'!F:F) -> 103216 | E85: -4581.75 | F85: -0.04438992017 | H85: =IF(A85="","",IF(VLOOKUP(A85,'00 CE'!$B$4:$D$565,3,0)=0,"",VLOOKUP(A85,'00 CE'!$B$4:$D$565,3,0))) -> 
A86: BA1110 | B86: - da pubblico (altri soggetti pubbl. della Regione) | C86: =SUMIF('00 CE'!$B:$B,$A86,'00 CE'!G:G) -> 0 | D86: =SUMIF('00 CE'!$B:$B,$A86,'00 CE'!F:F) -> 0 | E86: =C86-D86 -> 0 | F86: 0 | H86: =IF(A86="","",IF(VLOOKUP(A86,'00 CE'!$B$4:$D$565,3,0)=0,"",VLOOKUP(A86,'00 CE'!$B$4:$D$565,3,0))) -> 
A87: BA1120 | B87: - da pubblico (Extraregione) | C87: =SUMIF('00 CE'!$B:$B,$A87,'00 CE'!G:G) -> 148466.56 | D87: =SUMIF('00 CE'!$B:$B,$A87,'00 CE'!F:F) -> 344124.9 | E87: -195658.34 | F87: -0.5685678078 | H87: =IF(A87="","",IF(VLOOKUP(A87,'00 CE'!$B$4:$D$565,3,0)=0,"",VLOOKUP(A87,'00 CE'!$B$4:$D$565,3,0))) -> 
A88: BA1130 | B88: - da privato | C88: =SUMIF('00 CE'!$B:$B,$A88,'00 CE'!G:G) -> 7601323.64 | D88: =SUMIF('00 CE'!$B:$B,$A88,'00 CE'!F:F) -> 8336001.56 | E88: -734677.92 | F88: -0.0881331313 | H88: =IF(A88="","",IF(VLOOKUP(A88,'00 CE'!$B$4:$D$565,3,0)=0,"",VLOOKUP(A88,'00 CE'!$B$4:$D$565,3,0))) -> 
A89: BA1140 | B89: ACQUISTI PRESTAZIONI SOCIO-SANITARIE A RILEVANZA SANITARIA | C89: =C90+C93+C94+C95+C96+C97 -> 17664091.36 | D89: =D90+D93+D94+D95+D96+D97 -> 16307538.57 | E89: 1356552.79 | F89: 0.08318562511 | H89: =IF(A89="","",IF(VLOOKUP(A89,'00 CE'!$B$4:$D$565,3,0)=0,"",VLOOKUP(A89,'00 CE'!$B$4:$D$565,3,0))) -> S
A90: BA1150 | B90: - da pubblico (Aziende sanitarie pubbliche della Regione) - Mobilità intraregionale | C90: =SUMIF('00 CE'!$B:$B,$A90,'00 CE'!G:G) -> 1807405.46 | D90: =SUMIF('00 CE'!$B:$B,$A90,'00 CE'!F:F) -> 1758520.38 | E90: =C90-D90 -> 48885.08 | F90: 0.02779898405 | H90: =IF(A90="","",IF(VLOOKUP(A90,'00 CE'!$B$4:$D$565,3,0)=0,"",VLOOKUP(A90,'00 CE'!$B$4:$D$565,3,0))) -> S
A91: BA1151 | B91: B.2.A.12.1.A) Assistenza domiciliare integrata (ADI) | C91: =SUMIF('00 CE'!$B:$B,$A91,'00 CE'!G:G) -> 0 | D91: =SUMIF('00 CE'!$B:$B,$A91,'00 CE'!F:F) -> 0 | E91: 0 | F91: =IF(AND(C91=0,D91=0),0,IF(C91=0,"",IF(D91=0,"",E91/D91))) -> 0 | H91: =IF(A91="","",IF(VLOOKUP(A91,'00 CE'!$B$4:$D$565,3,0)=0,"",VLOOKUP(A91,'00 CE'!$B$4:$D$565,3,0))) -> 
A92: BA1152 | B92: B.2.A.12.1.B) Altre prestazioni socio-sanitarie a rilevanza sanitaria | C92: =SUMIF('00 CE'!$B:$B,$A92,'00 CE'!G:G) -> 1807405.46 | D92: =SUMIF('00 CE'!$B:$B,$A92,'00 CE'!F:F) -> 1758520.38 | E92: 48885.08 | F92: 0.02779898405 | H92: =IF(A92="","",IF(VLOOKUP(A92,'00 CE'!$B$4:$D$565,3,0)=0,"",VLOOKUP(A92,'00 CE'!$B$4:$D$565,3,0))) -> 
A93: BA1160 | B93: - da pubblico (altri soggetti pubblici della Regione) | C93: =SUMIF('00 CE'!$B:$B,$A93,'00 CE'!G:G) -> 0 | D93: =SUMIF('00 CE'!$B:$B,$A93,'00 CE'!F:F) -> 0 | E93: 0 | F93: 0 | H93: =IF(A93="","",IF(VLOOKUP(A93,'00 CE'!$B$4:$D$565,3,0)=0,"",VLOOKUP(A93,'00 CE'!$B$4:$D$565,3,0))) -> 
A94: BA1161 | B94: B.2.A.12.3) - da pubblico (Extraregione) - Acquisto di Altre prestazioni sociosanitarie a rilevanza sanitaria erogate a soggetti pubblici Extraregione | C94: =SUMIF('00 CE'!$B:$B,$A94,'00 CE'!G:G) -> 0 | D94: =SUMIF('00 CE'!$B:$B,$A94,'00 CE'!F:F) -> 0 | E94: 0 | F94: =IF(AND(C94=0,D94=0),0,IF(C94=0,"",IF(D94=0,"",E94/D94))) -> 0 | H94: =IF(A94="","",IF(VLOOKUP(A94,'00 CE'!$B$4:$D$565,3,0)=0,"",VLOOKUP(A94,'00 CE'!$B$4:$D$565,3,0))) -> 
A95: BA1170 | B95: - da pubblico (Extraregione) non soggette a compensazione | C95: =SUMIF('00 CE'!$B:$B,$A95,'00 CE'!G:G) -> 163730.37 | D95: =SUMIF('00 CE'!$B:$B,$A95,'00 CE'!F:F) -> 160969.38 | E95: 2760.99 | F95: 0.01715226834 | H95: =IF(A95="","",IF(VLOOKUP(A95,'00 CE'!$B$4:$D$565,3,0)=0,"",VLOOKUP(A95,'00 CE'!$B$4:$D$565,3,0))) -> 
A96: BA1180 | B96: - da privato (intraregionale) | C96: =SUMIF('00 CE'!$B:$B,$A96,'00 CE'!G:G) -> 13625990.66 | D96: =SUMIF('00 CE'!$B:$B,$A96,'00 CE'!F:F) -> 12500635.9 | E96: 1125354.76 | F96: 0.09002380111 | H96: =IF(A96="","",IF(VLOOKUP(A96,'00 CE'!$B$4:$D$565,3,0)=0,"",VLOOKUP(A96,'00 CE'!$B$4:$D$565,3,0))) -> 
A97: BA1190 | B97: - da privato (extraregionale) | C97: =SUMIF('00 CE'!$B:$B,$A97,'00 CE'!G:G) -> 2066964.87 | D97: =SUMIF('00 CE'!$B:$B,$A97,'00 CE'!F:F) -> 1887412.91 | E97: 179551.96 | F97: 0.09513125562 | H97: =IF(A97="","",IF(VLOOKUP(A97,'00 CE'!$B$4:$D$565,3,0)=0,"",VLOOKUP(A97,'00 CE'!$B$4:$D$565,3,0))) -> 
A98: BA1200 | B98: COMPARTECIPAZIONE AL PERSONALE PER ATT. LIBERO-PROF. (INTRAMOENIA) | C98: =SUMIF('00 CE'!$B:$B,$A98,'00 CE'!G:G) -> 2990762.61 | D98: =SUMIF('00 CE'!$B:$B,$A98,'00 CE'!F:F) -> 3321031.32 | E98: =C98-D98 -> -330268.71 | F98: -0.09944763484 | H98: =IF(A98="","",IF(VLOOKUP(A98,'00 CE'!$B$4:$D$565,3,0)=0,"",VLOOKUP(A98,'00 CE'!$B$4:$D$565,3,0))) -> S
A99: BA1210 | B99: Compartecipazione al personale per att. libero professionale intramoenia - Area ospedaliera | C99: =SUMIF('00 CE'!$B:$B,$A99,'00 CE'!G:G) -> 60058.96 | D99: =SUMIF('00 CE'!$B:$B,$A99,'00 CE'!F:F) -> 54218.1 | E99: =C99-D99 -> 5840.86 | F99: 0.1077289687
A100: BA1220 | B100: Compartecipazione al personale per att. libero professionale intramoenia- Area specialistica | C100: =SUMIF('00 CE'!$B:$B,$A100,'00 CE'!G:G) -> 2527432.63 | D100: =SUMIF('00 CE'!$B:$B,$A100,'00 CE'!F:F) -> 2563747.47 | E100: -36314.84 | F100: -0.01416474923
A101: BA1230 | B101: Compartecipazione al personale per att. libero professionale intramoenia - Area sanità pubblica | C101: =SUMIF('00 CE'!$B:$B,$A101,'00 CE'!G:G) -> 14345.3 | D101: =SUMIF('00 CE'!$B:$B,$A101,'00 CE'!F:F) -> 15233.61 | E101: -888.31 | F101: -0.05831250767
A102: BA1240 | B102: Compartecipazione al personale per att. libero professionale intramoenia - Consulenze (ex art. 55 c.1 lett. c), d) ed ex Art. 57-58) | C102: =SUMIF('00 CE'!$B:$B,$A102,'00 CE'!G:G) -> 335908.3 | D102: =SUMIF('00 CE'!$B:$B,$A102,'00 CE'!F:F) -> 579327.3 | E102: -243419 | F102: -0.4201752619
A103: BA1250 | B103: Compartecipazione al personale per att. libero professionale intramoenia - Consulenze (ex art. 55 c.1 lett. c), d) ed ex Art. 57-58) (Aziende sanitarie pubbliche della Regione) | C103: =SUMIF('00 CE'!$B:$B,$A103,'00 CE'!G:G) -> 0 | D103: =SUMIF('00 CE'!$B:$B,$A103,'00 CE'!F:F) -> 0 | E103: 0 | F103: 0
A104: BA1260 | B104: Compartecipazione al personale per att. libero professionale intramoenia - Altro | C104: =SUMIF('00 CE'!$B:$B,$A104,'00 CE'!G:G) -> 53017.42 | D104: =SUMIF('00 CE'!$B:$B,$A104,'00 CE'!F:F) -> 108504.84 | E104: -55487.42 | F104: -0.5113819807
A105: BA1270 | B105: Compartecipazione al personale per att. libero professionale intramoenia - Altro (Aziende sanitarie pubbliche della Regione) | C105: =SUMIF('00 CE'!$B:$B,$A105,'00 CE'!G:G) -> 0 | D105: =SUMIF('00 CE'!$B:$B,$A105,'00 CE'!F:F) -> 0 | E105: 0
